Workbook

Sheet SCHEMATIC
P2: Design parameters
P3: Input Voltage Range | Q3: =_xlfn.CONCAT(Vblk_hu," to ",Vblk_max,"V") -> 342 to 418V
P4: Output Voltage | Q4: =_xlfn.CONCAT(Vout,"V") -> 12V
P5: Ouptut Power | Q5: =_xlfn.CONCAT(Pout,"W") -> 300W
P6: Resonant Frequency | Q6: =_xlfn.CONCAT(fllc,"Hz") -> 125Hz
P7: Output Ripple | Q7: =_xlfn.CONCAT(Vout_pp,"mV") -> 500mV
Q9: RefDes | R9: Value | S9: Unit
Q10: CBOOT | R10: 1 | S10: µF
Q11: CISNS | R11: ='DESIGN INPUTS AND CALCULATIONS'!C232 -> 150 | S11: pF
Q12: COUT | R12: ='DESIGN INPUTS AND CALCULATIONS'!C143 -> 1166 | S12: µF* | T12: =_xlfn.CONCAT("* This is the recommended output capacitance. Make sure the capacitors chosen can support than and that the effective ESR is less than ",ROUND(ESR,1),"mΩ.") -> * This is the recommended output capacitance. Make sure the capacitors chosen can support than and that the effective ESR is less than 12.7mΩ.
Q13: Cr | R13: =Cr -> 0.043 | S13: µF
Q14: Lm | R14: =ROUND(Lm,2) -> 223.77 | S14: uH
Q15: Lr | R15: =Lr -> 37.70090554 | S15: uH
Q16: R25 | R16: ='DESIGN INPUTS AND CALCULATIONS'!C273 -> 470 | S16: kΩ
Q17: R431lower | R17: ='DESIGN INPUTS AND CALCULATIONS'!C283 -> 13.33521432 | S17: kΩ
Q18: R431upper | R18: ='DESIGN INPUTS AND CALCULATIONS'!C281 -> 147 | S18: kΩ
Q19: RBLEED | R19: ='DESIGN INPUTS AND CALCULATIONS'!C296 -> 9.085175757 | S19: kΩ
Q20: RBLKlower | R20: =ROUND('DESIGN INPUTS AND CALCULATIONS'!C154,2) -> 30.14 | S20: kΩ
Q21: RBLKupper | R21: =ROUND('DESIGN INPUTS AND CALCULATIONS'!C157,2) -> 9.53 | S21: =_xlfn.CONCAT('DESIGN INPUTS AND CALCULATIONS'!D157,"*") -> MΩ* | T21: =_xlfn.CONCAT("* This is normally three ",ROUND(R21/3,2),"MΩ resistors in series") -> * This is normally three 3.18MΩ resistors in series
Q22: Rext | R22: ='DESIGN INPUTS AND CALCULATIONS'!C274 -> 13.99050314 | S22: kΩ
Q23: RHV | R23: 4.95 | S23: kΩ
Q24: RISNS | R24: ='DESIGN INPUTS AND CALCULATIONS'!C234 -> 150 | S24: Ω
Q25: RLLlower | R25: ='DESIGN INPUTS AND CALCULATIONS'!C246 -> 120 | S25: kΩ
Q26: RLLupper | R26: ='DESIGN INPUTS AND CALCULATIONS'!C245 -> 430 | S26: kΩ
Q27: RSERIES | R27: ='DESIGN INPUTS AND CALCULATIONS'!C294 -> 5.490138914 | S27: kΩ
Q28: RTSET_lower | R28: ='DESIGN INPUTS AND CALCULATIONS'!C176 -> 112.7413766 | S28: kΩ
Q29: RTSET_upper | R29: ='DESIGN INPUTS AND CALCULATIONS'!C175 -> 365.1741273 | S29: kΩ
Q30: VZ | R30: ='DESIGN INPUTS AND CALCULATIONS'!C260 -> 15 | S30: V
Q31: NPS | R31: =Nps -> 15.83
Q32: NPB | R32: =Npb -> 12.67

Sheet IPPC (hidden)
A3: reading directly from previous sheet | B3: OCP | C3: ="=" -> = | D3: =IF('DESIGN INPUTS AND CALCULATIONS'!$C$166="No",'DESIGN INPUTS AND CALCULATIONS'!$C$169,'DESIGN INPUTS AND CALCULATIONS'!$C$184) -> 3.5 | E3: V | G3: Calculated
B4: AVDD | C4: = | D4: 5 | E4: V | F4: % increment | G4: PIN (W) | H4: VFB (V)
A5: reading directly from previous sheet | B5: TSET_Option | C5: ="=" -> = | D5: =IF('DESIGN INPUTS AND CALCULATIONS'!$C$166="No",TSET,'DESIGN INPUTS AND CALCULATIONS'!$C$186) -> 7 | E5: # | F5: 0.03 | G5: =F5*Pout/eff -> 9.574468085 | H5: =α*G5+β -> 1.831283965
A6: calculated based on Tset_option in aobve row | B6: RVCR | C6: ="=" -> = | D6: =IF(D3=4,VLOOKUP(D5,TSET!$A$7:$Y$23,14,0),VLOOKUP(D5,TSET!$A$26:$Y$43,14,0)) -> 106 | E6: kΩ | F6: 0.08 | G6: 25.53191489 | H6: =α*G6+β -> 1.858233008
B7: CVCR | C7: ="=" -> = | D7: =IF(D3=4,VLOOKUP(D5,TSET!$A$7:$Y$23,15,0),VLOOKUP(D5,TSET!$A$26:$Y$43,15,0)) -> 3.387 | E7: pF | F7: 0.13 | G7: 41.4893617 | H7: 1.885182051
B8: RRAMP | C8: ="=" -> = | D8: =IF(D3=4,VLOOKUP(D5,TSET!$A$7:$Y$23,16,0),VLOOKUP(D5,TSET!$A$26:$Y$43,16,0)) -> 1500 | E8: kΩ | F8: 0.18 | G8: 57.44680851 | H8: 1.912131094
A9: reading directly from previous sheet | B9: kT | C9: ="=" -> = | D9: =IF('DESIGN INPUTS AND CALCULATIONS'!$C$166="No",'DESIGN INPUTS AND CALCULATIONS'!$C$181,'DESIGN INPUTS AND CALCULATIONS'!$C$200) -> 2.711 | E9: Timer Gain | F9: 0.23 | G9: 73.40425532 | H9: 1.939080138
F10: 0.28 | G10: 89.36170213 | H10: 1.966029181
F11: 0.33 | G11: 105.3191489 | H11: 1.992978224
B12: CISNS | C12: ="=" -> = | D12: ='DESIGN INPUTS AND CALCULATIONS'!C232 -> 150 | E12: pF | F12: 0.38 | G12: 121.2765957 | H12: 2.019927267
B13: RISNS | C13: = | D13: ='DESIGN INPUTS AND CALCULATIONS'!C234 -> 150 | E13: Ω | F13: 0.43 | G13: 137.2340426 | H13: 2.04687631
B14: Cr | C14: = | D14: =Cr*1000 -> 43 | E14: nF | F14: 0.48 | G14: 153.1914894 | H14: 2.073825354
F15: 0.53 | G15: 169.1489362 | H15: 2.100774397
F16: 0.58 | G16: 185.106383 | H16: 2.12772344
B17: RBLKupper | C17: = | D17: ='DESIGN INPUTS AND CALCULATIONS'!C157 -> 9.531618832 | E17: MΩ | F17: 0.63 | G17: 201.0638298 | H17: 2.154672483
B18: RBLKlower | C18: ="=" -> = | D18: ='DESIGN INPUTS AND CALCULATIONS'!C154 -> 30.1416253 | E18: kΩ | F18: 0.68 | G18: 217.0212766 | H18: 2.181621527
B19: BLKratio | C19: ="=" -> = | D19: =RBLKlower/(RBLKupper*1000+RBLKlower) -> 0.003152309183 | F19: 0.73 | G19: 232.9787234 | H19: 2.20857057
F20: 0.78 | G20: 248.9361702 | H20: 2.235519613
B21: BITWLLC | C21: ="=" -> = | D21: =IF(OR('DESIGN INPUTS AND CALCULATIONS'!C22="UCC256614",'DESIGN INPUTS AND CALCULATIONS'!C22="UCC256610"),1,0) -> 1 | F21: 0.83 | G21: 264.893617 | H21: 2.262468656
F22: 0.88 | G22: 280.8510638 | H22: 2.2894177
F23: 0.93 | G23: 296.8085106 | H23: 2.316366743
B24: α | C24: ="=" -> = | D24: =((2-BITWLLC)/2)*(BLKratio/(kT*(10^5)*AVDD*RVCR*CVCR))*(RISNS*CISNS*(10^6)/(D14+CISNS*10^(-3))) -> 0.00168880671 | E24: Ω | F24: 0.98 | G24: 312.7659574 | H24: 2.343315786
B25: β | C25: ="=" -> = | D25: =AVDD/(2*kT*(10^5)*RRAMP*CVCR*(10^-9)) -> 1.815114539 | E25: V | F25: 1 | G25: 319.1489362 | H25: 2.354095403
B26: IFB | C26: = | D26: =IF(OR('DESIGN INPUTS AND CALCULATIONS'!C22="UCC256612",'DESIGN INPUTS AND CALCULATIONS'!C22="UCC256613"),160,80) -> 80 | E26: µA
B27: RBLKSCALE | C27: = | D27: =IF('DESIGN INPUTS AND CALCULATIONS'!D156="kΩ",1000,1) -> 1
B28: RFB | C28: = | D28: =5/(IFB*10^-3) -> 62.5 | E28: Ω | F28: This is the effecetive pull up resistance
C174: =((2-BITWLLC)/2)*(BLKratio/('[UCC25661x_Design_Calculator_Rev2.0 (4).xlsx]DESIGN INPUTS AND CALCULATIONS'!*'DESIGN INPUTS AND CALCULATIONS'!(10^5)*AVDD*RVCR*CVCR))*(RISNS*CISNS*(10^6)/(D14+CISNS*10^(-3)))

Sheet TSET (hidden)
B2: Formulas refers to the exact cell address, DO NOT CHANGE Columns. If mandatory, correct all formulas to match new columns
A3: TSET | B3: fswMin | C3: OCP1th | D3: TSET | E3: Freq. | F3: TSET/V5P | G3: TSET | H3: TSET min | I3: TSET max | J3: TSET digital | N3: RVCR | O3: CVCR | P3: RRAMP | Q3: Tsw meas | R3: Tsw/2 | S3: FBxtime | T3: DT_max | U3: PWM_TON_extension (uS) | V3: LO falling to next LO Falling (uS) | W3: LL Pin Volage | X3: TSET upper resistance | Y3: TSET lower resistance
A4: Option | B4: (kHz) | C4: (V) | D4: Option | E4: Option | F4: (V/V) | G4: (V) | H4: (V) | I4: (V) | J4: (ADC output) | N4: (kOhm) | O4: (pF) | P4: (kOhm) | Q4: clock | R4: Timer | S4: RC filter | T4: (us) | AA4: added for ease of implementing formulas | AB4: added for ease of implementing formulas | AD4: added for ease of implementing formulas | AE4: added for ease of implementing formulas | AG4: OCP1th | AH4: TSET | AQ4: 0.048
A5: added for ease of implementing formulas | B5: added for ease of implementing formulas | D5: # | E5: # | J5: 8’dX | Q5: (MHz) | R5: Gain | S5: (us) | AA5: Option Number | AB5: fswMin | AD5: Filtered | AE5: OCP | AG5: (V) | AH5: Option | AM5: TSET | AQ5: As per data sheet Tset min & max values | AS5: comparison with ADC Tset min & max | AV5: TSET Gain Set by Diff Voltage Calculation
A6: 37 | C6: X | D6: 37 | E6: X | F6: ≥ 0.9215 | G6: =0.9215*5 -> 4.6075 | H6: =K6*5/256 -> 4.58984375 | I6: =M6*5/256 -> 4.98046875 | J6: ≥ | K6: 235 | M6: 255 | N6: X | O6: X | P6: X | Q6: X | R6: X | S6: X | T6: X | AB6: (kHz) | AH6: # | AK6: Mid point of threshold | AL6: Actual voltage after choosing resistors | AM6: 4.6075 | AN6: Difference between threshold upper value and actual voltage | AQ6: =G6+$AQ$4 -> 4.6555 | AR6: =G6-$AQ$4 -> 4.5595 | AS6: =(AR6-H6)*1000 -> -30.34375 | AT6: =(AQ6-I6)*1000 -> -324.96875 | AV6: Yes
A7: 1 | B7: =VLOOKUP(E7,$AA$7:$AB$24,2,0) -> 48.88 | C7: 4 | D7: 36 | E7: 1 | F7: 0.9064 | G7: =F7*5 -> 4.532 | H7: =K7*5/256 -> 4.4921875 | I7: =M7*5/256 -> 4.5703125 | J7: ≥ | K7: 230 | L7: ≤ | M7: 234 | N7: 242 | O7: 4 | P7: 3600 | Q7: 50 | R7: 1 | S7: 3.3 | T7: 1 | U7: 5 | V7: =2*O7*W7/(2.5/P7*1000) -> 17.28 | W7: 1.5 | X7: 102 | Y7: 1000 | AA7: 1 | AB7: 48.88 | AD7: =_xlfn._xlws.FILTER(TSET!AB7:AB24,TSET!AB7:AB24<=fsw_min,"None") -> 48.88 | AE7: 3.5 | AG7: X | AH7: 37 | AK7: =(G6+G7)/2 -> 4.56975 | AL7: =Y7*5/(X7+Y7) -> 4.537205082 | AM7: 4.531 | AN7: =AM6-AL7 -> 0.07029491833 | AQ7: =G7+$AQ$4 -> 4.58 | AR7: =G7-$AQ$4 -> 4.484 | AS7: =(AR7-H7)*1000 -> -8.1875 | AT7: =(AQ7-I7)*1000 -> 9.6875 | AV7: No
A8: 2 | B8: 57.72 | C8: 4 | D8: 35 | E8: 2 | F8: 0.8866 | G8: =F8*5 -> 4.433 | H8: 4.39453125 | I8: =M8*5/256 -> 4.47265625 | J8: ≥ | K8: 225 | L8: ≤ | M8: 229 | N8: 242 | O8: 3.387 | P8: 3600 | Q8: 50 | R8: 1.181 | S8: 3.3 | T8: 1 | U8: 5 | V8: 14.63184 | W8: 1.5 | X8: 59 | Y8: 475 | AA8: 2 | AB8: 57.72 | AD8: 57.72 | AE8: 4 | AG8: 4 | AH8: 36 | AK8: 4.4825 | AL8: 4.447565543 | AM8: 4.433 | AN8: =AM7-AL8 -> 0.08343445693 | AQ8: =G8+$AQ$4 -> 4.481 | AR8: 4.385 | AS8: -9.53125 | AT8: 8.34375
A9: 3 | B9: 68.15 | C9: 4 | D9: 34 | E9: 3 | F9: 0.8672 | G9: 4.336 | H9: 4.296875 | I9: 4.375 | J9: ≥ | K9: 220 | L9: ≤ | M9: 224 | N9: 242 | O9: 2.869 | P9: 3600 | Q9: 50 | R9: =2.789/2 -> 1.3945 | S9: 2.4 | T9: 1 | U9: 5 | V9: 12.39408 | W9: 1.5 | X9: 54.9 | Y9: 360 | AA9: 3 | AB9: 68.15 | AD9: 68.15 | AG9: 4 | AH9: 35 | AK9: 4.3845 | AL9: 4.338394794 | AM9: 4.336 | AN9: 0.09460520607 | AQ9: 4.384 | AR9: 4.288 | AS9: -8.875 | AT9: 9
A10: 4 | B10: 80.48 | C10: 4 | D10: 33 | E10: 4 | F10: 0.8476 | G10: 4.238 | H10: 4.19921875 | I10: 4.27734375 | J10: ≥ | K10: 215 | L10: ≤ | M10: 219 | N10: 242 | O10: 2.429 | P10: 3600 | Q10: 50 | R10: =3.293/2 -> 1.6465 | S10: 2.4 | T10: 1 | U10: 5 | V10: 10.49328 | W10: 1.5 | X10: 59 | Y10: 330 | AA10: 4 | AB10: 80.48 | AD10: 80.48 | AG10: 4 | AH10: 34 | AK10: 4.287 | AL10: 4.241645244 | AM10: 4.238 | AN10: 0.09435475578 | AQ10: 4.286 | AR10: 4.19 | AS10: -9.21875 | AT10: 8.65625
A11: 5 | B11: 95.03 | C11: 4 | D11: 32 | E11: 5 | F11: 0.826 | G11: 4.13 | H11: 4.08203125 | I11: 4.1796875 | J11: ≥ | K11: 209 | L11: ≤ | M11: 214 | N11: 242 | O11: 2.027 | P11: 3600 | Q11: 50 | R11: =3.889/2 -> 1.9445 | S11: 2.4 | T11: 1 | U11: 5 | V11: 11.67552 | W11: 2 | X11: 69.8 | Y11: 330 | AA11: 5 | AB11: 95.03 | AG11: 4 | AH11: 33 | AK11: 4.184 | AL11: 4.127063532 | AM11: 4.13 | AN11: 0.1109364682 | AQ11: 4.178 | AR11: 4.082 | AS11: -0.03125 | AT11: -1.6875
A12: 6 | B12: 112.22 | C12: 4 | D12: 31 | E12: 6 | F12: 0.8026 | G12: 4.013 | H12: 3.96484375 | I12: 4.0625 | J12: ≥ | K12: 203 | L12: ≤ | M12: 208 | N12: 106 | O12: 4 | P12: 1500 | Q12: 100 | R12: 2.296 | S12: 1.8 | T12: 1 | U12: 5 | V12: 9.6 | W12: 2 | X12: 88.7 | Y12: 360 | AA12: 6 | AB12: 112.22 | AG12: 4 | AH12: 32 | AK12: 4.0715 | AL12: 4.011589035 | AM12: 4.013 | AN12: 0.118410965 | AQ12: 4.061 | AR12: 3.965 | AS12: 0.15625 | AT12: -1.5
A13: 7 | B13: 132.52 | C13: 4 | D13: 30 | E13: 7 | F13: 0.7812 | G13: 3.906 | H13: 3.8671875 | I13: 3.9453125 | J13: ≥ | K13: 198 | L13: ≤ | M13: 202 | N13: 106 | O13: 3.387 | P13: 1500 | Q13: 100 | R13: 2.711 | S13: 1.8 | T13: 1 | U13: 5 | V13: 8.1288 | W13: 2 | X13: 147 | Y13: 523 | AA13: 7 | AB13: 132.52 | AG13: 4 | AH13: 31 | AK13: 3.9595 | AL13: 3.902985075 | AM13: 3.906 | AN13: 0.1100149254 | AQ13: 3.954 | AR13: 3.858 | AS13: -9.1875 | AT13: 8.6875
A14: 8 | B14: 156.48 | C14: 4 | D14: 29 | E14: 8 | F14: 0.7596 | G14: 3.798 | H14: 3.75 | I14: 3.84765625 | J14: ≥ | K14: 192 | L14: ≤ | M14: 197 | N14: 106 | O14: 2.869 | P14: 1500 | Q14: 100 | R14: 3.202 | S14: 1.3 | T14: 1 | U14: 5 | V14: 6.8856 | W14: 2 | X14: 113 | Y14: 357 | AA14: 8 | AB14: 156.48 | AG14: 4 | AH14: 30 | AK14: 3.852 | AL14: 3.79787234 | AM14: 3.798 | AN14: 0.1081276596 | AQ14: 3.846 | AR14: 3.75 | AS14: 0 | AT14: -1.65625
A15: 9 | B15: 184.78 | C15: 4 | D15: 28 | E15: 9 | F15: 0.7362 | G15: 3.681 | H15: 3.6328125 | I15: 3.73046875 | J15: ≥ | K15: 186 | L15: ≤ | M15: 191 | N15: 106 | O15: 2.429 | P15: 1500 | Q15: 100 | R15: 3.781 | S15: 1.3 | T15: 1 | U15: 5 | V15: 8.7444 | W15: 3 | X15: 121 | Y15: 340 | AA15: 9 | AB15: 184.78 | AG15: 4 | AH15: 29 | AK15: 3.7395 | AL15: 3.687635575 | AM15: 3.681 | AN15: 0.1103644252 | AQ15: 3.729 | AR15: 3.633 | AS15: 0.1875 | AT15: -1.46875
A16: 10 | B16: 218.2 | C16: 4 | D16: 27 | E16: 10 | F16: 0.7108 | G16: 3.554 | H16: 3.49609375 | I16: 3.61328125 | J16: ≥ | K16: 179 | L16: ≤ | M16: 185 | N16: 106 | O16: 2.027 | P16: 1500 | Q16: 100 | R16: 4.464 | S16: 1.3 | T16: 1 | U16: 5 | V16: 7.2972 | W16: 3 | X16: 178 | Y16: 442 | Z16: 4.532 | AA16: 10 | AB16: 218.2 | AG16: 4 | AH16: 28 | AK16: 3.6175 | AL16: 3.564516129 | AM16: 3.554 | AN16: 0.116483871 | AQ16: 3.602 | AR16: 3.506 | AS16: 9.90625 | AT16: -11.28125
A17: 11 | B17: 257.66 | C17: 4 | D17: 26 | E17: 11 | F17: 0.6854 | G17: 3.427 | H17: 3.37890625 | I17: 3.4765625 | J17: ≥ | K17: 173 | L17: ≤ | M17: 178 | N17: 46 | O17: 4 | P17: 620 | Q17: 100 | R17: 5.272 | S17: 1 | T17: 1 | U17: 2.5 | V17: 5.952 | W17: 3 | X17: 107 | Y17: 232 | AA17: 11 | AB17: 257.66 | AG17: 4 | AH17: 27 | AK17: 3.4905 | AL17: 3.421828909 | AM17: 3.427 | AN17: 0.1321710914 | AQ17: 3.475 | AR17: 3.379 | AS17: 0.09375 | AT17: -1.5625
A18: 12 | B18: 304.26 | C18: 4 | D18: 25 | E18: 12 | F18: 0.662 | G18: 3.31 | H18: 3.26171875 | I18: 3.359375 | J18: ≥ | K18: 167 | L18: ≤ | M18: 172 | N18: 46 | O18: 3.387 | P18: 620 | Q18: 100 | R18: 6.225 | S18: 1 | T18: 1 | U18: 2.5 | V18: 5.039856 | W18: 3 | X18: 121 | Y18: 237 | AA18: 12 | AB18: 304.26 | AG18: 4 | AH18: 26 | AK18: 3.3685 | AL18: 3.310055866 | AM18: 3.31 | AN18: 0.1169441341 | AQ18: 3.358 | AR18: 3.262 | AS18: 0.28125 | AT18: -1.375
A19: 13 | B19: 359.29 | C19: 4 | D19: 24 | E19: 13 | F19: 0.6366 | G19: 3.183 | H19: 3.125 | I19: 3.2421875 | J19: ≥ | K19: 160 | L19: ≤ | M19: 166 | N19: 46 | O19: 2.869 | P19: 620 | Q19: 100 | R19: 7.351 | S19: 1 | T19: 1 | U19: 2.5 | V19: 5.692096 | W19: 4 | X19: 107 | Y19: 187 | AA19: 13 | AB19: 359.29 | AG19: 4 | AH19: 25 | AK19: 3.2465 | AL19: 3.180272109 | AM19: 3.183 | AN19: 0.1297278912 | AQ19: 3.231 | AR19: 3.135 | AS19: 10 | AT19: -11.1875
A20: 14 | B20: 424.26 | C20: 4 | D20: 23 | E20: 14 | F20: 0.6112 | G20: 3.056 | H20: 3.0078125 | I20: 3.10546875 | J20: ≥ | K20: 154 | L20: ≤ | M20: 159 | N20: 46 | O20: 2.429 | P20: 620 | Q20: 100 | R20: 8.68 | S20: 1 | T20: 0.5 | U20: 2.5 | V20: 4.819136 | W20: 4 | X20: 187 | Y20: 294 | AA20: 14 | AB20: 424.26 | AG20: 4 | AH20: 24 | AK20: 3.1195 | AL20: 3.056133056 | AM20: 3.056 | AN20: 0.1268669439 | AQ20: 3.104 | AR20: 3.008 | AS20: 0.1875 | AT20: -1.46875
A21: 15 | B21: 500.99 | C21: 4 | D21: 22 | E21: 15 | F21: 0.5858 | G21: 2.929 | H21: 2.87109375 | I21: 2.98828125 | J21: ≥ | K21: 147 | L21: ≤ | M21: 153 | N21: 46 | O21: 2.027 | P21: 620 | Q21: 100 | R21: 10.25 | S21: 1 | T21: 0.5 | U21: 2.5 | V21: 4.021568 | W21: 4 | X21: 115 | Y21: 162 | AA21: 15 | AB21: 500.99 | AG21: 4 | AH21: 23 | AK21: 2.9925 | AL21: 2.924187726 | AM21: 2.929 | AN21: 0.1318122744 | AQ21: 2.977 | AR21: 2.881 | AS21: 9.90625 | AT21: -11.28125
A22: 16 | B22: 591.6 | C22: 4 | D22: 21 | E22: 16 | F22: 0.5604 | G22: 2.802 | H22: 2.75390625 | I22: 2.8515625 | J22: ≥ | K22: 141 | L22: ≤ | M22: 146 | N22: 20 | O22: 4 | P22: 250 | Q22: 100 | R22: 12.104 | S22: 0.75 | T22: 0.5 | U22: 2.5 | V22: 3.2 | W22: 4 | X22: 95.3 | Y22: 121 | AA22: 16 | AB22: 591.6 | AG22: 4 | AH22: 22 | AK22: 2.8655 | AL22: 2.797041147 | AM22: 2.802 | AN22: 0.1319588534 | AQ22: 2.85 | AR22: 2.754 | AS22: 0.09375 | AT22: -1.5625
A23: 17 | B23: 698.59 | C23: 4 | D23: 20 | E23: 17 | F23: 0.535 | G23: 2.675 | H23: 2.6171875 | I23: 2.734375 | J23: ≥ | K23: 134 | L23: ≤ | M23: 140 | N23: 20 | O23: 3.387 | P23: 250 | Q23: 100 | R23: 14.293 | S23: 0.75 | T23: 0.5 | U23: 2.5 | V23: 2.7096 | W23: 4 | X23: 113 | Y23: 130 | AA23: 17 | AB23: 698.59 | AG23: 4 | AH23: 21 | AK23: 2.7385 | AL23: 2.674897119 | AM23: 2.676 | AN23: 0.1271028807 | AQ23: 2.723 | AR23: 2.627 | AS23: 9.8125 | AT23: -11.375
A24: 18 | B24: 824.93 | C24: 4 | D24: 19 | E24: 18 | F24: 0.5098 | G24: 2.549 | H24: 2.5 | I24: 2.59765625 | J24: ≥ | K24: 128 | L24: ≤ | M24: 133 | N24: 20 | O24: 2.869 | P24: 250 | Q24: 100 | R24: 16.878 | S24: 0.75 | T24: 0.5 | U24: 2.5 | V24: 2.2952 | W24: 4 | X24: 162 | Y24: 169 | AA24: 18 | AB24: 824.93 | AG24: 4 | AH24: 20 | AK24: 2.612 | AL24: =Y24*5/(X24+Y24) -> 2.552870091 | AM24: 2.549 | AN24: 0.1231299094 | AQ24: 2.597 | AR24: 2.501 | AS24: 1 | AT24: -0.65625
A25: 18 | B25: 824.93 | C25: 3.5 | D25: 18 | E25: 18 | F25: 0.4844 | G25: 2.422 | H25: 2.36328125 | I25: 2.48046875 | J25: ≥ | K25: 121 | L25: ≤ | M25: 127 | N25: 20 | O25: 2.869 | P25: 250 | Q25: 100 | R25: 16.878 | S25: 0.75 | T25: 0.5 | U25: 2.5 | V25: 2.2952 | W25: 4 | X25: 160 | Y25: 150 | AG25: 4 | AH25: 19 | AK25: 2.4855 | AL25: 2.419354839 | AM25: 2.422 | AN25: 0.1296451613 | AQ25: 2.47 | AR25: 2.374 | AS25: 10.71875 | AT25: -10.46875
A26: 17 | B26: 698.59 | C26: 3.5 | D26: 17 | E26: 17 | F26: 0.459 | G26: 2.295 | H26: 2.24609375 | I26: 2.34375 | J26: ≥ | K26: 115 | L26: ≤ | M26: 120 | N26: 20 | O26: 3.387 | P26: 250 | Q26: 100 | R26: 14.293 | S26: 0.75 | T26: 0.5 | U26: 2.5 | V26: 2.7096 | W26: 4 | X26: 130 | Y26: 110 | AG26: 3.5 | AH26: 18 | AK26: 2.3585 | AL26: 2.291666667 | AM26: 2.295 | AN26: 0.1303333333 | AQ26: 2.343 | AR26: 2.247 | AS26: 0.90625 | AT26: -0.75
A27: 16 | B27: 591.6 | C27: 3.5 | D27: 16 | E27: 16 | F27: 0.4336 | G27: 2.168 | H27: 2.109375 | I27: 2.2265625 | J27: ≥ | K27: 108 | L27: ≤ | M27: 114 | N27: 20 | O27: 4 | P27: 250 | Q27: 100 | R27: 12.104 | S27: 0.75 | T27: 0.5 | U27: 2.5 | V27: 3.2 | W27: 4 | X27: 162 | Y27: 124 | AA27: =0.9215*5 -> 4.6075 | AG27: 3.5 | AH27: 17 | AK27: 2.2315 | AL27: 2.167832168 | AM27: 2.168 | AN27: 0.1271678322 | AQ27: 2.216 | AR27: 2.12 | AS27: 10.625 | AT27: -10.5625
A28: 15 | B28: 500.99 | C28: 3.5 | D28: 15 | E28: 15 | F28: 0.4082 | G28: 2.041 | H28: 1.9921875 | I28: 2.08984375 | J28: ≥ | K28: 102 | L28: ≤ | M28: 107 | N28: 46 | O28: 2.027 | P28: 620 | Q28: 100 | R28: 10.25 | S28: 1 | T28: 0.5 | U28: 2.5 | V28: 4.021568 | W28: 4 | X28: 147 | Y28: 102 | AG28: 3.5 | AH28: 16 | AK28: 2.1045 | AL28: 2.048192771 | AM28: 2.041 | AN28: 0.1198072289 | AQ28: 2.089 | AR28: 1.993 | AS28: 0.8125 | AT28: -0.84375
A29: 14 | B29: 424.26 | C29: 3.5 | D29: 14 | E29: 14 | F29: 0.3828 | G29: 1.914 | H29: 1.85546875 | I29: 1.97265625 | J29: ≥ | K29: 95 | L29: ≤ | M29: 101 | N29: 46 | O29: 2.429 | P29: 620 | Q29: 100 | R29: 8.68 | S29: 1 | T29: 0.5 | U29: 2.5 | V29: 4.819136 | W29: 4 | X29: 287 | Y29: 178 | AG29: 3.5 | AH29: 15 | AK29: 1.9775 | AL29: 1.913978495 | AM29: 1.914 | AN29: 0.1270215054 | AQ29: 1.962 | AR29: 1.866 | AS29: 10.53125 | AT29: -10.65625
A30: 13 | B30: 359.29 | C30: 3.5 | D30: 13 | E30: 13 | F30: 0.3574 | G30: 1.787 | H30: 1.73828125 | I30: 1.8359375 | J30: ≥ | K30: 89 | L30: ≤ | M30: 94 | N30: 46 | O30: 2.869 | P30: 620 | Q30: 100 | R30: 7.351 | S30: 1 | T30: 1 | U30: 2.5 | V30: 5.692096 | W30: 4 | X30: 180 | Y30: 100 | AG30: 3.5 | AH30: 14 | AK30: 1.8505 | AL30: 1.785714286 | AM30: 1.787 | AN30: 0.1282857143 | AQ30: 1.835 | AR30: 1.739 | AS30: 0.71875 | AT30: -0.9375
A31: 12 | B31: 304.26 | C31: 3.5 | D31: 12 | E31: 12 | F31: 0.332 | G31: 1.66 | H31: 1.6015625 | I31: 1.71875 | J31: ≥ | K31: 82 | L31: ≤ | M31: 88 | N31: 46 | O31: 3.387 | P31: 620 | Q31: 100 | R31: 6.225 | S31: 1 | T31: 1 | U31: 2.5 | V31: 5.039856 | W31: 3 | X31: 332 | Y31: 165 | AG31: 3.5 | AH31: 13 | AK31: 1.7235 | AL31: 1.659959759 | AM31: 1.66 | AN31: 0.1270402414 | AQ31: 1.708 | AR31: 1.612 | AS31: 10.4375 | AT31: -10.75
A32: 11 | B32: 257.66 | C32: 3.5 | D32: 11 | E32: 11 | F32: 0.3066 | G32: 1.533 | H32: 1.484375 | I32: 1.58203125 | J32: ≥ | K32: 76 | L32: ≤ | M32: 81 | N32: 46 | O32: 4 | P32: 620 | Q32: 100 | R32: 5.272 | S32: 1 | T32: 1 | U32: 2.5 | V32: 5.952 | W32: 3 | X32: 536 | Y32: 237 | AG32: 3.5 | AH32: 12 | AK32: 1.5965 | AL32: 1.532988357 | AM32: 1.533 | AN32: 0.1270116429 | AQ32: 1.581 | AR32: 1.485 | AS32: 0.625 | AT32: -1.03125
A33: 10 | B33: 218.2 | C33: 3.5 | D33: 10 | E33: 10 | F33: 0.2832 | G33: 1.416 | H33: 1.3671875 | I33: 1.46484375 | J33: ≥ | K33: 70 | L33: ≤ | M33: 75 | N33: 106 | O33: 2.027 | P33: 1500 | Q33: 100 | R33: 4.464 | S33: 1.3 | T33: 1 | U33: 5 | V33: 7.2972 | W33: 3 | X33: 910 | Y33: 360 | AG33: 3.5 | AH33: 11 | AK33: 1.4745 | AL33: 1.417322835 | AM33: 1.416 | AN33: 0.1156771654 | AQ33: 1.464 | AR33: 1.368 | AS33: 0.8125 | AT33: -0.84375
A34: 9 | B34: 184.78 | C34: 3.5 | D34: 9 | E34: 9 | F34: 0.2598 | G34: 1.299 | H34: 1.25 | I34: 1.34765625 | J34: ≥ | K34: 64 | L34: ≤ | M34: 69 | N34: 106 | O34: 2.429 | P34: 1500 | Q34: 100 | R34: 3.781 | S34: 1.3 | T34: 1 | U34: 5 | V34: 8.7444 | W34: 3 | X34: 910 | Y34: 316 | AG34: 3.5 | AH34: 10 | AK34: 1.3575 | AL34: 1.288743883 | AM34: 1.299 | AN34: 0.1272561175 | AQ34: 1.347 | AR34: 1.251 | AS34: 1 | AT34: -0.65625
A35: 8 | B35: 156.48 | C35: 3.5 | D35: 8 | E35: 8 | F35: 0.2364 | G35: 1.182 | H35: 1.1328125 | I35: 1.23046875 | J35: ≥ | K35: 58 | L35: ≤ | M35: 63 | N35: 106 | O35: 2.869 | P35: 1500 | Q35: 100 | R35: 3.202 | S35: 1.3 | T35: 1 | U35: 5 | V35: 6.8856 | W35: 2 | X35: 365 | Y35: 113 | AG35: 3.5 | AH35: 9 | AK35: 1.2405 | AL35: 1.182008368 | AM35: 1.182 | AN35: 0.1169916318 | AQ35: 1.23 | AR35: 1.134 | AS35: 1.1875 | AT35: -0.46875
A36: 7 | B36: 132.52 | C36: 3.5 | D36: 7 | E36: 7 | F36: 0.2148 | G36: 1.074 | H36: 1.03515625 | I36: 1.11328125 | J36: ≥ | K36: 53 | L36: ≤ | M36: 57 | N36: 106 | O36: 3.387 | P36: 1500 | Q36: 100 | R36: 2.711 | S36: 1.8 | T36: 1 | U36: 5 | V36: 8.1288 | W36: 2 | X36: 976 | Y36: 267 | AG36: 3.5 | AH36: 8 | AK36: 1.128 | AL36: 1.074014481 | AM36: 1.074 | AN36: 0.1079855189 | AQ36: 1.122 | AR36: 1.026 | AS36: -9.15625 | AT36: 8.71875
A37: 6 | B37: 112.22 | C37: 3.5 | D37: 6 | E37: 6 | F37: 0.1934 | G37: 0.967 | H37: 0.91796875 | I37: 1.015625 | J37: ≥ | K37: 47 | L37: ≤ | M37: 52 | N37: 106 | O37: 4 | P37: 1500 | Q37: 100 | R37: 2.296 | S37: 1.8 | T37: 1 | U37: 5 | V37: 9.6 | W37: 2 | X37: 1000 | Y37: 240 | AG37: 3.5 | AH37: 7 | AK37: 1.0205 | AL37: 0.9677419355 | AM37: 0.967 | AN37: 0.1062580645 | AQ37: 1.015 | AR37: 0.919 | AS37: 1.03125 | AT37: -0.625
A38: 5 | B38: 95.03 | C38: 3.5 | D38: 5 | E38: 5 | F38: 0.17 | G38: 0.85 | H38: 0.80078125 | I38: 0.8984375 | J38: ≥ | K38: 41 | L38: ≤ | M38: 46 | N38: 242 | O38: 2.027 | P38: 3600 | Q38: 50 | R38: =3.889/2 -> 1.9445 | S38: 2.4 | T38: 1 | U38: 5 | V38: 11.67552 | W38: 2 | X38: 1000 | Y38: 205 | AG38: 3.5 | AH38: 6 | AK38: 0.9085 | AL38: 0.8506224066 | AM38: 0.85 | AN38: 0.1163775934 | AQ38: 0.898 | AR38: 0.802 | AS38: 1.21875 | AT38: -0.4375
A39: 4 | B39: 80.48 | C39: 3.5 | D39: 4 | E39: 4 | F39: 0.1484 | G39: 0.742 | H39: 0.703125 | I39: 0.78125 | J39: ≥ | K39: 36 | L39: ≤ | M39: 40 | N39: 242 | O39: 2.429 | P39: 3600 | Q39: 50 | R39: =3.293/2 -> 1.6465 | S39: 2.4 | T39: 1 | U39: 5 | V39: 10.49328 | W39: 1.5 | X39: 1000 | Y39: 174 | AG39: 3.5 | AH39: 5 | AK39: 0.796 | AL39: 0.7410562181 | AM39: 0.742 | AN39: 0.1089437819 | AQ39: 0.79 | AR39: 0.694 | AS39: -9.125 | AT39: 8.75
A40: 3 | B40: 68.15 | C40: 3.5 | D40: 3 | E40: 3 | F40: 0.1288 | G40: 0.644 | H40: 0.60546875 | I40: 0.68359375 | J40: ≥ | K40: 31 | L40: ≤ | M40: 35 | N40: 242 | O40: 2.869 | P40: 3600 | Q40: 50 | R40: =2.789/2 -> 1.3945 | S40: 2.4 | T40: 1 | U40: 5 | V40: 12.39408 | W40: 1.5 | X40: 1000 | Y40: 147 | AG40: 3.5 | AH40: 4 | AK40: 0.693 | AL40: 0.6408020924 | AM40: 0.644 | AN40: 0.1011979076 | AQ40: 0.692 | AR40: 0.596 | AS40: -9.46875 | AT40: 8.40625
A41: 2 | B41: 57.72 | C41: 3.5 | D41: 2 | E41: 2 | F41: 0.1094 | G41: 0.547 | H41: 0.5078125 | I41: 0.5859375 | J41: ≥ | K41: 26 | L41: ≤ | M41: 30 | N41: 242 | O41: 3.387 | P41: 3600 | Q41: 50 | R41: =2.362/2 -> 1.181 | S41: 3.3 | T41: 1 | U41: 5 | V41: 14.63184 | W41: 1.5 | X41: 1000 | Y41: 124 | AG41: 3.5 | AH41: 3 | AK41: 0.5955 | AL41: 0.5516014235 | AM41: 0.547 | AN41: 0.09239857651 | AQ41: 0.595 | AR41: 0.499 | AS41: -8.8125 | AT41: 9.0625
A42: 1 | B42: 48.88 | C42: 3.5 | D42: 1 | E42: 1 | F42: 0.09 | G42: 0.45 | H42: 0.41015625 | I42: 0.48828125 | J42: ≥ | K42: 21 | L42: ≤ | M42: 25 | N42: 242 | O42: 4 | P42: 3600 | Q42: 50 | R42: =2/2 -> 1 | S42: 3.3 | T42: 1 | U42: 5 | V42: 17.28 | W42: 1.5 | X42: 1000 | Y42: 100 | AG42: 3.5 | AH42: 2 | AK42: 0.4985 | AL42: 0.4545454545 | AM42: 0.45 | AN42: 0.09245454545 | AQ42: 0.498 | AR42: 0.402 | AS42: -8.15625 | AT42: 9.71875
A43: 0 | C43: X | D43: 0 | E43: X | F43: ≤ 0.0784 | G43: ≤ (0.0784*5) | H43: 0 | I43: 0.390625 | L43: ≤ | M43: 20 | N43: X | O43: X | P43: X | Q43: X | R43: X | S43: X | T43: X | AG43: 3.5 | AH43: 1 | AM43: ≤ (0.0784*5)
AG44: X | AH44: 0

Sheet 1% Resistor Table (hidden)
A1: =1*10^((ROW(A1)-1)/96) -> 1 | B1: =$A1*10^1 -> 10 | C1: =$A1*10^2 -> 100 | D1: =$A1*10^3 -> 1000 | F1: 500mW Zener | H1: Shunt Reference Options | I1: Shunt Max Current (mA)
A2: =1*10^((ROW(A2)-1)/96) -> 1.024275221 | B2: =$A2*10^1 -> 10.24275221 | C2: =$A2*10^2 -> 102.4275221 | D2: =$A2*10^3 -> 1024.275221 | F2: 17 | H2: 1.24 | I2: 15
A3: =1*10^((ROW(A3)-1)/96) -> 1.049139729 | B3: 10.49139729 | C3: 104.9139729 | D3: 1049.139729 | F3: 18 | H3: 2.495 | I3: 50
A4: 1.074607828 | B4: 10.74607828 | C4: 107.4607828 | D4: 1074.607828 | F4: 19 | H4: 2.5 | I4: 100
A5: 1.100694171 | B5: 11.00694171 | C5: 110.0694171 | D5: 1100.694171 | F5: 20 | I5: 150
A6: 1.127413766 | B6: 11.27413766 | C6: 112.7413766 | D6: 1127.413766 | F6: 22
A7: 1.154781985 | B7: 11.54781985 | C7: 115.4781985 | D7: 1154.781985 | F7: 24
A8: 1.182814573 | B8: 11.82814573 | C8: 118.2814573 | D8: 1182.814573 | F8: 25
A9: 1.211527659 | B9: 12.11527659 | C9: 121.1527659 | D9: 1211.527659 | F9: 27
A10: 1.240937761 | B10: 12.40937761 | C10: 124.0937761 | D10: 1240.937761 | F10: 28
A11: 1.2710618 | B11: 12.710618 | C11: 127.10618 | D11: 1271.0618 | F11: 30
A12: 1.301917106 | B12: 13.01917106 | C12: 130.1917106 | D12: 1301.917106 | F12: 33
A13: 1.333521432 | B13: 13.33521432 | C13: 133.3521432 | D13: 1333.521432 | F13: 36
A14: 1.36589296 | B14: 13.6589296 | C14: 136.589296 | D14: 1365.89296 | F14: 39
A15: 1.399050314 | B15: 13.99050314 | C15: 139.9050314 | D15: 1399.050314 | F15: 43
A16: 1.43301257 | B16: 14.3301257 | C16: 143.301257 | D16: 1433.01257 | F16: 47
A17: 1.467799268 | B17: 14.67799268 | C17: 146.7799268 | D17: 1467.799268 | F17: 51
A18: 1.50343042 | B18: 15.0343042 | C18: 150.343042 | D18: 1503.43042 | F18: 56
A19: 1.539926526 | B19: 15.39926526 | C19: 153.9926526 | D19: 1539.926526 | F19: 60
A20: 1.577308583 | B20: 15.77308583 | C20: 157.7308583 | D20: 1577.308583 | F20: 62
A21: 1.615598098 | B21: 16.15598098 | C21: 161.5598098 | D21: 1615.598098 | F21: 68
A22: 1.6548171 | B22: 16.548171 | C22: 165.48171 | D22: 1654.8171 | F22: 75
A23: 1.694988151 | B23: 16.94988151 | C23: 169.4988151 | D23: 1694.988151 | F23: 82
A24: 1.736134364 | B24: 17.36134364 | C24: 173.6134364 | D24: 1736.134364 | F24: 87
A25: 1.77827941 | B25: 17.7827941 | C25: 177.827941 | D25: 1778.27941 | F25: 91
A26: 1.821447536 | B26: 18.21447536 | C26: 182.1447536 | D26: 1821.447536 | F26: 100
A27: 1.865663579 | B27: 18.65663579 | C27: 186.5663579 | D27: 1865.663579 | F27: 110
A28: 1.910952975 | B28: 19.10952975 | C28: 191.0952975 | D28: 1910.952975 | F28: 120
A29: 1.957341781 | B29: 19.57341781 | C29: 195.7341781 | D29: 1957.341781 | F29: 130
A30: 2.004856687 | B30: 20.04856687 | C30: 200.4856687 | D30: 2004.856687 | F30: 150
A31: 2.053525026 | B31: 20.53525026 | C31: 205.3525026 | D31: 2053.525026 | F31: 160
A32: 2.103374801 | B32: 21.03374801 | C32: 210.3374801 | D32: 2103.374801 | F32: 180
A33: 2.15443469 | B33: 21.5443469 | C33: 215.443469 | D33: 2154.43469 | F33: 190
A34: 2.206734069 | B34: 22.06734069 | C34: 220.6734069 | D34: 2206.734069 | F34: 200
A35: 2.260303027 | B35: 22.60303027 | C35: 226.0303027 | D35: 2260.303027
A36: 2.315172384 | B36: 23.15172384 | C36: 231.5172384 | D36: 2315.172384
A37: 2.371373706 | B37: 23.71373706 | C37: 237.1373706 | D37: 2371.373706
A38: 2.428939327 | B38: 24.28939327 | C38: 242.8939327 | D38: 2428.939327
A39: 2.487902367 | B39: 24.87902367 | C39: 248.7902367 | D39: 2487.902367
A40: 2.548296748 | B40: 25.48296748 | C40: 254.8296748 | D40: 2548.296748
A41: 2.610157216 | B41: 26.10157216 | C41: 261.0157216 | D41: 2610.157216
A42: 2.67351936 | B42: 26.7351936 | C42: 267.351936 | D42: 2673.51936
A43: 2.738419634 | B43: 27.38419634 | C43: 273.8419634 | D43: 2738.419634
A44: 2.804895377 | B44: 28.04895377 | C44: 280.4895377 | D44: 2804.895377
A45: 2.872984833 | B45: 28.72984833 | C45: 287.2984833 | D45: 2872.984833
A46: 2.942727176 | B46: 29.42727176 | C46: 294.2727176 | D46: 2942.727176
A47: 3.01416253 | B47: 30.1416253 | C47: 301.416253 | D47: 3014.16253
A48: 3.087331993 | B48: 30.87331993 | C48: 308.7331993 | D48: 3087.331993
A49: 3.16227766 | B49: 31.6227766 | C49: 316.227766 | D49: 3162.27766
A50: 3.23904265 | B50: 32.3904265 | C50: 323.904265 | D50: 3239.04265
A51: 3.317671128 | B51: 33.17671128 | C51: 331.7671128 | D51: 3317.671128
A52: 3.398208329 | B52: 33.98208329 | C52: 339.8208329 | D52: 3398.208329
A53: 3.480700588 | B53: 34.80700588 | C53: 348.0700588 | D53: 3480.700588
A54: 3.565195366 | B54: 35.65195366 | C54: 356.5195366 | D54: 3565.195366
A55: 3.651741273 | B55: 36.51741273 | C55: 365.1741273 | D55: 3651.741273
A56: 3.7403881 | B56: 37.403881 | C56: 374.03881 | D56: 3740.3881
A57: 3.83118685 | B57: 38.3118685 | C57: 383.118685 | D57: 3831.18685
A58: 3.924189758 | B58: 39.24189758 | C58: 392.4189758 | D58: 3924.189758
A59: 4.019450334 | B59: 40.19450334 | C59: 401.9450334 | D59: 4019.450334
A60: 4.11702338 | B60: 41.1702338 | C60: 411.702338 | D60: 4117.02338
A61: 4.216965034 | B61: 42.16965034 | C61: 421.6965034 | D61: 4216.965034
A62: 4.319332794 | B62: 43.19332794 | C62: 431.9332794 | D62: 4319.332794
A63: 4.424185554 | B63: 44.24185554 | C63: 442.4185554 | D63: 4424.185554
A64: 4.531583638 | B64: 45.31583638 | C64: 453.1583638 | D64: 4531.583638
A65: 4.641588834 | B65: 46.41588834 | C65: 464.1588834 | D65: 4641.588834
A66: 4.75426443 | B66: =$A66*10^1 -> 47.5426443 | C66: =$A66*10^2 -> 475.426443 | D66: =$A66*10^3 -> 4754.26443
A67: =1*10^((ROW(A67)-1)/96) -> 4.869675252 | B67: 48.69675252 | C67: 486.9675252 | D67: 4869.675252
A68: 4.987887696 | B68: 49.87887696 | C68: 498.7887696 | D68: 4987.887696
A69: 5.108969775 | B69: 51.08969775 | C69: 510.8969775 | D69: 5108.969775
A70: 5.232991147 | B70: 52.32991147 | C70: 523.2991147 | D70: 5232.991147
A71: 5.360023165 | B71: 53.60023165 | C71: 536.0023165 | D71: 5360.023165
A72: 5.490138914 | B72: 54.90138914 | C72: 549.0138914 | D72: 5490.138914
A73: 5.623413252 | B73: 56.23413252 | C73: 562.3413252 | D73: 5623.413252
A74: 5.759922854 | B74: 57.59922854 | C74: 575.9922854 | D74: 5759.922854
A75: 5.899746256 | B75: 58.99746256 | C75: 589.9746256 | D75: 5899.746256
A76: 6.042963902 | B76: 60.42963902 | C76: 604.2963902 | D76: 6042.963902
A77: 6.189658189 | B77: 61.89658189 | C77: 618.9658189 | D77: 6189.658189
A78: 6.339913512 | B78: 63.39913512 | C78: 633.9913512 | D78: 6339.913512
A79: 6.493816316 | B79: 64.93816316 | C79: 649.3816316 | D79: 6493.816316
A80: 6.651455144 | B80: 66.51455144 | C80: 665.1455144 | D80: 6651.455144
A81: 6.812920691 | B81: 68.12920691 | C81: 681.2920691 | D81: 6812.920691
A82: 6.978305849 | B82: 69.78305849 | C82: 697.8305849 | D82: 6978.305849
A83: 7.147705768 | B83: 71.47705768 | C83: 714.7705768 | D83: 7147.705768
A84: 7.321217908 | B84: 73.21217908 | C84: 732.1217908 | D84: 7321.217908
A85: 7.498942093 | B85: 74.98942093 | C85: 749.8942093 | D85: 7498.942093
A86: 7.680980573 | B86: 76.80980573 | C86: 768.0980573 | D86: 7680.980573
A87: 7.867438077 | B87: 78.67438077 | C87: 786.7438077 | D87: 7867.438077
A88: 8.058421878 | B88: 80.58421878 | C88: 805.8421878 | D88: 8058.421878
A89: 8.254041853 | B89: 82.54041853 | C89: 825.4041853 | D89: 8254.041853
A90: 8.454410546 | B90: 84.54410546 | C90: 845.4410546 | D90: 8454.410546
A91: 8.659643234 | B91: 86.59643234 | C91: 865.9643234 | D91: 8659.643234
A92: 8.86985799 | B92: 88.6985799 | C92: 886.985799 | D92: 8869.85799
A93: 9.085175757 | B93: 90.85175757 | C93: 908.5175757 | D93: 9085.175757
A94: 9.305720409 | B94: 93.05720409 | C94: 930.5720409 | D94: 9305.720409
A95: 9.531618832 | B95: 95.31618832 | C95: 953.1618832 | D95: 9531.618832
A96: 9.76300099 | B96: 97.6300099 | C96: 976.300099 | D96: 9763.00099
A97: 10 | B97: 100 | C97: 1000 | D97: 10000
A98: 10.24275221 | D98: 10242.75221
A99: 10.49139729 | D99: 10491.39729
A100: 10.74607828
A101: 11.00694171
A102: 11.27413766
A103: 11.54781985
A104: 11.82814573
A105: 12.11527659
A106: 12.40937761
A107: 12.710618
A108: 13.01917106
A109: 13.33521432
A110: 13.6589296
A111: 13.99050314
A112: 14.3301257
A113: 14.67799268
A114: 15.0343042
A115: 15.39926526
A116: 15.77308583
A117: 16.15598098
A118: 16.548171
A119: 16.94988151
A120: 17.36134364
A121: 17.7827941
A122: 18.21447536
A123: 18.65663579
A124: 19.10952975
A125: 19.57341781
A126: 20.04856687
A127: 20.53525026
A128: 21.03374801
A129: 21.5443469
A130: 22.06734069
A131: =1*10^((ROW(A131)-1)/96) -> 22.60303027
A132: 23.15172384
A133: 23.71373706
A134: 24.28939327
A135: 24.87902367
A136: 25.48296748
A137: 26.10157216
A138: 26.7351936
A139: 27.38419634
A140: 28.04895377
A141: 28.72984833
A142: 29.42727176
A143: 30.1416253
A144: 30.87331993
A145: 31.6227766
A146: 32.3904265
A147: 33.17671128
A148: 33.98208329
A149: 34.80700588
A150: 35.65195366
A151: 36.51741273
A152: 37.403881
A153: 38.3118685
A154: 39.24189758
A155: 40.19450334
A156: 41.1702338
A157: 42.16965034
A158: 43.19332794
A159: 44.24185554
A160: 45.31583638
A161: 46.41588834
A162: 47.5426443
A163: 48.69675252
A164: 49.87887696
A165: 51.08969775
A166: 52.32991147
A167: 53.60023165
A168: 54.90138914
A169: 56.23413252
A170: 57.59922854
A171: 58.99746256
A172: 60.42963902
A173: 61.89658189
A174: 63.39913512
A175: 64.93816316
A176: 66.51455144
A177: 68.12920691
A178: 69.78305849
A179: 71.47705768
A180: 73.21217908
A181: 74.98942093
A182: 76.80980573
A183: 78.67438077
A184: 80.58421878
A185: 82.54041853
A186: 84.54410546
A187: 86.59643234
A188: 88.6985799
A189: 90.85175757
A190: 93.05720409
A191: 95.31618832
A192: 97.6300099
A193: 100
A194: 102.4275221
A195: =1*10^((ROW(A195)-1)/96) -> 104.9139729
A196: 107.4607828
A197: 110.0694171
A198: 112.7413766
A199: 115.4781985
A200: 118.2814573
... 387 more rows

Sheet DESIGN INPUTS AND CALCULATIONS
A1: UCC25661x DESIGN CALCULATOR TOOL
A2: TI Literature Number: | B2: Version: 3.3
A3: UCC25661x Enhanced LLC Resonant Controller
A4: Please enter design parameters into the | B4: shaded | C4: cells
A5: Recommended Component Values will be in RED where manual user input is required
A6: The calculator will choose real component values in the | B6: recommended | C6: cells. you can override these.
A7: Be sure to ENABLE MACROS before attempting to use this design calculator
A8: This spreadsheet guides the user through the design process of an LLC resonant DC/DC CONVERTER using the UCC25661x. User interaction is required in order to get the best possible results. Enter the desired specification where prompted, the highlighted cells are for user inputs; calculations for the design are based upon the inputs.
A12: WHERE APPLICABLE, A RECOMMENDED VALUE IS GIVEN THAT WILL BE THE BEST CHOICE TO MEET THE GIVEN SPECIFICATION. IT IS IN THE BEST INTEREST OF THE USER TO USE A VALUE AS CLOSE AS POSSIBLE TO THE SUGGESTED RECOMMENDED VALUE. FOR ACCURATE RESULTS, THE USER MUST ENTER THE ACTUAL VALUE USED IN THE APPROPRIATE CELL.
A22: Select Which Device You Are Using | C22: UCC256610 | E22: Refer datasheet for the difference of UCC25661x devices
A24: OUTPUT
A25: Output Voltage | B25: VOUT | C25: 12 | D25: V | E25: Enter nominal output voltage
A26: Maximum Output Power | B26: POUT | C26: 300 | D26: W | E26: Enter maximum output power
A27: Full Load Output Current | B27: IOUT | C27: =ROUND(Pout/Vout,4) -> 25 | D27: A
A28: Maximum Output Voltage Ripple | B28: VOUT(pk-pk) | C28: 500 | D28: mV | E28: Enter the maximum allowable output voltage ripple
A29: Target Efficiency | B29: h | C29: 0.94 | E29: =IF(eff<1,"Enter the overall target efficiency here", "It is not possible to achieve efficiency 100% or greater") -> Enter the overall target efficiency here
A31: INPUT
A32: Nominal Input Voltage | B32: VBLK | C32: 380 | D32: V | E32: =IF(Vblk<Vblk_max,"Enter the nominal input voltage","The nominal voltage can not be greater than the maximum voltage") -> Enter the nominal input voltage
A33: Maximum DC Input Voltage | B33: VBLK(max) | C33: 418 | D33: V | E33: =IF(Vblk_max<=640,"10% margin was added by default. You can override this","Please ask TI about how to support higher input voltages") -> 10% margin was added by default. You can override this
A34: Minimum DC Input Voltage | B34: VBLK(hu) | C34: 342 | D34: V | E34: =IF(Vblk_hu>Vblk/2,"10% margin was added by default, you can override this.",_xlfn.CONCAT("It is not easy to optmize the resonant tank for ",Vblk/Vblk_hu,":1 input voltage range")) -> 10% margin was added by default, you can override this.
A36: LLC STAGE
A37: Nominal LLC Switching Frequency | B37: fLLC | C37: 125 | D37: kHz | E37: =IF(AND(fllc>=50,fllc<=750),"Enter desired nominal LLC switching frequency","The valid range is from 50 to 750Hz") -> Enter desired nominal LLC switching frequency
A38: Primary to Secondary and Primary to Bias Winding turn ratios
A39: Recommended Primary/Secondary Turns Ratio | B39: NPS(recommended) | C39: =ROUND(Vblk/2/Vout,2) -> 15.83
A40: Actual Primary/Secondary Turns Ratio | B40: NPS | C40: 15.83 | E40: =IF(OR(Nps>C39*1.1,Nps<C39*0.9),_xlfn.CONCAT("Please select an Nps closer to ",C39),"Enter Actual Primary/Secondary Turns Ratio") -> Enter Actual Primary/Secondary Turns Ratio
A41: Recommended Primary/Bias Turns Ratio | B41: NPB(recommended) | C41: =ROUND(Vblk/2/15,2) -> 12.67
A42: Actual Primary/Bias Turns Ratio | B42: NPB | C42: 12.67 | E42: =IF(AND($C$22<>"UCC256613",OR(Npb>C41*1.1,Npb<C41*0.9)),_xlfn.CONCAT("Please select an Npb closer to ",C41),"Enter Actual Turns Ratio") -> Enter Actual Turns Ratio
A43: LLC Effective Load Resistance at 110% Full Load | B43: RE | C43: =(8*Nps^2*Vout)/(PI()^2*Iout*1.1) -> 88.63405599 | D43: Ω
A44: LLC Effective Load Resistance at Full Load | B44: RE(full load) | C44: =(8*Nps^2*Vout)/(PI()^2*Iout) -> 97.49746159 | D44: Ω
A45: LLC Gain Range
A46: Minimum LLC Gain | B46: MG(min) | C46: =Nps*(Vout+0.5)/(Vblk_max/2) -> 0.9467703349
A47: Maximum LLC Gain Including Losses | B47: MG(max) | C47: =1*Nps*(Vout+0.5+Vloss)/(Vblk_hu/2) -> 1.249736842
A48: Predicted Voltage Drop Due to Losses | B48: VLOSS | C48: 1 | D48: V | E48: =IF(Vloss<0.5,"This is a very optimistic target", IF(Vloss>5,"Please consider where the losses are coming from","Enter the predicted voltage drop due to conversion losses in circuit")) -> Enter the predicted voltage drop due to conversion losses in circuit
A49: Select LN and QE
A51: For example, if MG(max), calculated above and shown by the horizontal line, was calculated to be 1.4, then using Ln = 5 and QE = 0.35 would result in an attainable MG(PEAK) = 1.52 (interpolated from Ln = 5 curve) which satisfies the requirement that the Attainable MG(PEAK) > MG(max)
A55: Selected Primary Inductance Ratio | B55: LN(selected) | C55: 5.935483871
A56: Selected Quality Factor for Resonant Network | B56: QE(selected) | C56: 0.3037024912
A57: Gain Required at No-Load | B57: MG(noload) | C57: =Ln_selected/(Ln_selected+1) -> 0.8558139535
A58: fN at Maximum Switching Frequency | B58: fN(max) | C58: =350/fllc -> 2.8
A59: The selected LN and QE values should result in an LLC Gain Curve, shown below, that intersects with the MG(min) and MG(max) traces. The Gain curve from an overload condition is also plotted, showing the minimum gain at maximum frequency.
A89: Parameters of the LLC Resonant Circuit
A90: Discrete resonant inductor or transformer leakage inductance used for LR? | C90: Discrete Inductor | E90: =IF(Mg_max>MAX('Integrated Leakage'!$L$24:$L$95), "For lower input voltages, change cell C90 to an integrated leakage","") -> 
A91: =IF(C90="Integrated leakage","Transformer Coupling Coefficient","") ->  | B91: =IF(C90="Integrated leakage","k","") ->  | C91: 0.9 | E91: =IF(C90="Integrated Leakage","Enter the coupling coefficient between primary and secondary. Note most common transformer packages have coefficients between 0.85 to 0.9. It is advised to discuss the details of the transformer design with your magnetics vendor", "Ignore this row") -> Ignore this row
A92: Recommended Resonant Capacitor Value | B92: CR(recommended) | C92: =(1/(2*PI()*fllc*1000*Re_fl*Qe_selected))/10^-6 -> 0.043 | D92: uF
A93: Actual Total Value of Resonant Capacitor Used | B93: CR | C93: 0.043 | D93: uF | E93: =IF(OR(Cr<C92*0.9,Cr>C92*1.1),_xlfn.CONCAT("Try a value of Cr that is between ",ROUND(C92*0.9,3),"uF and ",ROUND(C92*1.1,3),"uF"),"Enter actual value of Resonant Capacitor used") -> Enter actual value of Resonant Capacitor used
A94: =IF(C90="Integrated Leakage","Recommended Leakage Inductance Value","Recommended Resonant Inductor Value") -> Recommended Resonant Inductor Value | B94: =IF(C90="Integrated Leakage","LLK(recommended)",'tables and calculations'!P73) -> LR(recommended) | C94: =IF($D93="uF",1/((2*PI()*fllc*kHz)^2*Cr*uF),1/((2*PI()*fllc*kHz)^2*Cr*picoF))*10^6 -> 37.70090554 | D94: uH
A95: =IF(C90="Integrated leakage","Actual Leakage Inductance Value Used","Actual Resonant Inductor Value Used") -> Actual Resonant Inductor Value Used | B95: =IF(C90="Integrated Leakage","LLK",'tables and calculations'!P74) -> LR | C95: 37.70090554 | D95: uH | E95: =IF(OR(Lr<=Lr_rec*0.9,Lr>=Lr_rec*1.1),_xlfn.CONCAT("Please enter an LR value in the range of ",ROUND(Lr_rec*0.9,2)," and ",ROUND(Lr_rec*1.1,2),"."),"Enter actual LR used") -> Enter actual LR used
A96: =IF(C90="Integrated Leakage","Primary Inductance based on Coupling Coefficient","Recommended Transformer Magnetizing Inductance") -> Recommended Transformer Magnetizing Inductance | B96: =IF(C90="Integrated Leakage","LP(recommended)",'tables and calculations'!P75) -> LM(recommended) | C96: =IF(C90="Integrated Leakage",'Integrated Leakage'!G16,Ln_selected*Lr) -> 223.7731168 | D96: uH
A97: Actual Transformer Magnetizing Inductance Used | B97: =IF(C90="Integrated Leakage","LP Chosen",'tables and calculations'!P76) -> LM | C97: 223.7731168 | D97: uH | E97: =IF(OR(Lm<Lm_rec*0.9,Lm>Lm_rec*1.1),_xlfn.CONCAT("Please enter ",LEFT(B96,2)," value in the range of ",ROUND(Lm_rec*0.9,1)," and ",ROUND(Lm_rec*1.1,1),"."),"Enter actual LM used") -> Enter actual LM used
A98: Resultant Series Resonant Frequency | B98: f0 | C98: =IF($D92="uF",1/(2*PI()*SQRT(Lr*uH*Cr*uF)),1/(2*PI()*SQRT(Lr*uH*Cr*picoF)))/kHz -> 125 | D98: kHz
A99: No Load Resonant Frequency | B99: fP | C99: =IF(C90="Integrated Leakage",(1/(2*PI()*SQRT(((Lr*uH)+(Lm_rec*uH))*(Cr*uF))))/kHz,(1/(2*PI()*SQRT(((Lr*uH)+(Lm*uH))*(Cr*uF))))/kHz) -> 47.46479724 | D99: kHz
A100: Resultant Inductance Ratio | B100: LN | C100: =Lm/Lr -> 5.935483871 | E100: You may need to re-enter this in C55
A101: Resultant Quality Factor at Full Load | B101: QE | C101: =IF(C90="Integrated Leakage",'Integrated Leakage'!G20,IF(D$92="uF",SQRT((Lr*uH)/(Cr*uF))/(Re_fl),SQRT((Lr*uH)/(Cr*picoF))/Re_fl)) -> 0.3037024912 | E101: Re-enter this value in the QE(selected) cell above to see the actual normalized frequency at MG(max) and MG(min)
A102: Gain Curve Graph Up to Date? | C102: =IF(AND(ROUND($C$100,2)=ROUND(C55,2),ROUND($C$101,2)=ROUND($C$56,2)),"Yes","No") -> Yes | E102: =IF(C102="Yes"," ",IF(AND(ROUND($C$100,2)<>C55,ROUND($C$101,2)=C56),"CAUTION. Update Cell C55 with new Ln",IF(AND(ROUND($C$100,2)=C55,ROUND($C$101,2)<>C56),_xlfn.CONCAT("CAUTION. Update Cell C56 with ",ROUND(Qe,2)," for optimal performance"),"CAUTION. Update Cells C56 and C57 with new Ln and Qe"))) -> 
A103: fN at MG(max) | B103: fN(Mg_max) | C103: =INDEX('Integrated Leakage'!N$24:N$95,MATCH(TRUE,ISNUMBER('Integrated Leakage'!N$24:N$95),0)) -> 0.65 | E103: =IFERROR(fn_Mgmax,"Check your input voltage range in C32-C34") -> 0.65
A104: fN at MG(min) | B104: fN(Mg_min) | C104: =INDEX('Integrated Leakage'!O$24:O$95,MATCH(TRUE,ISNUMBER('Integrated Leakage'!O$24:O$95),0)) -> 1.2
A105: Maximum Switching Frequency | B105: fSW(max) | C105: =ROUND(fn_Mgmin*f0,1) -> 150 | D105: kHz | E105: =IFERROR(fn_Mgmax,"Try changing C56 to 0.33 to alter the gain curve.") -> 0.65
A106: Minimum Switching Frequency | B106: fSW(min) | C106: =fn_Mgmax*f0 -> 81.25 | D106: kHz | E106: =IFERROR(fn_Mgmax,"Try changing C56 to 0.33 to alter the gain curve.") -> 0.65
A107: LLC Primary Side Currents
A108: Primary Side RMS Load Current | B108: IOE | C108: =PI()*Iout*1.1/(2*SQRT(2)*Nps) -> 1.929552761 | D108: A
A109: RMS Magnetizing Current at fSW(min) | B109: IM | C109: =(2*SQRT(2)*Nps*Vout)/(PI()*2*PI()*fsw_min*kHz*Lm*uH) -> 1.497083876 | D109: A
A110: Total Current in Resonant Circuit | B110: IR | C110: =SQRT(Im^2 +Ioe^2) -> 2.44221907 | D110: A
A112: LLC Secondary Side Currents
A113: Secondary RMS Current | B113: IOE(S) | C113: =Nps*Ioe -> 30.5448202 | D113: A
A114: Current in Each Center Tapped Winding | B114: IWS | C114: =SQRT(2)*$C113/2 -> 21.59844949 | D114: A
A116: LLC Resonant Inductor
A117: Terminal AC Voltage Across Resonant Inductor | B117: VLr | C117: =2*PI()*fsw_min*kHz*Lr*uH*Ir -> 47.0045217 | D117: V
A118: Inductance | B118: LR | C118: =Lr -> 37.70090554 | D118: =D95 -> uH
A119: Rated Current | B119: IR | C119: =Ir -> 2.44221907 | D119: =D114 -> A
A121: LLC Resonant Capacitor
A122: AC Voltage Across Resonant Capacitor | B122: VCR | C122: =IF($D92="uF",Ir/(2*PI()*fsw_min*kHz*Cr*uF),Ir/(2*PI()*fsw_min*kHz*Cr*picoF)) -> 111.2533058 | D122: V
A123: RMS Voltage Across Resonant Capacitor | B123: VCR(rms) | C123: =SQRT((Vblk_max/2)^2+Vcr^2) -> 236.7663364 | D123: V
A124: Peak Voltage AC Voltage Rating for Resonant Capacitor | B124: VCR(peak) | C124: =(Vblk_max/2)+(SQRT(2)*Vcr) -> 366.3359339 | D124: V
A125: Valley Voltage on Resonant Capacitor | B125: VCr(valley) | C125: =Vblk_max/2-(Vcr*SQRT(2)) -> 51.66406608 | D125: V
A126: Rated Current of Resonant Capacitor | B126: IR | C126: =Ir -> 2.44221907 | D126: A
A127: If Using Split Resonant Capacitors
A128: Value of EACH Resonant Capacitor If Using Split Resonant Capacitors | B128: CR(split) | C128: =Cr/2 -> 0.0215 | D128: =IF(D93="uF", "uF","pF") -> uF
A130: LLC Primary Side MOSFETs
A131: Minimum Voltage Rating of LLC MOSFETs | B131: VQLLC(peak) | C131: =Vblk_max*1.5 -> 627 | D131: V
A132: RMS Current Rating of LLC MOSFETs | B132: IQLLC | C132: =1.1*Ir -> 2.686440977 | D132: A
A134: LLC Output Rectifier Diodes/Synchronous rectifiers
A135: Minimum Voltage Rating for LLC Output Diodes | B135: VDB | C135: =(Vblk_max/Nps)*1.2 -> 31.68667088 | D135: V
A136: Minimum Current Rating for LLC Output Diodes | B136: ISAV | C136: =SQRT(2)*C113/PI() -> 13.75 | D136: A
A138: LLC Output Capacitors, COUT
A139: Rectifier's full wave output current | B139: IRECT | C139: =PI()*Iout/(2*SQRT(2)) -> 27.76801836 | D139: A
A140: COUT Minimum Voltage Rating | B140: VLLCcap | C140: =MROUND(Vout*1.25,10) -> 20 | D140: V
A141: COUT RMS Ripple Current Rating at resonant frequency | B141: IC(out) | C141: =SQRT((PI()*Iout/(2*SQRT(2)))^2-Iout^2) -> 12.08564619 | D141: A | E141: Use a combination of Capacitors that will meet this ripple current rating
A142: COUT Maximum ESR | B142: ESRmax | C142: =Vout_pp*mV/((2*PI()*Iout)/4)/mOhm -> 12.73239545 | D142: mΩ
A143: This is the minimum recommended output capacitance | B143: COUT_MIN | C143: =2*ROUND(Irect/(4*fsw_max*(Vout_pp/1000-Irect*ESR/1000)),3)*10^3 -> 1166 | D143: µF | E143: Make sure the capacitors chosen meet this minimum capacitance and ESR recommendation
A144: BLK
A145: BLK Pin Stop Threshold | B145: VBLKstop | C145: 1 | D145: V
A146: BLK Pin Start Hysteresis | B146: VBLKstarthys | C146: =VLOOKUP(C22,'tables and calculations'!$A$206:$C$215,2,0) -> 0.05 | D146: V
A147: BLK Pin Current Sink | B147: IBLKsink | C147: =VLOOKUP(C22,'tables and calculations'!$A$206:$C$215,3,0) -> 1 | D147: µA
A148: Desired Bulk Start Voltage | B148: VBLKStart | C148: =Vblk_hu -> 342 | D148: V
A149: Nominal Bulk Voltage | B149: VBLK | C149: =Vblk -> 380 | D149: V
A150: Resistor Divider Power Consumption Budget | B150: PBLKsns | C150: 15 | D150: mW | E150: =IF(C150<=0,"This won't work","Enter the desired power consumption for resistor divider") -> Enter the desired power consumption for resistor divider
A151: Total BLK Sense Resistor Value | B151: RBLKsns | C151: =C149^2/(C150*mW)/10^6 -> 9.626666667 | D151: MΩ | E151: =IF(C151>=15,"Note: very large resistors require a very clean PCB to prevent residue affected the actual resistance"," ") -> 
A152: Recommended Lower BLK Sense Resistor Value | B152: RBLKlower | C152: =INDEX('1% Resistor Table'!$A$1:$A$289,MATCH(MIN(ABS('1% Resistor Table'!$A$1:$A$289-'DESIGN INPUTS AND CALCULATIONS'!C153)),ABS('1% Resistor Table'!$A$1:$A$289-'DESIGN INPUTS AND CALCULATIONS'!C153),0)) -> 30.1416253 | D152: kΩ | E152: The recommended resistor is a standard 1% resistor
A153: Recommended Lower BLK Sense Resistor Value | B153: RBLKlower | C153: =(-(C148-C147*C151)+SQRT((C148-C147*C151)^2+4*C147*C151*(C145+C146)))/(2*C147)*10^3 -> 30.40880327 | D153: kΩ
A154: Actual Lower BLK Sense Resistor Value | B154: RBLKlower | C154: 30.1416253 | D154: kΩ | E154: =IF(OR(C154<C152*0.9,C154>C152*1.1),"Pick resistors within 10% of the recommended Value","Enter the actual value of the lower BLK sense resistor used") -> Enter the actual value of the lower BLK sense resistor used
A155: Recommended Upper BLK Sense Resistor Value | B155: RBLKupper | C155: =INDEX('1% Resistor Table'!$A$1:$A$385,MATCH(MIN(ABS('1% Resistor Table'!$A$1:$A$385-'DESIGN INPUTS AND CALCULATIONS'!C156)),ABS('1% Resistor Table'!$A$1:$A$385-'DESIGN INPUTS AND CALCULATIONS'!C156),0)) -> 9.531618832 | D155: =IF(C$151<=1,"kΩ","MΩ") -> MΩ | E155: The recommended resistor is a standard 1% resistor
A156: Recommended Upper BLK Sense Resistor Value | B156: RBLKupper | C156: =IF(C151<=1,C151*1000-C153,(C151-C153/1000)) -> 9.596257863 | D156: =IF(C$151<=1,"kΩ","MΩ") -> MΩ
A157: Actual Upper BLK Sense Resistor Value | B157: RBLKupper | C157: 9.531618832 | D157: =IF(C$151<=1,"kΩ","MΩ") -> MΩ | E157: =IF(C159<>"Yes","Pick resistors within 10% of the recommended Value","Enter the actual value of the upper BLK sense resistors used") -> Enter the actual value of the upper BLK sense resistors used
A158: Actual BLK pin voltage corresponding to maximum input voltage | C158: =IF(C151<=1,ROUND(Vblk_max*C154/(C154+C157),2),ROUND(Vblk_max*C154/(C154+C157*10^3),1)) -> 1.3 | D158: V
A159: Calculated BLK pin voltage below 5 V for the specified input voltage range? | C159: =IF(OR(C158>5,C158<1),"Error","Yes") -> Yes | E159: =IF(C159="Error",_xlfn.CONCAT(ROUND(C158,1),"V is greater than the 5V maximum rating on BLK. Please Choose ",B154," and ",B157," closer to the recommended values"),"") -> 
A160: Actual Bulk Start Voltage | B160: VBLKStart | C160: =((C157*1000+C154)/C154)*(C145+C146+C147*C157*C154/1000/(C157+C154/1000))/RBLKSCALE -> 342.6207732 | D160: V
A161: Actual Bulk Stop Voltage | B161: VBLKstop | C161: =($C145*($C157*1000+$C154)/$C154)/RBLKSCALE -> 317.227766 | D161: V
A162: Actual BLK divider power consumption | B162: PBLKsns | C162: =1000*(C149^2)/(C154*kOhm+C157*kOhm*kOhm) -> 15.10182154 | D162: mW
A165: TSET
A166: TSET Gain Set by Diff Voltage Calculation | C166: =VLOOKUP('DESIGN INPUTS AND CALCULATIONS'!C22,'tables and calculations'!$A$206:$D$215,4,0) -> Yes | E166: =IF(C166="Yes","TSET Gain Set by Diff Voltage Calculation option is enabled - use option 2 for calculating TSET resistor values","TSET Gain Set by Diff Voltage Calculation option is disabled - use option 1 for calculating TSET resistor values") -> TSET Gain Set by Diff Voltage Calculation option is enabled - use option 2 for calculating TSET resistor values
A167: Option 1 ( "TSET Gain Set by Diff Voltage Calculation" option is disabled)
A168: Select TSET option corresponding to required minimum fsw | B168: Option # | C168: 8 | E168: Minimum IPPC frequency 157kHz, Integrator time constant 304ns Maximum dead time 1us
A169: Select OCP limit [V] | B169: OCP1_Threshold | C169: 3.5 | D169: V | E169: Select OCP threshold from dropdown list
A170: Nominal TSET Pin Voltage for the above selected TSET option # | B170: VTSET | C170: =IF(C169=4,VLOOKUP(C168,TSET!$A$7:$Y$23,7,0),VLOOKUP(C168,TSET!$A$26:$Y$43,7,0)) -> 1.182 | D170: V
A171: Recommended TSET Pin Upper Resistance Value | B171: RTSET_upper | C171: =INDEX('1% Resistor Table'!$A$1:$A$289,MATCH(MIN(ABS('1% Resistor Table'!$A$1:$A$289-'DESIGN INPUTS AND CALCULATIONS'!C172)),ABS('1% Resistor Table'!$A$1:$A$289-'DESIGN INPUTS AND CALCULATIONS'!C172),0)) -> 365.1741273 | D171: kΩ
A172: Recommended TSET Pin Upper Resistance Value | B172: RTSET_upper | C172: =IF(C169=4,VLOOKUP(C168,TSET!$A$7:$Y$23,24,0),VLOOKUP(C168,TSET!$A$26:$Y$43,24,0)) -> 365 | D172: kΩ
A173: Recommended TSET Pin Lower Resistance Value | B173: RTSET_lower | C173: =INDEX('1% Resistor Table'!$A$1:$A$289,MATCH(MIN(ABS('1% Resistor Table'!$A$1:$A$289-'DESIGN INPUTS AND CALCULATIONS'!C174)),ABS('1% Resistor Table'!$A$1:$A$289-'DESIGN INPUTS AND CALCULATIONS'!C174),0)) -> 112.7413766 | D173: kΩ
A174: Recommended TSET Pin Lower Resistance Value | B174: RTSET_lower | C174: =IF(C169=4,VLOOKUP(C168,TSET!$A$7:$Y$23,25,0),VLOOKUP(C168,TSET!$A$26:$Y$43,25,0)) -> 113 | D174: kΩ
A175: Actual TSET Pin Upper Resistance Value | B175: RTSET_upper | C175: 365.1741273 | D175: kΩ | E175: Enter the selected TSET pin upper resistance value
A176: Actual TSET Pin Lower Resistance Value | B176: RTSET_lower | C176: 112.7413766 | D176: kΩ | E176: Enter the selected TSET pin lower resistance value
A177: Actual TSET Pin Voltage | B177: VTSET | C177: =5*C176/(C175+C176) -> 1.179511605 | D177: V | E177: Maximum and minimum range that can be used for each TSET setting is within +/- 48mV of nominal value.
A178: Selected TSET pin voltage in the specified range? | C178: =IF(OR(C177>IF(C169=4,VLOOKUP(C168,[3]TSET!$A$7:$Y$23,9,0),VLOOKUP(C168,[3]TSET!$A$26:$Y$43,9,0)),C177<IF(C169=4,VLOOKUP(C168,[3]TSET!$A$7:$Y$23,8,0),VLOOKUP(C168,[3]TSET!$A$26:$Y$43,8,0))),"Error","Yes") -> Yes | E178: =IF(C178="Error","The resistor values in C171 and C172 should be withing 10% of the recommended value"," ") -> 
A179: Integrator time constant for the above selected TSET option # | B179: RVCR * CVCR | C179: =IF(C169=4,VLOOKUP(C168,TSET!$A$7:$Y$23,14,0)*VLOOKUP(C168,TSET!$A$7:$Y$23,15,0),VLOOKUP(C168,TSET!$A$26:$Y$43,14,0)*VLOOKUP(C168,TSET!$A$26:$Y$43,15,0)) -> 304.114 | D179: ns
A180: RRAMP for the above selected TSET option # | B180: RRAMP | C180: =IF(C169=4,VLOOKUP(C168,TSET!$A$7:$Y$23,16,0),VLOOKUP(C168,TSET!$A$26:$Y$43,16,0)) -> 1500 | D180: kΩ
A181: Timer gain constant for the above selected TSET option # | B181: kT | C181: =IF(C169=4,VLOOKUP(C168,TSET!$A$7:$Y$23,18,0),VLOOKUP(C168,TSET!$A$26:$Y$43,18,0)) -> 3.202 | D181: 1/s
A182: Option 2 ( "TSET Gain Set by Diff Voltage Calculation" option is enabled)
A183: Select TSET option corresponding to required minimum switching frequnecy fsw | B183: Option # | C183: 7 | E183: Minimum IPPC frequency 133kHz, Integrator time constant 359ns Maximum dead time 1us
A184: OCP limit [V] | B184: OCP1_Threshold | C184: 3.5 | D184: V
A185: Nominal TSET Pin Voltage for the above selected TSET option # | B185: VTSETB | C185: =IF(C184=4,VLOOKUP(C183,TSET!$A$7:$Y$23,7,0),VLOOKUP(C183,TSET!$A$26:$Y$43,7,0)) -> 1.074 | D185: V
A186: Select TSET option based on intergrator time constant | B186: Option # | C186: 7 | E186: =IF(MAX(IPPC!$H5:$H25)<VFBOLP,"Choose an integrator value where Vfbmax is <4.75V","Vfbmax is greater the 4.75V, you can't achieve full power") -> Choose an integrator value where Vfbmax is <4.75V
A187: Nominal Diff Voltage for the above selected TSET options # (TSETA - TSETB) | B187: VTSETA - VTSETB | C187: =IF(C184=4,VLOOKUP(C186,TSET!$A$7:$Y$23,7,0),VLOOKUP(C186,TSET!$A$26:$Y$43,7,0)) -> 1.074 | D187: V
A188: Recommended TSET Pin Upper Resistance Value | B188: RTSET_upper | C188: =INDEX('1% Resistor Table'!$A$1:$A$289,MATCH(MIN(ABS('1% Resistor Table'!$A$1:$A$289-'DESIGN INPUTS AND CALCULATIONS'!C189)),ABS('1% Resistor Table'!$A$1:$A$289-'DESIGN INPUTS AND CALCULATIONS'!C189),0)) -> 498.7887696 | D188: kΩ
A189: Recommended TSET Pin Upper Resistance Value | B189: RTSET_upper | C189: =C187/(C185*2)*10^3 -> 500 | D189: kΩ
A190: Recommended TSET Pin Lower Resistance Value | B190: RTSET_lower | C190: =INDEX('1% Resistor Table'!$A$1:$A$289,MATCH(MIN(ABS('1% Resistor Table'!$A$1:$A$289-'DESIGN INPUTS AND CALCULATIONS'!C191)),ABS('1% Resistor Table'!$A$1:$A$289-'DESIGN INPUTS AND CALCULATIONS'!C191),0)) -> 136.589296 | D190: kΩ
A191: Recommended TSET Pin Lower Resistance Value | B191: RTSET_lower | C191: =C187/(2*(5-C185))*10^3 -> 136.7804381 | D191: kΩ
A192: Actual TSET Pin Upper Resistance Value | B192: RTSET_upper | C192: 498.8 | D192: kΩ | E192: Enter the selected TSET pin upper resistance value
A193: Actual TSET Pin Lower Resistance Value | B193: RTSET_lower | C193: 136.6 | D193: kΩ | E193: Enter the selected TSET pin lower resistance value
A194: Actual TSET Pin Voltage | B194: VTSETB | C194: =5*C193/(C192+C193) -> 1.07491344 | D194: V | E194: Maximum and minimum range that can be used for each TSET setting is within +/- 48mV of nominal value.
A195: Selected TSET pin voltage in the specified range? | C195: =IF(OR(C194>IF(C184=4,VLOOKUP(C183,TSET!A7:Y23,9,0),VLOOKUP(C183,TSET!A26:Y43,9,0)),C194<IF(C184=4,VLOOKUP(C183,TSET!A7:Y23,8,0),VLOOKUP(C183,TSET!A26:Y43,8,0))),"Error","Yes") -> Yes | E195: =IF(C195="Error", "Please choose resistor values within 10% of the recommended value", " ") -> 
A196: Actual TSET Pin Diff Voltage | B196: VTSETA - VTSETB | C196: =(C193*C192)/(C192+C193)*10*10^-3 -> 1.072333648 | D196: V | E196: Maximum and minimum range that can be used for each TSET setting is within +/- 48mV of nominal value.
A197: Selected TSET pin Diff voltage in the specified range? | C197: =IF(OR(C196>IF(C184=4,VLOOKUP(C186,TSET!A7:Y23,9,0),VLOOKUP(C186,TSET!A26:Y433,9,0)),C196<IF(C184=4,VLOOKUP(C186,TSET!A7:Y23,8,0),VLOOKUP(C186,TSET!A26:Y43,8,0))),"Error","Yes") -> Yes | E197: =IF(C197="Error", "Please choose resistor values within 10% of the recommended value", " ") -> 
A198: Integrator time constant for the above selected TSET option # | B198: RVCR * CVCR | C198: =IF(C184=4,VLOOKUP(C186,TSET!$A$7:$Y$23,14,0)*VLOOKUP(C186,TSET!$A$7:$Y$23,15,0),VLOOKUP(C186,TSET!$A$26:$Y$43,14,0)*VLOOKUP(C186,TSET!$A$26:$Y$43,15,0)) -> 359.022 | D198: ns
A199: RRAMP for the above selected TSET option # | B199: RRAMP | C199: =IF(C184=4,VLOOKUP(C186,TSET!$A$7:$Y$23,16,0),VLOOKUP(C186,TSET!$A$26:$Y$43,16,0)) -> 1500 | D199: kΩ
A200: Timer gain constant for the above selected TSET option # | B200: kT | C200: =IF(C184=4,VLOOKUP(C183,TSET!$A$7:$Y$23,18,0),VLOOKUP(C183,TSET!$A$26:$Y$43,18,0)) -> 2.711 | D200: 1/s
A229: ISNS
A230: Peak Resonant Current at Full Load | B230: Ires(peak) | C230: =Ir/0.707 -> 3.454340976 | D230: A
A231: Selected OCP limit [V] | B231: OCP1_Threshold | C231: =IF(C22="UCC256616",C169,3.5) -> 3.5 | D231: V
A232: Select a Current Sense Capacitor | B232: CISNS | C232: 150 | D232: pF | E232: =IF(C232*10^-12>(C93*0.01),"If ISNS is too large, it can impact the resonant tank",IF(2*PI()*(fllc*1000)*Vblk_hu*(C232*10^-12)<0.001,"A larger capacitor is required to ensure the Isns current is greater than 1mA","Choose the current sense capacitor value")) -> Choose the current sense capacitor value
A233: Recommended Current Sense Resistor | B233: RISNS | C233: =CONCATENATE("< ",ROUND(C231*Cr*uF/(C232*picoF*C230),1)) -> < 290.5 | D233: Ω | E233: =ROUND(0.8*C231*Cr*uF/(C232*picoF*C230),1) -> 232.4
A234: Actual Current Sense Resistor | B234: RISNS | C234: 150 | D234: Ω | E234: =IF(MAX(IPPC!$H5:$H25)<VFBOLP,"Enter the actual current sense resistor value.","Check your Tset option Vfb should be less than 4.75V") -> Enter the actual current sense resistor value.
A236: LL
A237: Select the difference in voltage between VLLA and VLLB | B237: (VLLA-VLLB) | C237: 1.087 | D237: V | E237: Select the difference in voltage between VLLA and VLLB from drop down list;If the difference is more than 2.41V,Burst mode is disabled
A238: HFBurstEntry to VLLB ratio for the selected difference in voltage between VLLA and VLLB | B238: HFBurstEntry/VLLB | C238: =VLOOKUP(C237,LL!A3:O11,4,0) -> 1.667 | D238: V | E238: =IF(C237>=2.41,"Burst Disable","") -> 
A239: LFBurstEntry to VLLB ratio | B239: LFBurstEntry/VLLB | C239: 1.667 | D239: V
A240: LL pin Voltage | B240: VLLB | C240: 1.2 | D240: V | E240: =IF(vllb<0.8,"If VLLB s below 0.8V, the Low-frequency burst-mode threshold can be unreliable","Enter the desired voltage at the LL pin") -> Enter the desired voltage at the LL pin
A241: Recommended LL pin Upper Resistance Value | B241: RLLupper | C241: =INDEX('1% Resistor Table'!$A$1:$A$289,MATCH(MIN(ABS('1% Resistor Table'!$A$1:$A$289-'DESIGN INPUTS AND CALCULATIONS'!C242)),ABS('1% Resistor Table'!$A$1:$A$289-'DESIGN INPUTS AND CALCULATIONS'!C242),0)) -> 411.702338 | D241: kΩ
A242: Recommended LL pin Upper Resistance Value | B242: RLLupper | C242: =VLOOKUP(C237,LL!A3:O11,12,0)/1000 -> 411.25 | D242: kΩ
A243: Recommended LL pin Lower Resistance Value | B243: RLLlower | C243: =INDEX('1% Resistor Table'!$A$1:$A$289,MATCH(MIN(ABS('1% Resistor Table'!$A$1:$A$289-'DESIGN INPUTS AND CALCULATIONS'!C244)),ABS('1% Resistor Table'!$A$1:$A$289-'DESIGN INPUTS AND CALCULATIONS'!C244),0)) -> 130.1917106 | D243: kΩ
A244: Recommended LL pin Lower Resistance Value | B244: RLLlower | C244: =VLOOKUP(C237,LL!A3:O11,13,0)/1000 -> 129.8684211 | D244: kΩ
A245: Actual LL pin Upper Resistance Value | B245: RLLupper | C245: 430 | D245: kΩ | E245: Enter the actual LL pin upper resistance value
A246: Actual LL pin Lower Resistance Value | B246: RLLlower | C246: 120 | D246: kΩ | E246: Enter the actual LL pin lower resistance value
A247: Actual LL pin voltage | B247: VLLB | C247: =5*C246/(C245+C246) -> 1.090909091 | D247: V
A248: Actual VLLA voltage | B248: VLLA | C248: =C247+10*uA*(C245*C246/(C245+C246))*kOhm -> 2.029090909 | D248: V
A249: Actual difference in voltage between VLLA and VLLB | B249: (VLLA-VLLB) | C249: =C248-C247 -> 0.9381818182 | D249: V
A250: Actual difference in voltage between VLLA and VLLB in the acceptable range? | C250: =IF(E238="Burst Disable",IF(C249>=2.41,"Yes","Error"),IF(AND((C249<=C237), (C249>(VLOOKUP(C237,LL!A3:P11,16,0)))),"Yes","Error")) -> Yes | E250: =IF(C250="Error","Make sure RLLupper and RLLlower are within 10% of recommended values"," ") -> 
A251: Actual HFBurstEntry threshold | B251: HFBurstEntry | C251: =C238*C247 -> 1.818545455 | D251: V
A252: Actual LFBurstEntry threshold | B252: LFBurstEntry | C252: =C239*C247 -> 1.818545455 | D252: V | E252: =IF(C252>C251,"High frequency burst mode is disabled","") -> 
A254: OVP/OTP
A255: Desired OVP Threshold Percentage of Nominal Vout | B255: ƞOVP | C255: 110 | D255: % | E255: =IF(C255<=100,"This means you are always in over-voltage protection",IF(C255>=200,"The 2nd tier of OVP will likely trigger before this","Enter the OVP threshold (percentage)")) -> Enter the OVP threshold (percentage)
A256: OVP Threshold Adjustment to Account for Rectifying Element, Transformer Leakage, Resistive Losses In Power Stage, etc. | B256: VDrop | C256: 1 | D256: V | E256: =IF(C256<0.5,"This is a very optimistic estimation", IF(C256>5,"You might consider where the losses are coming from","Enter estimation for voltage drop within power stage (rectifying element, resistive losses, transformer leakage, etc). ")) -> Enter estimation for voltage drop within power stage (rectifying element, resistive losses, transformer leakage, etc).
A257: Bias Winding Nominal Voltage | B257: VBiasWindingNom | C257: =(Vout+C256)*Nps/Npb -> 16.24230466 | D257: V
A258: OVP Threshold | B258: VOVPpos | C258: 3.5 | D258: V
A259: Recommended zener diode voltage for over voltage protection | B259: VZ | C259: =((C255/100)*Vout+C256)*(Nps/Npb)-C258 -> 14.24159432 | D259: V
A260: Actual zener diode voltage used | B260: VZ | C260: 15 | D260: V | E260: =IF(OR(C260<C259*0.9,C260>C259*1.1),"Try to pick a Zener within 10% of the recommended value","Enter the actual zener diode voltage rating") -> Enter the actual zener diode voltage rating
A261: Actual output voltage at which OVP will be triggered | B261: Vout_OVP | C261: =ROUND(((C260+C258)*(Npb/Nps)-C256),1) -> 13.8 | D261: V
A262: Actual OVP Threshold Percentage of Nominal Vout | B262: ƞOVP | C262: =100*(C261)/Vout -> 115 | D262: %
A263: OTP Threshold | B263: VOTPNeg | C263: 0.8 | D263: V
A264: OVP/OTP pin sourcing current | B264: IOVP_OTP | C264: 100 | D264: uA
A265: Desired over temperature protection limit in degC | B265: T | C265: 110 | D265: degC | E265: =IF(C265<55,"Normal operation may result in over-temperature shutdown",IF(C57>125,"Device might self protect before hitting this threshold","Enter the desired over temperature protection limit in degC")) -> Enter the desired over temperature protection limit in degC
A266: NTC resistance ratio for the above desired temperature limit to room temperature | B266: RT/R25 | C266: 0.035263 | E266: =IF(C266<=0,"This should be a positive number","Enter the (RT/R25) ratio from the selected thermistor datasheet. Refer application section from UCC25661x datasheet.") -> Enter the (RT/R25) ratio from the selected thermistor datasheet. Refer application section from UCC25661x datasheet.
A267: OVP/OTP pin voltage at room temperature | C267: 1.4 | D267: V | E267: Enter a value between 0.8 to 3.5 V to avoid fault triggering
A268: Selected OVP/OTP pin voltage at room temperature in the specified range? | C268: =IF(OR(C267<=0.8,C267>=3.5),"Error","Yes") -> Yes | E268: =IF(C267<0.8,"The device will always be in over-temperature fault mode",IF(C267>3.5,"The device will always be in over-voltage protection mode","")) -> 
A269: Recommended Thermistor resistance at room temperature | B269: R25 | C269: 470 | D269: kΩ
A270: Thermistor resistance at room temperature | B270: R25 | C270: =(C267/(C264*uA))*(C263/(C264*uA))*(1-C266)/(C266*((C267/(C264*uA))-(C263/(C264*uA))))/1000 -> 510.6889374 | D270: kΩ
A271: Recommended resistor value that is in parallel with the thermistor | B271: Rext | C271: =INDEX('1% Resistor Table'!$A$1:$A$289,MATCH(MIN(ABS('1% Resistor Table'!$A$1:$A$289-'DESIGN INPUTS AND CALCULATIONS'!C272)),ABS('1% Resistor Table'!$A$1:$A$289-'DESIGN INPUTS AND CALCULATIONS'!C272),0)) -> 13.99050314 | D271: kΩ
A272: External resistor value that is in parallel with the thermistor | B272: Rext | C272: =C273/(C273/(C267/(C264*uA)-1))/1000 -> 13.999 | D272: kΩ
A273: Actual Thermistor resistance at room temperature | B273: R25 | C273: 470 | D273: kΩ | E273: Enter the actual Thermistor resistance at room temperature
A274: Actual External resistor value that is in parallel with the thermistor | B274: Rext | C274: 13.99050314 | D274: kΩ | E274: Enter the actual External resistor value that is in parallel with the thermistor
A275: Actual OVP/OTP pin voltage at room temperature | C275: =(C274*C273)/(C274+C273)*C264*uA*kOhm -> 1.358608575 | D275: V
A276: Selected OVP/OTP pin voltage at room temperature in the specified range? | C276: =IF(OR(C275<=0.8,C275>=3.5),"Error","Yes") -> Yes | E276: =IF(C276="Error","Choose values for R25 and Rext within 10% of suggested values"," ") -> 
A277: Actual OVP/OTP pin voltage at selected over temperature protection limit (T) | C277: =(C274*C273*C266)/(C274+C273*C266)*C264*uA*kOhm -> 0.7586450871 | D277: V
A278: Selected OVP/OTP pin voltage at room temperature in the specified range? | C278: =IF((C277<=0.8),"Yes","Error") -> Yes | E278: =IF(C278="Error","Choose values for R25 and Rext within 10% of suggested values"," ") -> 
A279: Secondary-side Regulation
A280: Shunt Regulator Voltage | B280: VREF | C280: 2.5 | D280: V | E280: Enter the reference voltage for the shunt regulator
A281: Output voltage upper resistor value R431_Upper | B281: R431_Upper | C281: 147 | D281: kΩ | E281: Enter the pull-up resistor for the shunt regulator
A282: Calculated lower resistor voltage | B282: R431_lower_calc | C282: 13.36 | D282: kΩ | E282: Calculated Resistor
A283: Output voltage lower resistor value R431_Lower | B283: R431_Lower | C283: =INDEX('1% Resistor Table'!$A$1:$A$289,MATCH(MIN(ABS('1% Resistor Table'!$A$1:$A$289-'DESIGN INPUTS AND CALCULATIONS'!C282)),ABS('1% Resistor Table'!$A$1:$A$289-'DESIGN INPUTS AND CALCULATIONS'!C282),0)) -> 13.33521432 | D283: kΩ | E283: Enter the actual lower resistor used
A284: Optocoupler ICTARTGET | B284: ICTARGET | C284: =IFB/1000 -> 0.08 | D284: mA | E284: This is the FB current for the selected device
A285: Optocoupler body diode forward voltage | B285: VFO | C285: 1 | D285: V | E285: Optocoupler VF
A286: Minimum Current Transfer Ratio of Optocoupler | B286: CTRMIN | C286: 100 | D286: % | E286: Enter CTR Min
... 11 more rows

Sheet Sheet1 (hidden)

Sheet Notice and Disclaimer
B2: Important Notice and Disclaimer
B4: TI PROVIDES TECHNICAL AND RELIABILITY DATA (INCLUDING DATASHEETS), DESIGN RESOURCES (INCLUDING REFERENCE DESIGNS), APPLICATION OR OTHER DESIGN ADVICE, WEB TOOLS, SAFETY INFORMATION, AND OTHER RESOURCES “AS IS” AND WITH ALL FAULTS, AND DISCLAIMS ALL WARRANTIES, EXPRESS AND IMPLIED, INCLUDING WITHOUT LIMITATION ANY IMPLIED WARRANTIES OF MERCHANTABILITY, FITNESS FOR A PARTICULAR PURPOSE OR NON-INFRINGEMENT OF THIRD PARTY INTELLECTUAL PROPERTY RIGHTS. These resources are intended for skilled developers designing with TI products. You are solely responsible for (1) selecting the appropriate TI products for your application, (2) designing, validating and testing your application, and (3) ensuring your application meets applicable standards, and any other safety, security, regulatory or other requirements. These resources are subject to change without notice. TI grants you permission to use these resources only for development of an application that uses the TI products described in the resource. Other reproduction and display of these resources is prohibited. No license is granted to any other TI intellectual property right or to any third party intellectual property right. TI disclaims responsibility for, and you will fully indemnify TI and its representatives against, any claims, damages, costs, losses, and liabilities arising out of your use of these resources. TI’s products are provided subject to TI’s Terms of Sale or other applicable terms available either on ti.com or provided in conjunction with such TI products. TI’s provision of these resources does not expand or otherwise alter TI’s applicable warranties or warranty disclaimers for TI products. TI objects to and rejects any additional or different terms you may have proposed.
B5: TI PROVIDES TECHNICAL AND RELIABILITY DATA (INCLUDING DATASHEETS), DESIGN RESOURCES (INCLUDING REFERENCE DESIGNS), APPLICATION OR OTHER DESIGN ADVICE, WEB TOOLS, SAFETY INFORMATION, AND OTHER RESOURCES “AS IS” AND WITH ALL FAULTS, AND DISCLAIMS ALL WARRANTIES, EXPRESS AND IMPLIED, INCLUDING WITHOUT LIMITATION ANY IMPLIED WARRANTIES OF MERCHANTABILITY, FITNESS FOR A PARTICULAR PURPOSE OR NON-INFRINGEMENT OF THIRD PARTY INTELLECTUAL PROPERTY RIGHTS. These resources are intended for skilled developers designing with TI products. You are solely responsible for (1) selecting the appropriate TI products for your application, (2) designing, validating and testing your application, and (3) ensuring your application meets applicable standards, and any other safety, security, regulatory or other requirements. These resources are subject to change without notice. TI grants you permission to use these resources only for development of an application that uses the TI products described in the resource. Other reproduction and display of these resources is prohibited. No license is granted to any other TI intellectual property right or to any third party intellectual property right. TI disclaims responsibility for, and you will fully indemnify TI and its representatives against, any claims, damages, costs, losses, and liabilities arising out of your use of these resources. TI’s products are provided subject to TI’s Terms of Sale or other applicable terms available either on ti.com or provided in conjunction with such TI products. TI’s provision of these resources does not expand or otherwise alter TI’s applicable warranties or warranty disclaimers for TI products. TI objects to and rejects any additional or different terms you may have proposed.

Sheet Transformer Models
B2: Power stage Gain Calcuation for discrete Lr
B19: Power Stage Gain Calculation for Integrated Leakge

Sheet tables and calculations (hidden)
B7: Mg_max | C7: Q | D7: Ln | F7: Mg_max | G7: Q | H7: Ln | J7: Mg_max | K7: Q | M7: Ln | O7: Mg_max | P7: Q | Q7: Ln | S7: Mg_max | T7: Q | U7: Ln | X7: Mg_max | Y7: Q | Z7: Ln | AB7: Mg_max | AC7: Q | AD7: Ln | AF7: Mg_max | AG7: Q | AH7: Ln | AJ7: Mg_max | AK7: Q | AL7: Ln | AN7: Mg_max | AO7: Q | AP7: Ln | AV7: Mg_max | AW7: Q | AX7: Ln | AZ7: Mg_max | BA7: Q | BB7: Ln | BD7: Mg_max | BE7: Q | BF7: Ln | BH7: Mg_max | BI7: Q | BJ7: Ln | BL7: Mg_max | BM7: Q | BN7: Ln
B8: 6.95 | C8: 0.15 | D8: 1.5 | F8: 5.81 | G8: 0.15 | H8: 2 | J8: 5.03 | K8: 0.15 | M8: 2.5 | O8: 4.47 | P8: 0.15 | Q8: 3 | S8: 4.09 | T8: 0.15 | U8: 3.5 | X8: 3.76 | Y8: 0.15 | Z8: 4 | AB8: 3.51 | AC8: 0.15 | AD8: 4.5 | AF8: 3.32 | AG8: 0.15 | AH8: 5 | AJ8: 3.14 | AK8: 0.15 | AL8: 5.5 | AN8: 3 | AO8: 0.15 | AP8: 6 | AR8: 2.86 | AS8: 0.15 | AT8: 6.5 | AV8: 2.75 | AW8: 0.15 | AX8: 7 | AZ8: 2.65 | BA8: 0.15 | BB8: 7.5 | BD8: 2.56 | BE8: 0.15 | BF8: 8 | BH8: 2.48 | BI8: 0.15 | BJ8: 8.5 | BL8: 2.41 | BM8: 0.15 | BN8: 9
B9: 4.28 | C9: 0.25 | D9: 1.5 | F9: 3.53 | G9: 0.25 | H9: 2 | J9: 3.06 | K9: 0.25 | M9: 2.5 | O9: 2.74 | P9: 0.25 | Q9: 3 | S9: 2.5 | T9: 0.25 | U9: 3.5 | X9: 2.32 | Y9: 0.25 | Z9: 4 | AB9: 2.17 | AC9: 0.25 | AD9: 4.5 | AF9: 2.05 | AG9: 0.25 | AH9: 5 | AJ9: 1.95 | AK9: 0.25 | AL9: 5.5 | AN9: 1.86 | AO9: 0.25 | AP9: 6 | AR9: 1.79 | AS9: 0.25 | AT9: 6.5 | AV9: 1.72 | AW9: 0.25 | AX9: 7 | AZ9: 1.66 | BA9: 0.25 | BB9: 7.5 | BD9: 1.61 | BE9: 0.25 | BF9: 8 | BH9: 1.57 | BI9: 0.25 | BJ9: 8.5 | BL9: 1.53 | BM9: 0.25 | BN9: 9
B10: 3.09 | C10: 0.35 | D10: 1.5 | F10: 2.57 | G10: 0.35 | H10: 2 | J10: 2.24 | K10: 0.35 | M10: 2.5 | O10: 2.01 | P10: 0.35 | Q10: 3 | S10: 1.85 | T10: 0.35 | U10: 3.5 | X10: 1.72 | Y10: 0.35 | Z10: 4 | AB10: 1.62 | AC10: 0.35 | AD10: 4.5 | AF10: 1.54 | AG10: 0.35 | AH10: 5 | AJ10: 1.47 | AK10: 0.35 | AL10: 5.5 | AN10: 1.41 | AO10: 0.35 | AP10: 6 | AR10: 1.36 | AS10: 0.35 | AT10: 6.5 | AV10: 1.32 | AW10: 0.35 | AX10: 7 | AZ10: 1.28 | BA10: 0.35 | BB10: 7.5 | BD10: 1.25 | BE10: 0.35 | BF10: 8 | BH10: 1.22 | BI10: 0.35 | BJ10: 8.5 | BL10: 1.2 | BM10: 0.35 | BN10: 9
B11: 2.45 | C11: 0.45 | D11: 1.5 | F11: 2.05 | G11: 0.45 | H11: 2 | J11: 1.8 | K11: 0.45 | M11: 2.5 | O11: 1.63 | P11: 0.45 | Q11: 3 | S11: 1.5 | T11: 0.45 | U11: 3.5 | X11: 1.41 | Y11: 0.45 | Z11: 4 | AB11: 1.34 | AC11: 0.45 | AD11: 4.5 | AF11: 1.28 | AG11: 0.45 | AH11: 5 | AJ11: 1.23 | AK11: 0.45 | AL11: 5.5 | AN11: 1.19 | AO11: 0.45 | AP11: 6 | AR11: 1.16 | AS11: 0.45 | AT11: 6.5 | AV11: 1.14 | AW11: 0.45 | AX11: 7 | AZ11: 1.11 | BA11: 0.45 | BB11: 7.5 | BD11: 1.1 | BE11: 0.45 | BF11: 8 | BH11: 1.08 | BI11: 0.45 | BJ11: 8.5 | BL11: 1.07 | BM11: 0.45 | BN11: 9
B12: 2.05 | C12: 0.55 | D12: 1.5 | F12: 1.73 | G12: 0.55 | H12: 2 | J12: 1.53 | K12: 0.55 | M12: 2.5 | O12: 1.4 | P12: 0.55 | Q12: 3 | S12: 1.31 | T12: 0.55 | U12: 3.5 | X12: 1.24 | Y12: 0.55 | Z12: 4 | AB12: 1.19 | AC12: 0.55 | AD12: 4.5 | AF12: 1.15 | AG12: 0.55 | AH12: 5 | AJ12: 1.12 | AK12: 0.55 | AL12: 5.5 | AN12: 1.09 | AO12: 0.55 | AP12: 6 | AR12: 1.08 | AS12: 0.55 | AT12: 6.5 | AV12: 1.06 | AW12: 0.55 | AX12: 7 | AZ12: 1.05 | BA12: 0.55 | BB12: 7.5 | BD12: 1.04 | BE12: 0.55 | BF12: 8 | BH12: 1.04 | BI12: 0.55 | BJ12: 8.5 | BL12: 1.03 | BM12: 0.55 | BN12: 9
B13: 1.78 | C13: 0.65 | D13: 1.5 | F13: 1.52 | G13: 0.65 | H13: 2 | J13: 1.36 | K13: 0.65 | M13: 2.5 | O13: 1.26 | P13: 0.65 | Q13: 3 | S13: 1.19 | T13: 0.65 | U13: 3.5 | X13: 1.14 | Y13: 0.65 | Z13: 4 | AB13: 1.11 | AC13: 0.65 | AD13: 4.5 | AF13: 1.08 | AG13: 0.65 | AH13: 5 | AJ13: 1.07 | AK13: 0.65 | AL13: 5.5 | AN13: 1.05 | AO13: 0.65 | AP13: 6 | AR13: 1.04 | AS13: 0.65 | AT13: 6.5 | AV13: 1.04 | AW13: 0.65 | AX13: 7 | AZ13: 1.03 | BA13: 0.65 | BB13: 7.5 | BD13: 1.03 | BE13: 0.65 | BF13: 8 | BH13: 1.02 | BI13: 0.65 | BJ13: 8.5 | BL13: 1.02 | BM13: 0.65 | BN13: 9
B14: 1.6 | C14: 0.75 | D14: 1.5 | F14: 1.38 | G14: 0.75 | H14: 2 | J14: 1.25 | K14: 0.75 | M14: 2.5 | O14: 1.17 | P14: 0.75 | Q14: 3 | S14: 1.12 | T14: 0.75 | U14: 3.5 | X14: 1.09 | Y14: 0.75 | Z14: 4 | AB14: 1.07 | AC14: 0.75 | AD14: 4.5 | AF14: 1.05 | AG14: 0.75 | AH14: 5 | AJ14: 1.04 | AK14: 0.75 | AL14: 5.5 | AN14: 1.03 | AO14: 0.75 | AP14: 6 | AR14: 1.03 | AS14: 0.75 | AT14: 6.5 | AV14: 1.02 | AW14: 0.75 | AX14: 7 | AZ14: 1.02 | BA14: 0.75 | BB14: 7.5 | BD14: 1.02 | BE14: 0.75 | BF14: 8 | BH14: 1.02 | BI14: 0.75 | BJ14: 8.5 | BL14: 1.01 | BM14: 0.75 | BN14: 9
B15: 1.46 | C15: 0.85 | D15: 1.5 | F15: 1.28 | G15: 0.85 | H15: 2 | J15: 1.18 | K15: 0.85 | M15: 2.5 | O15: 1.12 | P15: 0.85 | Q15: 3 | S15: 1.09 | T15: 0.85 | U15: 3.5 | X15: 1.06 | Y15: 0.85 | Z15: 4 | AB15: 1.05 | AC15: 0.85 | AD15: 4.5 | AF15: 1.04 | AG15: 0.85 | AH15: 5 | AJ15: 1.03 | AK15: 0.85 | AL15: 5.5 | AN15: 1.02 | AO15: 0.85 | AP15: 6 | AR15: 1.02 | AS15: 0.85 | AT15: 6.5 | AV15: 1.02 | AW15: 0.85 | AX15: 7 | AZ15: 1.02 | BA15: 0.85 | BB15: 7.5 | BD15: 1.01 | BE15: 0.85 | BF15: 8 | BH15: 1.01 | BI15: 0.85 | BJ15: 8.5 | BL15: 1.01 | BM15: 0.85 | BN15: 9
B16: 1.36 | C16: 0.95 | D16: 1.5 | F16: 1.21 | G16: 0.95 | H16: 2 | J16: 1.13 | K16: 0.95 | M16: 2.5 | O16: 1.09 | P16: 0.95 | Q16: 3 | S16: 1.06 | T16: 0.95 | U16: 3.5 | X16: 1.05 | Y16: 0.95 | Z16: 4 | AB16: 1.04 | AC16: 0.95 | AD16: 4.5 | AF16: 1.03 | AG16: 0.95 | AH16: 5 | AJ16: 1.02 | AK16: 0.95 | AL16: 5.5 | AN16: 1.02 | AO16: 0.95 | AP16: 6 | AR16: 1.02 | AS16: 0.95 | AT16: 6.5 | AV16: 1.01 | AW16: 0.95 | AX16: 7 | AZ16: 1.01 | BA16: 0.95 | BB16: 7.5 | BD16: 1.01 | BE16: 0.95 | BF16: 8 | BH16: 1.01 | BI16: 0.95 | BJ16: 8.5 | BL16: 1.01 | BM16: 0.95 | BN16: 9
B17: 1.29 | C17: 1.05 | D17: 1.5 | F17: 1.16 | G17: 1.05 | H17: 2 | J17: 1.1 | K17: 1.05 | M17: 2.5 | O17: 1.07 | P17: 1.05 | Q17: 3 | S17: 1.05 | T17: 1.05 | U17: 3.5 | X17: 1.04 | Y17: 1.05 | Z17: 4 | AB17: 1.03 | AC17: 1.05 | AD17: 4.5 | AF17: 1.02 | AG17: 1.05 | AH17: 5 | AJ17: 1.02 | AK17: 1.05 | AL17: 5.5 | AN17: 1.01 | AO17: 1.05 | AP17: 6 | AR17: 1.01 | AS17: 1.05 | AT17: 6.5 | AV17: 1.01 | AW17: 1.05 | AX17: 7 | AZ17: 1.01 | BA17: 1.05 | BB17: 7.5 | BD17: 1.01 | BE17: 1.05 | BF17: 8 | BH17: 1.01 | BI17: 1.05 | BJ17: 8.5 | BL17: 1.01 | BM17: 1.05 | BN17: 9
B18: 1.23 | C18: 1.15 | D18: 1.5 | F18: 1.13 | G18: 1.15 | H18: 2 | J18: 1.08 | K18: 1.15 | M18: 2.5 | O18: 1.05 | P18: 1.15 | Q18: 3 | S18: 1.04 | T18: 1.15 | U18: 3.5 | X18: 1.03 | Y18: 1.15 | Z18: 4 | AB18: 1.02 | AC18: 1.15 | AD18: 4.5 | AF18: 1.02 | AG18: 1.15 | AH18: 5 | AJ18: 1.01 | AK18: 1.15 | AL18: 5.5 | AN18: 1.01 | AO18: 1.15 | AP18: 6 | AR18: 1.01 | AS18: 1.15 | AT18: 6.5 | AV18: 1.01 | AW18: 1.15 | AX18: 7 | AZ18: 1.01 | BA18: 1.15 | BB18: 7.5 | BD18: 1.01 | BE18: 1.15 | BF18: 8 | BH18: 1.01 | BI18: 1.15 | BJ18: 8.5 | BL18: 1.01 | BM18: 1.15 | BN18: 9
B19: 1.19 | C19: 1.25 | D19: 1.5 | F19: 1.11 | G19: 1.25 | H19: 2 | J19: 1.07 | K19: 1.25 | M19: 2.5 | O19: 1.04 | P19: 1.25 | Q19: 3 | S19: 1.03 | T19: 1.25 | U19: 3.5 | X19: 1.02 | Y19: 1.25 | Z19: 4 | AB19: 1.02 | AC19: 1.25 | AD19: 4.5 | AF19: 1.01 | AG19: 1.25 | AH19: 5 | AJ19: 1.01 | AK19: 1.25 | AL19: 5.5 | AN19: 1.01 | AO19: 1.25 | AP19: 6 | AR19: 1.01 | AS19: 1.25 | AT19: 6.5 | AV19: 1.01 | AW19: 1.25 | AX19: 7 | AZ19: 1.01 | BA19: 1.25 | BB19: 7.5 | BD19: 1.01 | BE19: 1.25 | BF19: 8 | BH19: 1 | BI19: 1.25 | BJ19: 8.5 | BL19: 1 | BM19: 1.25 | BN19: 9
B20: 1.16 | C20: 1.35 | D20: 1.5 | F20: 1.09 | G20: 1.35 | H20: 2 | J20: 1.05 | K20: 1.35 | M20: 2.5 | O20: 1.04 | P20: 1.35 | Q20: 3 | S20: 1.03 | T20: 1.35 | U20: 3.5 | X20: 1.02 | Y20: 1.35 | Z20: 4 | AB20: 1.02 | AC20: 1.35 | AD20: 4.5 | AF20: 1.01 | AG20: 1.35 | AH20: 5 | AJ20: 1.01 | AK20: 1.35 | AL20: 5.5 | AN20: 1.01 | AO20: 1.35 | AP20: 6 | AR20: 1.01 | AS20: 1.35 | AT20: 6.5 | AV20: 1.01 | AW20: 1.35 | AX20: 7 | AZ20: 1.01 | BA20: 1.35 | BB20: 7.5 | BD20: 1 | BE20: 1.35 | BF20: 8 | BH20: 1 | BI20: 1.35 | BJ20: 8.5 | BL20: 1 | BM20: 1.35 | BN20: 9
B21: 1.13 | C21: 1.45 | D21: 1.5 | F21: 1.07 | G21: 1.45 | H21: 2 | J21: 1.05 | K21: 1.45 | M21: 2.5 | O21: 1.03 | P21: 1.45 | Q21: 3 | S21: 1.02 | T21: 1.45 | U21: 3.5 | X21: 1.02 | Y21: 1.45 | Z21: 4 | AB21: 1.01 | AC21: 1.45 | AD21: 4.5 | AF21: 1.01 | AG21: 1.45 | AH21: 5 | AJ21: 1.01 | AK21: 1.45 | AL21: 5.5 | AN21: 1.01 | AO21: 1.45 | AP21: 6 | AR21: 1.01 | AS21: 1.45 | AT21: 6.5 | AV21: 1.01 | AW21: 1.45 | AX21: 7 | AZ21: 1 | BA21: 1.45 | BB21: 7.5 | BD21: 1 | BE21: 1.45 | BF21: 8 | BH21: 1 | BI21: 1.45 | BJ21: 8.5 | BL21: 1 | BM21: 1.45 | BN21: 9
B22: 1.11 | C22: 1.55 | D22: 1.5 | F22: 1.06 | G22: 1.55 | H22: 2 | J22: 1.04 | K22: 1.55 | M22: 2.5 | O22: 1.03 | P22: 1.55 | Q22: 3 | S22: 1.02 | T22: 1.55 | U22: 3.5 | X22: 1.01 | Y22: 1.55 | Z22: 4 | AB22: 1.01 | AC22: 1.55 | AD22: 4.5 | AF22: 1.01 | AG22: 1.55 | AH22: 5 | AJ22: 1.01 | AK22: 1.55 | AL22: 5.5 | AN22: 1.01 | AO22: 1.55 | AP22: 6 | AR22: 1.01 | AS22: 1.55 | AT22: 6.5 | AV22: 1 | AW22: 1.55 | AX22: 7 | AZ22: 1 | BA22: 1.55 | BB22: 7.5 | BD22: 1 | BE22: 1.55 | BF22: 8 | BH22: 1 | BI22: 1.55 | BJ22: 8.5 | BL22: 1 | BM22: 1.55 | BN22: 9
R60: search value | S60: =Compensation!C16 -> 1.041447368 | T60: =MIN(ABS(S66:S137-S60)) -> 0.002613648278
R61: closest value | S61: =INDEX(S66:S137,MATCH(MIN(ABS(S66:S137-S60)),ABS(S66:S137-S60),0)) -> 1.03883372
A63: LLC Gain Curve Calacultions for plot: | S63: =MAX(S66:S137) -> 1.575412556 | T63: Max scale | U63: =ROUND(S63*1.1,0) -> 2
T64: Y axis Scale | U64: =+ROUND(U66*1.2,1) -> 1.5 | Y64: OVERLOAD Condition
A65: Qe | B65: Ln | C65: fn | D65: fn^2 | E65: Ln*fn^2 | F65: fn^2-1 | G65: real | H65: imaginary | I65: complex part | K65: Imaginary product | M65: Imaginary sum | O65: Imaginary div | S65: Full Load Gain Curve | U65: Mg_max | V65: Mg_min | W65: Helper column Min | X65: Helper column max | Y65: Qe | Z65: Ln | AA65: fn | AB65: fn^2 | AC65: Ln*fn^2 | AD65: fn^2-1 | AE65: real | AF65: imaginary | AG65: complex part | AI65: Imaginary product | AJ65: Imaginary sum | AL65: Imaginary div | AP65: Abs for curve | AQ65: fn
A66: =Qe_selected -> 0.3037024912 | B66: =Ln_selected -> 5.935483871 | C66: 0 | D66: =C66^2 -> 0 | E66: =B66*D66 -> 0 | F66: =C66^2-1 -> -1 | G66: =1 -> 1 | H66: =C66*B66*A66 -> 0 | I66: =COMPLEX(G66,H66,"j") -> 1 | K66: =IMPRODUCT(I66,F66) -> -1 | M66: =IMSUM(K66,E66) -> -1 | O66: =IMDIV(E66,M66) -> 0 | S66: =IMABS(O66) -> 0 | U66: =Mg_max -> 1.249736842 | V66: =Mg_min -> 0.9467703349 | Y66: 0.001 | Z66: =Ln_selected -> 5.935483871 | AA66: 0 | AB66: =AA66^2 -> 0 | AC66: =Z66*AB66 -> 0 | AD66: =AA66^2-1 -> -1 | AE66: 1 | AF66: =AA66*Z66*Y66 -> 0 | AG66: =COMPLEX(AE66,AF66,"j") -> 1 | AI66: =IMPRODUCT(AG66,AD66) -> -1 | AJ66: =IMSUM(AI66,AC66) -> -1 | AL66: =IMDIV(AC66,AJ66) -> 0 | AP66: =IMABS(AL66) -> 0 | AQ66: 0 | AS66: =Compensation!$C$16 -> 1.041447368
A67: 0.3037024912 | B67: 5.935483871 | C67: =C66+0.05 -> 0.05 | D67: =C67^2 -> 0.0025 | E67: =B67*D67 -> 0.01483870968 | F67: =C67^2-1 -> -0.9975 | G67: =1 -> 1 | H67: =C67*B67*A67 -> 0.0901310619 | I67: =COMPLEX(G67,H67,"j") -> 1+0.0901310619049418j | K67: =IMPRODUCT(I67,F67) -> -0.9975-0.0899057342501794j | M67: -0.982661290322581-0.0899057342501794j | O67: -0.0149751791776584+0.00137011042640481j | S67: =IMABS(O67) -> 0.01503772569 | U67: =Mg_max -> 1.249736842 | V67: 0.9467703349 | W67: =IF(AND(ISNUMBER(S66), ISNUMBER(S67)), IF(AND(S66 >Mg_min, S67 < Mg_min), VALUE(ROW(S67)), ""), "") ->  | X67: =IF(AND(ISNUMBER(S66), ISNUMBER(S67)), IF(AND(S66 >Mg_max, S67 < Mg_max), VALUE(ROW(S67)), ""), "") ->  | Y67: =Y66 -> 0.001 | Z67: 5.935483871 | AA67: =AA66+0.05 -> 0.05 | AB67: =AA67^2 -> 0.0025 | AC67: =Z67*AB67 -> 0.01483870968 | AD67: =AA67^2-1 -> -0.9975 | AE67: 1 | AF67: =AA67*Z67*Y67 -> 0.0002967741935 | AG67: =COMPLEX(AE67,AF67,"j") -> 1+0.000296774193548387j | AI67: =IMPRODUCT(AG67,AD67) -> -0.9975-0.000296032258064516j | AJ67: =IMSUM(AI67,AC67) -> -0.982661290322581-0.000296032258064516j | AL67: =IMDIV(AC67,AJ67) -> -0.0151005320723093+4.54912048674869E-06j | AP67: =IMABS(AL67) -> 0.01510053276 | AQ67: 1 | AS67: =Compensation!$C$16 -> 1.041447368
A68: 0.3037024912 | B68: 5.935483871 | C68: =C67+0.05 -> 0.1 | D68: 0.01 | E68: 0.05935483871 | F68: -0.99 | G68: =1 -> 1 | H68: 0.1802621238 | I68: 1+0.180262123809884j | K68: -0.99-0.178459502571785j | M68: -0.930645161290323-0.178459502571785j | O68: -0.0615161239938455+0.0117962649404043j | S68: 0.06263693302 | U68: 1.249736842 | V68: 0.9467703349 | Y68: =Y67 -> 0.001 | Z68: 5.935483871 | AA68: =AA67+0.05 -> 0.1 | AB68: 0.01 | AC68: 0.05935483871 | AD68: -0.99 | AE68: 1 | AF68: 0.0005935483871 | AG68: 1+0.000593548387096774j | AI68: -0.99-0.000587612903225806j | AJ68: -0.930645161290323-0.000587612903225806j | AL68: -0.0637781374851323+0.0000402697591829868j | AP68: 0.0637781502 | AQ68: 2 | AS68: =Compensation!$C$16 -> 1.041447368
A69: 0.3037024912 | B69: 5.935483871 | C69: 0.15 | D69: 0.0225 | E69: 0.1335483871 | F69: -0.9775 | G69: =1 -> 1 | H69: 0.2703931857 | I69: 1+0.270393185714826j | K69: -0.9775-0.264309339036242j | M69: -0.843951612903226-0.264309339036242j | O69: -0.144107396727081+0.0451316523326983j | S69: 0.1510092972 | U69: 1.249736842 | V69: 0.9467703349 | Y69: 0.001 | Z69: 5.935483871 | AA69: 0.15 | AB69: 0.0225 | AC69: 0.1335483871 | AD69: -0.9775 | AE69: 1 | AF69: 0.0008903225806 | AG69: 1+0.000890322580645161j | AI69: -0.9775-0.000870290322580645j | AJ69: -0.843951612903226-0.000870290322580645j | AL69: -0.158241589968985+0.000163180118710874j | AP69: 0.1582416741 | AQ69: 3 | AS69: =Compensation!$C$16 -> 1.041447368
A70: 0.3037024912 | B70: 5.935483871 | C70: 0.2 | D70: 0.04 | E70: 0.2374193548 | F70: -0.96 | G70: =1 -> 1 | H70: 0.3605242476 | I70: 1+0.360524247619767j | K70: -0.96-0.346103277714976j | M70: -0.72258064516129-0.346103277714976j | O70: -0.267256405218041+0.128011064862717j | P70: k | S70: 0.2963322778 | U70: 1.249736842 | V70: 0.9467703349 | Y70: 0.001 | Z70: 5.935483871 | AA70: 0.2 | AB70: 0.04 | AC70: 0.2374193548 | AD70: -0.96 | AE70: 1 | AF70: 0.001187096774 | AG70: 1+0.00118709677419355j | AI70: -0.96-0.00113961290322581j | AJ70: -0.72258064516129-0.00113961290322581j | AL70: -0.328570611291596+0.000518202792665604j | AP70: 0.3285710199 | AQ70: 4 | AS70: =Compensation!$C$16 -> 1.041447368
A71: 0.3037024912 | B71: 5.935483871 | C71: 0.25 | D71: 0.0625 | E71: 0.3709677419 | F71: -0.9375 | G71: =1 -> 1 | H71: 0.4506553095 | I71: 1+0.450655309524709j | K71: -0.9375-0.422489352679415j | M71: -0.566532258064516-0.422489352679415j | O71: -0.420788158302672+0.313801225059657j | P71: CR(recommended) | S71: 0.5249132147 | U71: 1.249736842 | V71: 0.9467703349 | Y71: 0.001 | Z71: 5.935483871 | AA71: 0.25 | AB71: 0.0625 | AC71: 0.3709677419 | AD71: -0.9375 | AE71: 1 | AF71: 0.001483870968 | AG71: 1+0.00148387096774194j | AI71: -0.9375-0.00139112903225807j | AJ71: -0.566532258064516-0.00139112903225807j | AL71: -0.654800322305525+0.00160787267754738j | AP71: 0.6548022964 | AQ71: 5 | AS71: =Compensation!$C$16 -> 1.041447368
A72: 0.3037024912 | B72: 5.935483871 | C72: 0.3 | D72: 0.09 | E72: 0.5341935484 | F72: -0.91 | G72: =1 -> 1 | H72: 0.5407863714 | I72: 1+0.540786371429651j | K72: -0.91-0.492115598000982j | M72: -0.375806451612903-0.492115598000982j | O72: -0.523602143246683+0.685652895879103j | P72: CR | S72: 0.8627161167 | U72: 1.249736842 | V72: 0.9467703349 | Y72: 0.001 | Z72: 5.935483871 | AA72: 0.3 | AB72: 0.09 | AC72: 0.5341935484 | AD72: -0.91 | AE72: 1 | AF72: 0.001780645161 | AG72: 1+0.00178064516129032j | AI72: -0.91-0.00162038709677419j | AJ72: -0.375806451612903-0.00162038709677419j | AL72: -1.42143280122492+0.00612887660696394j | AP72: 1.421446014 | AQ72: 6 | AS72: =Compensation!$C$16 -> 1.041447368
A73: 0.3037024912 | B73: 5.935483871 | C73: 0.35 | D73: 0.1225 | E73: 0.7270967742 | F73: -0.8775 | G73: =1 -> 1 | H73: 0.6309174333 | I73: 1+0.630917433334593j | K73: -0.8775-0.553630047751105j | M73: -0.150403225806452-0.553630047751105j | O73: -0.332265601610865+1.2230603426192j | P73: LR(recommended) | S73: 1.26738985 | U73: 1.249736842 | V73: 0.9467703349 | Y73: 0.001 | Z73: 5.935483871 | AA73: 0.35 | AB73: 0.1225 | AC73: 0.7270967742 | AD73: -0.8775 | AE73: 1 | AF73: 0.002077419355 | AG73: 1+0.00207741935483871j | AI73: -0.8775-0.00182293548387097j | AJ73: -0.150403225806452-0.00182293548387097j | AL73: -4.83360628649724+0.0585848632399453j | AP73: 4.833961307 | AQ73: 7 | AS73: =Compensation!$C$16 -> 1.041447368
A74: 0.3037024912 | B74: 5.935483871 | C74: 0.4 | D74: 0.16 | E74: 0.9496774194 | F74: -0.84 | G74: =1 -> 1 | H74: 0.7210484952 | I74: 1+0.721048495239535j | K74: -0.84-0.605680736001209j | M74: 0.109677419354838-0.605680736001209j | O74: 0.274911947310618+1.51816911413567j | P74: LR | S74: 1.542859047 | U74: 1.249736842 | V74: 0.9467703349 | W74: IF(AND(ISNUMBER(S73), ISNUMBER(S74)), IF(AND(S73 >Mg_min, S74 < Mg_min), VALUE(ROW(S74)), ""), "") | Y74: 0.001 | Z74: 5.935483871 | AA74: 0.4 | AB74: 0.16 | AC74: 0.9496774194 | AD74: -0.84 | AE74: 1 | AF74: 0.002374193548 | AG74: 1+0.0023741935483871j | AI74: -0.84-0.00199432258064516j | AJ74: 0.109677419354838-0.00199432258064516j | AL74: 8.65596151587462+0.157395930811011j | AP74: 8.657392404 | AQ74: 8 | AS74: =Compensation!$C$16 -> 1.041447368
A75: 0.3037024912 | B75: 5.935483871 | C75: =C74+0.05 -> 0.45 | D75: 0.2025 | E75: 1.201935484 | F75: -0.7975 | G75: =1 -> 1 | H75: 0.8111795571 | I75: 1+0.811179557144477j | K75: -0.7975-0.64691569682272j | M75: 0.404435483870967-0.64691569682272j | O75: 0.835135029235124+1.3358421328606j | P75: LM(recommended) | S75: 1.575412556 | U75: 1.249736842 | V75: 0.9467703349 | Y75: =Y74 -> 0.001 | Z75: 5.935483871 | AA75: =AA74+0.05 -> 0.45 | AB75: 0.2025 | AC75: 1.201935484 | AD75: -0.7975 | AE75: 1 | AF75: 0.002670967742 | AG75: 1+0.00267096774193548j | AI75: -0.7975-0.00213009677419355j | AJ75: 0.404435483870967-0.00213009677419355j | AL75: 2.97180191036843+0.01565200363289j | AP75: 2.971843128 | AQ75: 9 | AS75: =Compensation!$C$16 -> 1.041447368
A76: 0.3037024912 | B76: 5.935483871 | C76: 0.5 | D76: 0.25 | E76: 1.483870968 | F76: -0.75 | G76: =1 -> 1 | H76: 0.901310619 | I76: 1+0.901310619049418j | K76: -0.75-0.675982964287064j | M76: 0.733870967741935-0.675982964287064j | O76: 1.09387083996876+1.00758591830449j | P76: LM | S76: 1.487206373 | U76: 1.249736842 | V76: 0.9467703349 | Y76: 0.001 | Z76: 5.935483871 | AA76: 0.5 | AB76: 0.25 | AC76: 1.483870968 | AD76: -0.75 | AE76: 1 | AF76: 0.002967741935 | AG76: 1+0.00296774193548387j | AI76: -0.75-0.0022258064516129j | AJ76: 0.733870967741935-0.0022258064516129j | AL76: 2.02195942219769+0.00613253626952266j | AP76: 2.021968722 | AQ76: 10 | AS76: =Compensation!$C$16 -> 1.041447368
A77: 0.3037024912 | B77: 5.935483871 | C77: =C76+0.05 -> 0.55 | D77: 0.3025 | E77: 1.795483871 | F77: -0.6975 | G77: =1 -> 1 | H77: 0.991441681 | I77: 1+0.99144168095436j | K77: -0.6975-0.691530572465666j | M77: 1.09798387096774-0.691530572465666j | O77: 1.17082319868215+0.737406129770497j | P77: f0 | S77: 1.383688824 | U77: 1.249736842 | V77: 0.9467703349 | Y77: =Y76 -> 0.001 | Z77: 5.935483871 | AA77: =AA76+0.05 -> 0.55 | AB77: 0.3025 | AC77: 1.795483871 | AD77: -0.6975 | AE77: 1 | AF77: 0.003264516129 | AG77: 1+0.00326451612903226j | AI77: -0.6975-0.002277j | AJ77: 1.09798387096774-0.002277j | AL77: 1.63524820056785+0.0033911792797204j | AP77: 1.635251717 | AQ77: 11 | AS77: =Compensation!$C$16 -> 1.041447368
A78: 0.3037024912 | B78: 5.935483871 | C78: 0.6 | D78: 0.36 | E78: 2.136774194 | F78: -0.64 | G78: =1 -> 1 | H78: 1.081572743 | I78: 1+1.0815727428593j | K78: -0.64-0.692206555429952j | M78: 1.49677419354839-0.692206555429952j | O78: 1.17605757630048+0.543886156901417j | P78: fP | S78: 1.295732833 | U78: 1.249736842 | V78: 0.9467703349 | X78: =IF(AND(ISNUMBER(S77), ISNUMBER(S78)), IF(AND(S77 >Mg_max, S78 < Mg_max), VALUE(ROW(S78)), ""), "") ->  | Y78: 0.001 | Z78: 5.935483871 | AA78: 0.6 | AB78: 0.36 | AC78: 2.136774194 | AD78: -0.64 | AE78: 1 | AF78: 0.003561290323 | AG78: 1+0.00356129032258064j | AI78: -0.64-0.00227922580645161j | AJ78: 1.49677419354839-0.00227922580645161j | AL78: 1.42758289662615+0.00217386416258658j | AP78: 1.427584552 | AQ78: 12 | AS78: =Compensation!$C$16 -> 1.041447368
A79: 0.3037024912 | B79: 5.935483871 | C79: 0.65 | D79: 0.4225 | E79: 2.507741935 | F79: -0.5775 | G79: =1 -> 1 | H79: 1.171703805 | I79: 1+1.17170380476424j | K79: -0.5775-0.676658947251349j | M79: 1.93024193548387-0.676658947251349j | O79: 1.15700150320592+0.405594451522104j | P79: LN | S79: 1.226033987 | U79: 1.249736842 | V79: 0.9467703349 | X79: 79 | Y79: 0.001 | Z79: 5.935483871 | AA79: 0.65 | AB79: 0.4225 | AC79: 2.507741935 | AD79: -0.5775 | AE79: 1 | AF79: 0.003858064516 | AG79: 1+0.00385806451612903j | AI79: -0.5775-0.00222803225806451j | AJ79: 1.93024193548387-0.00222803225806451j | AL79: 1.29918356253152+0.00149961661968647j | AP79: 1.299184428 | AQ79: 13 | AS79: =Compensation!$C$16 -> 1.041447368
A80: 0.3037024912 | B80: 5.935483871 | C80: 0.7 | D80: 0.49 | E80: 2.908387097 | F80: -0.51 | G80: =1 -> 1 | H80: 1.261834867 | I80: 1+1.26183486666919j | K80: -0.51-0.643535782001287j | M80: 2.39838709677419-0.643535782001287j | O80: 1.13120122793658+0.30352417580969j | P80: QE | S80: 1.171214388 | U80: 1.249736842 | V80: 0.9467703349 | Y80: 0.001 | Z80: 5.935483871 | AA80: 0.7 | AB80: 0.49 | AC80: 2.908387097 | AD80: -0.51 | AE80: 1 | AF80: 0.00415483871 | AG80: 1+0.00415483870967742j | AI80: -0.51-0.00211896774193548j | AJ80: 2.39838709677419-0.00211896774193548j | AL80: 1.21264195863004+0.00107136550071943j | AP80: 1.212642432 | AQ80: 14 | AS80: =Compensation!$C$16 -> 1.041447368
A81: 0.3037024912 | B81: 5.935483871 | C81: 0.75 | D81: 0.5625 | E81: 3.338709677 | F81: -0.4375 | G81: =1 -> 1 | H81: 1.351965929 | I81: 1+1.35196592857413j | K81: -0.4375-0.591485093751182j | M81: 2.90120967741936-0.591485093751182j | O81: 1.10487487394325+0.225256734624902j | S81: 1.127603247 | U81: 1.249736842 | V81: 0.9467703349 | Y81: 0.001 | Z81: 5.935483871 | AA81: 0.75 | AB81: 0.5625 | AC81: 3.338709677 | AD81: -0.4375 | AE81: 1 | AF81: 0.004451612903 | AG81: 1+0.00445161290322581j | AI81: -0.4375-0.00194758064516129j | AJ81: 2.90120967741936-0.00194758064516129j | AL81: 1.15079864748816+0.000772530572254039j | AP81: 1.150798907 | AQ81: 15 | AS81: =Compensation!$C$16 -> 1.041447368
A82: 0.3037024912 | B82: 5.935483871 | C82: 0.8 | D82: 0.64 | E82: 3.798709677 | F82: -0.36 | G82: =1 -> 1 | H82: 1.44209699 | I82: 1+1.44209699047907j | K82: -0.36-0.519154916572465j | M82: 3.43870967741936-0.519154916572465j | O82: 1.08007226334126+0.163062566592703j | S82: 1.092311995 | U82: 1.249736842 | V82: 0.9467703349 | Y82: 0.001 | Z82: 5.935483871 | AA82: 0.8 | AB82: 0.64 | AC82: 3.798709677 | AD82: -0.36 | AE82: 1 | AF82: 0.004748387097 | AG82: 1+0.00474838709677419j | AI82: -0.36-0.00170941935483871j | AJ82: 3.43870967741936-0.00170941935483871j | AL82: 1.10469015852972+0.000549153291564794j | AP82: 1.104690295 | AQ82: 16 | AS82: =Compensation!$C$16 -> 1.041447368
A83: 0.3037024912 | B83: 5.935483871 | C83: 0.85 | D83: 0.7225 | E83: 4.288387097 | F83: -0.2775 | G83: =1 -> 1 | H83: 1.532228052 | I83: 1+1.53222805238401j | K83: -0.2775-0.425193284536562j | M83: 4.0108870967742-0.425193284536562j | O83: 1.05730462101601+0.112084637068704j | S83: 1.063229057 | U83: 1.249736842 | V83: 0.9467703349 | Y83: 0.001 | Z83: 5.935483871 | AA83: 0.85 | AB83: 0.7225 | AC83: 4.288387097 | AD83: -0.2775 | AE83: 1 | AF83: 0.00504516129 | AG83: 1+0.00504516129032258j | AI83: -0.2775-0.00140003225806451j | AJ83: 4.0108870967742-0.00140003225806451j | AL83: 1.06918655918282+0.000373208129929372j | AP83: 1.069186624 | AQ83: 17 | AS83: =Compensation!$C$16 -> 1.041447368
A84: 0.3037024912 | B84: 5.935483871 | C84: 0.9 | D84: 0.81 | E84: 4.807741935 | F84: -0.19 | G84: =1 -> 1 | H84: 1.622359114 | I84: 1+1.62235911428895j | K84: -0.19-0.3082482317149j | M84: 4.61774193548387-0.3082482317149j | O84: 1.03652692266389+0.0691913050794061j | S84: 1.03883372 | U84: 1.249736842 | V84: 0.9467703349 | Y84: 0.001 | Z84: 5.935483871 | AA84: 0.9 | AB84: 0.81 | AC84: 4.807741935 | AD84: -0.19 | AE84: 1 | AF84: 0.005341935484 | AG84: 1+0.00534193548387097j | AI84: -0.19-0.00101496774193548j | AJ84: 4.61774193548387-0.00101496774193548j | AL84: 1.04114560111592+0.000228841112074824j | AP84: 1.041145626 | AQ84: 18 | AS84: =Compensation!$C$16 -> 1.041447368
A85: 0.3037024912 | B85: 5.935483871 | C85: 0.95 | D85: 0.9025 | E85: 5.356774194 | F85: -0.0975 | G85: =1 -> 1 | H85: 1.712490176 | I85: 1+1.7124901761939j | K85: -0.0974999999999995-0.166967792178904j | M85: 5.25927419354839-0.166967792178904j | O85: 1.01751313691094+0.0323033018874464j | S85: 1.018025779 | U85: 1.249736842 | V85: 0.9467703349 | Y85: 0.001 | Z85: 5.935483871 | AA85: 0.95 | AB85: 0.9025 | AC85: 5.356774194 | AD85: -0.0975 | AE85: 1 | AF85: 0.005638709677 | AG85: 1+0.00563870967741936j | AI85: -0.0974999999999995-0.000549774193548385j | AJ85: 5.25927419354839-0.000549774193548385j | AL85: 1.01853866862161+0.000106472158425626j | AP85: 1.018538674 | AQ85: 19 | AS85: =Compensation!$C$16 -> 1.041447368
A86: 0.3037024912 | B86: 5.935483871 | C86: 1 | D86: 1 | E86: 5.935483871 | F86: 0 | G86: =1 -> 1 | H86: 1.802621238 | I86: 1+1.80262123809884j | K86: 0 | M86: 5.93548387096774 | O86: 1 | S86: 1 | U86: 1.249736842 | V86: 0.9467703349 | Y86: 0.001 | Z86: 5.935483871 | AA86: 1 | AB86: 1 | AC86: 5.935483871 | AD86: 0 | AE86: 1 | AF86: 0.005935483871 | AG86: 1+0.00593548387096774j | AI86: 0 | AJ86: 5.93548387096774 | AL86: 1 | AP86: 1 | AQ86: 20 | AS86: =Compensation!$C$16 -> 1.041447368
A87: 0.3037024912 | B87: 5.935483871 | C87: 1.05 | D87: 1.1025 | E87: 6.543870968 | F87: 0.1025 | G87: =1 -> 1 | H87: 1.8927523 | I87: 1+1.89275230000378j | K87: 0.1025+0.194007110750388j | M87: 6.64637096774194+0.194007110750388j | O87: 0.983739852525868-0.028715298535826j | S87: 0.9841588621 | U87: 1.249736842 | V87: 0.9467703349 | Y87: 0.001 | Z87: 5.935483871 | AA87: 1.05 | AB87: 1.1025 | AC87: 6.543870968 | AD87: 0.1025 | AE87: 1 | AF87: 0.006232258065 | AG87: 1+0.00623225806451613j | AI87: 0.1025+0.000638806451612906j | AJ87: 6.64637096774194+0.000638806451612906j | AL87: 0.984578041016883-0.0000946313120002786j | AP87: 0.9845780456 | AQ87: 21 | AS87: =Compensation!$C$16 -> 1.041447368
A88: 0.3037024912 | B88: 5.935483871 | C88: 1.1 | D88: 1.21 | E88: 7.181935484 | F88: 0.21 | G88: =1 -> 1 | H88: 1.982883362 | I88: 1+1.98288336190872j | K88: 0.210000000000001+0.416405506000832j | M88: 7.39193548387097+0.416405506000832j | O88: 0.968517226786605-0.0545589050081107j | S88: 0.9700527268 | U88: 1.249736842 | V88: 0.9467703349 | Y88: 0.001 | Z88: 5.935483871 | AA88: 1.1 | AB88: 1.21 | AC88: 7.181935484 | AD88: 0.21 | AE88: 1 | AF88: 0.006529032258 | AG88: 1+0.00652903225806452j | AI88: 0.210000000000001+0.00137109677419355j | AJ88: 7.39193548387097+0.00137109677419355j | AL88: 0.971590627711546-0.000180215963518445j | AP88: 0.9715906444 | AQ88: 22 | AS88: =Compensation!$C$16 -> 1.041447368
A89: 0.3037024912 | B89: 5.935483871 | C89: 1.15 | D89: 1.3225 | E89: 7.849677419 | F89: 0.3225 | G89: =1 -> 1 | H89: 2.073014424 | I89: 1+2.07301442381366j | K89: 0.322500000000001+0.668547151679907j | M89: 8.17217741935484+0.668547151679907j | O89: 0.954151174591555-0.0780569262402995j | S89: 0.9573386797 | U89: 1.249736842 | V89: 0.9467703349 | Y89: 0.001 | Z89: 5.935483871 | AA89: 1.15 | AB89: 1.3225 | AC89: 7.849677419 | AD89: 0.3225 | AE89: 1 | AF89: 0.006825806452 | AG89: 1+0.0068258064516129j | AI89: 0.322500000000001+0.00220132258064517j | AJ89: 8.17217741935484+0.00220132258064517j | AL89: 0.960536763580099-0.000258737807405022j | AP89: 0.9605367984 | AQ89: 23 | AS89: =Compensation!$C$16 -> 1.041447368
A90: 0.3037024912 | B90: 5.935483871 | C90: 1.2 | D90: 1.44 | E90: 8.547096774 | F90: 0.44 | G90: =1 -> 1 | H90: 2.163145486 | I90: 1+2.1631454857186j | K90: 0.440000000000001+0.951784013716186j | M90: 8.98709677419355+0.951784013716186j | O90: 0.940492357209155-0.0996034217840334j | S90: 0.9457519313 | U90: 1.249736842 | V90: 0.9467703349 | W90: 90 | Y90: 0.001 | Z90: 5.935483871 | AA90: 1.2 | AB90: 1.44 | AC90: 8.547096774 | AD90: 0.44 | AE90: 1 | AF90: 0.007122580645 | AG90: 1+0.00712258064516129j | AI90: 0.440000000000001+0.00313393548387097j | AJ90: 8.98709677419355+0.00313393548387097j | AL90: 0.951040803231505-0.000331642197112517j | AP90: 0.9510408611 | AQ90: 24 | AS90: =Compensation!$C$16 -> 1.041447368
A91: 0.3037024912 | B91: 5.935483871 | C91: 1.25 | D91: 1.5625 | E91: 9.274193548 | F91: 0.5625 | G91: =1 -> 1 | H91: 2.253276548 | I91: 1+2.25327654762355j | K91: 0.562500000000001+1.26746805803825j | M91: 9.8366935483871+1.26746805803825j | O91: 0.927418602857109-0.119498838686968j | S91: 0.9350856845 | U91: 1.249736842 | V91: 0.9467703349 | Y91: 0.001 | Z91: 5.935483871 | AA91: 1.25 | AB91: 1.5625 | AC91: 9.274193548 | AD91: 0.5625 | AE91: 1 | AF91: 0.007419354839 | AG91: 1+0.00741935483870968j | AI91: 0.562500000000001+0.0041733870967742j | AJ91: 9.8366935483871+0.0041733870967742j | AL91: 0.942815981141148-0.000400005960434962j | AP91: 0.942816066 | AQ91: 25 | AS91: =Compensation!$C$16 -> 1.041447368
A92: 0.3037024912 | B92: 5.935483871 | C92: 1.3 | D92: 1.69 | E92: 10.03096774 | F92: 0.69 | G92: =1 -> 1 | H92: 2.34340761 | I92: 1+2.34340760952849j | K92: 0.690000000000001+1.61695125057466j | M92: 10.7209677419355+1.61695125057466j | O92: 0.914830407422579-0.137975993114835j | S92: 0.9251767664 | U92: 1.249736842 | V92: 0.9467703349 | Y92: 0.001 | Z92: 5.935483871 | AA92: 1.3 | AB92: 1.69 | AC92: 10.03096774 | AD92: 0.69 | AE92: 1 | AF92: 0.007716129032 | AG92: 1+0.00771612903225807j | AI92: 0.690000000000001+0.00532412903225808j | AJ92: 10.7209677419355+0.00532412903225808j | AL92: 0.935639907660326-0.000464647195665779j | AP92: 0.935640023 | AQ92: 26 | AS92: =Compensation!$C$16 -> 1.041447368
A93: 0.3037024912 | B93: 5.935483871 | C93: 1.35 | D93: 1.8225 | E93: 10.81741935 | F93: 0.8225 | G93: =1 -> 1 | H93: 2.433538671 | I93: 1+2.43353867143343j | K93: 0.822500000000001+2.001585557254j | M93: 11.6399193548387+2.001585557254j | O93: 0.902646910565589-0.155218001466391j | S93: 0.9158952304 | U93: 1.249736842 | V93: 0.9467703349 | Y93: 0.001 | Z93: 5.935483871 | AA93: 1.35 | AB93: 1.8225 | AC93: 10.81741935 | AD93: 0.8225 | AE93: 1 | AF93: 0.008012903226 | AG93: 1+0.00801290322580645j | AI93: 0.822500000000001+0.00659061290322582j | AJ93: 11.6399193548387+0.00659061290322582j | AL93: 0.92933770046895-0.000526198236727367j | AP93: 0.9293378494 | AQ93: 27 | AS93: =Compensation!$C$16 -> 1.041447368
A94: 0.3037024912 | B94: 5.935483871 | C94: 1.4 | D94: 1.96 | E94: 11.63354839 | F94: 0.96 | G94: =1 -> 1 | H94: 2.523669733 | I94: 1+2.52366973333837j | K94: 0.960000000000002+2.42272294400484j | M94: 12.5935483870968+2.42272294400484j | O94: 0.890802484787097-0.171370891835494j | S94: 0.9071367314 | U94: 1.249736842 | V94: 0.9467703349 | Y94: 0.001 | Z94: 5.935483871 | AA94: 1.4 | AB94: 1.96 | AC94: 11.63354839 | AD94: 0.96 | AE94: 1 | AF94: 0.008309677419 | AG94: 1+0.00830967741935484j | AI94: 0.960000000000002+0.00797729032258066j | AJ94: 12.5935483870968+0.00797729032258066j | AL94: 0.923770121140926-0.000585155368539105j | AP94: 0.9237703065 | AQ94: 28 | AS94: =Compensation!$C$16 -> 1.041447368
A95: 0.3037024912 | B95: 5.935483871 | C95: 1.45 | D95: 2.1025 | E95: 12.47935484 | F95: 1.1025 | G95: =1 -> 1 | H95: 2.613800795 | I95: 1+2.61380079524331j | K95: 1.1025+2.88171537675575j | M95: 13.5818548387097+2.88171537675575j | O95: 0.879243917918422-0.186552628361414j | S95: 0.8988168614 | U95: 1.249736842 | V95: 0.9467703349 | Y95: 0.001 | Z95: 5.935483871 | AA95: 1.45 | AB95: 2.1025 | AC95: 12.47935484 | AD95: 1.1025 | AE95: 1 | AF95: 0.008606451613 | AG95: 1+0.00860645161290323j | AI95: 1.1025+0.00948861290322583j | AJ95: 13.5818548387097+0.00948861290322583j | AL95: 0.918825071835837-0.000641913459977546j | AP95: 0.9188252961 | AQ95: 29 | AS95: =Compensation!$C$16 -> 1.041447368
A96: 0.3037024912 | B96: 5.935483871 | C96: 1.5 | D96: 2.25 | E96: 13.35483871 | F96: 1.25 | G96: =1 -> 1 | H96: 2.703931857 | I96: 1+2.70393185714826j | K96: 1.25+3.37991482143533j | M96: 14.6048387096774+3.37991482143533j | O96: 0.867928114941342-0.20085967109564j | S96: 0.8908668925 | U96: 1.249736842 | V96: 0.9467703349 | Y96: 0.001 | Z96: 5.935483871 | AA96: 1.5 | AB96: 2.25 | AC96: 13.35483871 | AD96: 1.25 | AE96: 1 | AF96: 0.008903225806 | AG96: 1+0.00890322580645162j | AI96: 1.25+0.0111290322580645j | AJ96: 14.6048387096774+0.0111290322580645j | AL96: 0.914411396150753-0.000696790572439558j | AP96: 0.9144116616 | AQ96: 30 | AS96: =Compensation!$C$16 -> 1.041447368
A97: 0.3037024912 | B97: 5.935483871 | C97: 1.55 | D97: 2.4025 | E97: 14.26 | F97: 1.4025 | G97: =1 -> 1 | H97: 2.794062919 | I97: 1+2.7940629190532j | K97: 1.4025+3.91867324397212j | M97: 15.6625+3.91867324397212j | O97: 0.856820233754844-0.214371813242397j | S97: 0.8832305403 | U97: 1.249736842 | V97: 0.9467703349 | Y97: 0.001 | Z97: 5.935483871 | AA97: 1.55 | AB97: 2.4025 | AC97: 14.26 | AD97: 1.4025 | AE97: 1 | AF97: 0.0092 | AG97: 1+0.0092j | AI97: 1.4025+0.012903j | AJ97: 15.6625+0.012903j | AL97: 0.910454290321441-0.000750045759490347j | AP97: 0.9104545993 | AQ97: 31 | AS97: =Compensation!$C$16 -> 1.041447368
A98: 0.3037024912 | B98: 5.935483871 | C98: 1.6 | D98: 2.56 | E98: 15.19483871 | F98: 1.56 | G98: =1 -> 1 | H98: 2.884193981 | I98: 1+2.88419398095814j | K98: 1.56+4.4993426102947j | M98: =IMSUM(K98,E98) -> 16.7548387096774+4.4993426102947j | O98: =IMDIV(E98,M98) -> 0.84589217523882-0.22715579503422j | S98: 0.8758614773 | U98: 1.249736842 | V98: 0.9467703349 | Y98: 0.001 | Z98: 5.935483871 | AA98: 1.6 | AB98: 2.56 | AC98: 15.19483871 | AD98: 1.56 | AE98: 1 | AF98: 0.009496774194 | AG98: 1+0.00949677419354839j | AI98: 1.56+0.0148149677419355j | AJ98: 16.7548387096774+0.0148149677419355j | AL98: 0.906891859298815-0.000801892150306145j | AP98: 0.9068922138 | AQ98: 32 | AS98: =Compensation!$C$16 -> 1.041447368
A99: 0.3037024912 | B99: 5.935483871 | C99: 1.65 | D99: 2.7225 | E99: 16.15935484 | F99: 1.7225 | G99: =1 -> 1 | H99: 2.974325043 | I99: 1+2.97432504286308j | K99: 1.7225+5.12327488633166j | M99: 17.8818548387097+5.12327488633166j | O99: 0.835121359253729-0.239268035978113j | S99: 0.868721404 | U99: 1.249736842 | V99: 0.9467703349 | Y99: 0.001 | Z99: 5.935483871 | AA99: 1.65 | AB99: 2.7225 | AC99: 16.15935484 | AD99: 1.7225 | AE99: 1 | AF99: 0.009793548387 | AG99: 1+0.00979354838709678j | AI99: 1.7225+0.0168693870967742j | AJ99: 17.8818548387097+0.0168693870967742j | AL99: 0.903672499480487-0.000852506708053884j | AP99: 0.9036729016 | AQ99: 33 | AS99: =Compensation!$C$16 -> 1.041447368
A100: 0.3037024912 | B100: 5.935483871 | C100: 1.7 | D100: 2.89 | E100: 17.15354839 | F100: 1.89 | G100: =1 -> 1 | H100: 3.064456105 | I100: 1+3.06445610476802j | K100: 1.89+5.79182203801157j | M100: 19.0435483870968+5.79182203801157j | O100: 0.824489730220046-0.250756723092543j | S100: 0.8617785385 | U100: 1.249736842 | V100: 0.9467703349 | Y100: 0.001 | Z100: 5.935483871 | AA100: 1.7 | AB100: 2.89 | AC100: 17.15354839 | AD100: 1.89 | AE100: 1 | AF100: 0.01009032258 | AG100: 1+0.0100903225806452j | AI100: 1.89+0.0190707096774195j | AJ100: 19.0435483870968+0.0190707096774195j | AL100: 0.900752886800345-0.000902037605917291j | AP100: 0.9007533385 | AQ100: 34 | AS100: =Compensation!$C$16 -> 1.041447368
A101: 0.3037024912 | B101: 5.935483871 | C101: 1.75 | D101: 3.0625 | E101: 18.17741935 | F101: 2.0625 | G101: =1 -> 1 | H101: 3.154587167 | I101: 1+3.15458716667297j | K101: 2.0625+6.50633603126301j | M101: 20.2399193548387+6.50633603126301j | O101: 0.813982946780322-0.261663422794436j | S101: 0.8550064236 | U101: 1.249736842 | V101: 0.9467703349 | Y101: 0.001 | Z101: 5.935483871 | AA101: 1.75 | AB101: 3.0625 | AC101: 18.17741935 | AD101: 2.0625 | AE101: 1 | AF101: 0.01038709677 | AG101: 1+0.0103870967741936j | AI101: 2.0625+0.0214233870967743j | AJ101: 20.2399193548387+0.0214233870967743j | AL101: 0.898096413867868-0.000950609870879571j | AP101: 0.898096917 | AQ101: 35 | AS101: =Compensation!$C$16 -> 1.041447368
A102: 0.3037024912 | B102: 5.935483871 | C102: 1.8 | D102: 3.24 | E102: 19.23096774 | F102: 2.24 | G102: =1 -> 1 | H102: 3.244718229 | I102: 1+3.24471822857791j | K102: 2.24+7.26816883201453j | M102: 21.4709677419355+7.26816883201453j | O102: 0.803589719209381-0.272024336354316j | S102: 0.8483829774 | U102: 1.249736842 | V102: 0.9467703349 | Y102: 0.001 | Z102: 5.935483871 | AA102: 1.8 | AB102: 3.24 | AC102: 19.23096774 | AD102: 2.24 | AE102: 1 | AF102: 0.01068387097 | AG102: 1+0.0106838709677419j | AI102: 2.24+0.0239318709677419j | AJ102: 21.4709677419355+0.0239318709677419j | AL102: 0.895671964169378-0.000998329750831866j | AP102: 0.8956725205 | AQ102: 36 | AS102: =Compensation!$C$16 -> 1.041447368
A103: 0.3037024912 | B103: 5.935483871 | C103: 1.85 | D103: 3.4225 | E103: 20.31419355 | F103: 2.4225 | G103: =1 -> 1 | H103: 3.33484929 | I103: 1+3.33484929048285j | K103: 2.4225+8.07867240619472j | M103: 22.7366935483871+8.07867240619472j | O103: 0.793301265701533-0.281871285786712j | S103: 0.8418897314 | U103: 1.249736842 | V103: 0.9467703349 | Y103: 0.001 | Z103: 5.935483871 | AA103: 1.85 | AB103: 3.4225 | AC103: 20.31419355 | AD103: 2.4225 | AE103: 1 | AF103: 0.01098064516 | AG103: 1+0.0109806451612903j | AI103: 2.4225+0.0266006129032258j | AJ103: 22.7366935483871+0.0266006129032258j | AL103: 0.89345294204061-0.00104528812898375j | AP103: 0.8934535535 | AQ103: 37 | AS103: =Compensation!$C$16 -> 1.041447368
A104: 0.3037024912 | B104: 5.935483871 | C104: 1.9 | D104: 3.61 | E104: 21.42709677 | F104: 2.61 | G104: =1 -> 1 | H104: 3.424980352 | I104: 1+3.42498035238779j | K104: 2.61+8.93919871973215j | M104: 24.0370967741936+8.93919871973215j | O104: 0.783110864629056-0.291232493851589j | S104: 0.8355112158 | U104: 1.249736842 | V104: 0.9467703349 | Y104: 0.001 | Z104: 5.935483871 | AA104: 1.9 | AB104: 3.61 | AC104: 21.42709677 | AD104: 2.61 | AE104: 1 | AF104: 0.01127741935 | AG104: 1+0.0112774193548387j | AI104: 2.61+0.0294340645161291j | AJ104: 24.0370967741936+0.0294340645161291j | AL104: 0.891416498686963-0.00109156321911818j | AP104: 0.891417167 | AQ104: 38 | AS104: =Compensation!$C$16 -> 1.041447368
A105: 0.3037024912 | B105: 5.935483871 | C105: 1.95 | D105: 3.8025 | E105: 22.56967742 | F105: 2.8025 | G105: =1 -> 1 | H105: 3.515111414 | I105: 1+3.51511141429273j | K105: 2.8025+9.85109973855539j | M105: 25.3721774193549+9.85109973855539j | O105: 0.773013484586127-0.300133205362861j | S105: 0.8292344592 | U105: 1.249736842 | V105: 0.9467703349 | Y105: 0.001 | Z105: 5.935483871 | AA105: 1.95 | AB105: 3.8025 | AC105: 22.56967742 | AD105: 2.8025 | AE105: 1 | AF105: 0.01157419355 | AG105: 1+0.0115741935483871j | AI105: 2.8025+0.0324366774193549j | AJ105: 25.3721774193549+0.0324366774193549j | AL105: 0.889542909880946-0.00113722271216942j | AP105: 0.8895436368 | AQ105: 39 | AS105: =Compensation!$C$16 -> 1.041447368
A106: 0.3037024912 | B106: 5.935483871 | C106: 2 | D106: 4 | E106: 23.74193548 | F106: 3 | G106: =1 -> 1 | H106: 3.605242476 | I106: 1+3.60524247619768j | K106: 3+10.8157274285931j | M106: 26.741935483871+10.8157274285931j | O106: 0.763005477748304-0.308596185149966j | S106: 0.8230485797 | U106: 1.249736842 | V106: 0.9467703349 | Y106: 0.001 | Z106: 5.935483871 | AA106: 2 | AB106: 4 | AC106: 23.74193548 | AD106: 3 | AE106: 1 | AF106: 0.01187096774 | AG106: 1+0.0118709677419355j | AI106: 3+0.0356129032258065j | AJ106: 26.741935483871+0.0356129032258065j | AL106: 0.887815072029732-0.00118232550002512j | AP106: 0.8878158593 | AQ106: 40 | AS106: =Compensation!$C$16 -> 1.041447368
A107: 0.3037024912 | B107: 5.935483871 | C107: 2.05 | D107: 4.2025 | E107: 24.94387097 | F107: 3.2025 | G107: =1 -> 1 | H107: 3.695373538 | I107: 1+3.69537353810262j | K107: 3.2025+11.8344337557737j | M107: 28.146370967742+11.8344337557737j | O107: 0.753084324998183-0.316642119402064j | S107: 0.8169444487 | U107: 1.249736842 | V107: 0.9467703349 | Y107: 0.001 | Z107: 5.935483871 | AA107: 2.05 | AB107: 4.2025 | AC107: 24.94387097 | AD107: 3.2025 | AE107: 1 | AF107: 0.01216774194 | AG107: 1+0.0121677419354839j | AI107: 3.2025+0.0389671935483872j | AJ107: 28.146370967742+0.0389671935483872j | AL107: 0.886218091368895-0.00122692307054547j | AP107: 0.8862189407 | AQ107: 41 | AS107: =Compensation!$C$16 -> 1.041447368
A108: 0.3037024912 | B108: 5.935483871 | C108: 2.1 | D108: 4.41 | E108: 26.17548387 | F108: 3.41 | G108: =1 -> 1 | H108: 3.7855046 | I108: 1+3.78550460000756j | K108: 3.41+12.9085706860258j | M108: 29.5854838709677+12.9085706860258j | O108: 0.743248423563921-0.324289940793127j | S108: 0.8109144128 | U108: 1.249736842 | V108: 0.9467703349 | Y108: 0.001 | Z108: 5.935483871 | AA108: 2.1 | AB108: 4.41 | AC108: 26.17548387 | AD108: 3.41 | AE108: 1 | AF108: 0.01246451613 | AG108: 1+0.0124645161290323j | AI108: 3.41+0.0425040000000002j | AJ108: 29.5854838709677+0.0425040000000002j | AL108: 0.884738946977038-0.00127106064468373j | AP108: 0.88473986 | AQ108: 42 | AS108: =Compensation!$C$16 -> 1.041447368
A109: 0.3037024912 | B109: 5.935483871 | C109: 2.15 | D109: 4.6225 | E109: 27.43677419 | F109: 3.6225 | G109: =1 -> 1 | H109: 3.875635662 | I109: 1+3.8756356619125j | K109: 3.6225+14.039490185278j | M109: 31.0592741935484+14.039490185278j | O109: 0.733496909725535-0.331557093087593j | S109: 0.8049520623 | U109: 1.249736842 | V109: 0.9467703349 | Y109: 0.001 | Z109: 5.935483871 | AA109: 2.15 | AB109: 4.6225 | AC109: 27.43677419 | AD109: 3.6225 | AE109: 1 | AF109: 0.01276129032 | AG109: 1+0.0127612903225806j | AI109: 3.6225+0.0462277741935482j | AJ109: 31.0592741935484+0.0462277741935482j | AL109: 0.883366212723089-0.00131477810967184j | AP109: 0.8833671912 | AQ109: 43 | AS109: =Compensation!$C$16 -> 1.041447368
A110: 0.3037024912 | B110: 5.935483871 | C110: 2.2 | D110: 4.84 | E110: 28.72774194 | F110: 3.84 | G110: =1 -> 1 | H110: 3.965766724 | I110: 1+3.96576672381744j | K110: 3.84+15.228544219459j | M110: 32.5677419354839+15.228544219459j | O110: 0.723829510571883-0.338459747406786j | S110: 0.799052039 | U110: 1.249736842 | V110: 0.9467703349 | Y110: 0.001 | Z110: 5.935483871 | AA110: 2.2 | AB110: 4.84 | AC110: 28.72774194 | AD110: 3.84 | AE110: 1 | AF110: 0.01305806452 | AG110: 1+0.013058064516129j | AI110: 3.84+0.0501429677419354j | AJ110: 32.5677419354839+0.0501429677419354j | AL110: 0.882089826574018-0.00135811078971979j | AP110: 0.8820908721 | AQ110: 44 | AS110: =Compensation!$C$16 -> 1.041447368
A111: 0.3037024912 | B111: 5.935483871 | C111: 2.25 | D111: 5.0625 | E111: 30.0483871 | F111: 4.0625 | G111: =1 -> 1 | H111: 4.055897786 | I111: 1+4.05589778572238j | K111: 4.0625+16.4770847544972j | M111: 34.1108870967742+16.4770847544972j | O111: 0.71424641992238-0.345012979676222j | S111: 0.7932098742 | U111: 1.249736842 | V111: 0.9467703349 | Y111: 0.001 | Z111: 5.935483871 | AA111: 2.25 | AB111: 5.0625 | AC111: 30.0483871 | AD111: 4.0625 | AE111: 1 | AF111: 0.01335483871 | AG111: 1+0.0133548387096774j | AI111: 4.0625+0.0542540322580644j | AJ111: 34.1108870967742+0.0542540322580644j | AL111: 0.88090089820118-0.00140109008632861j | AP111: 0.8809020124 | AQ111: 45 | AS111: =Compensation!$C$16 -> 1.041447368
A112: 0.3037024912 | B112: 5.935483871 | C112: 2.3 | D112: 5.29 | E112: 31.39870968 | F112: 4.29 | G112: =1 -> 1 | H112: 4.146028848 | I112: 1+4.14602884762732j | K112: 4.29+17.7864637563212j | M112: 35.6887096774193+17.7864637563212j | O112: 0.704748194427295-0.351230916746898j | S112: 0.7874218529 | U112: 1.249736842 | V112: 0.9467703349 | Y112: 0.001 | Z112: 5.935483871 | AA112: 2.3 | AB112: 5.29 | AC112: 31.39870968 | AD112: 4.29 | AE112: 1 | AF112: 0.0136516129 | AG112: 1+0.0136516129032258j | AI112: 4.29+0.0585654193548387j | AJ112: 35.6887096774193+0.0585654193548387j | AL112: 0.879791547740155-0.00144374401327391j | AP112: 0.8797927323 | AQ112: 46 | AS112: =Compensation!$C$16 -> 1.041447368
A113: 0.3037024912 | B113: 5.935483871 | C113: 2.35 | D113: 5.5225 | E113: 32.77870968 | F113: 4.5225 | G113: =1 -> 1 | H113: 4.23615991 | I113: 1+4.23615990953227j | K113: 4.5225+19.1580331908597j | M113: 37.3012096774193+19.1580331908597j | O113: 0.695335666578857-0.357126857126311j | S113: 0.781684899 | U113: 1.249736842 | V113: 0.9467703349 | Y113: 0.001 | Z113: 5.935483871 | AA113: 2.35 | AB113: 5.5225 | AC113: 32.77870968 | AD113: 4.5225 | AE113: 1 | AF113: 0.0139483871 | AG113: 1+0.0139483870967742j | AI113: 4.5225+0.0630815806451613j | AJ113: 37.3012096774193+0.0630815806451613j | AL113: 0.878754770032934-0.00148609764596213j | AP113: 0.8787560266 | AQ113: 47 | AS113: =Compensation!$C$16 -> 1.041447368
A114: 0.3037024912 | B114: 5.935483871 | C114: 2.4 | D114: 5.76 | E114: 34.1883871 | F114: 4.76 | G114: =1 -> 1 | H114: 4.326290971 | I114: 1+4.32629097143721j | K114: 4.76+20.5931450240411j | M114: 38.9483870967742+20.5931450240411j | O114: 0.686009871941604-0.362713371049641j | S114: 0.775996478 | U114: 1.249736842 | V114: 0.9467703349 | Y114: 0.001 | Z114: 5.935483871 | AA114: 2.4 | AB114: 5.76 | AC114: 34.1883871 | AD114: 4.76 | AE114: 1 | AF114: 0.01424516129 | AG114: 1+0.0142451612903226j | AI114: 4.76+0.0678069677419355j | AJ114: 38.9483870967742+0.0678069677419355j | AL114: 0.877784319823463-0.00152817350076034j | AP114: 0.8777856501 | AQ114: 48 | AS114: =Compensation!$C$16 -> 1.041447368
A115: 0.3037024912 | B115: 5.935483871 | C115: 2.45 | D115: 6.0025 | E115: 35.62774194 | F115: 5.0025 | G115: =1 -> 1 | H115: 4.416422033 | I115: 1+4.41642203334215j | K115: 5.0025+22.0931512217941j | M115: 40.6302419354838+22.0931512217941j | O115: 0.676771988374569-0.368002383681981j | S115: 0.7703545149 | U115: 1.249736842 | V115: 0.9467703349 | Y115: 0.001 | Z115: 5.935483871 | AA115: 2.45 | AB115: 6.0025 | AC115: 35.62774194 | AD115: 5.0025 | AE115: 1 | AF115: 0.01454193548 | AG115: 1+0.014541935483871j | AI115: 5.0025+0.0727460322580646j | AJ115: 40.6302419354838+0.0727460322580646j | AL115: 0.876874614268313-0.00156999185673397j | AP115: 0.8768760198 | AQ115: 49 | AS115: =Compensation!$C$16 -> 1.041447368
A116: 0.3037024912 | B116: 5.935483871 | C116: 2.5 | D116: 6.25 | E116: 37.09677419 | F116: 5.25 | G116: =1 -> 1 | H116: 4.506553095 | I116: 1+4.50655309524709j | K116: 5.25+23.6594037500472j | M116: 42.3467741935484+23.6594037500472j | O116: 0.667623285393656-0.373005244504975j | S116: 0.7647573234 | U116: 1.249736842 | V116: 0.9467703349 | Y116: 0.001 | Z116: 5.935483871 | AA116: 2.5 | AB116: 6.25 | AC116: 37.09677419 | AD116: 5.25 | AE116: 1 | AF116: 0.01483870968 | AG116: 1+0.0148387096774193j | AI116: 5.25+0.0779032258064513j | AJ116: 42.3467741935484+0.0779032258064513j | AL116: 0.876020649823624-0.00161157102976503j | AP116: 0.8760221322 | AQ116: 50 | AS116: =Compensation!$C$16 -> 1.041447368
A117: 0.3037024912 | B117: 5.935483871 | C117: 2.55 | D117: 6.5025 | E117: 38.59548387 | F117: 5.5025 | G117: =1 -> 1 | H117: 4.596684157 | I117: 1+4.59668415715203j | K117: 5.50249999999999+25.293254574729j | M117: 44.0979838709677+25.293254574729j | O117: 0.658565082128025-0.377732785358877j | S117: 0.7592035462 | U117: 1.249736842 | V117: 0.9467703349 | Y117: 0.001 | Z117: 5.935483871 | AA117: 2.55 | AB117: 6.5025 | AC117: 38.59548387 | AD117: 5.5025 | AE117: 1 | AF117: 0.01513548387 | AG117: 1+0.0151354838709677j | AI117: 5.50249999999999+0.0832829999999997j | AJ117: 44.0979838709677+0.0832829999999997j | AL117: 0.875217931121957-0.00165292760709675j | AP117: 0.875219492 | AQ117: 51 | AS117: =Compensation!$C$16 -> 1.041447368
A118: 0.3037024912 | B118: 5.935483871 | C118: 2.6 | D118: 6.76 | E118: 40.12387097 | F118: 5.76 | G118: =1 -> 1 | H118: 4.686815219 | I118: 1+4.68681521905697j | K118: 5.75999999999999+26.9960556617681j | M118: 45.8838709677419+26.9960556617681j | O118: 0.649598712573882-0.382195369148046j | S118: 0.753692104 | U118: 1.249736842 | V118: 0.9467703349 | Y118: 0.001 | Z118: 5.935483871 | AA118: 2.6 | AB118: 6.76 | AC118: 40.12387097 | AD118: 5.76 | AE118: 1 | AF118: 0.01543225806 | AG118: 1+0.0154322580645161j | AI118: 5.75999999999999+0.0888898064516126j | AJ118: 45.8838709677419+0.0888898064516126j | AL118: 0.874462409891375-0.00169407664883163j | AP118: 0.8744640508 | AQ118: 52 | AS118: =Compensation!$C$16 -> 1.041447368
A119: 0.3037024912 | B119: 5.935483871 | C119: 2.65 | D119: 7.0225 | E119: 41.68193548 | F119: 6.0225 | G119: =1 -> 1 | H119: 4.776946281 | I119: 1+4.77694628096191j | K119: 6.02249999999999+28.7691589770931j | M119: 47.7044354838709+28.7691589770931j | O119: 0.640725497054039-0.386402930848159j | S119: 0.7482221512 | U119: 1.249736842 | V119: 0.9467703349 | Y119: 0.001 | Z119: 5.935483871 | AA119: 2.65 | AB119: 7.0225 | AC119: 41.68193548 | AD119: 6.0225 | AE119: 1 | AF119: 0.01572903226 | AG119: 1+0.0157290322580645j | AI119: 6.02249999999999+0.0947280967741933j | AJ119: 47.7044354838709+0.0947280967741933j | AL119: 0.873750432319813-0.00173503186170747j | AP119: 0.873752155 | AQ119: 53 | AS119: =Compensation!$C$16 -> 1.041447368
A120: 0.3037024912 | B120: 5.935483871 | C120: 2.7 | D120: 7.29 | E120: 43.26967742 | F120: 6.29 | G120: =1 -> 1 | H120: 4.867077343 | I120: 1+4.86707734286686j | K120: 6.28999999999999+30.6139164866325j | M120: 49.5596774193548+30.6139164866325j | O120: 0.631946718960544-0.390365012156114j | S120: 0.7427930387 | U120: 1.249736842 | V120: 0.9467703349 | Y120: 0.001 | Z120: 5.935483871 | AA120: 2.7 | AB120: 7.29 | AC120: 43.26967742 | AD120: 6.29 | AE120: 1 | AF120: 0.01602580645 | AG120: 1+0.0160258064516129j | AI120: 6.28999999999999+0.100802322580645j | AJ120: 49.5596774193548+0.100802322580645j | AL120: 0.873078693549214-0.00177580574951575j | AP120: 0.8730804995 | AQ120: 54 | AS120: =Compensation!$C$16 -> 1.041447368
A121: 0.3037024912 | B121: 5.935483871 | C121: 2.75 | D121: 7.5625 | E121: 44.88709677 | F121: 6.5625 | G121: =1 -> 1 | H121: 4.957208405 | I121: 1+4.9572084047718j | K121: 6.56249999999999+32.5316801563149j | M121: 51.4495967741935+32.5316801563149j | O121: 0.623263605997766-0.394090790883728j | S121: 0.7374042813 | U121: 1.249736842 | V121: 0.9467703349 | Y121: 0.001 | Z121: 5.935483871 | AA121: 2.75 | AB121: 7.5625 | AC121: 44.88709677 | AD121: 6.5625 | AE121: 1 | AF121: 0.01632258065 | AG121: 1+0.0163225806451613j | AI121: 6.56249999999999+0.107116935483871j | AJ121: 51.4495967741935+0.107116935483871j | AL121: 0.872444198211149-0.00181640974375792j | AP121: 0.8724460891 | AQ121: 55 | AS121: =Compensation!$C$16 -> 1.041447368
A122: 0.3037024912 | B122: 5.935483871 | C122: 2.8 | D122: 7.84 | E122: 46.53419355 | F122: 6.84 | G122: =1 -> 1 | H122: 5.047339467 | I122: 1+5.04733946667674j | K122: 6.83999999999999+34.5238019520688j | M122: 53.374193548387+34.5238019520688j | O122: 0.614677315259916-0.397589106001659j | S122: 0.7320555301 | U122: 1.249736842 | V122: 0.9467703349 | Y122: 0.001 | Z122: 5.935483871 | AA122: 2.8 | AB122: 7.84 | AC122: 46.53419355 | AD122: 6.84 | AE122: 1 | AF122: 0.01661935484 | AG122: 1+0.0166193548387097j | AI122: 6.83999999999999+0.113676387096774j | AJ122: 53.374193548387+0.113676387096774j | AL122: 0.871844226099846-0.00185685431751518j | AP122: 0.8718462035 | AQ122: 56 | AS122: =Compensation!$C$16 -> 1.041447368
A123: 0.3037024912 | B123: 5.935483871 | C123: 2.85 | D123: 8.1225 | E123: 48.21096774 | F123: 7.1225 | G123: =1 -> 1 | H123: 5.137470529 | I123: 1+5.13747052858168j | K123: 7.12249999999999+36.591633839823j | M123: 55.3334677419354+36.591633839823j | O123: 0.606188921574495-0.400868479081432j | S123: 0.7267465488 | U123: 1.249736842 | V123: 0.9467703349 | Y123: 0.001 | Z123: 5.935483871 | AA123: 2.85 | AB123: 8.1225 | AC123: 48.21096774 | AD123: 7.1225 | AE123: 1 | AF123: 0.01691612903 | AG123: 1+0.016916129032258j | AI123: 7.12249999999999+0.120485129032257j | AJ123: 55.3334677419354+0.120485129032257j | AL123: 0.871276302228674-0.00189714908500506j | AP123: 0.8712783677 | AQ123: 57 | AS123: =Compensation!$C$16 -> 1.041447368
A124: 0.3037024912 | B124: 5.935483871 | C124: 2.9 | D124: 8.41 | E124: 49.91741935 | F124: 7.41 | G124: =1 -> 1 | H124: 5.22760159 | I124: 1+5.22760159048662j | K124: 7.40999999999999+38.7365277855058j | M124: 57.3274193548386+38.7365277855058j | O124: 0.5977994086251-0.403937132753746j | S124: 0.7214771931 | U124: 1.249736842 | V124: 0.9467703349 | Y124: 0.001 | Z124: 5.935483871 | AA124: 2.9 | AB124: 8.41 | AC124: 49.91741935 | AD124: 7.41 | AE124: 1 | AF124: 0.01721290323 | AG124: 1+0.0172129032258064j | AI124: 7.40999999999999+0.127547612903225j | AJ124: 57.3274193548386+0.127547612903225j | AL124: 0.870738170638873-0.00193730288888951j | AP124: 0.8707403258 | AQ124: 58 | AS124: =Compensation!$C$16 -> 1.041447368
A125: 0.3037024912 | B125: 5.935483871 | C125: 2.95 | D125: 8.7025 | E125: 51.65354839 | F125: 7.7025 | G125: =1 -> 1 | H125: 5.317732652 | I125: 1+5.31773265239156j | K125: 7.70249999999998+40.9598357550459j | M125: 59.3560483870967+40.9598357550459j | O125: 0.58950966243609-0.406803006694831j | S125: 0.7162473933 | U125: 1.249736842 | V125: 0.9467703349 | Y125: 0.001 | Z125: 5.935483871 | AA125: 2.95 | AB125: 8.7025 | AC125: 51.65354839 | AD125: 7.7025 | AE125: 1 | AF125: 0.01750967742 | AG125: 1+0.0175096774193548j | AI125: 7.70249999999998+0.13486829032258j | AJ125: 59.3560483870967+0.13486829032258j | AL125: 0.870227771430195-0.00197732387706479j | AP125: 0.8702300179 | AQ125: 59 | AS125: =Compensation!$C$16 -> 1.041447368
A126: 0.3037024912 | B126: 5.935483871 | C126: 3 | D126: 9 | E126: 53.41935484 | F126: 8 | G126: =1 -> 1 | H126: 5.407863714 | I126: 1+5.40786371429651j | K126: 7.99999999999998+43.262909714372j | M126: 61.4193548387096+43.262909714372j | O126: 0.581320466860232-0.409473771564924j | S126: 0.7110571389 | U126: 1.249736842 | V126: 0.9467703349 | Y126: 0.001 | Z126: 5.935483871 | AA126: 3 | AB126: 9 | AC126: 53.41935484 | AD126: 8 | AE126: 1 | AF126: 0.01780645161 | AG126: 1+0.0178064516129032j | AI126: 7.99999999999998+0.142451612903225j | AJ126: 61.4193548387096+0.142451612903225j | AL126: 0.869743220566374-0.00201721957038923j | AP126: 0.8697455599 | AQ126: 60 | AS126: =Compensation!$C$16 -> 1.041447368
A127: 0.3037024912 | B127: 5.935483871 | C127: 3.05 | D127: 9.3025 | E127: 55.21483871 | F127: 8.3025 | G127: =1 -> 1 | H127: 5.497994776 | I127: 1+5.49799477620145j | K127: 8.30249999999998+45.6471016294124j | M127: 63.5173387096773+45.6471016294124j | O127: 0.573232500760185-0.411956841250588j | S127: 0.7059064662 | U127: 1.249736842 | V127: 0.9467703349 | Y127: 0.001 | Z127: 5.935483871 | AA127: 3.05 | AB127: 9.3025 | AC127: 55.21483871 | AD127: 8.3025 | AE127: 1 | AF127: 0.01810322581 | AG127: 1+0.0181032258064516j | AI127: 8.30249999999998+0.150302032258064j | AJ127: 63.5173387096773+0.150302032258064j | AL127: 0.869282792077169-0.00205699692257819j | AP127: 0.8692852258 | AQ127: 61 | AS127: =Compensation!$C$16 -> 1.041447368
A128: 0.3037024912 | B128: 5.935483871 | C128: 3.1 | D128: 9.61 | E128: 57.04 | F128: 8.61 | G128: =1 -> 1 | H128: 5.588125838 | I128: 1+5.58812583810639j | K128: 8.60999999999998+48.1137634660959j | M128: 65.6499999999999+48.1137634660959j | O128: 0.565246336617221-0.414259383702638j | S128: 0.7007954466 | U128: 1.249736842 | V128: 0.9467703349 | Y128: 0.001 | Z128: 5.935483871 | AA128: 3.1 | AB128: 9.61 | AC128: 57.04 | AD128: 8.61 | AE128: 1 | AF128: 0.0184 | AG128: 1+0.0184j | AI128: 8.60999999999998+0.158424j | AJ128: 65.6499999999999+0.158424j | AL128: 0.868844902336027-0.00209666237330819j | AP128: 0.8688474321 | AQ128: 62 | AS128: =Compensation!$C$16 -> 1.041447368
A129: 0.3037024912 | B129: 5.935483871 | C129: 3.15 | D129: 9.9225 | E129: 58.89483871 | F129: 8.9225 | G129: =1 -> 1 | H129: 5.6782569 | I129: 1+5.67825690001133j | K129: 8.92249999999998+50.664247190351j | M129: 67.8173387096773+50.664247190351j | O129: 0.557362440337016-0.416388330611716j | S129: 0.6957241779 | U129: 1.249736842 | V129: 0.9467703349 | Y129: 0.001 | Z129: 5.935483871 | AA129: 3.15 | AB129: 9.9225 | AC129: 58.89483871 | AD129: 8.9225 | AE129: 1 | AF129: 0.01869677419 | AG129: 1+0.0186967741935484j | AI129: 8.92249999999998+0.166821967741935j | AJ129: 67.8173387096773+0.166821967741935j | AL129: 0.868428096140156-0.0021362218954164j | AP129: 0.8684307236 | AQ129: 63 | AS129: =Compensation!$C$16 -> 1.041447368
A130: 0.3037024912 | B130: 5.935483871 | C130: 3.2 | D130: 10.24 | E130: 60.77935484 | F130: 9.24 | G130: =1 -> 1 | H130: 5.768387962 | I130: 1+5.76838796191627j | K130: 9.23999999999998+53.2999047681062j | M130: =IMSUM(K130,E130) -> 70.0193548387095+53.2999047681062j | O130: =IMDIV(E130,M130) -> 0.549581172053611-0.418350386122203j | S130: 0.6906927756 | U130: 1.249736842 | V130: 0.9467703349 | Y130: 0.001 | Z130: 5.935483871 | AA130: 3.2 | AB130: 10.24 | AC130: 60.77935484 | AD130: 9.24 | AE130: 1 | AF130: 0.01899354839 | AG130: 1+0.0189935483870968j | AI130: 9.23999999999998+0.175500387096774j | AJ130: 70.0193548387095+0.175500387096774j | AL130: 0.868031034359721-0.0021756810369513j | AP130: 0.868033761 | AQ130: 64 | AS130: =Compensation!$C$16 -> 1.041447368
A131: 0.3037024912 | B131: 5.935483871 | C131: 3.25 | D131: =C131^2 -> 10.5625 | E131: =B131*D131 -> 62.69354839 | F131: =C131^2-1 -> 9.5625 | G131: =1 -> 1 | H131: =C131*B131*A131 -> 5.858519024 | I131: =COMPLEX(G131,H131,"j") -> 1+5.85851902382121j | K131: =IMPRODUCT(I131,F131) -> 9.56249999999998+56.0220881652902j | M131: 72.2560483870966+56.0220881652902j | O131: 0.54190278775965-0.420152034750755j | S131: =IMABS(O131) -> 0.6857013663 | U131: 1.249736842 | V131: 0.9467703349 | W131: =IF(AND(ISNUMBER(S130), ISNUMBER(S131)), IF(AND(S130 >Mg_min, S131 < Mg_min), VALUE(ROW(S131)), ""), "") ->  | X131: =IF(AND(ISNUMBER(S130), ISNUMBER(S131)), IF(AND(S130 >Mg_max, S131 < Mg_max), VALUE(ROW(S131)), ""), "") ->  | Y131: 0.001 | Z131: 5.935483871 | AA131: 3.25 | AB131: =AA131^2 -> 10.5625 | AC131: =Z131*AB131 -> 62.69354839 | AD131: =AA131^2-1 -> 9.5625 | AE131: 1 | AF131: =AA131*Z131*Y131 -> 0.01929032258 | AG131: =COMPLEX(AE131,AF131,"j") -> 1+0.0192903225806451j | AI131: =IMPRODUCT(AG131,AD131) -> 9.56249999999998+0.184463709677418j | AJ131: =IMSUM(AI131,AC131) -> 72.2560483870966+0.184463709677418j | AL131: =IMDIV(AC131,AJ131) -> 0.867652482956459-0.00221504495872145j | AP131: =IMABS(AL131) -> 0.8676553104 | AQ131: 65 | AS131: =Compensation!$C$16 -> 1.041447368
A132: 0.3037024912 | B132: 5.935483871 | C132: =C131+0.05 -> 3.3 | D132: 10.89 | E132: 64.63741935 | F132: 9.89 | G132: =1 -> 1 | H132: 5.948650086 | I132: 1+5.94865008572615j | K132: 9.88999999999998+58.8321493478315j | M132: 74.5274193548385+58.8321493478315j | O132: 0.534327441614324-0.421799548647028j | S132: 0.680750082 | U132: 1.249736842 | V132: 0.9467703349 | Y132: =Y131 -> 0.001 | Z132: 5.935483871 | AA132: =AA131+0.05 -> 3.3 | AB132: 10.89 | AC132: 64.63741935 | AD132: 9.89 | AE132: 1 | AF132: 0.01958709677 | AG132: 1+0.0195870967741935j | AI132: 9.88999999999998+0.193716387096773j | AJ132: 74.5274193548385+0.193716387096773j | AL132: 0.867291303200252-0.00225431846789818j | AP132: 0.867294233 | AQ132: 66 | AS132: =Compensation!$C$16 -> 1.041447368
A133: 0.3037024912 | B133: 5.935483871 | C133: 3.35 | D133: 11.2225 | E133: 66.61096774 | F133: 10.2225 | G133: =1 -> 1 | H133: 6.038781148 | I133: 1+6.0387811476311j | K133: 10.2225+61.7314402816588j | M133: 76.8334677419353+61.7314402816588j | O133: 0.526855188800655-0.423298994310243j | S133: 0.6758390552 | U133: 1.249736842 | V133: 0.9467703349 | Y133: 0.001 | Z133: 5.935483871 | AA133: 3.35 | AB133: 11.2225 | AC133: 66.61096774 | AD133: 10.2225 | AE133: 1 | AF133: 0.01988387097 | AG133: 1+0.0198838709677419j | AI133: 10.2225+0.203262870967741j | AJ133: 76.8334677419353+0.203262870967741j | AL133: 0.866946442936035-0.00229350604814978j | AP133: 0.8669494767 | AQ133: 67 | AS133: =Compensation!$C$16 -> 1.041447368
A134: 0.3037024912 | B134: 5.935483871 | C134: 3.4 | D134: 11.56 | E134: 68.61419355 | F134: 10.56 | G134: =1 -> 1 | H134: 6.12891221 | I134: 1+6.12891220953604j | K134: 10.56+64.7213129327004j | M134: 79.1741935483869+64.7213129327004j | O134: 0.519485988821293-0.424656238855258j | S134: 0.6709684149 | U134: 1.249736842 | V134: 0.9467703349 | Y134: 0.001 | Z134: 5.935483871 | AA134: 3.4 | AB134: 11.56 | AC134: 68.61419355 | AD134: 10.56 | AE134: 1 | AF134: 0.02018064516 | AG134: 1+0.0201806451612903j | AI134: 10.56+0.213107612903225j | AJ134: 79.1741935483869+0.213107612903225j | AL134: 0.866616928773679-0.00233261188672058j | AP134: 0.866620068 | AQ134: 68 | AS134: =Compensation!$C$16 -> 1.041447368
A135: 0.3037024912 | B135: 5.935483871 | C135: 3.45 | D135: 11.9025 | E135: 70.64709677 | F135: 10.9025 | G135: =1 -> 1 | H135: 6.219043271 | I135: 1+6.21904327144098j | K135: 10.9025+67.8031192668851j | M135: 81.5495967741934+67.8031192668851j | O135: 0.512219709137281-0.42587695590513j | S135: 0.6661382829 | U135: 1.249736842 | V135: 0.9467703349 | Y135: 0.001 | Z135: 5.935483871 | AA135: 3.45 | AB135: 11.9025 | AC135: 70.64709677 | AD135: 10.9025 | AE135: 1 | AF135: 0.02047741935 | AG135: 1+0.0204774193548387j | AI135: 10.9025+0.223255064516128j | AJ135: 81.5495967741934+0.223255064516128j | AL135: 0.866301859090627-0.00237163989881215j | AP135: 0.8663051055 | AQ135: 69 | AS135: =Compensation!$C$16 -> 1.041447368
A136: 0.3037024912 | B136: 5.935483871 | C136: 3.5 | D136: 12.25 | E136: 72.70967742 | F136: 11.25 | G136: =1 -> 1 | H136: 6.309174333 | I136: 1+6.30917433334592j | K136: 11.25+70.9782112501414j | M136: 83.9596774193546+70.9782112501414j | O136: 0.50505612906754-0.426966631173249j | S136: 0.6613487716 | U136: 1.249736842 | V136: 0.9467703349 | Y136: 0.001 | Z136: 5.935483871 | AA136: 3.5 | AB136: 12.25 | AC136: 72.70967742 | AD136: 11.25 | AE136: 1 | AF136: 0.02077419355 | AG136: 1+0.0207741935483871j | AI136: 11.25+0.233709677419354j | AJ136: 83.9596774193546+0.233709677419354j | AL136: 0.866000397751718-0.00241059374957687j | AP136: 0.8660037528 | AQ136: 70 | AS136: =Compensation!$C$16 -> 1.041447368
A137: 0.3037024912 | B137: 5.935483871 | C137: 3.55 | D137: 12.6025 | E137: 74.80193548 | F137: 11.6025 | G137: =1 -> 1 | H137: 6.399305395 | I137: 1+6.39930539525086j | K137: 11.6025+74.2479408483979j | M137: 86.4044354838708+74.2479408483979j | O137: 0.497994943878416-0.427930567786512j | S137: 0.6565999809 | U137: 1.249736842 | V137: 0.9467703349 | Y137: 0.001 | Z137: 5.935483871 | AA137: 3.55 | AB137: 12.6025 | AC137: 74.80193548 | AD137: 11.6025 | AE137: 1 | AF137: 0.02107096774 | AG137: 1+0.0210709677419355j | AI137: 11.6025+0.244475903225806j | AJ137: 86.4044354838708+0.244475903225806j | AL137: 0.865711768463122-0.00244947687399381j | AP137: 0.8657152338 | AQ137: 71 | AS137: =Compensation!$C$16 -> 1.041447368
X141: =IFERROR(MIN(_xlfn._xlws.FILTER(X67:X137, ISNUMBER(X67:X137))), "No crossing found") -> 79
E175: Standard Capacitor value generation
A177: scalers | J177: CR calculations
A178: mV factor | B178: =10^-3 -> 0.001 | E178: Standard Capacitor Values | J178: CR Initial: | K178: =(1/(2*PI()*fllc*kHz*Re_fl*Qe_selected))/picoF -> 43000 | M178: pF
A179: uF factor | B179: =(10^-6) -> 1e-06 | E179: C values up to 10nF | J179: CR Recommended: | K179: =(IF(Cr_initial<10000,K180*10^INT(LOG(Cr_initial)),K181*10^INT(LOG(Cr_initial))))*10^-6 -> 0.047 | M179: =IF(Cr_initial<10000,"pF","uF") -> uF
A180: kHz factor | B180: =10^3 -> 1000 | E180: 1 | F180: 1.2 | K180: =IF((10^(LOG(Cr_initial)-INT(LOG(Cr_initial))))-VLOOKUP((10^(LOG(Cr_initial)-INT(LOG(Cr_initial)))),C_s1:C_f1,1)<VLOOKUP((10^(LOG(Cr_initial)-INT(LOG(Cr_initial)))),C_s1:C_f1,2)-(10^(LOG(Cr_initial)-INT(LOG(Cr_initial)))),VLOOKUP((10^(LOG(Cr_initial)-INT(LOG(Cr_initial)))),C_s1:C_f1,1),VLOOKUP((10^(LOG(Cr_initial)-INT(LOG(Cr_initial)))),C_s1:C_f1,2)) -> 3.9
A181: mΩ factor | B181: =10^-3 -> 0.001 | E181: 1.2 | F181: 1.5 | K181: =IF((10^(LOG(Cr_initial)-INT(LOG(Cr_initial))))-VLOOKUP((10^(LOG(Cr_initial)-INT(LOG(Cr_initial)))),C_s2:C_f2,1)<VLOOKUP((10^(LOG(Cr_initial)-INT(LOG(Cr_initial)))),C_s2:C_f2,2)-(10^(LOG(Cr_initial)-INT(LOG(Cr_initial)))),VLOOKUP((10^(LOG(Cr_initial)-INT(LOG(Cr_initial)))),C_s2:C_f2,1),VLOOKUP((10^(LOG(Cr_initial)-INT(LOG(Cr_initial)))),C_s2:C_f2,2)) -> 4.7
A182: ms factor | B182: =10^-3 -> 0.001 | E182: 1.5 | F182: 1.8
A183: mA factor | B183: =10^-3 -> 0.001 | E183: 1.8 | F183: 2.2
A184: us factor | B184: =10^-6 -> 1e-06 | E184: 2.2 | F184: 2.7 | J184: C1 calculations
A185: uH factor | B185: =10^-6 -> 1e-06 | E185: 2.7 | F185: 3.3 | J185: C1 initial | K185: =1/(2*PI()*10*kHz*Rcs_LLC*mOhm)/picoF ->  | M185: pF
A186: ns factor | B186: =10^-9 -> 1e-09 | E186: 3.3 | F186: 3.9 | J186: C1 recommended | K186: =(IF(C_1initial<10000,K187*10^INT(LOG(C_1initial)),K188*10^INT(LOG(C_1initial))))*10^-6 ->  | M186: =IF(C_1initial<10000,"pF","uF") -> 
A187: mW factor | B187: =10^-3 -> 0.001 | E187: 3.9 | F187: 4.7 | K187: =IF((10^(LOG(C_1initial)-INT(LOG(C_1initial))))-VLOOKUP((10^(LOG(C_1initial)-INT(LOG(C_1initial)))),C_s1:C_f1,1)<VLOOKUP((10^(LOG(C_1initial)-INT(LOG(C_1initial)))),C_s1:C_f1,2)-(10^(LOG(C_1initial)-INT(LOG(C_1initial)))),VLOOKUP((10^(LOG(C_1initial)-INT(LOG(C_1initial)))),C_s1:C_f1,1),VLOOKUP((10^(LOG(C_1initial)-INT(LOG(C_1initial)))),C_s1:C_f1,2)) -> 
A188: pF factor | B188: =10^-12 -> 1e-12 | E188: 4.7 | F188: 5.6 | K188: =IF((10^(LOG(C_1initial)-INT(LOG(C_1initial))))-VLOOKUP((10^(LOG(C_1initial)-INT(LOG(C_1initial)))),C_s2:C_f2,1)<VLOOKUP((10^(LOG(C_1initial)-INT(LOG(C_1initial)))),C_s2:C_f2,2)-(10^(LOG(C_1initial)-INT(LOG(C_1initial)))),VLOOKUP((10^(LOG(C_1initial)-INT(LOG(C_1initial)))),C_s2:C_f2,1),VLOOKUP((10^(LOG(C_1initial)-INT(LOG(C_1initial)))),C_s2:C_f2,2)) -> 
A189: MHz factor | B189: =10^6 -> 1000000 | E189: 5.6 | F189: 6.8
A190: uA factor | B190: =10^-6 -> 1e-06 | E190: 6.8 | F190: 8.2
A191: kΩ factor | B191: =10^3 -> 1000 | E191: 8.2 | F191: 10 | J191: Cin calculations
A192: nC factor | B192: =10^-9 -> 1e-09 | E192: C values greater than 10nF | J192: Cin Initial | K192: =Ihfr_pfc/(8*f_pfc*kHz*deltaVin)/picoF ->  | M192: pF
A193: nF factor | B193: =10^-9 -> 1e-09 | E193: 1 | F193: 1.5 | J193: Cin recommended | K193: =(IF(Cin_initial<10000,K194*10^INT(LOG(Cin_initial)),K195*10^INT(LOG(Cin_initial))))*10^-6 ->  | M193: =IF(Cin_initial<10000,"pF","uF") -> 
A194: uC factor | B194: =10^-6 -> 1e-06 | E194: 1.5 | F194: 2.2 | K194: =IF((10^(LOG(Cin_initial)-INT(LOG(Cin_initial))))-VLOOKUP((10^(LOG(Cin_initial)-INT(LOG(Cin_initial)))),C_s1:C_f1,1)<VLOOKUP((10^(LOG(Cin_initial)-INT(LOG(Cin_initial)))),C_s1:C_f1,2)-(10^(LOG(Cin_initial)-INT(LOG(Cin_initial)))),VLOOKUP((10^(LOG(Cin_initial)-INT(LOG(Cin_initial)))),C_s1:C_f1,1),VLOOKUP((10^(LOG(Cin_initial)-INT(LOG(Cin_initial)))),C_s1:C_f1,2)) -> 
E195: 2.2 | F195: 2.7 | K195: =IF((10^(LOG(Cin_initial)-INT(LOG(Cin_initial))))-VLOOKUP((10^(LOG(Cin_initial)-INT(LOG(Cin_initial)))),C_s2:C_f2,1)>VLOOKUP((10^(LOG(Cin_initial)-INT(LOG(Cin_initial)))),C_s2:C_f2,2)-(10^(LOG(Cin_initial)-INT(LOG(Cin_initial)))),VLOOKUP((10^(LOG(Cin_initial)-INT(LOG(Cin_initial)))),C_s2:C_f2,1),VLOOKUP((10^(LOG(Cin_initial)-INT(LOG(Cin_initial)))),C_s2:C_f2,2)) -> 
E196: 2.7 | F196: 3.3
E197: 3.3 | F197: 4.7
E198: 4.7 | F198: 6.8 | J198: Cblk calculations
E199: 6.8 | F199: 10 | J199: Cblk initial | K199: =((2*Pout*tH*ms)/(Vblk_min^2-Vblk_hu^2))/picoF ->  | M199: pF
J200: Cblk recommended | K200: =(IF(Cblk_initial<10000,K201*10^INT(LOG(Cblk_initial)),K202*10^INT(LOG(Cblk_initial))))*10^-6 ->  | M200: =IF(Cblk_initial<10000,"pF","uF") -> 
K201: =IF((10^(LOG(Cblk_initial)-INT(LOG(Cblk_initial))))-VLOOKUP((10^(LOG(Cblk_initial)-INT(LOG(Cblk_initial)))),C_s1:C_f1,1)<VLOOKUP((10^(LOG(Cblk_initial)-INT(LOG(Cblk_initial)))),C_s1:C_f1,2)-(10^(LOG(Cblk_initial)-INT(LOG(Cblk_initial)))),VLOOKUP((10^(LOG(Cblk_initial)-INT(LOG(Cblk_initial)))),C_s1:C_f1,1),VLOOKUP((10^(LOG(Cblk_initial)-INT(LOG(Cblk_initial)))),C_s1:C_f1,2)) -> 
K202: =IF((10^(LOG(Cblk_initial)-INT(LOG(Cblk_initial))))-VLOOKUP((10^(LOG(Cblk_initial)-INT(LOG(Cblk_initial)))),C_s2:C_f2,1)<VLOOKUP((10^(LOG(Cblk_initial)-INT(LOG(Cblk_initial)))),C_s2:C_f2,2)-(10^(LOG(Cblk_initial)-INT(LOG(Cblk_initial)))),VLOOKUP((10^(LOG(Cblk_initial)-INT(LOG(Cblk_initial)))),C_s2:C_f2,1),VLOOKUP((10^(LOG(Cblk_initial)-INT(LOG(Cblk_initial)))),C_s2:C_f2,2)) -> 
A205: List of device | B205: VBLKstarthys | C205: IBLKsink | D205: TSET Difference Enable
A206: UCC256610 | B206: 0.05 | C206: 1 | D206: Yes
A207: UCC256611 | B207: 0.1 | C207: 5 | D207: Yes
A208: UCC256612 | B208: 0.1 | C208: 5 | D208: Yes
A209: UCC256613 | B209: 0.1 | C209: 5 | D209: Yes
A210: UCC256614 | B210: 0.05 | C210: 1 | D210: Yes
A211: UCC256616 | B211: 0.1 | C211: 5 | D211: No
A212: UCC256612-Q1 | B212: 0.1 | C212: 5 | D212: Yes | E212: UCC256612 | F212: 0.1 | G212: 5 | H212: Yes
A213: UCC256613-Q1 | B213: 0.1 | C213: 5 | D213: Yes | E213: UCC256613 | F213: 0.1 | G213: 5 | H213: Yes
A214: UCC256614-Q1 | B214: 0.05 | C214: 1 | D214: Yes | E214: UCC256614 | F214: 0.05 | G214: 1 | H214: Yes
A215: UCC256615-Q1
A221: Discrete Inductor
A222: Integrated Leakage
A227: RBWProgram | B227: BW
A228: Option 1 | B228: 24730 | C228: 28000 | D228: =(B228+C228)/2000 -> 26.365
A229: Option 2 | B229: 17125 | C229: 19976 | D229: =(B229+C229)/2000 -> 18.5505
A230: Option 3 | B230: 12562 | C230: 13624 | D230: 13.093
A231: Option 4 | B231: 9018 | C231: 9813 | D231: 9.4155
A232: Option 5 | B232: 6478 | C232: 6849 | D232: 6.6635
A233: Option 6 | B233: 4450 | C233: 4732 | D233: 4.591
A234: Option 7 | B234: 2422 | C234: 3038 | D234: 2.73
A235: Option 8 | B235: 0 | C235: 1344 | D235: 0.672
A249: burst mode | B249: deleted
A251: primary RMS current | B251: =('DESIGN INPUTS AND CALCULATIONS'!#REF!*PI()/('DESIGN INPUTS AND CALCULATIONS'!C29))*'DESIGN INPUTS AND CALCULATIONS'!C27/(2*SQRT(2)*'DESIGN INPUTS AND CALCULATIONS'!C40) -> 
A252: magnetizing current | B252: =(2*SQRT(2)/PI())*'DESIGN INPUTS AND CALCULATIONS'!C25*'DESIGN INPUTS AND CALCULATIONS'!C40/(2*PI()*'DESIGN INPUTS AND CALCULATIONS'!C97*0.000001*'DESIGN INPUTS AND CALCULATIONS'!#REF!*1000) -> 
A253: resonant current | B253: =SQRT(B251*B251+B252*B252) -> 
A254: AC resonant capacitor voltage | B254: =B253/(2*PI()*'DESIGN INPUTS AND CALCULATIONS'!C92*0.000001*'DESIGN INPUTS AND CALCULATIONS'!#REF!*1000) -> 
A255: resonant capacitor max voltage | B255: ='DESIGN INPUTS AND CALCULATIONS'!C32/2+SQRT(2)*B254 -> 
A256: resonant capacitor min voltage | B256: ='DESIGN INPUTS AND CALCULATIONS'!C32/2-SQRT(2)*B254 -> 
A257: peak to peak resonant capacitor voltage | B257: =B255-B256 -> 
A258: VCR peak to peak at desired burst/ZCS threshold | B258: =B257/'DESIGN INPUTS AND CALCULATIONS'!#REF!+(1/('DESIGN INPUTS AND CALCULATIONS'!#REF!*0.000000000001))*'DESIGN INPUTS AND CALCULATIONS'!#REF!*0.001/(2*'DESIGN INPUTS AND CALCULATIONS'!#REF!*1000) -> 
A260: LL/SS calculations | B260: LL/SS
A261: Vssinit_min | B261: =(26*B262/(19))*(1200+0.000776/('DESIGN INPUTS AND CALCULATIONS'!#REF!/1000000000)) -> 
A262: IBMT | B262: ='DESIGN INPUTS AND CALCULATIONS'!#REF!/(98000) -> 
A263: Vth | B263: =3.5/(1-((B262/'DESIGN INPUTS AND CALCULATIONS'!#REF!)*(1200+(0.000776)/('DESIGN INPUTS AND CALCULATIONS'!#REF!/1000000000)))) -> 
A264: Rth | B264: =(B263-3.5)/B262 -> 
A265: suggested upper resistance | B265: =B264*13/B263 -> 
A266: suggested lower resistance | B266: =B264*B265/(B265-B264) -> 
A267: user upper resistance | B267: ='DESIGN INPUTS AND CALCULATIONS'!#REF!*1000 -> 
A268: user lower resistance | B268: ='DESIGN INPUTS AND CALCULATIONS'!#REF!*1000 -> 
A269: Rth | B269: =B267*B268/(B267+B268) -> 
A270: Vth | B270: =13*B268/(B267+B268) -> 
A271: IBMT | B271: =(B270-3.5)/B269 -> 
A272: Tau | B272: =(-0.000776)/(B269*'DESIGN INPUTS AND CALCULATIONS'!#REF!/1000000000) -> 
A273: sscal | B273: =(1200*13/B267)+B270*(1-EXP(B272)) -> 
A274: llcal | B274: =B271*100000 -> 
A275: Vssfinal | B275: =B270+'DESIGN INPUTS AND CALCULATIONS'!#REF!*0.000001*'tables and calculations'!B269 -> 
A276: option select to show negative voltage | B276: 0
A278: ZCS Calculation for option 7
A279: Fsw_max | B279: ='DESIGN INPUTS AND CALCULATIONS'!#REF!*1000 -> 
A280: Iramp | B280: ='DESIGN INPUTS AND CALCULATIONS'!#REF!/1000 -> 
A281: Lower VCR cap | B281: ='DESIGN INPUTS AND CALCULATIONS'!#REF! -> 
A282: VCR peak to peak | B282: =B280/(2*B279*B281/(1000000000000)) -> 
A283: BMTH | B283: =B282/0.4 -> 
K285: Type II with inner loop
A286: small signal calcuations | D286: Fsw | E286: w | F286: s=jw | G286: G(jw) | H286: Gain | I286: Phase | K286: G(s) | L286: with opto-pole, bias resistors, CTR, etc | M286: Gain | N286: Phase | P286: Type II Closed Loop | Q286: Gain | R286: Phase
A287: fn | B287: =Compensation!C21 -> 0.8 | D287: 10 | E287: =2*PI()*D287 -> 62.83185307 | F287: =COMPLEX(0,E287) -> 62.8318530717959i | G287: =IMPRODUCT($B$295,IMDIV(IMSUM(1,IMPRODUCT($B$296,F287)),IMSUM(1,IMPRODUCT($B$297,F287)))) ->  | H287: =20*LOG10(IMABS(G287)) ->  | I287: =IMARGUMENT(G287)*180/PI() ->  | K287: =IMDIV(IMSUM(IMPRODUCT(F287,$A$330),1),IMSUM(IMPRODUCT(IMPOWER(F287,2),$A$332),IMPRODUCT(F287,$A$333))) -> 0.219224265254903-10.6669315003433i | L287: =IMPRODUCT(IMPRODUCT(IMSUM(K287,1),M326),$B$317) -> 2.84939248459156-25.8277454245403i | M287: =20*LOG10(IMABS(L287)) -> 28.29426948 | N287: =IMARGUMENT(L287)*180/PI()+180 -> 96.29557902 | P287: =IMPRODUCT(L287,G287) ->  | Q287: =20*LOG10(IMABS(P287)) ->  | R287: =IMARGUMENT(P287)*180/PI()+180 -> 
A288: Ln | B288: =Compensation!C13 -> 5.935483871 | D288: =D287+10 -> 20 | E288: =2*PI()*D288 -> 125.6637061 | F288: =COMPLEX(0,E288) -> 125.663706143592i | G288: =IMPRODUCT($B$295,IMDIV(IMSUM(1,IMPRODUCT($B$296,F288)),IMSUM(1,IMPRODUCT($B$297,F288)))) ->  | H288: =20*LOG10(IMABS(G288)) ->  | I288: =IMARGUMENT(G288)*180/PI() ->  | K288: =IMDIV(IMSUM(IMPRODUCT(F288,$A$330),1),IMSUM(IMPRODUCT(IMPOWER(F288,2),$A$332),IMPRODUCT(F288,$A$333))) -> 0.219224202752596-5.33356712330867i | L288: =IMPRODUCT(IMPRODUCT(IMSUM(K288,1),M327),$B$317) -> 2.84925859098481-12.9309013153801i | M288: =20*LOG10(IMABS(L288)) -> 22.43847522 | N288: =IMARGUMENT(L288)*180/PI()+180 -> 102.426268 | P288: =IMPRODUCT(L288,G288) ->  | Q288: =20*LOG10(IMABS(P288)) ->  | R288: =IMARGUMENT(P288)*180/PI()+180 -> 
A289: Qe | B289: =Compensation!C14 -> 0.3037024912 | D289: =D288+10 -> 30 | E289: 188.4955592 | F289: 188.495559215388i | K289: 0.219224098582163-3.55582405227236i | L289: 2.84903546250306-8.63951921027488i | M289: 19.17811536 | N289: 108.2508929
A290: A | B290: =B288*B287*B287 -> 3.798709677 | D290: 40 | E290: 251.3274123 | F290: 251.327412287183i | K290: 0.219223952743723-2.66698630763934i | L290: 2.84872314042739-6.49949997817158i | M290: 17.02074713 | N290: 113.6677822
A291: B | B291: =((B288+1)*B287^2-1)^2+((B287^2-1)*B287*B289*B288)^2 -> 12.09424607 | D291: 50 | E291: 314.1592654 | F291: 314.159265358979i | K291: 0.219223765237442-2.13371069345968i | L291: 2.84832168252446-5.22002295325671i | M291: 15.48531613 | N291: 118.6192265
A292: C | B292: =2*((B288+1)*B287^2-1)*(B288+1)+((B287^2-1)*B289*B288)^2+2*(B287*B289*B288)^2*(B287^2-1) -> 46.62201538 | D292: 60 | E292: 376.9911184 | F292: 376.991118430775i | K292: 0.219223536063534-1.77821614439113i | L292: 2.84783116301989-4.37081388172365i | M292: 14.34794875 | N292: 123.0865065
A293: Gvf | B293: =0.001*Compensation!C3/Compensation!C6*B287/Compensation!C15*(B288/SQRT(B291)-0.5*B290/(B291*SQRT(B291))*B292) -> -6.124323337e-05 | D293: 70 | E293: 439.8229715 | F293: 439.822971502571i | K293: 0.219223265222262-1.52431077526494i | L293: 2.84725167256408-3.76746891444346i | M293: 13.48317796 | N293: 127.0800394
A294: M | B294: =(1-Compensation!C4/(2*1000*Compensation!C22*B293)) -> 1.97970007 | D294: 80 | E294: 502.6548246 | F294: 502.654824574367i | K294: 0.219222952713933-1.3338986434775i | L294: 2.84658331819015-3.31778560537341i | M294: 12.81277457 | N294: 130.6288303
A295: K | B295: =Compensation!C12*0.000001*(Compensation!C17*0.000000000001+Compensation!C18*0.000000000001)*Compensation!C22*1000*Compensation!C9*Compensation!C3*Compensation!C7/(2*Compensation!C18*0.000000000001*Compensation!C4*B294) ->  | D295: 90 | E295: 565.4866776 | F295: 565.486677646163i | K295: 0.219222598538902-1.18581533645409i | L295: 2.84582622326473-2.97053991123944i | M295: 12.28473101 | N295: 133.7716603
A296: t1 | B296: =Compensation!C19*0.001*Compensation!C20*0.001 -> 0 | D296: 100 | E296: 628.3185307 | F296: 628.318530717959i | K296: 0.219222202697576-1.0673622066345i | L296: 2.84498052743112-2.69499699159954i | M296: 11.86304206 | N296: 136.550787
A297: t2 | B297: =Compensation!C19*0.001*(Compensation!C7/(2*B294)+Compensation!C20*0.001) -> 0.0002385815949 | D297: =D296+100 -> 200 | E297: 1256.637061 | F297: 1256.63706143592i | K297: 0.219215952760852-0.534694787000647i | L297: 2.83169272781126-1.51649142039382i | M297: 10.13605202 | N297: 151.8290642
D298: =D297+100 -> 300 | E298: 1884.955592 | F298: 1884.95559215388i | K298: 0.219205536991531-0.357589420912823i | L298: 2.8098159003716-1.19647658104894i | M298: 9.69724357 | N298: 156.9347117
A299: Type II No Inner Loop | D299: 400 | E299: 2513.274123 | F299: 2513.27412287183i | K299: 0.219190956577209-0.269374471902931i | L299: 2.77974152649593-1.08859219507271i | M299: 9.499749791 | N299: 158.6138774
A300: Type II with Inner Loop | D300: 500 | E300: 3141.592654 | F300: 3141.59265358979i | K300: 0.219172213180043-0.216715581889345i | L300: 2.74199321987132-1.06289326832187i | M300: 9.369291855 | N300: 158.8119125
A301: Type III with Inner Loop | D301: 600 | E301: 3769.911184 | F301: 3769.91118430775i | K301: 0.219149308936283-0.181834605880466i | L301: 2.69720466966642-1.0755976327651i | M301: 9.259214966 | N301: 158.2587587
D302: 700 | E302: 4398.229715 | F302: 4398.22971502571i | K302: 0.21912224645566-0.157112316938613i | L302: 2.64609436696012-1.10763301157003i | M302: 9.153294499 | N302: 157.2862214
A303: RFBB | B303: =Compensation!C27*1000 -> 16900 | D303: 800 | E303: 5026.548246 | F303: 5026.54824574367i | K303: 0.219091028820639-0.138739082426451i | L303: 2.58943888877042-1.14927837667587i | M303: 9.045010247 | N303: 156.0667732
A304: RFBT | B304: =Compensation!C26*1000 -> 147000 | D304: 900 | E304: 5654.866776 | F304: 5654.86677646163i | K304: 0.219055659585553-0.124598422760642i | L304: 2.52804643017069-1.19504369937244i | M304: 8.931594444 | N304: 154.6992289
A305: RCOMP | B305: =Compensation!C28*1000 -> 33200 | D305: 1000 | E305: 6283.185307 | F305: 6283.18530717959i | K305: 0.219016142775582-0.113420434917639i | L305: 2.46273203959018-1.24161751340808i | M305: 8.811941845 | N305: 153.2444648
A306: CCOMP | B306: =Compensation!C29*0.000000001 -> 1e-08 | D306: =D305+1000 -> 2000 | E306: 12566.37061 | F306: 12566.3706143592i | K306: 0.218394077568986-0.0667995572021568i | L306: 1.74526510622165-1.53239910460691i | M306: 7.319268279 | N306: 138.7158229
A307: CHF | B307: =Compensation!C30*0.000000000001 -> 1.5e-10 | D307: =D306+1000 -> 3000 | E307: 18849.55592 | F307: 18849.5559215388i | K307: 0.217365117821916-0.0556589076420397i | L307: 1.16738713776188-1.51000359825444i | M307: 5.614476785 | N307: 127.7076892
A308: RFF | B308: =Compensation!C31*1000 -> 1210 | D308: 4000 | E308: 25132.74123 | F308: 25132.7412287183i | K308: 0.21594075646524-0.0532951126052341i | L308: 0.790291754783991-1.37037445672277i | M308: 3.983718664 | N308: 119.9719486
A309: CFF | B309: =Compensation!C32*0.000000001 -> 4.7e-09 | D309: 5000 | E309: 31415.92654 | F309: 31415.9265358979i | K309: 0.21413663499512-0.0543405829619523i | L309: 0.552028282564975-1.21542236067912i | M309: 2.50904468 | N309: 114.4269019
... 92 more rows

Sheet OPN Images (hidden)
A1: UCC256610
A2: UCC256611
A3: UCC256612
A4: UCC256613
A5: UCC256614
A6: UCC256616
A7: UCC256612-Q1
A8: UCC256613-Q1
A9: UCC256614-Q1

Sheet Compensation (hidden)
A2: Power Stage
A3: Nominal Input Voltage | B3: VBLK | C3: ='DESIGN INPUTS AND CALCULATIONS'!C32 -> 380 | D3: V
A4: Output Voltage | B4: VOUT | C4: ='DESIGN INPUTS AND CALCULATIONS'!C25 -> 12 | D4: V
A5: Output Power | B5: POUT | C5: ='DESIGN INPUTS AND CALCULATIONS'!C26 -> 300 | D5: W
A6: Transformer Pri:Sec Turns Ratio | B6: NPS | C6: ='DESIGN INPUTS AND CALCULATIONS'!C40 -> 15.83
A7: Output Load Resistance (RL) | B7: RL | C7: =C4*C4/C5 -> 0.48 | D7: Ω
A8: Equivalent Load Resistance (Re) | B8: Re | C8: ='DESIGN INPUTS AND CALCULATIONS'!C44 -> 97.49746159 | D8: Ω
A9: Efficiency | B9: η | C9: ='DESIGN INPUTS AND CALCULATIONS'!C29 -> 0.94
A10: Magnetizing Inductance (Lm) | B10: LM | C10: ='DESIGN INPUTS AND CALCULATIONS'!C97 -> 223.7731168 | D10: uH
A11: Resonant Inductance (Lr) | B11: LR | C11: ='DESIGN INPUTS AND CALCULATIONS'!C95 -> 37.70090554 | D11: uH
A12: Resonant Capacitance (Cr) | B12: CR | C12: ='DESIGN INPUTS AND CALCULATIONS'!C93 -> 0.043 | D12: uF
A13: Resultant Inductance Ratio | B13: LN | C13: ='DESIGN INPUTS AND CALCULATIONS'!C100 -> 5.935483871
A14: Resultant Quality Factor at Full Load | B14: QE | C14: ='DESIGN INPUTS AND CALCULATIONS'!C101 -> 0.3037024912
A15: Resultant Series Resonant Frequency | B15: f0 | C15: ='DESIGN INPUTS AND CALCULATIONS'!C98 -> 125 | D15: kHz
A16: Power Stage Gain at Nominal Input Voltage | B16: MG(nom) | C16: =C6*(C4+0.5)/(C3/2) -> 1.041447368
A17: Actual Capacitor Divider Value - Lower Cap | B17: CVCRlower | C17: ='DESIGN INPUTS AND CALCULATIONS'!#REF! ->  | D17: pF
A18: Actual Capacitor Divider Value - Upper Cap | B18: CVCRupper | C18: ='DESIGN INPUTS AND CALCULATIONS'!#REF! ->  | D18: pF
A19: Output Capacitance | B19: COUT | C19: 1.968 | D19: mF | E19: Enter the total output capacitance
A20: Effective Output Capacitance ESR | B20: RESR | C20: 0 | D20: mΩ | E20: Enter the effective equivalent series resistance of theoutput capacitance
A21: fN at MG(nom) | B21: fN(Mg_nom) | C21: 0.8 | E21: Enter fN value at the second intersection of the MG(nom) line and LLC Gain Curve shown in figure to the right
A22: Nominal Switching Frequency | B22: fSW(nom) | C22: =$C$21*$C$15 -> 100 | D22: kHz
A24: Compensation
A25: Compensation Network Type | C25: Type II with Inner Loop
A26: Top Feedback Resistor | B26: RFBT | C26: 147 | D26: kΩ
A27: Bottom Feedback Resistor | B27: RFBB | C27: 16.9 | D27: kΩ
A28: Compensation Resistor | B28: RCOMP | C28: 33.2 | D28: kΩ
A29: Compensation Capacitor | B29: CCOMP | C29: 10 | D29: nF
A30: High Frequency Capacitor | B30: CHF | C30: 150 | D30: pF
A31: Feedforward Resistor | B31: RFF | C31: 1.21 | D31: kΩ
A32: Feedforward Capacitor | B32: CFF | C32: 4.7 | D32: nF
A33: Zener Voltage | B33: VZener | D33: V
A34: Opto-coupler Bias Resistor | B34: RBias | C34: 9.09 | D34: kΩ
A35: Opto-coupler Current Transfer Ratio | B35: CTR | C35: 0.22
A36: Opto-coupler Parasitic Pole | B36: OptoPole | C36: 16 | D36: kHz

Sheet Change Log (hidden)
A1: Rev 1.0 | B1: Modified for UCC25660
A3: Rev 2.0 | B3: Modified for UCC25661
A5: Rev 3.0 | B5: Added ability to hide irrelevant rows based on OPN chosen
B6: Added TSET gain simplification calculations
B7: automated most fields and added error traps
A8: Rev 3.1 | B8: Fixed scaling issue on gain plot where curve could be off of the chart
A9: Rev 3.11 | B9: Added 1% resistors below 10k, changed automatic rounding. To 2 decimal places
B10: Rounded load current to 4 decimal places for better accuracy
B11: Fixed misnaming of Mgmin/Mgmax calc (due to misnaming of variables)
B12: Unlocked blue cells that were accidently locked
A13: Rev 3.12 | B13: EGR not getting enabled with UCC256610 now fixed
A14: Rev 3.2 | B14: Made schematic page reflect Rext and highlighted schematic components in the table
B15: Added auto-update when BLK divider power consumption threshold was updated
A16: Rev 3.3 | B16: Added Ability to calculate opto and shunt regualtor resistors
B17: Fixed bug with scaling of resistor values for lower BLK input voltages
B18: Automated +/- 10% Min/Max BLK estimation whenever BLK is updated
B19: Prevented automatically updating ln and Qe with bad values (When customer starts entering in there own values beyond the recommended range)
B20: Added Input parameters, Cout recommendation, and turns ratios to Schematic page
B21: Removed error warning for NPB when UCC256613 device is selected and selected turns ratio is outside of recommended limits

Sheet Integrated Leakage (hidden)
F15: Recommended Llk | G15: =C19/(2*PI()*fllc*1000)*1000000 -> 37.70090554 | H15: uH
F16: Lp based on coupling coefficient | G16: =Lr/(1-(C17^2)) -> 198.4258186 | H16: uH
B17: k | C17: ='DESIGN INPUTS AND CALCULATIONS'!C91 -> 0.9 | F17: Lr1 of T model | G17: =G15*(1-C17)/(1-C17^2) -> 19.84258186 | H17: uH
B18: 1/k | C18: =1/C17 -> 1.111111111 | I18: Mg_max | J18: =Mg_max -> 1.249736842
B19: Zo | C19: =Qe_selected*Re_fl -> 29.61022197 | F19: Zo_calc | G19: =SQRT(Lr/Cr) -> 29.61022197 | I19: Mg_min | J19: =Mg_min -> 0.9467703349 | L19: ='DESIGN INPUTS AND CALCULATIONS'!C90 -> Discrete Inductor
F20: Q calc | G20: =G19/Re_fl -> 0.3037024912
B21: LLC Gain Curve Calacultions for plot:
B22: Note: Qe here is 1/Q in TDK paper
B23: Qe | C23: Ln | D23: FR | E23: FR^2 | H23: total denominator - full load | I23: M - full load | J23: total denominator - no load | K23: M - no load | L23: Full load Gain Curve | M23: No Load Gain Curve | N23: Mg_max row | O23: Mg_min row
B24: =Qe_selected -> 0.3037024912 | C24: =Ln_selected -> 5.935483871 | D24: 0 | E24: =D24^2 -> 0 | F24: =IFERROR(($C$18*(1-(1-($C$17^2))/(E24)))^2,0) -> 0 | G24: =IFERROR(((B24/$C$17)*(D24-(1/D24)))^2,0) -> 0 | H24: =SQRT(F24+G24) -> 0 | I24: =IFERROR(1/(H24),0) -> 0 | J24: =SQRT(F24) -> 0 | K24: =IFERROR(1/J24,0) -> 0 | L24: =IF('DESIGN INPUTS AND CALCULATIONS'!$C$90="Integrated Leakage",'Integrated Leakage'!I24,'tables and calculations'!$S66) -> 0 | M24: =IF('DESIGN INPUTS AND CALCULATIONS'!$C$90="Integrated Leakage",'Integrated Leakage'!K24,'tables and calculations'!$AP66) -> 0 | N24: =IF(AND(ISNUMBER($L23), ISNUMBER($L24)), IF(AND($L23 >Mg_max, $L24 < Mg_max), D24, ""), "") ->  | O24: =IF(AND(ISNUMBER($L23), ISNUMBER($L24)), IF(AND($L23 >Mg_min, $L24 < Mg_min), D24, ""), "") -> 
B25: 0.3037024912 | C25: 5.935483871 | D25: =D24+0.05 -> 0.05 | E25: =D25^2 -> 0.0025 | F25: =($C$18*(1-(1-($C$17^2))/(E25)))^2 -> 6944.444444 | G25: =((B25/$C$17)*(D25-(1/D25)))^2 -> 45.32079191 | H25: =SQRT(F25+G25) -> 83.60481587 | I25: =1/(H25) -> 0.01196103346 | J25: =SQRT(F25) -> 83.33333333 | K25: =1/J25 -> 0.012 | L25: =IF('DESIGN INPUTS AND CALCULATIONS'!$C$90="Integrated Leakage",'Integrated Leakage'!I25,'tables and calculations'!$S67) -> 0.01503772569 | M25: =IF('DESIGN INPUTS AND CALCULATIONS'!$C$90="Integrated Leakage",'Integrated Leakage'!K25,'tables and calculations'!$AP67) -> 0.01510053276
B26: 0.3037024912 | C26: 5.935483871 | D26: =D25+0.05 -> 0.1 | E26: 0.01 | F26: 400 | G26: 11.16045958 | H26: 20.27709199 | I26: 0.04931673637 | J26: 20 | K26: 0.05 | L26: =IF('DESIGN INPUTS AND CALCULATIONS'!$C$90="Integrated Leakage",'Integrated Leakage'!I26,'tables and calculations'!$S68) -> 0.06263693302 | M26: =IF('DESIGN INPUTS AND CALCULATIONS'!$C$90="Integrated Leakage",'Integrated Leakage'!K26,'tables and calculations'!$AP68) -> 0.0637781502
B27: 0.3037024912 | C27: 5.935483871 | D27: 0.15 | E27: 0.0225 | F27: 68.41944825 | G27: 4.835737344 | H27: 8.558924325 | I27: 0.116837112 | J27: 8.271604938 | K27: 0.1208955224 | L27: =IF('DESIGN INPUTS AND CALCULATIONS'!$C$90="Integrated Leakage",'Integrated Leakage'!I27,'tables and calculations'!$S69) -> 0.1510092972 | M27: =IF('DESIGN INPUTS AND CALCULATIONS'!$C$90="Integrated Leakage",'Integrated Leakage'!K27,'tables and calculations'!$AP69) -> 0.1582416741
B28: 0.3037024912 | C28: 5.935483871 | D28: 0.2 | E28: 0.04 | F28: 17.36111111 | G28: 2.623579112 | H28: 4.470423942 | I28: 0.2236924312 | J28: 4.166666667 | K28: 0.24 | L28: =IF('DESIGN INPUTS AND CALCULATIONS'!$C$90="Integrated Leakage",'Integrated Leakage'!I28,'tables and calculations'!$S70) -> 0.2963322778 | M28: =IF('DESIGN INPUTS AND CALCULATIONS'!$C$90="Integrated Leakage",'Integrated Leakage'!K28,'tables and calculations'!$AP70) -> 0.3285710199
B29: 0.3037024912 | C29: 5.935483871 | D29: 0.25 | E29: 0.0625 | F29: 5.137777778 | G29: 1.60130561 | H29: 2.595974458 | I29: 0.3852118024 | J29: 2.266666667 | K29: 0.4411764706 | L29: =IF('DESIGN INPUTS AND CALCULATIONS'!$C$90="Integrated Leakage",'Integrated Leakage'!I29,'tables and calculations'!$S71) -> 0.5249132147 | M29: =IF('DESIGN INPUTS AND CALCULATIONS'!$C$90="Integrated Leakage",'Integrated Leakage'!K29,'tables and calculations'!$AP71) -> 0.6548022964
B30: 0.3037024912 | C30: 5.935483871 | D30: 0.3 | E30: 0.09 | F30: 1.524157903 | G30: 1.047736238 | H30: 1.603712612 | I30: 0.6235531184 | J30: 1.234567901 | K30: 0.81 | L30: =IF('DESIGN INPUTS AND CALCULATIONS'!$C$90="Integrated Leakage",'Integrated Leakage'!I30,'tables and calculations'!$S72) -> 0.8627161167 | M30: =IF('DESIGN INPUTS AND CALCULATIONS'!$C$90="Integrated Leakage",'Integrated Leakage'!K30,'tables and calculations'!$AP72) -> 1.421446014
B31: 0.3037024912 | C31: 5.935483871 | D31: 0.35 | E31: 0.1225 | F31: 0.3748438151 | G31: 0.715764 | H31: 1.044321701 | I31: 0.9575593412 | J31: 0.612244898 | K31: 1.633333333 | L31: =IF('DESIGN INPUTS AND CALCULATIONS'!$C$90="Integrated Leakage",'Integrated Leakage'!I31,'tables and calculations'!$S73) -> 1.26738985 | M31: =IF('DESIGN INPUTS AND CALCULATIONS'!$C$90="Integrated Leakage",'Integrated Leakage'!K31,'tables and calculations'!$AP73) -> 4.833961307
B32: 0.3037024912 | C32: 5.935483871 | D32: 0.4 | E32: 0.16 | F32: 0.04340277778 | G32: 0.5021694394 | H32: 0.7386286057 | I32: 1.353860373 | J32: 0.2083333333 | K32: 4.8 | L32: =IF('DESIGN INPUTS AND CALCULATIONS'!$C$90="Integrated Leakage",'Integrated Leakage'!I32,'tables and calculations'!$S74) -> 1.542859047 | M32: =IF('DESIGN INPUTS AND CALCULATIONS'!$C$90="Integrated Leakage",'Integrated Leakage'!K32,'tables and calculations'!$AP74) -> 8.657392404
B33: 0.3037024912 | C33: 5.935483871 | D33: 0.45 | E33: 0.2025 | F33: 0.004704191058 | G33: 0.3576416137 | H33: 0.6019516631 | I33: 1.661262957 | J33: 0.06858710562 | K33: 14.58 | L33: =IF('DESIGN INPUTS AND CALCULATIONS'!$C$90="Integrated Leakage",'Integrated Leakage'!I33,'tables and calculations'!$S75) -> 1.575412556 | M33: =IF('DESIGN INPUTS AND CALCULATIONS'!$C$90="Integrated Leakage",'Integrated Leakage'!K33,'tables and calculations'!$AP75) -> 2.971843128
B34: 0.3037024912 | C34: 5.935483871 | D34: 0.5 | E34: 0.25 | F34: 0.07111111111 | G34: 0.2562088977 | H34: 0.5721188764 | I34: 1.747888492 | J34: 0.2666666667 | K34: 3.75 | L34: =IF('DESIGN INPUTS AND CALCULATIONS'!$C$90="Integrated Leakage",'Integrated Leakage'!I34,'tables and calculations'!$S76) -> 1.487206373 | M34: =IF('DESIGN INPUTS AND CALCULATIONS'!$C$90="Integrated Leakage",'Integrated Leakage'!K34,'tables and calculations'!$AP76) -> 2.021968722
B35: 0.3037024912 | C35: 5.935483871 | D35: 0.55 | E35: 0.3025 | F35: 0.1707533638 | G35: 0.1831364261 | H35: 0.5948863673 | I35: 1.680993304 | J35: 0.4132231405 | K35: 2.42 | L35: =IF('DESIGN INPUTS AND CALCULATIONS'!$C$90="Integrated Leakage",'Integrated Leakage'!I35,'tables and calculations'!$S77) -> 1.383688824 | M35: =IF('DESIGN INPUTS AND CALCULATIONS'!$C$90="Integrated Leakage",'Integrated Leakage'!K35,'tables and calculations'!$AP77) -> 1.635251717
B36: 0.3037024912 | C36: 5.935483871 | D36: 0.6 | E36: 0.36 | F36: 0.2753010212 | G36: 0.1295594623 | H36: 0.6362864791 | I36: 1.571619126 | J36: 0.524691358 | K36: 1.905882353 | L36: =IF('DESIGN INPUTS AND CALCULATIONS'!$C$90="Integrated Leakage",'Integrated Leakage'!I36,'tables and calculations'!$S78) -> 1.295732833 | M36: =IF('DESIGN INPUTS AND CALCULATIONS'!$C$90="Integrated Leakage",'Integrated Leakage'!K36,'tables and calculations'!$AP78) -> 1.427584552
B37: 0.3037024912 | C37: 5.935483871 | D37: 0.65 | E37: 0.4225 | F37: 0.3738586806 | G37: 0.08988535824 | H37: 0.6809875468 | I37: 1.468455634 | J37: 0.6114398422 | K37: 1.635483871 | L37: =IF('DESIGN INPUTS AND CALCULATIONS'!$C$90="Integrated Leakage",'Integrated Leakage'!I37,'tables and calculations'!$S79) -> 1.226033987 | M37: =IF('DESIGN INPUTS AND CALCULATIONS'!$C$90="Integrated Leakage",'Integrated Leakage'!K37,'tables and calculations'!$AP79) -> 1.299184428 | N37: 0.65
B38: 0.3037024912 | C38: 5.935483871 | D38: 0.7 | E38: 0.49 | F38: 0.4627701421 | G38: 0.06044438484 | H38: 0.7233356945 | I38: 1.382483966 | J38: 0.6802721088 | K38: 1.47 | L38: =IF('DESIGN INPUTS AND CALCULATIONS'!$C$90="Integrated Leakage",'Integrated Leakage'!I38,'tables and calculations'!$S80) -> 1.171214388 | M38: =IF('DESIGN INPUTS AND CALCULATIONS'!$C$90="Integrated Leakage",'Integrated Leakage'!K38,'tables and calculations'!$AP80) -> 1.212642432
B39: 0.3037024912 | C39: 5.935483871 | D39: 0.75 | E39: 0.5625 | F39: 0.5414052736 | G39: 0.03874764193 | H39: 0.7616776979 | I39: 1.31289127 | J39: 0.7358024691 | K39: 1.359060403 | L39: =IF('DESIGN INPUTS AND CALCULATIONS'!$C$90="Integrated Leakage",'Integrated Leakage'!I39,'tables and calculations'!$S81) -> 1.127603247 | M39: =IF('DESIGN INPUTS AND CALCULATIONS'!$C$90="Integrated Leakage",'Integrated Leakage'!K39,'tables and calculations'!$AP81) -> 1.150798907
B40: 0.3037024912 | C40: 5.935483871 | D40: 0.8 | E40: 0.64 | F40: 0.6103515625 | G40: 0.02305880079 | H40: 0.7958708207 | I40: 1.256485316 | J40: 0.78125 | K40: 1.28 | L40: =IF('DESIGN INPUTS AND CALCULATIONS'!$C$90="Integrated Leakage",'Integrated Leakage'!I40,'tables and calculations'!$S82) -> 1.092311995 | M40: =IF('DESIGN INPUTS AND CALCULATIONS'!$C$90="Integrated Leakage",'Integrated Leakage'!K40,'tables and calculations'!$AP82) -> 1.104690295
B41: 0.3037024912 | C41: 5.935483871 | D41: 0.85 | E41: 0.7225 | F41: 0.6706230901 | G41: 0.01213667754 | H41: 0.8262927857 | I41: 1.210224774 | J41: 0.8189158016 | K41: 1.221126761 | L41: =IF('DESIGN INPUTS AND CALCULATIONS'!$C$90="Integrated Leakage",'Integrated Leakage'!I41,'tables and calculations'!$S83) -> 1.063229057 | M41: =IF('DESIGN INPUTS AND CALCULATIONS'!$C$90="Integrated Leakage",'Integrated Leakage'!K41,'tables and calculations'!$AP83) -> 1.069186624
B42: 0.3037024912 | C42: 5.935483871 | D42: 0.9 | E42: 0.81 | F42: 0.7233164171 | G42: 0.005074974599 | H42: 0.8534584885 | I42: 1.171703151 | J42: 0.8504801097 | K42: 1.175806452 | L42: =IF('DESIGN INPUTS AND CALCULATIONS'!$C$90="Integrated Leakage",'Integrated Leakage'!I42,'tables and calculations'!$S84) -> 1.03883372 | M42: =IF('DESIGN INPUTS AND CALCULATIONS'!$C$90="Integrated Leakage",'Integrated Leakage'!K42,'tables and calculations'!$AP84) -> 1.041145626
B43: 0.3037024912 | C43: 5.935483871 | D43: 0.95 | E43: 0.9025 | F43: 0.7694675285 | G43: 0.001199426695 | H43: 0.8778763895 | I43: 1.139112536 | J43: 0.8771929825 | K43: 1.14 | L43: =IF('DESIGN INPUTS AND CALCULATIONS'!$C$90="Integrated Leakage",'Integrated Leakage'!I43,'tables and calculations'!$S85) -> 1.018025779 | M43: =IF('DESIGN INPUTS AND CALCULATIONS'!$C$90="Integrated Leakage",'Integrated Leakage'!K43,'tables and calculations'!$AP85) -> 1.018538674
B44: 0.3037024912 | C44: 5.935483871 | D44: 1 | E44: 1 | F44: 0.81 | G44: 2.245702033e-32 | H44: 0.9 | I44: 1.111111111 | J44: 0.9 | K44: 1.111111111 | L44: =IF('DESIGN INPUTS AND CALCULATIONS'!$C$90="Integrated Leakage",'Integrated Leakage'!I44,'tables and calculations'!$S86) -> 1 | M44: =IF('DESIGN INPUTS AND CALCULATIONS'!$C$90="Integrated Leakage",'Integrated Leakage'!K44,'tables and calculations'!$AP86) -> 1
B45: 0.3037024912 | C45: 5.935483871 | D45: 1.05 | E45: 1.1025 | F45: 0.8457140216 | G45: 0.001085127632 | H45: 0.9202169034 | I45: 1.086700316 | J45: 0.9196271101 | K45: 1.08739726 | L45: =IF('DESIGN INPUTS AND CALCULATIONS'!$C$90="Integrated Leakage",'Integrated Leakage'!I45,'tables and calculations'!$S87) -> 0.9841588621 | M45: =IF('DESIGN INPUTS AND CALCULATIONS'!$C$90="Integrated Leakage",'Integrated Leakage'!K45,'tables and calculations'!$AP87) -> 0.9845780456
B46: 0.3037024912 | C46: 5.935483871 | D46: 1.1 | E46: 1.21 | F46: 0.8772928382 | G46: 0.004150160657 | H46: 0.9388519579 | I46: 1.065130654 | J46: 0.9366391185 | K46: 1.067647059 | L46: =IF('DESIGN INPUTS AND CALCULATIONS'!$C$90="Integrated Leakage",'Integrated Leakage'!I46,'tables and calculations'!$S88) -> 0.9700527268 | M46: =IF('DESIGN INPUTS AND CALCULATIONS'!$C$90="Integrated Leakage",'Integrated Leakage'!K46,'tables and calculations'!$AP88) -> 0.9715906444
B47: 0.3037024912 | C47: 5.935483871 | D47: 1.15 | E47: 1.3225 | F47: 0.9053156773 | G47: 0.008955203248 | H47: 0.9561751307 | I47: 1.045833517 | J47: 0.9514807813 | K47: 1.050993377 | L47: =IF('DESIGN INPUTS AND CALCULATIONS'!$C$90="Integrated Leakage",'Integrated Leakage'!I47,'tables and calculations'!$S89) -> 0.9573386797 | M47: =IF('DESIGN INPUTS AND CALCULATIONS'!$C$90="Integrated Leakage",'Integrated Leakage'!K47,'tables and calculations'!$AP89) -> 0.9605367984
B48: 0.3037024912 | C48: 5.935483871 | D48: 1.2 | E48: 1.44 | F48: 0.9302721574 | G48: 0.0153092724 | H48: 0.972410114 | I48: 1.028372685 | J48: 0.9645061728 | K48: 1.0368 | L48: =IF('DESIGN INPUTS AND CALCULATIONS'!$C$90="Integrated Leakage",'Integrated Leakage'!I48,'tables and calculations'!$S90) -> 0.9457519313 | M48: =IF('DESIGN INPUTS AND CALCULATIONS'!$C$90="Integrated Leakage",'Integrated Leakage'!K48,'tables and calculations'!$AP90) -> 0.9510408611 | O48: 1.2
B49: 0.3037024912 | C49: 5.935483871 | D49: 1.25 | E49: 1.5625 | F49: 0.952576 | G49: 0.02305880079 | H49: 0.9877422745 | I49: 1.012409842 | J49: 0.976 | K49: 1.024590164 | L49: =IF('DESIGN INPUTS AND CALCULATIONS'!$C$90="Integrated Leakage",'Integrated Leakage'!I49,'tables and calculations'!$S91) -> 0.9350856845 | M49: =IF('DESIGN INPUTS AND CALCULATIONS'!$C$90="Integrated Leakage",'Integrated Leakage'!K49,'tables and calculations'!$AP91) -> 0.942816066
B50: 0.3037024912 | C50: 5.935483871 | D50: 1.3 | E50: 1.69 | F50: 0.9725772129 | G50: 0.03207917322 | H50: 1.002325489 | I50: 0.9976799062 | J50: 0.9861932939 | K50: 1.014 | L50: =IF('DESIGN INPUTS AND CALCULATIONS'!$C$90="Integrated Leakage",'Integrated Leakage'!I50,'tables and calculations'!$S92) -> 0.9251767664 | M50: =IF('DESIGN INPUTS AND CALCULATIONS'!$C$90="Integrated Leakage",'Integrated Leakage'!K50,'tables and calculations'!$AP92) -> 0.935640023
B51: 0.3037024912 | C51: 5.935483871 | D51: 1.35 | E51: 1.8225 | F51: 0.9905725456 | G51: 0.04226841532 | H51: 1.016287834 | I51: 0.983973208 | J51: 0.9952751105 | K51: 1.00474732 | L51: =IF('DESIGN INPUTS AND CALCULATIONS'!$C$90="Integrated Leakage",'Integrated Leakage'!I51,'tables and calculations'!$S93) -> 0.9158952304 | M51: =IF('DESIGN INPUTS AND CALCULATIONS'!$C$90="Integrated Leakage",'Integrated Leakage'!K51,'tables and calculations'!$AP93) -> 0.9293378494
B52: 0.3037024912 | C52: 5.935483871 | D52: 1.4 | E52: 1.96 | F52: 1.00681429 | G52: 0.05354243086 | H52: 1.029736239 | I52: 0.9711224705 | J52: 1.003401361 | K52: 0.9966101695 | L52: =IF('DESIGN INPUTS AND CALCULATIONS'!$C$90="Integrated Leakage",'Integrated Leakage'!I52,'tables and calculations'!$S94) -> 0.9071367314 | M52: =IF('DESIGN INPUTS AND CALCULATIONS'!$C$90="Integrated Leakage",'Integrated Leakage'!K52,'tables and calculations'!$AP94) -> 0.9237703065
B53: 0.3037024912 | C53: 5.935483871 | D53: 1.45 | E53: 2.1025 | F53: 1.021517615 | G53: 0.06583136825 | H53: 1.042760271 | I53: 0.9589931912 | J53: 1.010701546 | K53: 0.9894117647 | L53: =IF('DESIGN INPUTS AND CALCULATIONS'!$C$90="Integrated Leakage",'Integrated Leakage'!I53,'tables and calculations'!$S95) -> 0.8988168614 | M53: =IF('DESIGN INPUTS AND CALCULATIONS'!$C$90="Integrated Leakage",'Integrated Leakage'!K53,'tables and calculations'!$AP95) -> 0.9188252961
B54: 0.3037024912 | C54: 5.935483871 | D54: 1.5 | E54: 2.25 | F54: 1.034866636 | G54: 0.07907682027 | H54: 1.055435198 | I54: 0.9474764554 | J54: 1.017283951 | K54: 0.9830097087 | L54: =IF('DESIGN INPUTS AND CALCULATIONS'!$C$90="Integrated Leakage",'Integrated Leakage'!I54,'tables and calculations'!$S96) -> 0.8908668925 | M54: =IF('DESIGN INPUTS AND CALCULATIONS'!$C$90="Integrated Leakage",'Integrated Leakage'!K54,'tables and calculations'!$AP96) -> 0.9144116616
B55: 0.3037024912 | C55: 5.935483871 | D55: 1.55 | E55: 2.4025 | F55: 1.047019445 | G55: 0.09322964561 | H55: 1.067824466 | I55: 0.9364835063 | J55: 1.023239681 | K55: 0.9772881356 | L55: =IF('DESIGN INPUTS AND CALCULATIONS'!$C$90="Integrated Leakage",'Integrated Leakage'!I55,'tables and calculations'!$S97) -> 0.8832305403 | M55: =IF('DESIGN INPUTS AND CALCULATIONS'!$C$90="Integrated Leakage",'Integrated Leakage'!K55,'tables and calculations'!$AP97) -> 0.9104545993
B56: 0.3037024912 | C56: 5.935483871 | D56: 1.6 | E56: 2.56 | F56: 1.05811225 | G56: 0.1082482593 | H56: 1.079981717 | I56: 0.9259416007 | J56: 1.028645833 | K56: 0.9721518987 | L56: =IF('DESIGN INPUTS AND CALCULATIONS'!$C$90="Integrated Leakage",'Integrated Leakage'!I56,'tables and calculations'!$S98) -> 0.8758614773 | M56: =IF('DESIGN INPUTS AND CALCULATIONS'!$C$90="Integrated Leakage",'Integrated Leakage'!K56,'tables and calculations'!$AP98) -> 0.9068922138 | N56: =IF(AND(ISNUMBER($L55), ISNUMBER($L56)), IF(AND($L55 >Mg_max, $L56 < Mg_max), D56, ""), "") ->  | O56: =IF(AND(ISNUMBER($L55), ISNUMBER($L56)), IF(AND($L55 >Mg_min, $L56 < Mg_min), D56, ""), "") -> 
B57: 0.3037024912 | C57: 5.935483871 | D57: 1.65 | E57: 2.7225 | F57: 1.068262817 | G57: 0.12409728 | H57: 1.091952424 | I57: 0.9157908143 | J57: 1.033568003 | K57: 0.9675222113 | L57: =IF('DESIGN INPUTS AND CALCULATIONS'!$C$90="Integrated Leakage",'Integrated Leakage'!I57,'tables and calculations'!$S99) -> 0.868721404 | M57: =IF('DESIGN INPUTS AND CALCULATIONS'!$C$90="Integrated Leakage",'Integrated Leakage'!K57,'tables and calculations'!$AP99) -> 0.9036729016
B58: 0.3037024912 | C58: 5.935483871 | D58: 1.7 | E58: 2.89 | F58: 1.077573305 | G58: 0.1407464519 | H58: 1.103775229 | I58: 0.9059815563 | J58: 1.038062284 | K58: 0.9633333333 | L58: =IF('DESIGN INPUTS AND CALCULATIONS'!$C$90="Integrated Leakage",'Integrated Leakage'!I58,'tables and calculations'!$S100) -> 0.8617785385 | M58: =IF('DESIGN INPUTS AND CALCULATIONS'!$C$90="Integrated Leakage",'Integrated Leakage'!K58,'tables and calculations'!$AP100) -> 0.9007533385
B59: 0.3037024912 | C59: 5.935483871 | D59: 1.75 | E59: 3.0625 | F59: 1.08613263 | G59: 0.1581697787 | H59: 1.115483038 | I59: 0.8964726183 | J59: 1.042176871 | K59: 0.9595300261 | L59: =IF('DESIGN INPUTS AND CALCULATIONS'!$C$90="Integrated Leakage",'Integrated Leakage'!I59,'tables and calculations'!$S101) -> 0.8550064236 | M59: =IF('DESIGN INPUTS AND CALCULATIONS'!$C$90="Integrated Leakage",'Integrated Leakage'!K59,'tables and calculations'!$AP101) -> 0.898096917
B60: 0.3037024912 | C60: 5.935483871 | D60: 1.8 | E60: 3.24 | F60: 1.094018433 | G60: 0.1763448237 | H60: 1.127103925 | I60: 0.8872296319 | J60: 1.045953361 | K60: 0.9560655738 | L60: =IF('DESIGN INPUTS AND CALCULATIONS'!$C$90="Integrated Leakage",'Integrated Leakage'!I60,'tables and calculations'!$S102) -> 0.8483829774 | M60: =IF('DESIGN INPUTS AND CALCULATIONS'!$C$90="Integrated Leakage",'Integrated Leakage'!K60,'tables and calculations'!$AP102) -> 0.8956725205
B61: 0.3037024912 | C61: 5.935483871 | D61: 1.85 | E61: 3.4225 | F61: 1.10129872 | G61: 0.1952521409 | H61: 1.138661873 | I61: 0.8782238377 | J61: 1.049427806 | K61: 0.952900232 | L61: =IF('DESIGN INPUTS AND CALCULATIONS'!$C$90="Integrated Leakage",'Integrated Leakage'!I61,'tables and calculations'!$S103) -> 0.8418897314 | M61: =IF('DESIGN INPUTS AND CALCULATIONS'!$C$90="Integrated Leakage",'Integrated Leakage'!K61,'tables and calculations'!$AP103) -> 0.8934535535
B62: 0.3037024912 | C62: 5.935483871 | D62: 1.9 | E62: 3.61 | F62: 1.108033241 | G62: 0.2148748085 | H62: 1.150177399 | I62: 0.8694310989 | J62: 1.052631579 | K62: 0.95 | L62: =IF('DESIGN INPUTS AND CALCULATIONS'!$C$90="Integrated Leakage",'Integrated Leakage'!I62,'tables and calculations'!$S104) -> 0.8355112158 | M62: =IF('DESIGN INPUTS AND CALCULATIONS'!$C$90="Integrated Leakage",'Integrated Leakage'!K62,'tables and calculations'!$AP104) -> 0.891417167
B63: 0.3037024912 | C63: 5.935483871 | D63: 1.95 | E63: 3.8025 | F63: 1.114274642 | G63: 0.2351980462 | H63: 1.161668063 | I63: 0.8608311032 | J63: 1.055592081 | K63: 0.9473356401 | L63: =IF('DESIGN INPUTS AND CALCULATIONS'!$C$90="Integrated Leakage",'Integrated Leakage'!I63,'tables and calculations'!$S105) -> 0.8292344592 | M63: =IF('DESIGN INPUTS AND CALCULATIONS'!$C$90="Integrated Leakage",'Integrated Leakage'!K63,'tables and calculations'!$AP105) -> 0.8895436368
B64: 0.3037024912 | C64: 5.935483871 | D64: 2 | E64: 4 | F64: 1.120069444 | G64: 0.2562088977 | H64: 1.1731489 | I64: 0.8524067148 | J64: 1.058333333 | K64: 0.9448818898 | L64: =IF('DESIGN INPUTS AND CALCULATIONS'!$C$90="Integrated Leakage",'Integrated Leakage'!I64,'tables and calculations'!$S106) -> 0.8230485797 | M64: =IF('DESIGN INPUTS AND CALCULATIONS'!$C$90="Integrated Leakage",'Integrated Leakage'!K64,'tables and calculations'!$AP106) -> 0.8878158593
B65: 0.3037024912 | C65: 5.935483871 | D65: 2.05 | E65: 4.2025 | F65: 1.125458869 | G65: 0.2778959673 | H65: 1.184632785 | I65: 0.8441434447 | J65: 1.060876462 | K65: 0.9426168224 | L65: =IF('DESIGN INPUTS AND CALCULATIONS'!$C$90="Integrated Leakage",'Integrated Leakage'!I65,'tables and calculations'!$S107) -> 0.8169444487 | M65: =IF('DESIGN INPUTS AND CALCULATIONS'!$C$90="Integrated Leakage",'Integrated Leakage'!K65,'tables and calculations'!$AP107) -> 0.8862189407
B66: 0.3037024912 | C66: 5.935483871 | D66: 2.1 | E66: 4.41 | F66: 1.130479533 | G66: 0.3002491996 | H66: 1.196130734 | I66: 0.8360290155 | J66: 1.063240111 | K66: 0.940521327 | L66: =IF('DESIGN INPUTS AND CALCULATIONS'!$C$90="Integrated Leakage",'Integrated Leakage'!I66,'tables and calculations'!$S108) -> 0.8109144128 | M66: =IF('DESIGN INPUTS AND CALCULATIONS'!$C$90="Integrated Leakage",'Integrated Leakage'!K66,'tables and calculations'!$AP108) -> 0.88473986
B67: 0.3037024912 | C67: 5.935483871 | D67: 2.15 | E67: 4.6225 | F67: 1.135164053 | G67: 0.3232596946 | H67: 1.207652163 | I67: 0.8280530026 | J67: 1.065440779 | K67: 0.9385786802 | L67: =IF('DESIGN INPUTS AND CALCULATIONS'!$C$90="Integrated Leakage",'Integrated Leakage'!I67,'tables and calculations'!$S109) -> 0.8049520623 | M67: =IF('DESIGN INPUTS AND CALCULATIONS'!$C$90="Integrated Leakage",'Integrated Leakage'!K67,'tables and calculations'!$AP109) -> 0.8833671912
B68: 0.3037024912 | C68: 5.935483871 | D68: 2.2 | E68: 4.84 | F68: 1.139541546 | G68: 0.346919552 | H68: 1.219205109 | I68: 0.8202065366 | J68: 1.067493113 | K68: 0.9367741935 | L68: =IF('DESIGN INPUTS AND CALCULATIONS'!$C$90="Integrated Leakage",'Integrated Leakage'!I68,'tables and calculations'!$S110) -> 0.799052039 | M68: =IF('DESIGN INPUTS AND CALCULATIONS'!$C$90="Integrated Leakage",'Integrated Leakage'!K68,'tables and calculations'!$AP110) -> 0.8820908721
B69: 0.3037024912 | C69: 5.935483871 | D69: 2.25 | E69: 5.0625 | F69: 1.143638071 | G69: 0.3712217396 | H69: 1.230796413 | I69: 0.8124820558 | J69: 1.069410151 | K69: 0.9350949205 | L69: =IF('DESIGN INPUTS AND CALCULATIONS'!$C$90="Integrated Leakage",'Integrated Leakage'!I69,'tables and calculations'!$S111) -> 0.7932098742 | M69: =IF('DESIGN INPUTS AND CALCULATIONS'!$C$90="Integrated Leakage",'Integrated Leakage'!K69,'tables and calculations'!$AP111) -> 0.8809020124
B70: 0.3037024912 | C70: 5.935483871 | D70: 2.3 | E70: 5.29 | F70: 1.147477 | G70: 0.396159981 | H70: 1.242431882 | I70: 0.8048730998 | J70: 1.071203529 | K70: 0.9335294118 | L70: =IF('DESIGN INPUTS AND CALCULATIONS'!$C$90="Integrated Leakage",'Integrated Leakage'!I70,'tables and calculations'!$S112) -> 0.7874218529 | M70: =IF('DESIGN INPUTS AND CALCULATIONS'!$C$90="Integrated Leakage",'Integrated Leakage'!K70,'tables and calculations'!$AP112) -> 0.8797927323
B71: 0.3037024912 | C71: 5.935483871 | D71: 2.35 | E71: 5.5225 | F71: 1.151079343 | G71: 0.4217286604 | H71: 1.254116423 | I71: 0.7973741364 | J71: 1.072883658 | K71: 0.9320675105 | L71: =IF('DESIGN INPUTS AND CALCULATIONS'!$C$90="Integrated Leakage",'Integrated Leakage'!I71,'tables and calculations'!$S113) -> 0.781684899 | M71: =IF('DESIGN INPUTS AND CALCULATIONS'!$C$90="Integrated Leakage",'Integrated Leakage'!K71,'tables and calculations'!$AP113) -> 0.8787560266
B72: 0.3037024912 | C72: 5.935483871 | D72: 2.4 | E72: 5.76 | F72: 1.154464026 | G72: 0.4479227407 | H72: 1.265854165 | I72: 0.7899804161 | J72: 1.074459877 | K72: 0.9307001795 | L72: =IF('DESIGN INPUTS AND CALCULATIONS'!$C$90="Integrated Leakage",'Integrated Leakage'!I72,'tables and calculations'!$S114) -> 0.775996478 | M72: =IF('DESIGN INPUTS AND CALCULATIONS'!$C$90="Integrated Leakage",'Integrated Leakage'!K72,'tables and calculations'!$AP114) -> 0.8777856501
B73: 0.3037024912 | C73: 5.935483871 | D73: 2.45 | E73: 6.0025 | F73: 1.157648132 | G73: 0.4747376938 | H73: 1.277648553 | I73: 0.7826878505 | J73: 1.07594058 | K73: 0.9294193548 | L73: =IF('DESIGN INPUTS AND CALCULATIONS'!$C$90="Integrated Leakage",'Integrated Leakage'!I73,'tables and calculations'!$S115) -> 0.7703545149 | M73: =IF('DESIGN INPUTS AND CALCULATIONS'!$C$90="Integrated Leakage",'Integrated Leakage'!K73,'tables and calculations'!$AP115) -> 0.8768760198
B74: 0.3037024912 | C74: 5.935483871 | D74: 2.5 | E74: 6.25 | F74: 1.160647111 | G74: 0.5021694394 | H74: 1.289502443 | I74: 0.7754929085 | J74: 1.077333333 | K74: 0.9282178218 | L74: =IF('DESIGN INPUTS AND CALCULATIONS'!$C$90="Integrated Leakage",'Integrated Leakage'!I74,'tables and calculations'!$S116) -> 0.7647573234 | M74: =IF('DESIGN INPUTS AND CALCULATIONS'!$C$90="Integrated Leakage",'Integrated Leakage'!K74,'tables and calculations'!$AP116) -> 0.8760221322
B75: 0.3037024912 | C75: 5.935483871 | D75: 2.55 | E75: 6.5025 | F75: 1.163474962 | G75: 0.5302142937 | H75: 1.301418171 | I75: 0.7683925293 | J75: 1.078644966 | K75: 0.9270891089 | L75: =IF('DESIGN INPUTS AND CALCULATIONS'!$C$90="Integrated Leakage",'Integrated Leakage'!I75,'tables and calculations'!$S117) -> 0.7592035462 | M75: =IF('DESIGN INPUTS AND CALCULATIONS'!$C$90="Integrated Leakage",'Integrated Leakage'!K75,'tables and calculations'!$AP117) -> 0.875219492
B76: 0.3037024912 | C76: 5.935483871 | D76: 2.6 | E76: 6.76 | F76: 1.166144393 | G76: 0.5588689233 | H76: 1.313397623 | I76: 0.7613840489 | J76: 1.079881657 | K76: 0.9260273973 | L76: =IF('DESIGN INPUTS AND CALCULATIONS'!$C$90="Integrated Leakage",'Integrated Leakage'!I76,'tables and calculations'!$S118) -> 0.753692104 | M76: =IF('DESIGN INPUTS AND CALCULATIONS'!$C$90="Integrated Leakage",'Integrated Leakage'!K76,'tables and calculations'!$AP118) -> 0.8744640508
B77: 0.3037024912 | C77: 5.935483871 | D77: 2.65 | E77: 7.0225 | F77: 1.16866696 | G77: 0.5881303065 | H77: 1.325442291 | I77: 0.7544651373 | J77: 1.081049009 | K77: 0.9250274424 | L77: =IF('DESIGN INPUTS AND CALCULATIONS'!$C$90="Integrated Leakage",'Integrated Leakage'!I77,'tables and calculations'!$S119) -> 0.7482221512 | M77: =IF('DESIGN INPUTS AND CALCULATIONS'!$C$90="Integrated Leakage",'Integrated Leakage'!K77,'tables and calculations'!$AP119) -> 0.873752155
B78: 0.3037024912 | C78: 5.935483871 | D78: 2.7 | E78: 7.29 | F78: 1.171053191 | G78: 0.6179956987 | H78: 1.337553322 | I78: 0.7476337454 | J78: 1.082152111 | K78: 0.924084507 | L78: =IF('DESIGN INPUTS AND CALCULATIONS'!$C$90="Integrated Leakage",'Integrated Leakage'!I78,'tables and calculations'!$S120) -> 0.7427930387 | M78: =IF('DESIGN INPUTS AND CALCULATIONS'!$C$90="Integrated Leakage",'Integrated Leakage'!K78,'tables and calculations'!$AP120) -> 0.8730804995
B79: 0.3037024912 | C79: 5.935483871 | D79: 2.75 | E79: 7.5625 | F79: 1.173312691 | G79: 0.6484626026 | H79: 1.349731564 | I79: 0.7408880602 | J79: 1.083195592 | K79: 0.9231943032 | L79: =IF('DESIGN INPUTS AND CALCULATIONS'!$C$90="Integrated Leakage",'Integrated Leakage'!I79,'tables and calculations'!$S121) -> 0.7374042813 | M79: =IF('DESIGN INPUTS AND CALCULATIONS'!$C$90="Integrated Leakage",'Integrated Leakage'!K79,'tables and calculations'!$AP121) -> 0.8724460891
B80: 0.3037024912 | C80: 5.935483871 | D80: 2.8 | E80: 7.84 | F80: 1.175454238 | G80: 0.6795287417 | H80: 1.361977599 | I80: 0.7342264667 | J80: 1.084183673 | K80: 0.9223529412 | L80: =IF('DESIGN INPUTS AND CALCULATIONS'!$C$90="Integrated Leakage",'Integrated Leakage'!I80,'tables and calculations'!$S122) -> 0.7320555301 | M80: =IF('DESIGN INPUTS AND CALCULATIONS'!$C$90="Integrated Leakage",'Integrated Leakage'!K80,'tables and calculations'!$AP122) -> 0.8718462035
B81: 0.3037024912 | C81: 5.935483871 | D81: 2.85 | E81: 8.1225 | F81: 1.177485866 | G81: 0.7111920375 | H81: 1.374291782 | I81: 0.7276475148 | J81: 1.085120208 | K81: 0.9215568862 | L81: =IF('DESIGN INPUTS AND CALCULATIONS'!$C$90="Integrated Leakage",'Integrated Leakage'!I81,'tables and calculations'!$S123) -> 0.7267465488 | M81: =IF('DESIGN INPUTS AND CALCULATIONS'!$C$90="Integrated Leakage",'Integrated Leakage'!K81,'tables and calculations'!$AP123) -> 0.8712783677
B82: 0.3037024912 | C82: 5.935483871 | D82: 2.9 | E82: 8.41 | F82: 1.179414939 | G82: 0.7434505892 | H82: 1.386674269 | I82: 0.7211498924 | J82: 1.08600872 | K82: 0.9208029197 | L82: =IF('DESIGN INPUTS AND CALCULATIONS'!$C$90="Integrated Leakage",'Integrated Leakage'!I82,'tables and calculations'!$S124) -> 0.7214771931 | M82: =IF('DESIGN INPUTS AND CALCULATIONS'!$C$90="Integrated Leakage",'Integrated Leakage'!K82,'tables and calculations'!$AP124) -> 0.8707403258
B83: 0.3037024912 | C83: 5.935483871 | D83: 2.95 | E83: 8.7025 | F83: 1.18124822 | G83: 0.7763026557 | H83: 1.399125039 | I83: 0.714732402 | J83: 1.086852437 | K83: 0.9200881057 | L83: =IF('DESIGN INPUTS AND CALCULATIONS'!$C$90="Integrated Leakage",'Integrated Leakage'!I83,'tables and calculations'!$S125) -> 0.7162473933 | M83: =IF('DESIGN INPUTS AND CALCULATIONS'!$C$90="Integrated Leakage",'Integrated Leakage'!K83,'tables and calculations'!$AP125) -> 0.8702300179
B84: 0.3037024912 | C84: 5.935483871 | D84: 3 | E84: 9 | F84: 1.182991922 | G84: 0.8097466396 | H84: 1.411643922 | I84: 0.7083939403 | J84: 1.087654321 | K84: 0.9194097616 | L84: =IF('DESIGN INPUTS AND CALCULATIONS'!$C$90="Integrated Leakage",'Integrated Leakage'!I84,'tables and calculations'!$S126) -> 0.7110571389 | M84: =IF('DESIGN INPUTS AND CALCULATIONS'!$C$90="Integrated Leakage",'Integrated Leakage'!K84,'tables and calculations'!$AP126) -> 0.8697455599
B85: 0.3037024912 | C85: 5.935483871 | D85: 3.05 | E85: 9.3025 | F85: 1.184651767 | G85: 0.8437810735 | H85: 1.424230613 | I85: 0.7021334822 | J85: 1.088417092 | K85: 0.9187654321 | L85: =IF('DESIGN INPUTS AND CALCULATIONS'!$C$90="Integrated Leakage",'Integrated Leakage'!I85,'tables and calculations'!$S127) -> 0.7059064662 | M85: =IF('DESIGN INPUTS AND CALCULATIONS'!$C$90="Integrated Leakage",'Integrated Leakage'!K85,'tables and calculations'!$AP127) -> 0.8692852258
B86: 0.3037024912 | C86: 5.935483871 | D86: 3.1 | E86: 9.61 | F86: 1.186233027 | G86: 0.8784046074 | H86: 1.436884698 | I86: 0.6959500659 | J86: 1.089143254 | K86: 0.9181528662 | L86: =IF('DESIGN INPUTS AND CALCULATIONS'!$C$90="Integrated Leakage",'Integrated Leakage'!I86,'tables and calculations'!$S128) -> 0.7007954466 | M86: =IF('DESIGN INPUTS AND CALCULATIONS'!$C$90="Integrated Leakage",'Integrated Leakage'!K86,'tables and calculations'!$AP128) -> 0.8688474321
B87: 0.3037024912 | C87: 5.935483871 | D87: 3.15 | E87: 9.9225 | F87: 1.187740569 | G87: 0.9136159975 | H87: 1.449605659 | I87: 0.6898427816 | J87: 1.089835111 | K87: 0.9175699974 | L87: =IF('DESIGN INPUTS AND CALCULATIONS'!$C$90="Integrated Leakage",'Integrated Leakage'!I87,'tables and calculations'!$S129) -> 0.6957241779 | M87: =IF('DESIGN INPUTS AND CALCULATIONS'!$C$90="Integrated Leakage",'Integrated Leakage'!K87,'tables and calculations'!$AP129) -> 0.8684307236
B88: 0.3037024912 | C88: 5.935483871 | D88: 3.2 | E88: 10.24 | F88: 1.189178891 | G88: 0.9494140964 | H88: 1.462392898 | I88: 0.6838107608 | J88: 1.090494792 | K88: 0.9170149254 | L88: =IF('DESIGN INPUTS AND CALCULATIONS'!$C$90="Integrated Leakage",'Integrated Leakage'!I88,'tables and calculations'!$S130) -> 0.6906927756 | M88: =IF('DESIGN INPUTS AND CALCULATIONS'!$C$90="Integrated Leakage",'Integrated Leakage'!K88,'tables and calculations'!$AP130) -> 0.868033761 | N88: =IF(AND(ISNUMBER($L87), ISNUMBER($L88)), IF(AND($L87 >Mg_max, $L88 < Mg_max), D88, ""), "") ->  | O88: =IF(AND(ISNUMBER($L87), ISNUMBER($L88)), IF(AND($L87 >Mg_min, $L88 < Mg_min), D88, ""), "") -> 
B89: 0.3037024912 | C89: 5.935483871 | D89: 3.25 | E89: =D89^2 -> 10.5625 | F89: =($C$18*(1-(1-($C$17^2))/(E89)))^2 -> 1.190552152 | G89: =((B89/$C$17)*(D89-(1/D89)))^2 -> 0.9857978444 | H89: =SQRT(F89+G89) -> 1.475245741 | I89: =1/(H89) -> 0.6778531687 | J89: =SQRT(F89) -> 1.09112426 | K89: =1/J89 -> 0.9164859002 | L89: =IF('DESIGN INPUTS AND CALCULATIONS'!$C$90="Integrated Leakage",'Integrated Leakage'!I89,'tables and calculations'!$S131) -> 0.6857013663 | M89: =IF('DESIGN INPUTS AND CALCULATIONS'!$C$90="Integrated Leakage",'Integrated Leakage'!K89,'tables and calculations'!$AP131) -> 0.8676553104
B90: 0.3037024912 | C90: 5.935483871 | D90: =D89+0.05 -> 3.3 | E90: 10.89 | F90: 1.191864205 | G90: 1.022766261 | H90: 1.488163454 | I90: 0.6719691961 | J90: 1.091725334 | K90: 0.9159813084 | L90: =IF('DESIGN INPUTS AND CALCULATIONS'!$C$90="Integrated Leakage",'Integrated Leakage'!I90,'tables and calculations'!$S132) -> 0.680750082 | M90: =IF('DESIGN INPUTS AND CALCULATIONS'!$C$90="Integrated Leakage",'Integrated Leakage'!K90,'tables and calculations'!$AP132) -> 0.867294233
B91: 0.3037024912 | C91: 5.935483871 | D91: 3.35 | E91: 11.2225 | F91: 1.193118625 | G91: 1.06031844 | H91: 1.501145251 | I91: 0.6661580545 | J91: 1.092299696 | K91: 0.9154996601 | L91: =IF('DESIGN INPUTS AND CALCULATIONS'!$C$90="Integrated Leakage",'Integrated Leakage'!I91,'tables and calculations'!$S133) -> 0.6758390552 | M91: =IF('DESIGN INPUTS AND CALCULATIONS'!$C$90="Integrated Leakage",'Integrated Leakage'!K91,'tables and calculations'!$AP133) -> 0.8669494767
B92: 0.3037024912 | C92: 5.935483871 | D92: 3.4 | E92: 11.56 | F92: 1.194318728 | G92: 1.098453538 | H92: 1.5141903 | I92: 0.6604189709 | J92: 1.092848904 | K92: 0.9150395778 | L92: =IF('DESIGN INPUTS AND CALCULATIONS'!$C$90="Integrated Leakage",'Integrated Leakage'!I92,'tables and calculations'!$S134) -> 0.6709684149 | M92: =IF('DESIGN INPUTS AND CALCULATIONS'!$C$90="Integrated Leakage",'Integrated Leakage'!K92,'tables and calculations'!$AP134) -> 0.866620068
B93: 0.3037024912 | C93: 5.935483871 | D93: 3.45 | E93: 11.9025 | F93: 1.195467596 | G93: 1.137170776 | H93: 1.527297735 | I93: 0.6547511837 | J93: 1.093374408 | K93: 0.9145997866 | L93: =IF('DESIGN INPUTS AND CALCULATIONS'!$C$90="Integrated Leakage",'Integrated Leakage'!I93,'tables and calculations'!$S135) -> 0.6661382829 | M93: =IF('DESIGN INPUTS AND CALCULATIONS'!$C$90="Integrated Leakage",'Integrated Leakage'!K93,'tables and calculations'!$AP135) -> 0.8663051055
B94: 0.3037024912 | C94: 5.935483871 | D94: 3.5 | E94: 12.25 | F94: 1.196568097 | G94: 1.176469428 | H94: 1.540466658 | I94: 0.6491539396 | J94: 1.093877551 | K94: 0.9141791045 | L94: =IF('DESIGN INPUTS AND CALCULATIONS'!$C$90="Integrated Leakage",'Integrated Leakage'!I94,'tables and calculations'!$S136) -> 0.6613487716 | M94: =IF('DESIGN INPUTS AND CALCULATIONS'!$C$90="Integrated Leakage",'Integrated Leakage'!K94,'tables and calculations'!$AP136) -> 0.8660037528
B95: 0.3037024912 | C95: 5.935483871 | D95: 3.55 | E95: 12.6025 | F95: 1.197622901 | G95: 1.216348819 | H95: 1.553696148 | I95: 0.6436264912 | J95: 1.094359585 | K95: 0.913776435 | L95: =IF('DESIGN INPUTS AND CALCULATIONS'!$C$90="Integrated Leakage",'Integrated Leakage'!I95,'tables and calculations'!$S137) -> 0.6565999809 | M95: =IF('DESIGN INPUTS AND CALCULATIONS'!$C$90="Integrated Leakage",'Integrated Leakage'!K95,'tables and calculations'!$AP137) -> 0.8657152338

Sheet LLold (hidden)
A2: Formulas refers to the exact cell address, DO NOT CHANGE Columns. If mandatory, correct all formulas to match new columns
A3: BMTL/BMTH ratio | B3: BMTL/BMTH | C3: Rth | E3: VLLA-VLLB | I3: Comment
C4: (kOhm) | D4: added for ease of implementing formulas | E4: 8’dX | J4: added for ease of implementing formulas
A5: 1 | B5: K8 | C5: 108.5 | E5: ≥ | F5: 100 | G5: ≤ | H5: 123 | I5: HF Burst disable
A6: 0.45 | B6: K7 | C6: 87 | D6: 108.5 | E6: ≥ | F6: 80 | G6: ≤ | H6: 99 | I6: LF Freq range 200Hz to 400Hz | J6: =AVERAGE(C6:D6) -> 97.75
A7: 0.5 | B7: K6 | C7: 69 | D7: 87 | E7: ≥ | F7: 63 | G7: ≤ | H7: 79 | I7: LF Freq range 200Hz to 400Hz | J7: =AVERAGE(C7:D7) -> 78
A8: 0.55 | B8: K5 | C8: 54 | D8: 69 | E8: ≥ | F8: 49 | G8: ≤ | H8: 62 | I8: LF Freq range 200Hz to 400Hz | J8: 61.5
A9: 0.6 | B9: K4 | C9: 41.45 | D9: 54 | E9: ≥ | F9: 37 | G9: ≤ | H9: 48 | I9: LF Freq range 200Hz to 400Hz | J9: 47.725
A10: 0.5 | B10: K3 | C10: 31 | D10: 41.45 | E10: ≥ | F10: 27 | G10: ≤ | H10: 36 | I10: LF Freq range 200Hz to 400Hz | J10: 36.225
A11: 0.55 | B11: K2 | C11: 22.3 | D11: 31 | E11: ≥ | F11: 19 | G11: ≤ | H11: 26 | I11: LF Freq range 400Hz to 800Hz | J11: 26.65
A12: 0.6 | B12: K1 | C12: 15 | D12: 22.3 | E12: ≥ | F12: 0 | G12: ≤ | H12: 18 | I12: LF Freq range 400Hz to 800Hz | J12: 18.65
D13: 15

Sheet LL (hidden)
A1: VLLA-VLLB | B1: # | C1: VLLB/ HFBurstEntry | D1: HFBurstEntry/ VLLB | E1: LFBurstEntry/ VLLB | F1: VLLA-VLLB | G1: VLLA-VLLB | H1: sel_bmth_ratio | I1: V_LLB | J1: V_LLA | K1: VLLA-VLLB | L1: RLLupper | M1: RLLlower | N1: Comment | O1: Iq_V5p
A2: Max Voltage | C2: K | D2: 1/k | F2: min code(dec) | G2: Max code(dec) | H2: [2:0] | I2: V_llb | J2: V_lla | K2: Actual Voltage | L2: Rh | M2: Rl | P2: added for formula, don’t delete | Q2: Sup | R2: 5 | V2: added for formula, don’t delete
A3: 0.176 | B3: K1 | C3: 0.8 | D3: 1.25 | E3: ='DESIGN INPUTS AND CALCULATIONS'!$C$239 -> 1.667 | F3: 0 | G3: 18 | H3: 4 | I3: =R$4 -> 1.2 | J3: =I3+A3-0.1 -> 1.276 | K3: =J3-I3 -> 0.076 | L3: =(J3+J3*(R$2-I$3)/I$3-R$2)/R$3 -> 31666.66667 | M3: =I3*L3/(R$2-I3) -> 10000 | O3: =R$2/(L3+M3) -> 0.00012 | P3: 0 | Q3: LL_ib | R3: 1e-05 | V3: LFBurstEntry/ VLLB
A4: 0.441 | B4: K2 | C4: 0.75 | D4: 1.333 | E4: ='DESIGN INPUTS AND CALCULATIONS'!$C$239 -> 1.667 | F4: 19 | G4: 26 | H4: 5 | I4: 1.2 | J4: 1.541 | K4: =J4-I4 -> 0.341 | L4: =(J4+J4*(R$2-I$3)/I$3-R$2)/R$3 -> 142083.3333 | M4: =I4*L4/(R$2-I4) -> 44868.42105 | O4: =R$2/(L4+M4) -> 2.674486804e-05 | P4: 0.176 | Q4: Vllb | R4: =vllb -> 1.2 | S4: <-- Enter this value | V4: 1.667
A5: 0.617 | B5: K3 | C5: 0.7 | D5: 1.429 | E5: ='DESIGN INPUTS AND CALCULATIONS'!$C$239 -> 1.667 | F5: 27 | G5: 36 | H5: 6 | I5: 1.2 | J5: 1.717 | K5: 0.517 | L5: 215416.6667 | M5: 68026.31579 | O5: 1.764023211e-05 | P5: 0.441 | V5: 1.25
A6: 0.833 | B6: K4 | C6: 0.65 | D6: 1.538 | E6: ='DESIGN INPUTS AND CALCULATIONS'!$C$239 -> 1.667 | F6: 37 | G6: 48 | H6: 7 | I6: 1.2 | J6: 1.933 | K6: 0.733 | L6: 305416.6667 | M6: 96447.36842 | O6: 1.24420191e-05 | P6: 0.617
A7: 1.087 | B7: K5 | C7: 0.6 | D7: 1.667 | E7: ='DESIGN INPUTS AND CALCULATIONS'!$C$239 -> 1.667 | F7: 49 | G7: 62 | H7: 0 | I7: 1.2 | J7: 2.187 | K7: 0.987 | L7: 411250 | M7: 129868.4211 | O7: 9.240121581e-06 | P7: 0.833
A8: 1.391 | B8: K6 | C8: 0.55 | D8: 1.818 | E8: ='DESIGN INPUTS AND CALCULATIONS'!$C$239 -> 1.667 | F8: 63 | G8: 79 | H8: 1 | I8: 1.2 | J8: 2.491 | K8: 1.291 | L8: 537916.6667 | M8: 169868.4211 | O8: 7.064291247e-06 | P8: 1.087
A9: 1.754 | B9: K7 | C9: 0.5 | D9: 2 | E9: ='DESIGN INPUTS AND CALCULATIONS'!$C$239 -> 1.667 | F9: 80 | G9: 99 | H9: 2 | I9: 1.2 | J9: 2.854 | K9: 1.654 | L9: 689166.6667 | M9: 217631.5789 | O9: 5.513905683e-06 | P9: 1.391
A10: 2.185 | B10: K8 | C10: 0.45 | D10: 2.222 | E10: ='DESIGN INPUTS AND CALCULATIONS'!$C$239 -> 1.667 | F10: 100 | G10: 123 | H10: 3 | I10: 1.2 | J10: 3.285 | K10: 2.085 | L10: 868750 | M10: 274342.1053 | N10: Disable HF Burst | O10: 4.374100719e-06 | P10: 1.754
A11: > 2.41 | B11: K8 | C11: 0.45 | D11: 2.222 | E11: ='DESIGN INPUTS AND CALCULATIONS'!$C$239 -> 1.667 | F11: 124 | G11: - | H11: 3 | I11: 1.2 | J11: =I11+2.41+0.2 -> 3.81 | K11: 2.61 | L11: 1087500 | M11: 343421.0526 | O11: 3.494252874e-06 | P11: 2.185
P12: > 2.41

Sheet Compensation and Transient (hidden)
C3: UCC25640X LLC Loop Plot & Load Transient Validation & Tuning Tool
B5: LLC Power Stage Input | G5: LLC Controller Parameter Setting | L5: UCC25640X Loop Circuit setting
B6: PFC input | C6: Vin | D6: 390 | E6: VDC | G6: VCR divider Capacitor_Higher Cap | H6: CdivH | I6: ='DESIGN INPUTS AND CALCULATIONS'!#REF! ->  | J6: pF | L6: Equivalent Controller Internal Resistor | O6: RFB | P6: 50 | Q6: kΩ
B7: Output Rectifier forward Voltage | C7: Vf | D7: =Vloss -> 1 | E7: VDC | G7: VCR divider Capacitor_Lower Cap | H7: CdivL | I7: ='DESIGN INPUTS AND CALCULATIONS'!#REF!/1000 ->  | J7: nF | L7: Feedback Pull up Resistor | O7: Rf | P7: 9.09 | Q7: kΩ
B8: Set output Voltage | C8: Vo_set | D8: =Vout -> 12 | E8: VDC | G8: Calculated Parralled value | H8: Cdivp | I8: =CdivH2*picoF2*CdivL2*nanoF2*1000000000000/(CdivH2*picoF2+CdivL2*nanoF2) ->  | J8: pF | L8: OPTO Current Transfer Ratio | O8: CTR | P8: 0.4
B9: Output Load current under R Load | C9: Io | D9: 15 | E9: A | G9: Calcualted Series Value | H9: Cdivs | I9: =(CdivH2*picoF2+CdivL2*nanoF2)*1000000000 ->  | J9: nF | L9: OPTO Rolling off Frequency | O9: f_roll | P9: 8 | Q9: kHz
B10: output total Capacitor Value | C10: Co | D10: 1880 | E10: uF | G10: Calcualted divided Value | H10: λ | I10: =CdivH2*picoF2/(CdivH2*picoF2+CdivL2*nanoF2) ->  | L10: Resistor for f_roll compensation | O10: Rz | P10: 1210 | Q10: Ω
B11: Equivalent ESR for Co | C11: Rc | D11: 2 | E11: mΩ | G11: MOS Junction Capacitor | H11: Cj | I11: 0.188 | J11: nF | L11: Calculate Cz for f_roll compensation | O11: Cz_cal | P11: =0.9*1000000000/((Rzero2+Rfeedforward2*kiliOhm2)*2*PI()*F_roll2*kilihertz2) -> 1.738342825 | Q11: nF
B12: LLC Transformer Magnetizing Inductance | C12: Lm | D12: =Lm -> 223.7731168 | E12: uH | G12: Output Load Transient Setting | L12: Capacitor for f_roll compensation | O12: Cz | P12: 4.7 | Q12: nF
B13: LLC Transformer Resonant Inductance | C13: Ls | D13: =Lr -> 37.70090554 | E13: uH | G13: Load step current | H13: I_step | I13: 15 | J13: A | L13: Rv compensation | O13: Rv | P13: 33.2 | Q13: kΩ
B14: LLC Resonant Capacitor | C14: Cr | D14: =Cr*1000 -> 43 | E14: nF | G14: Load current step Duty cycle | H14: Dstep | I14: 0.5 | L14: Cv compensation | O14: Cv | P14: 10 | Q14: nF
B15: Equivalent Transformer Turn Ratio(Np:Ns) | C15: N | D15: =Nps -> 15.83 | G15: Load step Frequency | H15: fload | I15: 0.2 | J15: KHz | L15: Cf compensation | O15: Cf | P15: 150 | Q15: pF
B16: Actual Operation Frequency(Measured) | C16: Fs | D16: 100 | E16: kHz | G16: Load step slew rate | H16: kslew | I16: 20 | J16: A/us | L16: High side feedack resistor | O16: Rupper | P16: 147 | Q16: kΩ
B17: Output R_Load | C17: Rload | D17: =(Vo_set2+Vfeed2)/Ioutput2 -> 0.8666666667 | E17: Ω | G17: Load step Rising time | H17: tr | I17: =I_step2/(kslewrate2*1/microsecond2) -> 7.5e-07 | J17: s | L17: Feedack Circuit Design Option
B18: Eqivalent LLC output | C18: Vo | D18: =Vo_set2+Vfeed2 -> 13 | E18: VDC | G18: Load step on time | H18: th | I18: =2*transient2+duty_step2/(freq_load2*kilihertz2) -> 0.0025015 | J18: s | L18: Use capacitor Cf?("Yes" for 1 and "No" for 0) | P18: α_Cf | Q18: 1
B19: Resonant Frequency | C19: Fo | D19: =1*0.001/(2*PI()*(Lseries2*res_cap2*microhenry2*nanoF2)^0.5) -> 125 | E19: kHz | G19: Load step Period | H19: tload | I19: =1/(freq_load2*kilihertz2) -> 0.005 | J19: s | L19: Use Rz and Cz?("Yes" for 1 and "No" for 0) | P19: α_Rz_Cz | Q19: 1
B20: PFC Input AC Ripple(pk-pk) | C20: Vinac | D20: 10 | E20: VAC | G20: Center Step Load current | H20: Istep_avg | I20: 5 | J20: A | L20: Connect Rf to Vout?("Yes" for 1 and "No" for 0) | P20: feedtype | Q20: 1
B21: PFC Input AC Frequency | C21: Fline | D21: 50 | E21: HZ
B23: Crossover Frequency | D23: =Data!X20/1000 ->  | E23: kHz
B24: Phase Margin | D24: =Data!X21 ->  | E24: °
B26: Calculation Result

Sheet Data (hidden)
T3: Q | U3: =(Lseries2*microhenry2/(res_cap2*nanoF2))^0.5*1/(rload2*ratio2^2) -> 0.1363413971
O4: RFB | Q4: mV | R4: 0.001 | T4: Ωs | U4: =2*PI()*switchingf2*1000 -> 628318.5307
O5: Rf | Q5: uF | R5: 1e-06 | T5: Ωo | U5: =2*PI()*foutput2*1000 -> 785398.1634
O6: CTR | Q6: kHz | R6: 1000 | T6: Ln | U6: =magL2/Lseries2 -> 5.935483871 | Y6: PI()
O7: f_roll | Q7: mΩ | R7: 0.001 | T7: fn | U7: =ohm_second/ohm_second0 -> 0.8
O8: Rz | Q8: ms | R8: 0.001 | T8: Req | U8: =8*ratio2^2*rload2/((PI())^2) -> 176.0370834
O9: Cz_cal | Q9: mA | R9: 0.001 | T9: Xeq | U9: =ohm_second*Lseries2*microhenry2-1/(ohm_second*res_cap2*nanoF2) -> -13.32459989
O10: Cz | Q10: us | R10: 1e-06 | T10: Le | U10: =IF(freq_ratio2>1,Lseries2*microhenry2*(1+1/freq_ratio2^2),Lseries2*microhenry2*(1+1/freq_ratio2^2)+magL2*microhenry2*(1-freq_ratio2)) -> 0.0001413631938
O11: Rv | Q11: µS | R11: 1e-06 | T11: Qp | U11: =8*ratio2*rload2*(Coutput2*microF2/(effectiveL2))^0.5/(PI()^2) -> 40.55402832
O12: Cv | Q12: uH | R12: 1e-06 | T12: ωp | U12: =(8*ratio2^2/(effectiveL2*Coutput2*microhenry2*PI()^2))^0.5 -> 27645.78567
O13: Cf | Q13: ns | R13: 1e-09 | T13: ωp0 | U13: =(8*ratio2^2/(effectiveL2*Coutput2*microhenry2*PI()^2*(1+Rc_2*miliOhm2*PI()/(rload2*2^1.5))))^0.5 -> 27610.42278
B14: 1 | O14: Rupper | Q14: mW | R14: 0.001 | T14: Qp1 | U14: =(rload2+Rc_2*miliOhm2*PI()/(2)^1.5)^0.5*8*ratio2*PI()*(effectiveL2*Coutput2*microF2*rload2)^0.5/(16*2^0.5*ratio2^2*rload2*Coutput2*microF2*Rc_2*miliOhm2+effectiveL2*PI()^3) -> 7.785608582
B15: 1 | O15: α_Cf | Q15: Pf | R15: 1e-12 | T15: Gdc_ccm | U15: =(Vinput2*Lnratio2*freq_ratio2/(2*ratio2*foutput2*kilihertz2))*((1/(freq_ratio2^2)-freq_ratio2^2)*(PI()^2*Qfactor2*Lnratio2/8)^2-(1+Lnratio2-1/(freq_ratio2^2))*2/(freq_ratio2^2))/((Lnratio2+1-1/freq_ratio2^2)^2+((1/freq_ratio2-freq_ratio2)*Lnratio2*Qfactor2*PI()^2/8)^2)^1.5 -> -4.738169492e-05
B16: 1 | O16: α_Rz_Cz | Q16: MHz | R16: 1000000 | T16: Gdc_dcm | U16: =(Vinput2*Lnratio2*freq_ratio2/(2*ratio2*foutput2*kilihertz2))*(((1/freq_ratio2^2-freq_ratio2^2)*(PI()^2*Qfactor2*Lnratio2/8)^2-(Lnratio2+1-1/freq_ratio2^2)*2/freq_ratio2^2)/(freq_ratio2*SIN(0.5*PI()*freq_ratio2))/((1+Lnratio2-1/freq_ratio2^2)^2+((1/freq_ratio2-freq_ratio2)*PI()^2*Qfactor2*Lnratio2/8)^2)^1.5+(-0.5*PI()*COS(0.5*PI()*freq_ratio2)/SIN(0.5*PI()*freq_ratio2)^2)/((1+Lnratio2-1/freq_ratio2^2)^2+((1/freq_ratio2-freq_ratio2)*PI()^2*Qfactor2*Lnratio2/8)^2)^0.5) -> -0.0001088498687
B17: 1 | O17: feedtype | Q17: uA | R17: 1e-06 | T17: Mstccm | U17: =Lnratio2/((1+Lnratio2-1/freq_ratio2^2)^2+((1/freq_ratio2-freq_ratio2)*PI()^2*Qfactor2*Lnratio2/8)^2)^0.5 -> 1.100848747
B18: 1 | Q18: kΩ | R18: 1000 | T18: Mstdcm | U18: =Lnratio2/(SIN(0.5*freq_ratio2*PI())*((1+Lnratio2-1/freq_ratio2^2)^2+((1/freq_ratio2-freq_ratio2)*PI()^2*Qfactor2*Lnratio2/(8*SIN(0.5*PI()*freq_ratio2)))^2)^0.5) -> 1.157076877
B19: 1 | Q19: nC | R19: 1e-09 | T19: Kv | U19: =-1/rload2 -> -1.153846154
B20: 1 | Q20: nF | R20: 1e-09 | T20: Kth | U20: =2*Vinput2*res_cap2*nanoF2*switchingf2*kilihertz2/(Voutput2*lmabda2) ->  | W20: freq | X20: =INDEX(B35:B95,MATCH(0,V35:V95,-1),1) ->  | Y20: =MATCH(0,V35:V95,-1) -> 
B21: 1 | Q21: uC | R21: 1e-06 | T21: Kf | U21: =Voutput2/(rload2*switchingf2*kilihertz2)+2*junctioncap2*nanoF2*Vinput2^2/Voutput2+0.5*Vinput2*res_cap2*nanoF2*Iramp2/(Voutput2*switchingf2*kilihertz2*CdivH2*picoF2) ->  | W21: phase | X21: =INDEX(W35:W95,MATCH(0,V35:V95,-1),1) -> 
B22: 1 | F22: =IMPRODUCT(Kth_2/(2/rload2-Kfeed2/Gdc_ccm2),IMDIV(COMPLEX(1,Rc_2*Coutput2*microF2*miliOhm2*C35),IMSUM(1,IMPRODUCT(D36,1/omega1_2),IMPRODUCT(D36,D36,1/omega2_2),IMPRODUCT(D36,D36,D36,1/omega3_2)))) ->  | Q22: M_Ω | R22: 1000000 | T22: Kin | U22: =Voutput2/(Vinput2*rload2)-2*Vinput2*junctioncap2*nanoF2*switchingf2*kilihertz2/Voutput2 -> 0.03733353846
B23: 1 | N23: =IMSUM(feedtype2,IMDIV(COMPLEX(1,Rvolt2*Cvolt2*nanoF2*kiliOhm2*C35),IMPRODUCT(Rupper2*kiliOhm2*(Cvolt2*nanoF2+Cforward2*picoF2),COMPLEX(1,Rvolt2*Cvolt2*Cforward2*picoF2*nanoF2*kiliOhm2*C35/(Cvolt2*nanoF2+Cforward2*picoF2)),D35))) -> 1.2192242652549-10.6669315003433i | Q23: mH | R23: 0.001 | T23: Gdc | U23: =IF(freq_ratio2>1,Gdc_ccm2,Gdc_dcm2) -> -0.0001088498687
B24: 1 | N24: =IMPRODUCT(-currentransferratio2*RFB_2/(Rfeedforward2),IMDIV(COMPLEX(1,(Rfeedforward2*kiliOhm2+q_Rz_Cz_2*Rzero2)*q_Rz_Cz_2*Czero2*nanoF2*C35),IMPRODUCT(COMPLEX(1,q_Rz_Cz_2*Rzero2*Czero2*nanoF2*C35),COMPLEX(1,C35/(2*PI()*F_roll2*kilihertz2))))) -> -2.20022607731982-0.0031559108379905i | Q24: nH | R24: 1e-09
B25: 1 | I25: =freq_ratio2 -> 0.8 | Q25: Iramp | R25: =2*miliampere2 -> 0.002 | T25: ωt | U25: =(2/rload2-Kfeed2/GainDC2)/(Coutput2*microF2*(1+Rc_2*miliOhm2/rload2)-Kfeed2/(Gdc_dcm2*QpoleL2*omegapole0)) -> 
B26: 1 | I26: =(Kinput2-Kfeed2*Metccm2/(2*ratio2*Gdc_ccm2))/(2/rload2-Kfeed2/Gdc_ccm2) ->  | Q26: Nt_load | R26: 256 | T26: ω1 | U26: =(Xequiv2^2+Requiv2^2)*(2*Gdc_ccm2/(rload2*Kfeed2)-1)/((Xequiv2^2+Requiv2^2)*(1+Rc_2*miliOhm2/rload2)*(Coutput2*microF2*Gdc_ccm2/Kfeed2)-2*Requiv2*effectiveL2-rload2*Coutput2*Xequiv2^2*microF2-Rc_2*miliOhm2*Coutput2*Requiv2*microF2) -> 
B27: 1 | K27: =freq_ratio2 -> 0.8 | Q27: Div_Nt_load | R27: =time_load2/Nt_load2 -> 1.953125e-05 | T27: ω2 | U27: =(Xequiv2^2+Requiv2^2)*(1-2*Gdc_ccm2/(Kfeed2*rload2))/(effectiveL2^2+effectiveL2*rload2*Coutput2*Requiv2*microF2+effectiveL2*Rc_2*miliOhm2*Coutput2*Requiv2*microF2) -> 
B28: 1 | Q28: N_FFT | R28: 256 | T28: ω3 | U28: =(Xequiv2^2+Requiv2^2)*(1-2*Gdc_ccm2/(Kfeed2*rload2))/(effectiveL2^2*rload2*Coutput2*microF2) -> 
Q29: Nt_input | R29: 64 | T29: ω4 | U29: =((Xequiv2^2+Requiv2^2)*Gdc_ccm2-Kfeed2*rload2*Xequiv2^2)/(-Kfeed2*rload2*effectiveL2*Requiv2) -> 
F30: =Rc_2*Coutput2*microF2*miliOhm2 -> 3.76e-06 | Q30: Div_Nt_input | R30: =1/(Nt_input*Fline) -> 0.0003125 | T30: ω5 | U30: =((Xequiv2^2+Requiv2^2)*Gdc_ccm2-Kfeed2*rload2*Xequiv2^2)/(-Kfeed2*rload2*effectiveL2^2) -> 
G31: =IF(freq_ratio2>1,IMPRODUCT(Kth_2/(2/rload2-Kfeed2/Gdc_ccm2),IMDIV(COMPLEX(1,Rc_2*Coutput2*microF2*miliOhm2*C35),IMSUM(1,IMPRODUCT(D36,1/omega1_2),IMPRODUCT(D36,D36,1/omega2_2),IMPRODUCT(D36,D36,D36,1/omega3_2)))),IMPRODUCT(Kth_2/(2/rload2-Kfeed2/Gdc_dcm2),(IMDIV(COMPLEX(1,Rc_2*Coutput2*microF2*miliOhm2*C35),IMSUM(1,IMDIV(D35,omegat2),IMDIV(IMPRODUCT(D35,D35),omegapole0^2*(1-2*Gdc_dcm2/(Kfeed2*rload2)))))))) -> 
A32: Basic Data | D32: Transfer Function | E32: Control to output Open Loop | I32: control to input Open Loop | M32: output impedance | Q32: Feedback circuit | U32: Overall loop | X32: Closed Gvg loop | AA32: Closed Zout loop
A33: Log scale converter | B33: frequency | C33: w | E33: Gvc_DC Gain | F33: Gvc_bluestone(fn>1,fn<=1) | I33: Gvg_DC Gain | J33: Gvg_bluestone(fn>1,fn<=1) | M33: Zout_DC Gain | N33: Zout(fn>1,fn<=1) | Q33: Gcv_DC Gain | R33: Gvc(fn>1,fn<=1) | U33: Gover(fn>1,fn<=1) | X33: Gvg(fn>1,fn<=1) | AA33: Zout(fn>1,fn<=1)
B34: Hz | C34: rad | D34: s(f) | E34: Value | F34: (fn>1,fn<=1) | G34: dB | H34: Phase | I34: Value | J34: (fn>1,fn<=1) | K34: dB | L34: Phase | M34: Value | N34: (fn>1,fn<=1) | O34: dB | P34: Phase | Q34: Value | S34: dB | T34: Phase | V34: dB | W34: Phase margin | Y34: dB | Z34: Phase margin | AB34: dB | AC34: Phase margin
A35: -3 | B35: =10^A35*10000 -> 10 | C35: =2*PI()*B35 -> 62.83185307 | D35: =COMPLEX(0,C35) -> 62.8318530717959i | E35: =IF(freq_ratio2>1,Kth_2/(2/rload2-Kfeed2/Gdc_ccm2),Kth_2/(2/rload2-Kfeed2/Gdc_dcm2)) ->  | F35: =IF(freq_ratio2>1,IMPRODUCT(Kth_2/(2/rload2-Kfeed2/Gdc_ccm2),IMDIV(COMPLEX(1,Rc_2*Coutput2*microF2*miliOhm2*C35),IMSUM(1,IMPRODUCT(D35,1/omega1_2),IMPRODUCT(D35,D35,1/omega2_2),IMPRODUCT(D35,D35,D35,1/omega3_2)))),IMPRODUCT(Kth_2/(2/rload2-Kfeed2/Gdc_dcm2),(IMDIV(COMPLEX(1,Rc_2*Coutput2*microF2*miliOhm2*C35),IMSUM(1,IMDIV(D35,omegat2),IMDIV(IMPRODUCT(D35,D35),omegapole0^2*(1-2*Gdc_dcm2/(Kfeed2*rload2)))))))) ->  | G35: =20*LOG(IMABS(F35)) ->  | H35: =(180/PI()*IMARGUMENT(F35)) ->  | I35: =IF(freq_ratio2>1,(Kinput2-Kfeed2*Metccm2/(2*ratio2*Gdc_ccm2))/(2/rload2-Kfeed2/Gdc_ccm2),(Kinput2-Kfeed2*Metccm2/(2*ratio2*Gdc_dcm2))/(2/rload2-Kfeed2/Gdc_dcm2)) ->  | J35: =IF(freq_ratio2>1,IMPRODUCT(I35,IMDIV((IMPRODUCT(COMPLEX(1,Rc_2*Coutput2*microF2*miliOhm2*C35),COMPLEX(1,(effectiveL2*Requiv2*Kfeed2*0.5*Metccm2)*C35/(ratio2*(Xequiv2^2+Requiv2^2)*(Kfeed2*Metccm2*0.5/ratio2-Kinput2*Gdc_ccm2))))),IMSUM(1,IMPRODUCT(D35,1/omega1_2),IMPRODUCT(D35,D35,1/omega2_2),IMPRODUCT(D35,D35,D35,1/omega3_2)))),IMPRODUCT(I35,(IMDIV(COMPLEX(1,Rc_2*Coutput2*microF2*miliOhm2*C35),IMSUM(1,IMDIV(D35,omegat2),IMDIV(IMPRODUCT(D35,D35),omegapole0^2*(1-2*Gdc_dcm2/(Kfeed2*rload2)))))))) ->  | K35: =20*LOG(IMABS(J35)) ->  | L35: =(180/PI()*IMARGUMENT(J35)) ->  | M35: =IF(freq_ratio2>1,(1-Kfeed2*rload2*Xequiv2^2/(Gdc_ccm2*(Xequiv2^2+Requiv2^2)))/(2/rload2-Kfeed2/Gdc_ccm2),1/(2/rload2-Kfeed2/Gdc_dcm2)) ->  | N35: =IF(freq_ratio2>1,IMPRODUCT(M35,IMDIV((IMPRODUCT(COMPLEX(1,Rc_2*Coutput2*microF2*miliOhm2*C35),IMSUM(1,IMDIV(D35,omega4_2),IMDIV(IMPRODUCT(D35,D35),omega5_2)))),IMSUM(1,IMPRODUCT(D35,1/omega1_2),IMPRODUCT(D35,D35,1/omega2_2),IMPRODUCT(D35,D35,D35,1/omega3_2)))),IMPRODUCT(M35,(IMDIV(IMPRODUCT(COMPLEX(1,Rc_2*Coutput2*microF2*miliOhm2*C35),COMPLEX(1,-Kfeed2*effectiveL2*PI()^2*C35/(8*ratio2^2*Gdc_dcm2))),IMSUM(1,IMDIV(D35,omegat2),IMDIV(IMPRODUCT(D35,D35),omegapole0^2*(1-2*Gdc_dcm2/(Kfeed2*rload2)))))))) ->  | O35: =20*LOG(IMABS(N35)) ->  | P35: =(180/PI()*IMARGUMENT(N35)) ->  | Q35: =-currentransferratio2*RFB_2/(Rfeedforward2*(Cvolt2*nanoF2+Cforward2*picoF2*alpha_Cf2)*Rupper2*kiliOhm2) -> -1474.628881 | R35: =IMPRODUCT(IMPRODUCT(-currentransferratio2*RFB_2/(Rfeedforward2),IMDIV(COMPLEX(1,(Rfeedforward2*kiliOhm2+q_Rz_Cz_2*Rzero2)*q_Rz_Cz_2*Czero2*nanoF2*C35),IMPRODUCT(COMPLEX(1,q_Rz_Cz_2*Rzero2*Czero2*nanoF2*C35),COMPLEX(1,C35/(2*PI()*F_roll2*kilihertz2))))),IMSUM(feedtype2,IMDIV(COMPLEX(1,Rvolt2*Cvolt2*nanoF2*kiliOhm2*C35),IMPRODUCT(Rupper2*kiliOhm2*(Cvolt2*nanoF2+Cforward2*picoF2),COMPLEX(1,Rvolt2*Cvolt2*Cforward2*picoF2*nanoF2*kiliOhm2*C35/(Cvolt2*nanoF2+Cforward2*picoF2)),D35)))) -> -2.71623290724496+23.4658130889669i | S35: =20*LOG(IMABS(R35)) -> 27.46651559 | T35: =(180/PI()*IMARGUMENT(R35)) -> 96.60276044 | U35: =IMPRODUCT(F35,R35) ->  | V35: =20*LOG(IMABS(U35)) ->  | W35: =(180/PI()*IMARGUMENT(U35)) ->  | X35: =IMDIV(J35,IMSUM(1,IMPRODUCT(F35,R35,-1))) ->  | Y35: =20*LOG(IMABS(X35)) ->  | Z35: =(180/PI()*IMARGUMENT(X35)) ->  | AA35: =IMDIV(IMPRODUCT(1,N35),IMSUM(1,IMPRODUCT(F35,R35,-1))) ->  | AB35: =20*LOG(IMABS(AA35)) ->  | AC35: =(180/PI()*IMARGUMENT(AA35)) -> 
A36: -2.9 | B36: =10^A36*10000 -> 12.58925412 | C36: =2*PI()*B36 -> 79.1006165 | D36: =COMPLEX(0,C36) -> 79.1006165022011i | F36: =IF(freq_ratio2>1,IMPRODUCT(Kth_2/(2/rload2-Kfeed2/Gdc_ccm2),IMDIV(COMPLEX(1,Rc_2*Coutput2*microF2*miliOhm2*C36),IMSUM(1,IMPRODUCT(D36,1/omega1_2),IMPRODUCT(D36,D36,1/omega2_2),IMPRODUCT(D36,D36,D36,1/omega3_2)))),IMPRODUCT(Kth_2/(2/rload2-Kfeed2/Gdc_dcm2),(IMDIV(COMPLEX(1,Rc_2*Coutput2*microF2*miliOhm2*C36),IMSUM(1,IMDIV(D36,omegat2),IMDIV(IMPRODUCT(D36,D36),omegapole0^2*(1-2*Gdc_dcm2/(Kfeed2*rload2)))))))) ->  | G36: =20*LOG(IMABS(F36)) ->  | H36: =(180/PI()*IMARGUMENT(F36)) ->  | I36: =IF(freq_ratio2>1,(Kinput2-Kfeed2*Metccm2/(2*ratio2*Gdc_ccm2))/(2/rload2-Kfeed2/Gdc_ccm2),(Kinput2-Kfeed2*Metccm2/(2*ratio2*Gdc_dcm2))/(2/rload2-Kfeed2/Gdc_dcm2)) ->  | J36: =IF(freq_ratio2>1,IMPRODUCT(I36,IMDIV((IMPRODUCT(COMPLEX(1,Rc_2*Coutput2*microF2*miliOhm2*C36),COMPLEX(1,(effectiveL2*Requiv2*Kfeed2*0.5*Metccm2)*C36/(ratio2*(Xequiv2^2+Requiv2^2)*(Kfeed2*Metccm2*0.5/ratio2-Kinput2*Gdc_ccm2))))),IMSUM(1,IMPRODUCT(D36,1/omega1_2),IMPRODUCT(D36,D36,1/omega2_2),IMPRODUCT(D36,D36,D36,1/omega3_2)))),IMPRODUCT(I36,(IMDIV(COMPLEX(1,Rc_2*Coutput2*microF2*miliOhm2*C36),IMSUM(1,IMDIV(D36,omegat2),IMDIV(IMPRODUCT(D36,D36),omegapole0^2*(1-2*Gdc_dcm2/(Kfeed2*rload2)))))))) ->  | K36: =20*LOG(IMABS(J36)) ->  | L36: =(180/PI()*IMARGUMENT(J36)) ->  | O36: =20*LOG(IMABS(N36)) ->  | P36: =(180/PI()*IMARGUMENT(N36)) ->  | Q36: -1474.628881 | R36: -2.71623727138411+18.6378693278196i | S36: =20*LOG(IMABS(R36)) -> 25.499201 | T36: =(180/PI()*IMARGUMENT(R36)) -> 98.29177077 | V36: =20*LOG(IMABS(U36)) ->  | W36: =(180/PI()*IMARGUMENT(U36)) ->  | Y36: =20*LOG(IMABS(X36)) ->  | Z36: =(180/PI()*IMARGUMENT(X36)) ->  | AB36: =20*LOG(IMABS(AA36)) ->  | AC36: =(180/PI()*IMARGUMENT(AA36)) -> 
A37: -2.8 | B37: 15.84893192 | C37: 99.5817762 | D37: 99.5817762032062i | Q37: -1474.628881 | R37: -2.71624418805944+14.8024600809933i | S37: 23.55050579 | T37: 100.3980692
A38: -2.7 | B38: 19.95262315 | C38: 125.3660286 | D38: 125.366028613816i | Q38: -1474.628881 | R38: -2.71625515020334+11.7553358294407i | S38: 21.63059836 | T38: 103.0107445
A39: -2.6 | B39: 25.11886432 | C39: 157.8264792 | D39: 157.826479197647i | Q39: -1474.628881 | R39: -2.71627252391052+9.33422611380069i | S39: 19.75458985 | T39: 106.2250679
A40: -2.5 | B40: 31.6227766 | C40: 198.6917653 | D40: 198.691765315922i | Q40: -1474.628881 | R40: -2.71630005907927+7.41019804986408i | S40: 17.94413598 | T40: 110.1310377
A41: -2.4 | B41: 39.81071706 | C41: 250.1381125 | D41: 250.138112470457i | Q41: -1474.628881 | R41: -2.71634369862335+5.88079020058624i | S41: 16.2285842 | T41: 114.792269
A42: -2.3 | B42: 50.11872336 | C42: 314.9052262 | D42: 314.905226247286i | Q42: -1474.628881 | R42: -2.71641286073741+4.66455616735301i | S42: 14.64444582 | T42: 120.2144611
A43: -2.2 | B43: 63.09573445 | C43: 396.4421916 | D43: 396.442191629499i | Q43: -1474.628881 | R43: -2.71652247052286+3.69672734490938i | S43: 13.23154861 | T43: 126.3101288
A44: -2.1 | B44: 79.43282347 | C44: 499.0911493 | D44: 499.09114934975i | Q44: -1474.628881 | R44: -2.71669617832409+2.92576390187852i | S44: 12.02502826 | T44: 132.8780141
A45: -2 | B45: 100 | C45: 628.3185307 | D45: 628.318530717959i | Q45: -1474.628881 | R45: -2.71697145649282+2.31061038587941i | S45: 11.04516277 | T45: 139.6209632
A46: -1.9 | B46: 125.8925412 | C46: 791.006165 | D46: 791.006165022012i | Q46: -1474.628881 | R46: -2.71740766728697+1.81850994747918i | S46: 10.2902982 | T46: 146.20926
A47: -1.8 | B47: 158.4893192 | C47: 995.817762 | D47: 995.817762032061i | Q47: -1474.628881 | R47: -2.7180988247083+1.42326106787333i | S47: 9.737618896 | T47: 152.3623782
A48: -1.7 | B48: 199.5262315 | C48: 1253.660286 | D48: 1253.66028613816i | Q48: -1474.628881 | R48: -2.71919375812387+1.10382452286556i | S48: 9.351263743 | T48: 157.9058892
A49: -1.6 | B49: 251.1886432 | C49: 1578.264792 | D49: 1578.26479197647i | Q49: -1474.628881 | R49: -2.72092791267242+0.843207528326164i | S49: 9.092589623 | T49: 162.7819455
A50: -1.5 | B50: 316.227766 | C50: 1986.917653 | D50: 1986.91765315922i | Q50: -1474.628881 | R50: -2.72367335681385+0.62756788393658i | S50: 8.927754658 | T50: 167.0248005
A51: -1.4 | B51: 398.1071706 | C51: 2501.381125 | D51: 2501.38112470457i | Q51: -1474.628881 | R51: -2.72801705697849+0.445494835164111i | S51: 8.831242078 | T51: 170.7252646
A52: -1.3 | B52: 501.1872336 | C52: 3149.052262 | D52: 3149.05226247286i | Q52: -1474.628881 | R52: -2.73488248547439+0.287437058741744i | S52: 8.786482896 | T52: 174.0002212
A53: -1.2 | B53: 630.9573445 | C53: 3964.421916 | D53: 3964.421916295i | Q53: -1474.628881 | R53: -2.74571627363361+0.145264259512714i | S53: 8.78525217 | T53: 176.9715456
A54: -1.1 | B54: 794.3282347 | C54: 4990.911493 | D54: 4990.9114934975i | Q54: -1474.628881 | R54: -2.76276903123181+0.0119715688108065i | S54: 8.826973129 | T54: 179.7517288
A55: -1 | B55: 1000 | C55: 6283.185307 | D55: 6283.18530717959i | Q55: -1474.628881 | R55: -2.7895037842448-0.118428016837543i | S55: 8.918359845 | T55: -177.5689751
A56: -0.9 | B56: 1258.925412 | C56: 7910.06165 | D56: 7910.06165022012i | Q56: -1474.628881 | R56: -2.8311553824763-0.250719102848493i | S56: 9.07320024 | T56: -174.9392499
A57: -0.8 | B57: 1584.893192 | C57: 9958.17762 | D57: 9958.17762032061i | Q57: -1474.628881 | R57: -2.89541170356191-0.387813319961766i | S57: 9.311428729 | T57: -172.3711706
A58: -0.7 | B58: 1995.262315 | C58: 12536.60286 | D58: 12536.6028613816i | Q58: -1474.628881 | R58: -2.99303400358564-0.529287725331156i | S58: 9.655966702 | T58: -169.9715026
A59: -0.6 | B59: 2511.886432 | C59: 15782.64792 | D59: 15782.6479197648i | Q59: -1474.628881 | R59: -3.13788446620628-0.668773378196153i | S59: 10.12566307 | T59: -167.9686371
A60: -0.5 | B60: 3162.27766 | C60: 19869.17653 | D60: 19869.1765315922i | Q60: -1474.628881 | R60: -3.34521204869549-0.7900864757695i | S60: 10.72421974 | T60: -166.7111631
A61: -0.4 | B61: 3981.071706 | C61: 25013.81125 | D61: 25013.8112470457i | Q61: -1474.628881 | R61: -3.62637593523357-0.863048733708743i | S61: 11.42872789 | T61: -166.6130961
A62: -0.3 | B62: 5011.872336 | C62: 31490.52262 | D62: 31490.5226247286i | Q62: -1474.628881 | R62: -3.97849833455969-0.84222081838784i | S62: 12.18477339 | T62: -168.0473401
A63: -0.2 | B63: 6309.573445 | C63: 39644.21916 | D63: 39644.21916295i | Q63: -1474.628881 | R63: -4.37079509248785-0.674192820718087i | S63: 12.91333006 | T63: -171.2312652
A64: -0.1 | B64: 7943.282347 | C64: 49909.11493 | D64: 49909.114934975i | Q64: -1474.628881 | R64: -4.7358406272134-0.317441302076207i | S64: 13.52741056 | T64: -176.1652255
A65: 0 | B65: 10000 | C65: 62831.85307 | D65: 62831.8530717959i | Q65: -1474.628881 | R65: -4.97757967807358+0.230697557354168i | S65: 13.94968338 | T65: 177.3463922
A66: 0.1 | B66: 12589.25412 | C66: 79100.6165 | D66: 79100.6165022012i | Q66: -1474.628881 | R66: -4.99958001451871+0.915951403373983i | S66: 14.12204554 | T66: 169.6182191
A67: 0.2 | B67: 15848.93192 | C67: 99581.7762 | D67: 99581.7762032062i | E67: =IF(freq_ratio2>1,Kth_2/(2/rload2-Kfeed2/Gdc_ccm2),Kth_2/(2/rload2-Kfeed2/Gdc_dcm2)) ->  | F67: =IF(freq_ratio2>1,IMPRODUCT(Kth_2/(2/rload2-Kfeed2/Gdc_ccm2),IMDIV(COMPLEX(1,Rc_2*Coutput2*microF2*miliOhm2*C67),IMSUM(1,IMPRODUCT(D67,1/omega1_2),IMPRODUCT(D67,D67,1/omega2_2),IMPRODUCT(D67,D67,D67,1/omega3_2)))),IMPRODUCT(Kth_2/(2/rload2-Kfeed2/Gdc_dcm2),(IMDIV(COMPLEX(1,Rc_2*Coutput2*microF2*miliOhm2*C67),IMSUM(1,IMDIV(D67,omegat2),IMDIV(IMPRODUCT(D67,D67),omegapole0^2*(1-2*Gdc_dcm2/(Kfeed2*rload2)))))))) ->  | I67: =IF(freq_ratio2>1,(Kinput2-Kfeed2*Metccm2/(2*ratio2*Gdc_ccm2))/(2/rload2-Kfeed2/Gdc_ccm2),(Kinput2-Kfeed2*Metccm2/(2*ratio2*Gdc_dcm2))/(2/rload2-Kfeed2/Gdc_dcm2)) ->  | J67: =IF(freq_ratio2>1,IMPRODUCT(I67,IMDIV((IMPRODUCT(COMPLEX(1,Rc_2*Coutput2*microF2*miliOhm2*C67),COMPLEX(1,(effectiveL2*Requiv2*Kfeed2*0.5*Metccm2)*C67/(ratio2*(Xequiv2^2+Requiv2^2)*(Kfeed2*Metccm2*0.5/ratio2-Kinput2*Gdc_ccm2))))),IMSUM(1,IMPRODUCT(D67,1/omega1_2),IMPRODUCT(D67,D67,1/omega2_2),IMPRODUCT(D67,D67,D67,1/omega3_2)))),IMPRODUCT(I67,(IMDIV(COMPLEX(1,Rc_2*Coutput2*microF2*miliOhm2*C67),IMSUM(1,IMDIV(D67,omegat2),IMDIV(IMPRODUCT(D67,D67),omegapole0^2*(1-2*Gdc_dcm2/(Kfeed2*rload2)))))))) ->  | M67: =IF(freq_ratio2>1,(1-Kfeed2*rload2*Xequiv2^2/(Gdc_ccm2*(Xequiv2^2+Requiv2^2)))/(2/rload2-Kfeed2/Gdc_ccm2),1/(2/rload2-Kfeed2/Gdc_dcm2)) ->  | N67: =IF(freq_ratio2>1,IMPRODUCT(M67,IMDIV((IMPRODUCT(COMPLEX(1,Rc_2*Coutput2*microF2*miliOhm2*C67),IMSUM(1,IMDIV(D67,omega4_2),IMDIV(IMPRODUCT(D67,D67),omega5_2)))),IMSUM(1,IMPRODUCT(D67,1/omega1_2),IMPRODUCT(D67,D67,1/omega2_2),IMPRODUCT(D67,D67,D67,1/omega3_2)))),IMPRODUCT(M67,(IMDIV(IMPRODUCT(COMPLEX(1,Rc_2*Coutput2*microF2*miliOhm2*C67),COMPLEX(1,-Kfeed2*effectiveL2*PI()^2*C67/(8*ratio2^2*Gdc_dcm2))),IMSUM(1,IMDIV(D67,omegat2),IMDIV(IMPRODUCT(D67,D67),omegapole0^2*(1-2*Gdc_dcm2/(Kfeed2*rload2)))))))) ->  | Q67: =-currentransferratio2*RFB_2/(Rfeedforward2*(Cvolt2*nanoF2+Cforward2*picoF2*alpha_Cf2)*Rupper2*kiliOhm2) -> -1474.628881 | R67: =IMPRODUCT(IMPRODUCT(-currentransferratio2*RFB_2/(Rfeedforward2),IMDIV(COMPLEX(1,(Rfeedforward2*kiliOhm2+q_Rz_Cz_2*Rzero2)*q_Rz_Cz_2*Czero2*nanoF2*C67),IMPRODUCT(COMPLEX(1,q_Rz_Cz_2*Rzero2*Czero2*nanoF2*C67),COMPLEX(1,C67/(2*PI()*F_roll2*kilihertz2))))),IMSUM(feedtype2,IMDIV(COMPLEX(1,Rvolt2*Cvolt2*nanoF2*kiliOhm2*C67),IMPRODUCT(Rupper2*kiliOhm2*(Cvolt2*nanoF2+Cforward2*picoF2),COMPLEX(1,Rvolt2*Cvolt2*Cforward2*picoF2*nanoF2*kiliOhm2*C67/(Cvolt2*nanoF2+Cforward2*picoF2)),D67)))) -> -4.74195211618736+1.63160800754483i | S67: 14.00507848 | T67: 161.0127155
A68: 0.3 | B68: 19952.62315 | C68: 125366.0286 | D68: 125366.028613816i | Q68: -1474.628881 | R68: -4.21006734389943+2.24632212649915i | S68: 13.57375049 | T68: 151.9174179
A69: 0.4 | B69: 25118.86432 | C69: 157826.4792 | D69: 157826.479197648i | Q69: -1474.628881 | R69: -3.48198503912871+2.64726247425169i | S69: 12.8176533 | T69: 142.7552184
A70: 0.5 | B70: 31622.7766 | C70: 198691.7653 | D70: 198691.765315922i | Q70: -1474.628881 | R70: -2.68480869406935+2.78290230094058i | S70: 11.74720867 | T70: 133.9721939
A71: 0.6 | B71: 39810.71706 | C71: 250138.1125 | D71: 250138.112470457i | Q71: -1474.628881 | R71: -1.94456407633462+2.67942386605301i | S71: 10.39835981 | T71: 125.9698792
A72: 0.7 | B72: 50118.72336 | C72: 314905.2262 | D72: 314905.226247286i | Q72: -1474.628881 | R72: -1.34014699914353+2.41613946285612i | S72: 8.827364472 | T72: 119.0155804
A73: 0.8 | B73: 63095.73445 | C73: 396442.1916 | D73: 396442.1916295i | Q73: -1474.628881 | R73: -0.891742269862364+2.08070998706435i | S73: 7.096564405 | T73: 113.1988096
A74: 0.9 | B74: 79432.82347 | C74: 499091.1493 | D74: 499091.14934975i | Q74: -1474.628881 | R74: -0.580226503734826+1.73810988718705i | S74: 5.260404389 | T74: 108.4603569
A75: 1 | B75: 100000 | C75: 628318.5307 | D75: 628318.530717959i | Q75: -1474.628881 | R75: -0.372558025144574+1.42419999538656i | S75: 3.35887992 | T75: 104.6595733
A76: 1.1 | B76: 125892.5412 | C76: 791006.165 | D76: 791006.165022013i | Q76: -1474.628881 | R76: -0.237423007299929+1.15316216280938i | S76: 1.418110621 | T76: 101.6339804
A77: 1.2 | B77: 158489.3192 | C77: 995817.762 | D77: 995817.762032062i | Q77: -1474.628881 | R77: -0.150669490337394+0.926909762558312i | S77: -0.5459887695 | T77: 99.23269588
A78: 1.3 | B78: 199526.2315 | C78: 1253660.286 | D78: 1253660.28613816i | Q78: -1474.628881 | R78: -0.0953893506423918+0.741714791550166i | S78: -2.524018039 | T78: 97.32838397
A79: 1.4 | B79: 251188.6432 | C79: 1578264.792 | D79: 1578264.79197648i | Q79: -1474.628881 | R79: -0.0603093912865929+0.591881030042218i | S79: -4.510453517 | T79: 95.81804208
A80: 1.5 | B80: 316227.766 | C80: 1986917.653 | D80: 1986917.65315922i | Q80: -1474.628881 | R80: -0.0380999407449605+0.471504358823824i | S80: -6.50202086 | T80: 94.61975186
A81: 1.6 | B81: 398107.1706 | C81: 2501381.125 | D81: 2501381.12470457i | Q81: -1474.628881 | R81: -0.0240578462776156+0.375207469589132i | S81: -8.496752294 | T81: 93.66871352
A82: 1.7 | B82: 501187.2336 | C82: 3149052.262 | D82: 3149052.26247286i | Q82: -1474.628881 | R82: -0.0151866961249261+0.298377264518938i | S82: -10.49344929 | T82: 92.91370517
A83: 1.8 | B83: 630957.3445 | C83: 3964421.916 | D83: 3964421.916295i | Q83: -1474.628881 | R83: -0.00958500490980266+0.237179397085381i | S83: -12.49137381 | T83: 92.3142046
A84: 1.9 | B84: 794328.2347 | C84: 4990911.493 | D84: 4990911.49349751i | Q84: -1474.628881 | R84: -0.00604885588005747+0.188483390796859i | S84: -14.49006773 | T84: 91.83811955
A85: 2 | B85: 1000000 | C85: 6283185.307 | D85: 6283185.30717959i | Q85: -1474.628881 | R85: -0.00381701680642485+0.1497603108958i | S85: -16.48924502 | T85: 91.46001043
A86: 2.1 | B86: 1258925.412 | C86: 7910061.65 | D86: 7910061.65022012i | Q86: -1474.628881 | R86: -0.00240855220416514+0.118980203930797i | S86: -18.48872648 | T86: 91.15969738
A87: 2.2 | B87: 1584893.192 | C87: 9958177.62 | D87: 9958177.62032063i | Q87: -1474.628881 | R87: -0.00151976422173813+0.0945200390884537i | S87: -20.48839953 | T87: 90.92116523
A88: 2.3 | B88: 1995262.315 | C88: 12536602.86 | D88: 12536602.8613816i | Q88: -1474.628881 | R88: -0.00095893444358693+0.0750852997666929i | S88: -22.48819332 | T88: 90.73169994
A89: 2.4 | B89: 2511886.432 | C89: 15782647.92 | D89: 15782647.9197648i | Q89: -1474.628881 | R89: -0.000605057888305754+0.0596450617803996i | S89: -24.48806325 | T89: 90.58120611
A90: 2.5 | B90: 3162277.66 | C90: 19869176.53 | D90: 19869176.5315927i | Q90: -1474.628881 | R90: -0.000381770158865447+0.0473791038465095i | S90: -26.48798119 | T90: 90.46166651
A91: 2.6 | B91: 3981071.706 | C91: 25013811.25 | D91: 25013811.2470457i | Q91: -1474.628881 | R91: -0.000240882452949659+0.0376352351077566i | S91: -28.48792942 | T91: 90.36671378
A92: 2.7 | B92: 5011872.336 | C92: 31490522.62 | D92: 31490522.6247286i | Q92: -1474.628881 | R92: -0.000151987256311701+0.0298950682553927i | S92: -30.48789676 | T92: 90.29129063
A93: 2.8 | B93: 6309573.445 | C93: 39644219.16 | D93: 39644219.1629509i | Q93: -1474.628881 | R93: -0.0000958977556642265+0.0237466663885048i | S93: -32.48787615 | T93: 90.23138013
A94: 2.9 | B94: 7943282.347 | C94: 49909114.93 | D94: 49909114.9349762i | Q94: -1474.628881 | R94: -0.000060507504729181+0.0188627325908278i | S94: -34.48786315 | T94: 90.18379165
A95: 3 | B95: 10000000 | C95: 62831853.07 | D95: 62831853.0717974i | Q95: -1474.628881 | R95: -0.0000381776988817355+0.0149832436805992i | S95: -36.48785495 | T95: 90.14599084
A99: t | B99: N_FFT | C99: s_k(HZ) | D99: w(rad) | E99: s_k | F99: Gvc_k | G99: Gcv_k | H99: Zout_k | I99: Zout_k_CLOSED | J99: C(k) | K99: C_(k)*Zout_(k) | N99: IOUT | O99: IOUTac | P99: k=1 | Q99: k=2 | R99: k=3 | S99: k=4 | T99: k=5 | U99: k=6 | V99: k=7 | W99: k=8 | X99: k=9 | Y99: k=10 | Z99: k=11 | AA99: k=12 | AB99: k=13 | AC99: k=14 | AD99: k=15 | AE99: k=16 | AF99: k=17 | AG99: k=18 | AH99: k=19 | AI99: k=20 | AJ99: k=21 | AK99: k=22 | AL99: k=23 | AM99: k=24 | AN99: k=25 | AO99: k=26 | AP99: k=27 | AQ99: k=28 | AR99: k=29 | AS99: k=30 | AT99: k=31 | AU99: k=32 | AV99: k=33 | AW99: k=34 | AX99: k=35 | AY99: k=36 | AZ99: k=37 | BA99: k=38 | BB99: k=39 | BC99: k=40 | BD99: k=41 | BE99: k=42 | BF99: k=43 | BG99: k=44 | BH99: k=45 | BI99: k=46 | BJ99: k=47 | BK99: k=48 | BL99: k=49 | BM99: k=50 | BN99: k=51 | BO99: k=52 | BP99: k=53 | BQ99: k=54 | BR99: k=55 | BS99: k=56 | BT99: k=57 | BU99: k=58 | BV99: k=59 | BW99: k=60 | BX99: k=61 | BY99: k=62 | BZ99: k=63 | CA99: k=64 | CB99: 65 | CC99: 66 | CD99: 67 | CE99: 68 | CF99: 69 | CG99: 70 | CH99: 71 | CI99: 72 | CJ99: 73 | CK99: 74 | CL99: 75 | CM99: 76 | CN99: 77 | CO99: 78 | CP99: 79 | CQ99: 80 | CR99: 81 | CS99: 82 | CT99: 83 | CU99: 84 | CV99: 85 | CW99: 86 | CX99: 87 | CY99: 88 | CZ99: 89 | DA99: 90 | DB99: 91 | DC99: 92 | DD99: 93 | DE99: 94 | DF99: 95 | DG99: 96 | DH99: 97 | DI99: 98 | DJ99: 99 | DK99: 100 | DL99: 101 | DM99: 102 | DN99: 103 | DO99: 104 | DP99: 105 | DQ99: 106 | DR99: 107 | DS99: 108 | DT99: 109 | DU99: 110 | DV99: 111 | DW99: 112 | DX99: 113 | DY99: 114 | DZ99: 115 | EA99: 116 | EB99: 117 | EC99: 118 | ED99: 119 | EE99: 120 | EF99: 121 | EG99: 122 | EH99: 123 | EI99: 124 | EJ99: 125 | EK99: 126 | EL99: 127 | EM99: 128
A100: 0 | B100: 0 | C100: 0 | P100: =IMSUM(P101:P357) -> -1210.22066900192-1.13275732122246i | Q100: =IMSUM(Q101:Q357) -> 5.19549196789796+0.134838322718877i | R100: =IMSUM(R101:R357) -> 410.261926284872+1.13305306732018i | S100: 9.76014807168737-0.132712722713919i | T100: -232.29061755775-1.13334415712054i | U100: 5.19482552032253+0.13058641879848i | V100: 177.357676098565+1.13363058880947i | W100: 9.7608038462746-0.128459422225709i | X100: -123.556284885659-1.13391236058397i | Y100: 5.19418042242621+0.126331744248628i | Z100: 113.775212623343+1.13418947066808i | AA100: 9.76143826382963-0.12420339614646i | AB100: -81.6807527131441-1.1344619173365i | AC100: 5.193556688805+0.122074389168041i | AD100: 84.0549506728822+1.13472969888212i | AE100: 9.76205130999125-0.119944734591195i | AF100: -59.467608649629-1.13499281363219i | AG100: 5.19295433359195+0.117814443712839i | AH100: 66.8084199921961+1.13525125991825i | AI100: 9.76264297088588-0.115683527752221i | AJ100: -45.6795035273213-1.13550503610917i | AK100: 5.19237337035682+0.113551998062469i | AL100: 55.5259832654224+1.13575414060291i | AM100: 9.76321323314759-0.111419865971362i | AN100: -36.270892954286-1.13599857197193i | AO100: 5.19181381228896+0.109287142581646i | AP100: 47.5554707234855+1.13623832853132i | AQ100: 9.76376208385767-0.107153839364821i | AR100: 9.76376208385767-0.107153839364821i | AS100: 5.19127567199857+0.105019967620439i | AT100: 41.613484021108+1.1367038113635i | AU100: 9.76428951059129-0.10288553853197i | AV100: -24.216944142807-1.13692953471887i | AW100: 5.19075896180615+0.10075056355604i | AX100: 37.0032338881228+1.13715057750648i | AY100: 9.76479550142417-0.0986150539031261i | AZ100: -20.1068254226302-1.13736693828736i | BA100: 5.190263693277+0.0964790209420716i | BB100: 33.313707737548+1.13757861574686i | BC100: 9.76528004484716-0.0943424759830149i | BD100: -16.774304500451-1.13778560850147i | BE100: 5.18978987761633+0.0922054303068487i | BF100: 30.2867429861441+1.1379879153098i | BG100: 9.76574312997963-0.0900678953474685i | BH100: -14.0108162401794-1.13818553488711i | BI100: 5.18933752559265+0.0879298823868648i | BJ100: 27.7519770626129+1.13837846598291i | BK100: 9.76618474628719-0.0857914026367359i | BL100: -11.6758128857699-1.13856670740552i | BM100: 5.18890664749838+0.0836524676152557i | BN100: 25.5924083740675+1.13875025794455i | BO100: 9.76660488381295-0.0815130886098379i | BP100: -9.67108933262943-1.13892911647273i | BQ100: 5.1884972529935+0.0793732769187594i | BR100: 23.7249843667153+1.13910328186012i | BS100: 9.76700353301233-0.0772330439186284i | BT100: -7.92591793719085-1.13927275300393i | BU100: 5.1881093513887+0.0750924009903304i | BV100: 22.0890850661237+1.13943752889148i | BW100: 9.76738068483923-0.0729513594546258i | BX100: -6.38803099213771-1.13959760839985i | BY100: 5.18774295142013+0.0708099306459697i | BZ100: 20.639392872416+1.13975299063128i | CA100: 9.76773633082765-0.0686681259868829i | CB100: -5.01793174449763-1.13990367454105i | CC100: 5.18739806144521+0.0665259568183414i | CD100: =IMSUM(CD101:CD357) -> 19.3413154136803+1.14004965919029i | CE100: 9.7680704628309-0.0643834344591641i | CF100: -3.78518310163444-1.14019094365314i | CG100: 5.18707468925076+0.0622405703074005i | CH100: 18.1679544685841+1.14032752705726i | CI100: 9.76838307341694-0.0600973757415941i | CJ100: -2.66591530262758-1.14045940856479i | CK100: 5.18677284214692+0.0579538621388558i | CL100: 17.0980435928818+1.1405865873907i | CM100: 9.76867415534571-0.055810040850071i | CN100: -1.6411091193828-1.14070906259316i | CO100: 5.18649252698293+0.05366592331041i | CP100: 16.1145109252097+1.1408268335473i | CQ100: 9.76894370214762-0.0515215208090973i | CR100: -0.695386304012652-1.14093989943459i | CS100: 5.18623375010304+0.0493768447937617i | CT100: 15.20345605792+1.14104825959206i | CU100: 9.76919170768231-0.0472319065999862i | CV100: 0.18386003208427-1.14115191327753i | CW100: 5.18599651734989+0.0450867177014107i | CX100: 14.3534074726952+1.14125085990571i | CY100: 9.76941816625488-0.042941289362612i | CZ100: 1.00710230857434-1.14134509883417i | DA100: 5.18578083418575+0.0407956330471633i | DB100: 13.5547739405066+1.1414346294708i | DC100: 9.76962307286717-0.038649760121511i | DD100: 1.78315299643154-1.14151945123938i | DE100: 5.18558670531043+0.0365036819727056i | DF100: 12.7994324049362+1.14159956360216i | DG100: 9.76980642285156-0.0343574100157671i | DH100: 2.51952397314534-1.14167496611276i | DI100: 5.18541413527198+0.0322109556385124i | DJ100: 12.080413386966+1.14174565823797i | DK100: 9.76996821195915-0.03006433022591i | DL100: 3.22270302927978-1.14181163950561i | DM100: 5.18526312795952+0.0279175451557609i | DN100: 11.3916569797+1.14187290968702i | DO100: 9.7701084366213-0.0257706118973893i | DP100: 3.89837007286819-1.14192946816001i | DQ100: 5.18513368674162+0.0236235417794886i | DR100: 10.7278204715778+1.14198131467878i | DS100: 9.77022709364704-0.0214763462212786i | DT100: 4.55156905372745-1.14202844897267i | DU100: 5.1850258145887+0.0193290366056647i | DV100: 10.0841239954352+1.14207087061035i | DW100: 9.77032418032284-0.0171816243823524i | DX100: 5.18684720812127-1.14210857941653i | DY100: 5.18493951392943+0.0150341209234299i | DZ100: 9.45622426280077+1.14214157515582i | EA100: 9.77039969445769-0.0128865376088743i | EB100: 5.80837019041859-1.14216985759914i | EC100: 5.184874786738+0.0107388858855779i | ED100: 8.84010895838123+1.14219342658927i | EE100: 9.77045363437844-0.00859117712590707i | EF100: 6.42001956411611-1.14221228190741i | EG100: 5.18483163446584+0.00644342276445298i | EH100: 8.23200611370163+1.14222642355066i | EI100: 9.77048599877069-0.00429563419424761i | EJ100: 7.02547767877484-1.14223585134664i | EK100: 5.18481005809067+0.00214782278158299i | EL100: 7.62830397466435+1.14224056523037i | EM100: 9.77049678699159-6.28212449549087E-12i
A101: =A100+Div_Nt_load2 -> 1.953125e-05 | B101: 1 | C101: =C100+1/time_load2 -> 200 | D101: =2*PI()*C101 -> 1256.637061 | E101: =COMPLEX(0,D101) -> 1256.63706143592i | F101: =IF(freq_ratio2>1,IMPRODUCT(Kth_2/(2/rload2-Kfeed2/Gdc_ccm2),IMDIV(COMPLEX(1,Rc_2*Coutput2*microF2*miliOhm2*D101),IMSUM(1,IMPRODUCT(E101,1/omega1_2),IMPRODUCT(E101,E101,1/omega2_2),IMPRODUCT(E101,E101,E101,1/omega3_2)))),IMPRODUCT(Kth_2/(2/rload2-Kfeed2/Gdc_dcm2),(IMDIV(COMPLEX(1,Rc_2*Coutput2*microF2*miliOhm2*D101),IMSUM(1,IMDIV(E101,omegat2),IMDIV(IMPRODUCT(E101,E101),omegapole0^2*(1-2*Gdc_dcm2/(Kfeed2*rload2)))))))) ->  | G101: =IMPRODUCT(IMPRODUCT(-currentransferratio2*RFB_2/(Rfeedforward2),IMDIV(COMPLEX(1,(Rfeedforward2*kiliOhm2+q_Rz_Cz_2*Rzero2)*q_Rz_Cz_2*Czero2*nanoF2*D101),IMPRODUCT(COMPLEX(1,q_Rz_Cz_2*Rzero2*Czero2*nanoF2*D101),COMPLEX(1,D101/(2*PI()*F_roll2*kilihertz2))))),IMSUM(feedtype2,IMDIV(COMPLEX(1,Rvolt2*Cvolt2*nanoF2*kiliOhm2*D101),IMPRODUCT(Rupper2*kiliOhm2*(Cvolt2*nanoF2+Cforward2*picoF2),COMPLEX(1,Rvolt2*Cvolt2*Cforward2*picoF2*nanoF2*kiliOhm2*D101/(Cvolt2*nanoF2+Cforward2*picoF2)),E101)))) -> -2.71920786091552+1.10086655521369i | H101: =IF(freq_ratio2>1,IMPRODUCT(M35,IMDIV((IMPRODUCT(COMPLEX(1,Rc_2*Coutput2*microF2*miliOhm2*D101),IMSUM(1,IMDIV(E101,omega4_2),IMDIV(IMPRODUCT(E101,E101),omega5_2)))),IMSUM(1,IMPRODUCT(E101,1/omega1_2),IMPRODUCT(E101,E101,1/omega2_2),IMPRODUCT(E101,E101,E101,1/omega3_2)))),IMPRODUCT(M35,(IMDIV(IMPRODUCT(COMPLEX(1,Rc_2*Coutput2*microF2*miliOhm2*D101),COMPLEX(1,-Kfeed2*effectiveL2*PI()^2*D101/(8*ratio2^2*Gdc_dcm2))),IMSUM(1,IMDIV(E101,omegat2),IMDIV(IMPRODUCT(E101,E101),omegapole0^2*(1-2*Gdc_dcm2/(Kfeed2*rload2)))))))) ->  | I101: =IMDIV(IMPRODUCT(-1,H101),IMSUM(1,IMPRODUCT(F101,G101,-1))) ->  | J101: =IMPRODUCT(1/N_FFT2,P100) -> -4.72742448828875-0.00442483328602523i | K101: =IMPRODUCT(I101,J101) ->  | N101: =Ioutput2+O101 -> 7.52234018 | O101: =I_step2*(th_2/time_load2-0.5)+2*I_step2*(th_2/time_load2)*SUMPRODUCT((SIN(ROW(INDIRECT(1&":"&N_FFT2))*PI()*th_2/time_load2)/(ROW(INDIRECT(1&":"&N_FFT2))*PI()*th_2/time_load2))*(SIN(ROW(INDIRECT(1&":"&N_FFT2))*PI()*transient2/time_load2)/(ROW(INDIRECT(1&":"&N_FFT2))*PI()*transient2/time_load2))*COS(ROW(INDIRECT(1&":"&N_FFT2))*2*PI()*Div_Nt_load2*B101/time_load2-ROW(INDIRECT(1&":"&N_FFT2))*PI()*(time_load2-transient2)/time_load2)) -> -7.47765982 | P101: =IMPRODUCT(O101,IMEXP(COMPLEX(0,-2*PI()*1*B101/Nt_load2))) -> -7.47540768828143+0.183510958449777i | Q101: =IMPRODUCT(O101,IMEXP(COMPLEX(0,-2*PI()*2*B101/Nt_load2))) -> -7.46865265087969+0.3669113767601i | R101: =IMPRODUCT(O101,IMEXP(COMPLEX(0,-2*PI()*3*B101/Nt_load2))) -> -7.45739877639198+0.550090781376764i | S101: =IMPRODUCT(O101,IMEXP(COMPLEX(0,-2*PI()*4*B101/Nt_load2))) -> -7.44165284373147+0.732938831875944i | T101: =IMPRODUCT(O101,IMEXP(COMPLEX(0,-2*PI()*5*B101/Nt_load2))) -> -7.42142433765921+0.91534538742915i | U101: =IMPRODUCT(O101,IMEXP(COMPLEX(0,-2*PI()*6*B101/Nt_load2))) -> -7.39672544307088+1.09720057314794i | V101: =IMPRODUCT(O101,IMEXP(COMPLEX(0,-2*PI()*7*B101/Nt_load2))) -> -7.36757103765702+1.27839484626843i | W101: =IMPRODUCT(O101,IMEXP(COMPLEX(0,-2*PI()*8*B101/Nt_load2))) -> -7.3339786829413+1.4588190621358i | X101: =IMPRODUCT(O101,IMEXP(COMPLEX(0,-2*PI()*9*B101/Nt_load2))) -> -7.29596861370212+1.63836453994889i | Y101: =IMPRODUCT(O101,IMEXP(COMPLEX(0,-2*PI()*10*B101/Nt_load2))) -> -7.25356372578386+1.81692312822552i | Z101: =IMPRODUCT(O101,IMEXP(COMPLEX(0,-2*PI()*11*B101/Nt_load2))) -> -7.20678956230542+1.99438726994884i | AA101: =IMPRODUCT(O101,IMEXP(COMPLEX(0,-2*PI()*12*B101/Nt_load2))) -> -7.15567429827386+2.17065006735567i | AB101: =IMPRODUCT(O101,IMEXP(COMPLEX(0,-2*PI()*13*B101/Nt_load2))) -> -7.10024872361292+2.34560534632777i | AC101: =IMPRODUCT(O101,IMEXP(COMPLEX(0,-2*PI()*14*B101/Nt_load2))) -> -7.04054622461627+2.51914772034707i | AD101: =IMPRODUCT(O101,IMEXP(COMPLEX(0,-2*PI()*15*B101/Nt_load2))) -> -6.9766027638369+2.69117265397664i | AE101: =IMPRODUCT(O101,IMEXP(COMPLEX(0,-2*PI()*16*B101/Nt_load2))) -> -6.90845685842457+2.86157652582888i | AF101: =IMPRODUCT(O101,IMEXP(COMPLEX(0,-2*PI()*17*B101/Nt_load2))) -> -6.83614955692456+3.03025669098319i | AG101: =IMPRODUCT(O101,IMEXP(COMPLEX(0,-2*PI()*18*B101/Nt_load2))) -> -6.75972441455156+3.19711154281546i | AH101: =IMPRODUCT(O101,IMEXP(COMPLEX(0,-2*PI()*19*B101/Nt_load2))) -> -6.67922746695361+3.36204057420204i | AI101: =IMPRODUCT(O101,IMEXP(COMPLEX(0,-2*PI()*20*B101/Nt_load2))) -> -6.59470720248197+3.5249444380615i | AJ101: =IMPRODUCT(O101,IMEXP(COMPLEX(0,-2*PI()*21*B101/Nt_load2))) -> -6.50621453298354+3.68572500719765i | AK101: =IMPRODUCT(O101,IMEXP(COMPLEX(0,-2*PI()*22*B101/Nt_load2))) -> -6.41380276313347+3.84428543340759i | AL101: =IMPRODUCT(O101,IMEXP(COMPLEX(0,-2*PI()*23*B101/Nt_load2))) -> -6.31752755832642+4.00053020581954i | AM101: =IMPRODUCT(O101,IMEXP(COMPLEX(0,-2*PI()*24*B101/Nt_load2))) -> -6.21744691114581+4.15436520842496i | AN101: =IMPRODUCT(O101,IMEXP(COMPLEX(0,-2*PI()*25*B101/Nt_load2))) -> -6.11362110643124+4.30569777677054i | AO101: =IMPRODUCT(O101,IMEXP(COMPLEX(0,-2*PI()*26*B101/Nt_load2))) -> -6.00611268496517+4.45443675377582i | AP101: =IMPRODUCT(O101,IMEXP(COMPLEX(0,-2*PI()*27*B101/Nt_load2))) -> -5.89498640580069+4.60049254464273i | AQ101: =IMPRODUCT(O101,IMEXP(COMPLEX(0,-2*PI()*28*B101/Nt_load2))) -> -5.7803092072531+4.74377717082424i | AR101: =IMPRODUCT(O101,IMEXP(COMPLEX(0,-2*PI()*28*B101/Nt_load2))) -> -5.7803092072531+4.74377717082424i | AS101: =IMPRODUCT(O101,IMEXP(COMPLEX(0,-2*PI()*30*B101/Nt_load2))) -> -5.54058045836547+5.02168941316236i | AT101: =IMPRODUCT(O101,IMEXP(COMPLEX(0,-2*PI()*31*B101/Nt_load2))) -> -5.41567331165973+5.15614962537597i | AU101: =IMPRODUCT(O101,IMEXP(COMPLEX(0,-2*PI()*32*B101/Nt_load2))) -> -5.28750396585612+5.28750396585611i | AV101: =IMPRODUCT(O101,IMEXP(COMPLEX(0,-2*PI()*33*B101/Nt_load2))) -> -5.15614962537597+5.41567331165973i | AW101: =IMPRODUCT(O101,IMEXP(COMPLEX(0,-2*PI()*34*B101/Nt_load2))) -> -5.02168941316235+5.54058045836547i | AX101: =IMPRODUCT(O101,IMEXP(COMPLEX(0,-2*PI()*35*B101/Nt_load2))) -> -4.88420432301932+5.66215016657874i | AY101: =IMPRODUCT(O101,IMEXP(COMPLEX(0,-2*PI()*36*B101/Nt_load2))) -> -4.74377717082425+5.7803092072531i | AZ101: =IMPRODUCT(O101,IMEXP(COMPLEX(0,-2*PI()*37*B101/Nt_load2))) -> -4.60049254464272+5.8949864058007i | BA101: =IMPRODUCT(O101,IMEXP(COMPLEX(0,-2*PI()*38*B101/Nt_load2))) -> -4.45443675377581+6.00611268496517i | BB101: =IMPRODUCT(O101,IMEXP(COMPLEX(0,-2*PI()*39*B101/Nt_load2))) -> -4.30569777677054+6.11362110643124i | BC101: =IMPRODUCT(O101,IMEXP(COMPLEX(0,-2*PI()*40*B101/Nt_load2))) -> -4.15436520842496+6.21744691114581i | BD101: =IMPRODUCT(O101,IMEXP(COMPLEX(0,-2*PI()*41*B101/Nt_load2))) -> -4.00053020581954+6.31752755832642i | BE101: =IMPRODUCT(O101,IMEXP(COMPLEX(0,-2*PI()*42*B101/Nt_load2))) -> -3.84428543340759+6.41380276313347i | BF101: =IMPRODUCT(O101,IMEXP(COMPLEX(0,-2*PI()*43*B101/Nt_load2))) -> -3.68572500719765+6.50621453298353i | BG101: =IMPRODUCT(O101,IMEXP(COMPLEX(0,-2*PI()*44*B101/Nt_load2))) -> -3.52494443806151+6.59470720248196i | BH101: =IMPRODUCT(O101,IMEXP(COMPLEX(0,-2*PI()*45*B101/Nt_load2))) -> -3.36204057420205+6.67922746695361i | BI101: =IMPRODUCT(O101,IMEXP(COMPLEX(0,-2*PI()*46*B101/Nt_load2))) -> -3.19711154281548+6.75972441455156i | BJ101: =IMPRODUCT(O101,IMEXP(COMPLEX(0,-2*PI()*47*B101/Nt_load2))) -> -3.03025669098321+6.83614955692456i | BK101: =IMPRODUCT(O101,IMEXP(COMPLEX(0,-2*PI()*48*B101/Nt_load2))) -> -2.8615765258289+6.90845685842456i | BL101: =IMPRODUCT(O101,IMEXP(COMPLEX(0,-2*PI()*49*B101/Nt_load2))) -> -2.69117265397666+6.97660276383689i | BM101: =IMPRODUCT(O101,IMEXP(COMPLEX(0,-2*PI()*50*B101/Nt_load2))) -> -2.5191477203471+7.04054622461627i | BN101: =IMPRODUCT(O101,IMEXP(COMPLEX(0,-2*PI()*51*B101/Nt_load2))) -> -2.3456053463278+7.10024872361291i | BO101: =IMPRODUCT(O101,IMEXP(COMPLEX(0,-2*PI()*52*B101/Nt_load2))) -> -2.1706500673557+7.15567429827385i | BP101: =IMPRODUCT(O101,IMEXP(COMPLEX(0,-2*PI()*53*B101/Nt_load2))) -> -1.99438726994886+7.20678956230541i | BQ101: =IMPRODUCT(O101,IMEXP(COMPLEX(0,-2*PI()*54*B101/Nt_load2))) -> -1.81692312822555+7.25356372578386i | BR101: =IMPRODUCT(O101,IMEXP(COMPLEX(0,-2*PI()*55*B101/Nt_load2))) -> -1.63836453994893+7.29596861370211i | BS101: =IMPRODUCT(O101,IMEXP(COMPLEX(0,-2*PI()*56*B101/Nt_load2))) -> -1.45881906213584+7.3339786829413i | BT101: =IMPRODUCT(O101,IMEXP(COMPLEX(0,-2*PI()*57*B101/Nt_load2))) -> -1.27839484626847+7.36757103765701i | BU101: =IMPRODUCT(O101,IMEXP(COMPLEX(0,-2*PI()*58*B101/Nt_load2))) -> -1.0972005731479+7.39672544307089i | BV101: =IMPRODUCT(O101,IMEXP(COMPLEX(0,-2*PI()*59*B101/Nt_load2))) -> -0.91534538742912+7.42142433765922i | BW101: =IMPRODUCT(O101,IMEXP(COMPLEX(0,-2*PI()*60*B101/Nt_load2))) -> -0.73293883187591+7.44165284373147i | BX101: =IMPRODUCT(O101,IMEXP(COMPLEX(0,-2*PI()*61*B101/Nt_load2))) -> -0.550090781376732+7.45739877639198i | BY101: =IMPRODUCT(O101,IMEXP(COMPLEX(0,-2*PI()*62*B101/Nt_load2))) -> -0.366911376760071+7.4686526508797i | BZ101: =IMPRODUCT(O101,IMEXP(COMPLEX(0,-2*PI()*63*B101/Nt_load2))) -> -0.18351095844975+7.47540768828143i | CA101: =IMPRODUCT(O101,IMEXP(COMPLEX(0,-2*PI()*64*B101/Nt_load2))) -> 2.61081097184037E-14+7.47765981961524i | CB101: =IMPRODUCT(O101,IMEXP(COMPLEX(0,-2*PI()*65*B101/Nt_load2))) -> 0.183510958449801+7.47540768828143i | CC101: =IMPRODUCT(O101,IMEXP(COMPLEX(0,-2*PI()*66*B101/Nt_load2))) -> 0.366911376760122+7.46865265087969i | CD101: =IMPRODUCT(O101,IMEXP(COMPLEX(0,-2*PI()*67*B101/Nt_load2))) -> 0.550090781376782+7.45739877639198i | CE101: =IMPRODUCT(O101,IMEXP(COMPLEX(0,-2*PI()*68*B101/Nt_load2))) -> 0.732938831875961+7.44165284373147i | CF101: =IMPRODUCT(O101,IMEXP(COMPLEX(0,-2*PI()*69*B101/Nt_load2))) -> 0.915345387429165+7.42142433765921i | CG101: =IMPRODUCT(O101,IMEXP(COMPLEX(0,-2*PI()*70*B101/Nt_load2))) -> 1.09720057314796+7.39672544307088i | CH101: =IMPRODUCT(O101,IMEXP(COMPLEX(0,-2*PI()*71*B101/Nt_load2))) -> 1.27839484626845+7.36757103765702i | CI101: =IMPRODUCT(O101,IMEXP(COMPLEX(0,-2*PI()*72*B101/Nt_load2))) -> 1.45881906213581+7.3339786829413i | CJ101: =IMPRODUCT(O101,IMEXP(COMPLEX(0,-2*PI()*73*B101/Nt_load2))) -> 1.6383645399489+7.29596861370211i | CK101: =IMPRODUCT(O101,IMEXP(COMPLEX(0,-2*PI()*74*B101/Nt_load2))) -> 1.81692312822553+7.25356372578386i | CL101: =IMPRODUCT(O101,IMEXP(COMPLEX(0,-2*PI()*75*B101/Nt_load2))) -> 1.99438726994884+7.20678956230542i | CM101: =IMPRODUCT(O101,IMEXP(COMPLEX(0,-2*PI()*76*B101/Nt_load2))) -> 2.17065006735568+7.15567429827386i | CN101: =IMPRODUCT(O101,IMEXP(COMPLEX(0,-2*PI()*77*B101/Nt_load2))) -> 2.34560534632777+7.10024872361292i | CO101: =IMPRODUCT(O101,IMEXP(COMPLEX(0,-2*PI()*78*B101/Nt_load2))) -> 2.51914772034707+7.04054622461627i | CP101: =IMPRODUCT(O101,IMEXP(COMPLEX(0,-2*PI()*79*B101/Nt_load2))) -> 2.69117265397664+6.9766027638369i | CQ101: =IMPRODUCT(O101,IMEXP(COMPLEX(0,-2*PI()*80*B101/Nt_load2))) -> 2.86157652582887+6.90845685842457i | CR101: =IMPRODUCT(O101,IMEXP(COMPLEX(0,-2*PI()*81*B101/Nt_load2))) -> 3.03025669098319+6.83614955692456i | CS101: =IMPRODUCT(O101,IMEXP(COMPLEX(0,-2*PI()*82*B101/Nt_load2))) -> 3.19711154281545+6.75972441455156i | CT101: =IMPRODUCT(O101,IMEXP(COMPLEX(0,-2*PI()*83*B101/Nt_load2))) -> 3.36204057420202+6.67922746695361i | CU101: =IMPRODUCT(O101,IMEXP(COMPLEX(0,-2*PI()*84*B101/Nt_load2))) -> 3.52494443806149+6.59470720248198i | CV101: =IMPRODUCT(O101,IMEXP(COMPLEX(0,-2*PI()*85*B101/Nt_load2))) -> 3.68572500719763+6.50621453298355i | CW101: =IMPRODUCT(O101,IMEXP(COMPLEX(0,-2*PI()*86*B101/Nt_load2))) -> 3.84428543340758+6.41380276313348i | CX101: =IMPRODUCT(O101,IMEXP(COMPLEX(0,-2*PI()*87*B101/Nt_load2))) -> 4.00053020581952+6.31752755832643i | CY101: =IMPRODUCT(O101,IMEXP(COMPLEX(0,-2*PI()*88*B101/Nt_load2))) -> 4.15436520842494+6.21744691114582i | CZ101: =IMPRODUCT(O101,IMEXP(COMPLEX(0,-2*PI()*89*B101/Nt_load2))) -> 4.30569777677053+6.11362110643124i | DA101: =IMPRODUCT(O101,IMEXP(COMPLEX(0,-2*PI()*90*B101/Nt_load2))) -> 4.45443675377579+6.00611268496518i | DB101: =IMPRODUCT(O101,IMEXP(COMPLEX(0,-2*PI()*91*B101/Nt_load2))) -> 4.60049254464271+5.89498640580071i | DC101: =IMPRODUCT(O101,IMEXP(COMPLEX(0,-2*PI()*92*B101/Nt_load2))) -> 4.74377717082423+5.78030920725312i | DD101: =IMPRODUCT(O101,IMEXP(COMPLEX(0,-2*PI()*93*B101/Nt_load2))) -> 4.88420432301929+5.66215016657876i | DE101: =IMPRODUCT(O101,IMEXP(COMPLEX(0,-2*PI()*94*B101/Nt_load2))) -> 5.02168941316233+5.5405804583655i | DF101: =IMPRODUCT(O101,IMEXP(COMPLEX(0,-2*PI()*95*B101/Nt_load2))) -> 5.15614962537595+5.41567331165976i | DG101: =IMPRODUCT(O101,IMEXP(COMPLEX(0,-2*PI()*96*B101/Nt_load2))) -> 5.28750396585609+5.28750396585614i | DH101: =IMPRODUCT(O101,IMEXP(COMPLEX(0,-2*PI()*97*B101/Nt_load2))) -> 5.41567331165976+5.15614962537594i | DI101: =IMPRODUCT(O101,IMEXP(COMPLEX(0,-2*PI()*98*B101/Nt_load2))) -> 5.5405804583655+5.02168941316233i | DJ101: =IMPRODUCT(O101,IMEXP(COMPLEX(0,-2*PI()*99*B101/Nt_load2))) -> 5.66215016657876+4.88420432301929i | DK101: =IMPRODUCT(O101,IMEXP(COMPLEX(0,-2*PI()*100*B101/Nt_load2))) -> 5.78030920725312+4.74377717082422i | DL101: =IMPRODUCT(O101,IMEXP(COMPLEX(0,-2*PI()*101*B101/Nt_load2))) -> 5.89498640580071+4.60049254464271i | DM101: =IMPRODUCT(O101,IMEXP(COMPLEX(0,-2*PI()*102*B101/Nt_load2))) -> 6.00611268496518+4.4544367537758i | DN101: =IMPRODUCT(O101,IMEXP(COMPLEX(0,-2*PI()*103*B101/Nt_load2))) -> 6.11362110643125+4.30569777677053i | DO101: =IMPRODUCT(O101,IMEXP(COMPLEX(0,-2*PI()*104*B101/Nt_load2))) -> 6.21744691114582+4.15436520842494i | DP101: =IMPRODUCT(O101,IMEXP(COMPLEX(0,-2*PI()*105*B101/Nt_load2))) -> 6.31752755832643+4.00053020581952i | DQ101: =IMPRODUCT(O101,IMEXP(COMPLEX(0,-2*PI()*106*B101/Nt_load2))) -> 6.41380276313348+3.84428543340757i | DR101: =IMPRODUCT(O101,IMEXP(COMPLEX(0,-2*PI()*107*B101/Nt_load2))) -> 6.50621453298354+3.68572500719763i | DS101: =IMPRODUCT(O101,IMEXP(COMPLEX(0,-2*PI()*108*B101/Nt_load2))) -> 6.59470720248198+3.52494443806149i | DT101: =IMPRODUCT(O101,IMEXP(COMPLEX(0,-2*PI()*109*B101/Nt_load2))) -> 6.67922746695361+3.36204057420202i | DU101: =IMPRODUCT(O101,IMEXP(COMPLEX(0,-2*PI()*110*B101/Nt_load2))) -> 6.75972441455156+3.19711154281545i | DV101: =IMPRODUCT(O101,IMEXP(COMPLEX(0,-2*PI()*111*B101/Nt_load2))) -> 6.83614955692456+3.03025669098319i | DW101: =IMPRODUCT(O101,IMEXP(COMPLEX(0,-2*PI()*112*B101/Nt_load2))) -> 6.90845685842457+2.86157652582887i | DX101: =IMPRODUCT(O101,IMEXP(COMPLEX(0,-2*PI()*113*B101/Nt_load2))) -> 6.9766027638369+2.69117265397664i | DY101: =IMPRODUCT(O101,IMEXP(COMPLEX(0,-2*PI()*114*B101/Nt_load2))) -> 7.04054622461627+2.51914772034707i | DZ101: =IMPRODUCT(O101,IMEXP(COMPLEX(0,-2*PI()*115*B101/Nt_load2))) -> 7.10024872361292+2.34560534632777i | EA101: =IMPRODUCT(O101,IMEXP(COMPLEX(0,-2*PI()*116*B101/Nt_load2))) -> 7.15567429827386+2.17065006735567i | EB101: =IMPRODUCT(O101,IMEXP(COMPLEX(0,-2*PI()*117*B101/Nt_load2))) -> 7.20678956230542+1.99438726994884i | EC101: =IMPRODUCT(O101,IMEXP(COMPLEX(0,-2*PI()*118*B101/Nt_load2))) -> 7.25356372578386+1.81692312822552i | ED101: =IMPRODUCT(O101,IMEXP(COMPLEX(0,-2*PI()*119*B101/Nt_load2))) -> 7.29596861370211+1.6383645399489i | EE101: =IMPRODUCT(O101,IMEXP(COMPLEX(0,-2*PI()*120*B101/Nt_load2))) -> 7.3339786829413+1.45881906213581i | EF101: =IMPRODUCT(O101,IMEXP(COMPLEX(0,-2*PI()*121*B101/Nt_load2))) -> 7.36757103765702+1.27839484626845i | EG101: =IMPRODUCT(O101,IMEXP(COMPLEX(0,-2*PI()*122*B101/Nt_load2))) -> 7.39672544307088+1.09720057314796i | EH101: =IMPRODUCT(O101,IMEXP(COMPLEX(0,-2*PI()*123*B101/Nt_load2))) -> 7.42142433765921+0.915345387429165i | EI101: =IMPRODUCT(O101,IMEXP(COMPLEX(0,-2*PI()*124*B101/Nt_load2))) -> 7.44165284373147+0.732938831875959i | EJ101: =IMPRODUCT(O101,IMEXP(COMPLEX(0,-2*PI()*125*B101/Nt_load2))) -> 7.45739877639198+0.550090781376782i | EK101: =IMPRODUCT(O101,IMEXP(COMPLEX(0,-2*PI()*126*B101/Nt_load2))) -> 7.46865265087969+0.366911376760119i | EL101: =IMPRODUCT(O101,IMEXP(COMPLEX(0,-2*PI()*127*B101/Nt_load2))) -> 7.47540768828143+0.1835109584498i | EM101: =IMPRODUCT(O101,IMEXP(COMPLEX(0,-2*PI()*128*B101/Nt_load2))) -> 7.47765981961524+2.41609855020639E-14i
A102: =A101+Div_Nt_load2 -> 3.90625e-05 | B102: 2 | C102: =C101+1/time_load2 -> 400 | D102: =2*PI()*C102 -> 2513.274123 | E102: =COMPLEX(0,D102) -> 2513.27412287183i | F102: =IF(freq_ratio2>1,IMPRODUCT(Kth_2/(2/rload2-Kfeed2/Gdc_ccm2),IMDIV(COMPLEX(1,Rc_2*Coutput2*microF2*miliOhm2*D102),IMSUM(1,IMPRODUCT(E102,1/omega1_2),IMPRODUCT(E102,E102,1/omega2_2),IMPRODUCT(E102,E102,E102,1/omega3_2)))),IMPRODUCT(Kth_2/(2/rload2-Kfeed2/Gdc_dcm2),(IMDIV(COMPLEX(1,Rc_2*Coutput2*microF2*miliOhm2*D102),IMSUM(1,IMDIV(E102,omegat2),IMDIV(IMPRODUCT(E102,E102),omegapole0^2*(1-2*Gdc_dcm2/(Kfeed2*rload2)))))))) ->  | G102: =IMPRODUCT(IMPRODUCT(-currentransferratio2*RFB_2/(Rfeedforward2),IMDIV(COMPLEX(1,(Rfeedforward2*kiliOhm2+q_Rz_Cz_2*Rzero2)*q_Rz_Cz_2*Czero2*nanoF2*D102),IMPRODUCT(COMPLEX(1,q_Rz_Cz_2*Rzero2*Czero2*nanoF2*D102),COMPLEX(1,D102/(2*PI()*F_roll2*kilihertz2))))),IMSUM(feedtype2,IMDIV(COMPLEX(1,Rvolt2*Cvolt2*nanoF2*kiliOhm2*D102),IMPRODUCT(Rupper2*kiliOhm2*(Cvolt2*nanoF2+Cforward2*picoF2),COMPLEX(1,Rvolt2*Cvolt2*Cforward2*picoF2*nanoF2*kiliOhm2*D102/(Cvolt2*nanoF2+Cforward2*picoF2)),E102)))) -> -2.72812912521863+0.442026658272159i | I102: =IMDIV(IMPRODUCT(-1,H102),IMSUM(1,IMPRODUCT(F102,G102,-1))) ->  | J102: =IMPRODUCT(1/N_FFT2,Q100) -> 0.0202948904996014+0.000526712198120613i | K102: =IMPRODUCT(I102,J102) ->  | N102: =Ioutput2+O102 -> 7.52234324 | O102: -7.47765676 | P102: -7.46864959449136+0.36691122660937i | Q102: -7.44164979839224+0.73293853193621i | R102: -7.39672241611724+1.09720012414178i | S102: -7.33397568166545+1.45881846514491i | T102: -7.25356075741613+1.81692238468811i | U102: -7.15567136996531+2.17064917906298i | V102: -7.04054334342146+2.51914668943908i | W102: -6.90845403128453+2.86157535478914i | X102: -6.75972164827713+3.1971102344651i | Y102: -6.59470450373735+3.52494299555245i | Z102: -6.41380013842017+3.84428386021498i | AA102: -6.217444366787+4.15436350833875i | AB102: -6.00611022709042+4.45443493089168i | AC102: -5.78030684178366+4.74377522953365i | AD102: -5.54057819099996+5.02168735814205i | AE102: -5.28750180205681+5.28750180205681i | AF102: -5.02168735814204+5.54057819099996i | AG102: -4.74377522953365+5.78030684178366i | AH102: -4.45443493089167+6.00611022709042i | AI102: -4.15436350833876+6.217444366787i | AJ102: -3.84428386021498+6.41380013842017i | AK102: -3.52494299555246+6.59470450373735i | AL102: -3.19711023446511+6.75972164827713i | AM102: -2.86157535478915+6.90845403128453i | AN102: -2.51914668943911+7.04054334342145i | AO102: -2.17064917906301+7.15567136996531i | AP102: -1.81692238468814+7.25356075741613i | AQ102: -1.45881846514495+7.33397568166545i | AR102: -1.45881846514495+7.33397568166545i | AS102: -0.732938531936176+7.44164979839224i | AT102: -0.366911226609341+7.46864959449137i | AU102: 2.61080990342113E-14+7.47765675954092i | AV102: 0.366911226609391+7.46864959449136i | AW102: 0.732938531936227+7.44164979839224i | AX102: 1.0972001241418+7.39672241611724i | AY102: 1.45881846514492+7.33397568166545i | AZ102: 1.81692238468812+7.25356075741613i | BA102: 2.17064917906299+7.15567136996531i | BB102: 2.51914668943908+7.04054334342146i | BC102: 2.86157535478913+6.90845403128453i | BD102: 3.19711023446509+6.75972164827714i | BE102: 3.52494299555244+6.59470450373736i | BF102: 3.84428386021497+6.41380013842018i | BG102: 4.15436350833874+6.21744436678701i | BH102: 4.45443493089165+6.00611022709044i | BI102: 4.74377522953363+5.78030684178368i | BJ102: 5.02168735814202+5.54057819099998i | BK102: 5.28750180205678+5.28750180205684i | BL102: 5.54057819099998+5.02168735814202i | BM102: 5.78030684178369+4.74377522953362i | BN102: 6.00611022709044+4.45443493089165i | BO102: 6.21744436678701+4.15436350833874i | BP102: 6.41380013842018+3.84428386021496i | BQ102: 6.59470450373736+3.52494299555244i | BR102: 6.75972164827714+3.19711023446509i | BS102: 6.90845403128453+2.86157535478913i | BT102: 7.04054334342146+2.51914668943908i | BU102: 7.15567136996531+2.17064917906298i | BV102: 7.25356075741613+1.81692238468811i | BW102: 7.33397568166545+1.45881846514492i | BX102: 7.39672241611724+1.0972001241418i | BY102: 7.44164979839224+0.732938531936225i | BZ102: 7.46864959449136+0.366911226609389i | CA102: 7.47765675954092+2.4160975614691E-14i | CB102: 7.46864959449137-0.366911226609341i | CC102: 7.44164979839224-0.732938531936177i | CD102: 7.39672241611725-1.09720012414175i | CE102: 7.33397568166545-1.45881846514495i | CF102: 7.25356075741613-1.81692238468814i | CG102: 7.15567136996531-2.17064917906301i | CH102: 7.04054334342145-2.51914668943911i | CI102: 6.90845403128453-2.86157535478915i | CJ102: 6.75972164827713-3.19711023446511i | CK102: 6.59470450373735-3.52494299555246i | CL102: 6.41380013842017-3.84428386021499i | CM102: 6.217444366787-4.15436350833876i | CN102: 6.00611022709042-4.45443493089167i | CO102: 5.78030684178366-4.74377522953365i | CP102: 5.54057819099997-5.02168735814204i | CQ102: 5.28750180205682-5.2875018020568i | CR102: 5.02168735814206-5.54057819099995i | CS102: 4.74377522953366-5.78030684178366i | CT102: 4.45443493089169-6.00611022709041i | CU102: 4.15436350833877-6.21744436678698i | CV102: 3.84428386021501-6.41380013842016i | CW102: 3.52494299555249-6.59470450373734i | CX102: 3.19711023446514-6.75972164827712i | CY102: 2.8615753547891-6.90845403128455i | CZ102: 2.51914668943906-7.04054334342146i | DA102: 2.17064917906296-7.15567136996532i | DB102: 1.8169223846881-7.25356075741614i | DC102: 1.4588184651449-7.33397568166546i | DD102: 1.09720012414177-7.39672241611724i | DE102: 0.732938531936203-7.44164979839224i | DF102: 0.366911226609363-7.46864959449136i | DG102: 1.37362326235415E-15-7.47765675954092i | DH102: -0.366911226609368-7.46864959449136i | DI102: -0.732938531936206-7.44164979839224i | DJ102: -1.09720012414177-7.39672241611724i | DK102: -1.45881846514491-7.33397568166546i | DL102: -1.81692238468809-7.25356075741614i | DM102: -2.17064917906296-7.15567136996532i | DN102: -2.51914668943906-7.04054334342146i | DO102: -2.86157535478911-6.90845403128454i | DP102: -3.19711023446507-6.75972164827715i | DQ102: -3.52494299555242-6.59470450373738i | DR102: -3.84428386021501-6.41380013842016i | DS102: -4.15436350833878-6.21744436678698i | DT102: -4.45443493089169-6.00611022709041i | DU102: -4.74377522953367-5.78030684178365i | DV102: -5.02168735814206-5.54057819099995i | DW102: -5.28750180205682-5.2875018020568i | DX102: -5.54057819099997-5.02168735814203i | DY102: -5.78030684178367-4.74377522953365i | DZ102: -6.00611022709042-4.45443493089167i | EA102: -6.217444366787-4.15436350833875i | EB102: -6.41380013842017-3.84428386021499i | EC102: -6.59470450373735-3.52494299555246i | ED102: -6.75972164827713-3.19711023446511i | EE102: -6.90845403128453-2.86157535478915i | EF102: -7.04054334342145-2.5191466894391i | EG102: -7.15567136996531-2.17064917906301i | EH102: -7.25356075741613-1.81692238468814i | EI102: -7.33397568166545-1.45881846514494i | EJ102: -7.39672241611724-1.09720012414182i | EK102: -7.44164979839224-0.732938531936176i | EL102: -7.46864959449137-0.366911226609338i | EM102: -7.47765675954092+2.47344757718572E-14i
A103: 5.859375e-05 | B103: 3 | C103: 600 | D103: 3769.911184 | E103: 3769.91118430775i | G103: -2.74291178646029+0.175341925627024i | J103: =IMPRODUCT(1/N_FFT2,R100) -> 1.60258564955028+0.00442598854421945i | N103: 7.522357139 | O103: -7.477642861 | P103: -7.45738186349572+0.550089533806586i | Q103: -7.3967086677778+1.09719808476828i | R103: -7.29595206691898+1.63836082424448i | S103: -7.15565806966913+2.17064514446224i | T103: -6.97658694135478+2.69116655057178i | U103: -6.75970908393545+3.19710429197405i | V103: -6.50619977731139+3.68571664821262i | W103: -6.21743281037987+4.15435578659438i | X103: -5.89497303635425+4.60048211102432i | Y103: -5.54056789268871+5.0216780242968i | Z103: -5.15613793156338+5.41566102926427i | AA103: -4.74376641224561+5.7802960978871i | AB103: -4.30568801172753+6.11360724113549i | AC103: -3.84427671481781+6.41378821704521i | AD103: -3.3620329493123+6.67921231889935i | AE103: -2.86157003595912+6.90844119049293i | AF103: -2.34560002664716+7.10023262070979i | AG103: -1.81691900756186+7.25354727517226i | AH103: -1.27839194695196+7.36755432848423i | AI103: -0.732937169618225+7.44163596654596i | AJ103: -0.18351054225881+7.47539073454213i | AK103: 0.366910544628941+7.46863571246038i | AL103: 0.915343311485254+7.42140750635064i | AM103: 1.45881575362889+7.3339620499538i | AN103: 1.99438274680799+7.20677321777459i | AO103: 2.5191420070836+7.04053025711454i | AP103: 3.03024981855775+6.8361340529812i | AQ103: 3.52493644371636+6.5946922461142i | AR103: 3.52493644371636+6.5946922461142i | AS103: 4.45442665140243+6.00609906349155i | AT103: 4.88419324596099+5.6621373251898i | AU103: 5.28749197414038+5.28749197414043i | AV103: 5.6621373251898+4.88419324596099i | AW103: 6.00609906349155+4.45442665140244i | AX103: 6.31751323058409+4.00052113287674i | AY103: 6.5946922461142+3.52493644371636i | AZ103: 6.8361340529812+3.03024981855775i | BA103: 7.04053025711454+2.51914200708359i | BB103: 7.20677321777459+1.99438274680799i | BC103: 7.3339620499538+1.45881575362889i | BD103: 7.42140750635064+0.915343311485254i | BE103: 7.46863571246038+0.366910544628938i | BF103: 7.47539073454213-0.183510542258813i | BG103: 7.44163596654596-0.732937169618226i | BH103: 7.36755432848423-1.27839194695196i | BI103: 7.25354727517226-1.81691900756186i | BJ103: 7.10023262070979-2.34560002664716i | BK103: 6.90844119049293-2.86157003595912i | BL103: 6.67921231889935-3.3620329493123i | BM103: 6.4137882170452-3.84427671481782i | BN103: 6.11360724113548-4.30568801172754i | BO103: 5.7802960978871-4.74376641224561i | BP103: 5.41566102926428-5.15613793156337i | BQ103: 5.02167802429681-5.5405678926887i | BR103: 4.60048211102434-5.89497303635423i | BS103: 4.1543557865944-6.21743281037986i | BT103: 3.68571664821265-6.50619977731137i | BU103: 3.19710429197409-6.75970908393544i | BV103: 2.69116655057176-6.97658694135478i | BW103: 2.17064514446222-7.15565806966914i | BX103: 1.63836082424447-7.29595206691898i | BY103: 1.09719808476826-7.3967086677778i | BZ103: 0.550089533806578-7.45738186349572i | CA103: 1.37362070919103E-15-7.47764286076825i | CB103: -0.550089533806582-7.45738186349572i | CC103: -1.09719808476826-7.3967086677778i | CD103: -1.63836082424447-7.29595206691898i | CE103: -2.17064514446222-7.15565806966914i | CF103: -2.69116655057175-6.97658694135478i | CG103: -3.19710429197402-6.75970908393547i | CH103: -3.68571664821265-6.50619977731137i | CI103: -4.15435578659441-6.21743281037986i | CJ103: -4.60048211102434-5.89497303635423i | CK103: -5.02167802429681-5.5405678926887i | CL103: -5.41566102926428-5.15613793156337i | CM103: -5.78029609788711-4.74376641224561i | CN103: -6.11360724113549-4.30568801172753i | CO103: -6.41378821704521-3.84427671481782i | CP103: -6.67921231889935-3.3620329493123i | CQ103: -6.90844119049293-2.86157003595912i | CR103: -7.10023262070979-2.34560002664715i | CS103: -7.25354727517226-1.81691900756186i | CT103: -7.36755432848425-1.27839194695188i | CU103: -7.44163596654596-0.732937169618225i | CV103: -7.47539073454213-0.183510542258812i | CW103: -7.46863571246038+0.366910544628943i | CX103: -7.42140750635064+0.915343311485254i | CY103: -7.3339620499538+1.45881575362889i | CZ103: -7.20677321777459+1.99438274680799i | DA103: -7.04053025711454+2.5191420070836i | DB103: -6.8361340529812+3.03024981855775i | DC103: -6.5946922461142+3.52493644371636i | DD103: -6.31751323058409+4.00052113287674i | DE103: -6.00609906349155+4.45442665140244i | DF103: -5.6621373251898+4.88419324596099i | DG103: -5.28749197414043+5.28749197414038i | DH103: -4.88419324596098+5.6621373251898i | DI103: -4.45442665140243+6.00609906349155i | DJ103: -4.00052113287674+6.31751323058409i | DK103: -3.52493644371636+6.5946922461142i | DL103: -3.03024981855775+6.8361340529812i | DM103: -2.51914200708359+7.04053025711454i | DN103: -1.99438274680799+7.20677321777459i | DO103: -1.45881575362889+7.3339620499538i | DP103: -0.915343311485254+7.42140750635064i | DQ103: -0.36691054462894+7.46863571246038i | DR103: 0.183510542258814+7.47539073454213i | DS103: 0.732937169618227+7.44163596654596i | DT103: 1.27839194695188+7.36755432848425i | DU103: 1.81691900756186+7.25354727517226i | DV103: 2.34560002664715+7.10023262070979i | DW103: 2.86157003595912+6.90844119049293i | DX103: 3.36203294931231+6.67921231889935i | DY103: 3.84427671481782+6.4137882170452i | DZ103: 4.30568801172754+6.11360724113548i | EA103: 4.74376641224561+5.78029609788711i | EB103: 5.15613793156337+5.41566102926428i | EC103: 5.5405678926887+5.0216780242968i | ED103: 5.89497303635424+4.60048211102434i | EE103: 6.21743281037986+4.1543557865944i | EF103: 6.50619977731137+3.68571664821265i | EG103: 6.75970908393545+3.19710429197408i | EH103: 6.97658694135478+2.69116655057176i | EI103: 7.15565806966914+2.17064514446221i | EJ103: 7.29595206691898+1.63836082424447i | EK103: 7.3967086677778+1.09719808476826i | EL103: 7.45738186349572+0.550089533806579i | EM103: 7.47764286076825+2.74724141838207E-15i
A104: 7.8125e-05 | B104: 4 | C104: 800 | D104: 5026.548246 | E104: 5026.54824574367i | G104: -2.76342837699534+0.00792697160431133i | J104: =IMPRODUCT(1/N_FFT2,S100) -> 0.0381255784050288-0.000518409073101246i | N104: 7.522381943 | O104: -7.477618057 | P104: -7.44161128259363+0.732934738461153i | Q104: -7.33393772315652+1.45881091472804i | R104: -7.15563433430724+2.17063794441893i | S104: -6.90841827515096+2.86156054411367i | T104: -6.59467037147939+3.52492475148047i | U104: -6.21741218711695+4.15434200657065i | V104: -5.78027692460935+4.7437506771432i | W104: -5.28747443549697+5.28747443549696i | X104: -4.74375067714321+5.78027692460935i | Y104: -4.15434200657066+6.21741218711695i | Z104: -3.52492475148049+6.59467037147939i | AA104: -2.86156054411369+6.90841827515095i | AB104: -2.17063794441896+7.15563433430724i | AC104: -1.45881091472808+7.33393772315652i | AD104: -0.73293473846112+7.44161128259363i | AE104: 2.61079639063416E-14+7.47761805738083i | AF104: 0.732934738461171+7.44161128259363i | AG104: 1.45881091472805+7.33393772315652i | AH104: 2.17063794441894+7.15563433430724i | AI104: 2.86156054411367+6.90841827515096i | AJ104: 3.52492475148047+6.5946703714794i | AK104: 4.15434200657064+6.21741218711696i | AL104: 4.74375067714319+5.78027692460936i | AM104: 5.28747443549694+5.28747443549699i | AN104: 5.78027692460937+4.74375067714318i | AO104: 6.21741218711696+4.15434200657064i | AP104: 6.5946703714794+3.52492475148047i | AQ104: 6.90841827515096+2.86156054411367i | AR104: 6.90841827515096+2.86156054411367i | AS104: 7.33393772315652+1.45881091472805i | AT104: 7.44161128259363+0.732934738461168i | AU104: 7.47761805738083+2.41608505645615E-14i | AV104: 7.44161128259363-0.73293473846112i | AW104: 7.33393772315652-1.45881091472808i | AX104: 7.15563433430724-2.17063794441896i | AY104: 6.90841827515095-2.86156054411369i | AZ104: 6.59467037147939-3.52492475148049i | BA104: 6.21741218711695-4.15434200657066i | BB104: 5.78027692460935-4.7437506771432i | BC104: 5.28747443549698-5.28747443549695i | BD104: 4.74375067714322-5.78027692460934i | BE104: 4.15434200657067-6.21741218711694i | BF104: 3.52492475148051-6.59467037147938i | BG104: 2.86156054411364-6.90841827515098i | BH104: 2.17063794441891-7.15563433430725i | BI104: 1.45881091472803-7.33393772315652i | BJ104: 0.732934738461146-7.44161128259363i | BK104: 1.37361615288268E-15-7.47761805738083i | BL104: -0.73293473846115-7.44161128259363i | BM104: -1.45881091472803-7.33393772315652i | BN104: -2.17063794441891-7.15563433430725i | BO104: -2.86156054411364-6.90841827515097i | BP104: -3.52492475148044-6.59467037147942i | BQ104: -4.15434200657068-6.21741218711694i | BR104: -4.74375067714322-5.78027692460933i | BS104: -5.28747443549698-5.28747443549695i | BT104: -5.78027692460935-4.7437506771432i | BU104: -6.21741218711695-4.15434200657065i | BV104: -6.59467037147939-3.52492475148049i | BW104: -6.90841827515095-2.86156054411369i | BX104: -7.15563433430724-2.17063794441896i | BY104: -7.33393772315652-1.45881091472807i | BZ104: -7.44161128259363-0.73293473846112i | CA104: -7.47761805738083+2.47343477534589E-14i | CB104: -7.44161128259363+0.732934738461169i | CC104: -7.33393772315652+1.45881091472806i | CD104: -7.15563433430724+2.17063794441894i | CE104: -6.90841827515096+2.86156054411367i | CF104: -6.5946703714794+3.52492475148047i | CG104: -6.21741218711696+4.15434200657064i | CH104: -5.78027692460936+4.74375067714319i | CI104: -5.28747443549699+5.28747443549694i | CJ104: -4.74375067714318+5.78027692460936i | CK104: -4.15434200657063+6.21741218711696i | CL104: -3.52492475148047+6.5946703714794i | CM104: -2.86156054411367+6.90841827515096i | CN104: -2.17063794441894+7.15563433430724i | CO104: -1.45881091472806+7.33393772315652i | CP104: -0.732934738461166+7.44161128259363i | CQ104: -2.22137372227813E-14+7.47761805738083i | CR104: 0.732934738461122+7.44161128259363i | CS104: 1.45881091472801+7.33393772315652i | CT104: 2.17063794441896+7.15563433430724i | CU104: 2.86156054411369+6.90841827515095i | CV104: 3.52492475148049+6.59467037147939i | CW104: 4.15434200657066+6.21741218711695i | CX104: 4.7437506771432+5.78027692460935i | CY104: 5.28747443549696+5.28747443549697i | CZ104: 5.78027692460934+4.74375067714322i | DA104: 6.21741218711694+4.15434200657067i | DB104: 6.59467037147938+3.5249247514805i | DC104: 6.90841827515094+2.86156054411371i | DD104: 7.15563433430725+2.1706379444189i | DE104: 7.33393772315652+1.45881091472803i | DF104: 7.44161128259363+0.732934738461141i | DG104: 7.47761805738083+2.74723230576537E-15i | DH104: 7.44161128259363-0.732934738461148i | DI104: 7.33393772315652-1.45881091472803i | DJ104: 7.15563433430725-2.17063794441891i | DK104: 6.90841827515097-2.86156054411365i | DL104: 6.59467037147942-3.52492475148044i | DM104: 6.21741218711681-4.15434200657087i | DN104: 5.78027692460957-4.74375067714293i | DO104: 5.28747443549711-5.28747443549682i | DP104: 4.74375067714325-5.7802769246093i | DQ104: 4.15434200657059-6.217412187117i | DR104: 3.52492475148028-6.5946703714795i | DS104: 2.86156054411334-6.9084182751511i | DT104: 2.17063794441917-7.15563433430717i | DU104: 1.45881091472814-7.3339377231565i | DV104: 0.732934738461114-7.44161128259363i | DW104: -1.82755747344391E-13-7.47761805738083i | DX104: -0.732934738461465-7.4416112825936i | DY104: -1.45881091472776-7.33393772315658i | DZ104: -2.1706379444188-7.15563433430728i | EA104: -2.86156054411367-6.90841827515096i | EB104: -3.52492475148061-6.59467037147933i | EC104: -4.15434200657088-6.2174121871168i | ED104: -4.74375067714295-5.78027692460955i | EE104: -5.28747443549683-5.2874744354971i | EF104: -5.78027692460932-4.74375067714324i | EG104: -6.21741218711701-4.15434200657057i | EH104: -6.59467037147951-3.52492475148027i | EI104: -6.90841827515082-2.86156054411401i | EJ104: -7.15563433430717-2.17063794441915i | EK104: -7.3339377231565-1.45881091472812i | EL104: -7.44161128259364-0.732934738461088i | EM104: -7.47761805738083+2.08863711250733E-13i
A105: 9.765625e-05 | B105: 5 | C105: 1000 | D105: 6283.185307 | E105: 6283.18530717959i | G105: -2.7895037842448-0.118428016837543i | J105: =IMPRODUCT(1/N_FFT2,T100) -> -0.907385224834961-0.00442712561375211i | N105: 7.52241775 | O105: -7.47758225 | P105: -7.4213473514387+0.915335892084505i | Q105: -7.25348848086711+1.81690428035505i | R105: -6.97653039197748+2.69114473706986i | S105: -6.59463879222003+3.52490787201468i | T105: -6.11355768672078+4.30565311157106i | U105: -5.54052298309799+5.02163732061639i | V105: -4.88415365667632+5.66209143020666i | W105: -4.15432211307541+6.21738241439732i | X105: -3.36200569804011+6.67915817991985i | Y105: -2.51912158794271+7.04047318943871i | Z105: -1.63834754435778+7.29589292889782i | AA105: -0.732931228727516+7.44157564767034i | AB105: 0.183509054797015+7.47533014206408i | AC105: 1.0971891913267+7.3966487130646i | AD105: 1.9943665811523+7.20671480260092i | AE105: 2.86154684123581+6.90838519347739i | AF105: 3.68568677329195+6.50614704070121i | AG105: 4.45439054563102+6.00605038049443i | AH105: 5.1560961380056+5.41561713211782i | AI105: 5.78024924515703+4.74372796120371i | AJ105: 6.31746202339034+4.00048870627892i | AK105: 6.7596542924819+3.19707837754649i | AL105: 7.10017506911089+2.34558101416696i | AM105: 7.33390260383917+1.45880392906149i | AN105: 7.45732141699026+0.550085075004492i | AO105: 7.4685751747358-0.36690757060119i | AP105: 7.36749461008427-1.27838158482651i | AQ105: 7.15560006881406-2.17062755009525i | AR105: 7.15560006881406-2.17062755009525i | AS105: 6.41373622948555-3.84424555467373i | AT105: 5.89492525409952-4.60044482138674i | AU105: 5.2874491158802-5.28744911588017i | AV105: 4.60044482138675-5.8949252540995i | AW105: 3.84424555467375-6.41373622948555i | AX105: 3.03022525658477-6.83607864205789i | AY105: 2.17062755009519-7.15560006881408i | AZ105: 1.27838158482654-7.36749461008427i | BA105: 0.366907570601211-7.46857517473579i | BB105: -0.550085075004469-7.45732141699026i | BC105: -1.45880392906148-7.33390260383918i | BD105: -2.34558101416694-7.1001750691109i | BE105: -3.19707837754647-6.75965429248191i | BF105: -4.00048870627897-6.31746202339031i | BG105: -4.74372796120375-5.780249245157i | BH105: -5.4156171321178-5.15609613800562i | BI105: -6.00605038049441-4.45439054563104i | BJ105: -6.5061470407012-3.68568677329197i | BK105: -6.90838519347739-2.86154684123583i | BL105: -7.20671480260091-1.99436658115232i | BM105: -7.39664871306461-1.09718919132665i | BN105: -7.47533014206408-0.183509054796966i | BO105: -7.44157564767034+0.732931228727566i | BP105: -7.29589292889782+1.63834754435776i | BQ105: -7.04047318943872+2.51912158794269i | BR105: -6.67915817991985+3.36200569804008i | BS105: -6.21738241439732+4.15432211307539i | BT105: -5.66209143020668+4.88415365667629i | BU105: -5.02163732061636+5.54052298309801i | BV105: -4.30565311157103+6.1135576867208i | BW105: -3.52490787201467+6.59463879222004i | BX105: -2.69114473706986+6.97653039197748i | BY105: -1.81690428035505+7.25348848086711i | BZ105: -0.91533589208452+7.4213473514387i | CA105: -2.22136308500091E-14+7.47758225003539i | CB105: 0.915335892084475+7.4213473514387i | CC105: 1.81690428035508+7.2534884808671i | CD105: 2.69114473706989+6.97653039197747i | CE105: 3.52490787201469+6.59463879222002i | CF105: 4.30565311157106+6.11355768672078i | CG105: 5.02163732061638+5.540522983098i | CH105: 5.66209143020665+4.88415365667633i | CI105: 6.2173824143973+4.15432211307542i | CJ105: 6.67915817991983+3.36200569804013i | CK105: 7.04047318943873+2.51912158794266i | CL105: 7.29589292889783+1.63834754435773i | CM105: 7.44157564767034+0.732931228727537i | CN105: 7.47533014206408-0.183509054796994i | CO105: 7.3966487130646-1.09718919132668i | CP105: 7.20671480260092-1.99436658115228i | CQ105: 6.9083851934774-2.86154684123579i | CR105: 6.50614704070122-3.68568677329193i | CS105: 6.00605038049443-4.45439054563101i | CT105: 5.41561713211758-5.15609613800586i | CU105: 4.74372796120378-5.78024924515697i | CV105: 4.00048870627869-6.31746202339048i | CW105: 3.19707837754657-6.75965429248186i | CX105: 2.34558101416669-7.10017506911097i | CY105: 1.45880392906159-7.33390260383916i | CZ105: 0.550085075004216-7.45732141699028i | DA105: -0.366907570601095-7.4685751747358i | DB105: -1.27838158482679-7.36749461008422i | DC105: -2.17062755009508-7.15560006881411i | DD105: -3.03022525658493-6.83607864205782i | DE105: -3.84424555467358-6.41373622948564i | DF105: -4.60044482138689-5.8949252540994i | DG105: -5.28744911588005-5.28744911588032i | DH105: -5.89492525409963-4.60044482138659i | DI105: -6.41373622948546-3.84424555467389i | DJ105: -6.83607864205797-3.03022525658458i | DK105: -7.155600068814-2.17062755009543i | DL105: -7.36749461008428-1.27838158482642i | DM105: -7.46857517473578-0.36690757060146i | DN105: -7.45732141699025+0.550085075004593i | DO105: -7.33390260383923+1.45880392906123i | DP105: -7.10017506911085+2.34558101416705i | DQ105: -6.75965429248201+3.19707837754624i | DR105: -6.31746202339028+4.000488706279i | DS105: -5.7802492451572+4.7437279612035i | DT105: -5.15609613800558+5.41561713211784i | DU105: -4.4543905456313+6.00605038049422i | DV105: -3.68568677329193+6.50614704070122i | DW105: -2.86154684123613+6.90838519347726i | DX105: -1.99436658115227+7.20671480260093i | DY105: -1.09718919132704+7.39664871306455i | DZ105: -0.183509054796988+7.47533014206408i | EA105: 0.732931228727914+7.4415756476703i | EB105: 1.63834754435774+7.29589292889783i | EC105: 2.51912158794302+7.0404731894386i | ED105: 3.36200569804006+6.67915817991986i | EE105: 4.15432211307567+6.21738241439714i | EF105: 4.88415365667627+5.66209143020669i | EG105: 5.5405229830982+5.02163732061616i | EH105: 6.11355768672074+4.30565311157112i | EI105: 6.59463879222016+3.52490787201443i | EJ105: 6.97653039197744+2.69114473706995i | EK105: 7.25348848086717+1.81690428035479i | EL105: 7.42134735143868+0.915335892084617i | EM105: 7.47758225003539-2.47795534484604E-13i
A106: 0.0001171875 | B106: 6 | C106: 1200 | D106: 7539.822369 | E106: 7539.8223686155i | G106: -2.82091845532597-0.222841550873823i | J106: =IMPRODUCT(1/N_FFT2,U100) -> 0.0202922871887599+0.000510103198431562i | N106: 7.522464695 | O106: -7.477535305 | P106: -7.39660227631629+1.09718230308577i | Q106: -7.1555551453883+2.17061392272299i | R106: -6.75961185483517+3.19705830603443i | S106: -6.21734338117653+4.1542960319111i | T106: -5.54048819925449+5.0216057943783i | U106: -4.74369817970269+5.78021295629299i | V106: -3.84422142019469+6.41369596353992i | W106: -2.8615288762174+6.90834182208625i | X106: -1.81689287368565+7.2534429428901i | Y106: -0.732926627327029+7.44152892886717i | Z106: 0.366905267126359+7.46852828642744i | AA106: 1.45879477057452+7.33385656101592i | AB106: 2.51910577269721+7.04042898878865i | AC106: 3.52488574236298+6.59459739055373i | AD106: 4.45436258061326+6.00601267403294i | AE106: 5.2874159208545+5.28741592085456i | AF106: 6.00601267403294+4.45436258061327i | AG106: 6.59459739055373+3.52488574236298i | AH106: 7.04042898878865+2.5191057726972i | AI106: 7.33385656101592+1.45879477057452i | AJ106: 7.46852828642744+0.366905267126357i | AK106: 7.44152892886717-0.732926627327029i | AL106: 7.2534429428901-1.81689287368565i | AM106: 6.90834182208625-2.8615288762174i | AN106: 6.41369596353991-3.8442214201947i | AO106: 5.78021295629299-4.74369817970268i | AP106: 5.02160579437831-5.54048819925448i | AQ106: 4.15429603191112-6.21734338117651i | AR106: 4.15429603191112-6.21734338117651i | AS106: 2.17061392272297-7.15555514538831i | AT106: 1.09718230308575-7.39660227631629i | AU106: 1.37360095154998E-15-7.4775353051799i | AV106: -1.09718230308575-7.39660227631629i | AW106: -2.17061392272297-7.15555514538831i | AX106: -3.1970583060344-6.75961185483518i | AY106: -4.15429603191113-6.21734338117651i | AZ106: -5.02160579437831-5.54048819925447i | BA106: -5.780212956293-4.74369817970268i | BB106: -6.41369596353992-3.8442214201947i | BC106: -6.90834182208625-2.8615288762174i | BD106: -7.2534429428901-1.81689287368565i | BE106: -7.44152892886717-0.732926627327029i | BF106: -7.46852828642744+0.366905267126362i | BG106: -7.33385656101592+1.45879477057453i | BH106: -7.04042898878865+2.51910577269721i | BI106: -6.59459739055373+3.52488574236298i | BJ106: -6.00601267403294+4.45436258061327i | BK106: -5.28741592085456+5.2874159208545i | BL106: -4.45436258061326+6.00601267403294i | BM106: -3.52488574236298+6.59459739055373i | BN106: -2.5191057726972+7.04042898878865i | BO106: -1.45879477057453+7.33385656101592i | BP106: -0.366905267126359+7.46852828642744i | BQ106: 0.732926627327031+7.44152892886717i | BR106: 1.81689287368565+7.2534429428901i | BS106: 2.8615288762174+6.90834182208625i | BT106: 3.8442214201947+6.41369596353991i | BU106: 4.74369817970268+5.780212956293i | BV106: 5.54048819925448+5.0216057943783i | BW106: 6.21734338117651+4.15429603191112i | BX106: 6.75961185483516+3.19705830603446i | BY106: 7.15555514538831+2.17061392272296i | BZ106: 7.39660227631629+1.09718230308575i | CA106: 7.4775353051799+2.74720190309997E-15i | CB106: 7.39660227631629-1.09718230308576i | CC106: 7.15555514538831-2.17061392272297i | CD106: 6.75961185483518-3.1970583060344i | CE106: 6.21734338117638-4.15429603191132i | CF106: 5.54048819925442-5.02160579437837i | CG106: 4.74369817970273-5.78021295629294i | CH106: 3.84422142019488-6.4136959635398i | CI106: 2.86152887621706-6.90834182208639i | CJ106: 1.81689287368543-7.25344294289016i | CK106: 0.732926627327023-7.44152892886717i | CL106: -0.366905267126214-7.46852828642745i | CM106: -1.45879477057424-7.33385656101598i | CN106: -2.51910577269748-7.04042898878855i | CO106: -3.52488574236313-6.59459739055366i | CP106: -4.45436258061327-6.00601267403293i | CQ106: -5.2874159208544-5.28741592085466i | CR106: -6.00601267403271-4.45436258061356i | CS106: -6.59459739055383-3.52488574236279i | CT106: -7.04042898878868-2.51910577269712i | CU106: -7.33385656101591-1.4587947705746i | CV106: -7.46852828642743-0.366905267126579i | CW106: -7.44152892886713+0.7329266273274i | CX106: -7.25344294289006+1.8168928736858i | CY106: -6.90834182208624+2.86152887621741i | CZ106: -6.41369596353999+3.84422142019457i | DA106: -5.78021295629318+4.74369817970245i | DB106: -5.02160579437809+5.54048819925467i | DC106: -4.15429603191099+6.2173433811766i | DD106: -3.19705830603446+6.75961185483515i | DE106: -2.17061392272318+7.15555514538824i | DF106: -1.09718230308612+7.39660227631624i | DG106: 2.21686303825973E-13+7.4775353051799i | DH106: 1.09718230308583+7.39660227631628i | DI106: 2.17061392272291+7.15555514538833i | DJ106: 3.19705830603419+6.75961185483528i | DK106: 4.15429603191137+6.21734338117635i | DL106: 5.02160579437842+5.54048819925437i | DM106: 5.780212956293+4.74369817970268i | DN106: 6.41369596353984+3.84422142019482i | DO106: 6.90834182208613+2.86152887621767i | DP106: 7.25344294289018+1.81689287368536i | DQ106: 7.44152892886717+0.732926627326946i | DR106: 7.46852828642745-0.366905267126292i | DS106: 7.33385656101597-1.45879477057431i | DT106: 7.04042898878877-2.51910577269686i | DU106: 6.59459739055362-3.52488574236319i | DV106: 6.00601267403289-4.45436258061332i | DW106: 5.2874159208546-5.28741592085446i | DX106: 4.45436258061351-6.00601267403276i | DY106: 3.52488574236272-6.59459739055387i | DZ106: 2.51910577269706-7.0404289887887i | EA106: 1.45879477057453-7.33385656101592i | EB106: 0.366905267126501-7.46852828642743i | EC106: -0.732926627326724-7.4415289288672i | ED106: -1.81689287368587-7.25344294289005i | EE106: -2.86152887621748-6.90834182208621i | EF106: -3.84422142019462-6.41369596353996i | EG106: -4.74369817970252-5.78021295629313i | EH106: -5.54048819925474-5.02160579437802i | EI106: -6.21734338117664-4.15429603191093i | EJ106: -6.75961185483519-3.19705830603439i | EK106: -7.15555514538827-2.17061392272312i | EL106: -7.39660227631625-1.09718230308604i | EM106: -7.4775353051799+3.13292099742916E-13i
A107: 0.00013671875 | B107: 7 | C107: 1400 | D107: 8796.45943 | E107: 8796.45943005142i | G107: -2.85741232929671-0.313285590743273i | J107: =IMPRODUCT(1/N_FFT2,V100) -> 0.69280342226002+0.00442824448753699i | N107: 7.522522946 | O107: -7.477477054 | P107: -7.36739096279183+1.27836360031527i | Q107: -7.04037414274481+2.51908614846893i | R107: -6.50605551100751+3.68563492236095i | S107: -5.7801679275293+4.74366122555135i | T107: -4.88408494548898+5.66201177484519i | U107: -3.8441914731081+6.41364599984445i | V107: -2.69110687754229+6.9764322448428i | W107: -1.45878340633495+7.33379942912537i | X107: -0.183506473157252+7.47522497772121i | Y107: 1.0971737558639+7.39654465562679i | Z107: 2.34554801609445+7.10007518251977i | AA107: 3.52485828295131+6.59454601760783i | AB107: 4.60038010146835+5.89484232318829i | AC107: 5.5404450379842+5.02156667528312i | AD107: 6.31737314815277+4.00043242665542i | AE107: 6.90828800502212+2.86150658445953i | AF107: 7.29579028891123+1.63832449577801i | AG107: 7.46847010542307+0.366902408876896i | AH107: 7.42124294653583-0.915323014967911i | AI107: 7.15549940249368-2.17059701330081i | AJ107: 6.67906421627308-3.36195840071501i | AK107: 6.00596588625409-4.45432788043155i | AL107: 5.1560236010806-5.41554094420286i | AM107: 4.15426366929478-6.21729494709839i | AN107: 3.03018262680891-6.83598247082475i | AO107: 1.81687871980573-7.25338643743423i | AP107: 0.550077336304725-7.4572165059975i | AQ107: -0.732920917713909-7.44147095819201i | AR107: -0.732920917713909-7.44147095819201i | AS107: -3.19703340044977-6.75955919640078i | AT107: -4.30559253883764-6.11347168004755i | AU107: -5.2873747310569-5.28737473105687i | AV107: -6.11347168004757-4.30559253883761i | AW107: -6.75955919640076-3.1970334004498i | AX107: -7.20661341718889-1.99433852403017i | AY107: -7.44147095819201-0.732920917713879i | AZ107: -7.4572165059975+0.550077336304754i | BA107: -7.25338643743423+1.81687871980575i | BB107: -6.83598247082473+3.03018262680894i | BC107: -6.21729494709842+4.15426366929474i | BD107: -5.41554094420289+5.15602360108056i | BE107: -4.45432788043153+6.00596588625411i | BF107: -3.36195840071498+6.67906421627309i | BG107: -2.17059701330078+7.15549940249369i | BH107: -0.915323014967955+7.42124294653583i | BI107: 0.366902408876846+7.46847010542307i | BJ107: 1.63832449577805+7.29579028891122i | BK107: 2.86150658445955+6.90828800502211i | BL107: 4.00043242665544+6.31737314815275i | BM107: 5.02156667528314+5.54044503798419i | BN107: 5.89484232318826+4.60038010146839i | BO107: 6.59454601760784+3.52485828295129i | BP107: 7.10007518251978+2.34554801609443i | BQ107: 7.39654465562679+1.09717375586387i | BR107: 7.47522497772121-0.183506473157282i | BS107: 7.33379942912538-1.4587834063349i | BT107: 6.97643224484282-2.69110687754223i | BU107: 6.41364599984447-3.84419147310807i | BV107: 5.66201177484528-4.88408494548888i | BW107: 4.7436612255514-5.78016792752926i | BX107: 3.68563492236095-6.50605551100751i | BY107: 2.51908614846888-7.04037414274483i | BZ107: 1.27836360031515-7.36739096279185i | CA107: -1.82752301169912E-13-7.47747705400944i | CB107: -1.2783636003155-7.36739096279179i | CC107: -2.51908614846921-7.04037414274471i | CD107: -3.68563492236126-6.50605551100733i | CE107: -4.7436612255511-5.78016792752951i | CF107: -5.66201177484502-4.88408494548918i | CG107: -6.41364599984434-3.84419147310828i | CH107: -6.97643224484276-2.6911068775424i | CI107: -7.33379942912536-1.45878340633499i | CJ107: -7.47522497772121-0.183506473157302i | CK107: -7.39654465562679+1.09717375586393i | CL107: -7.10007518251973+2.34554801609455i | CM107: -6.59454601760774+3.52485828295148i | CN107: -5.89484232318813+4.60038010146855i | CO107: -5.02156667528294+5.54044503798437i | CP107: -4.00043242665514+6.31737314815294i | CQ107: -2.86150658445985+6.90828800502199i | CR107: -1.63832449577828+7.29579028891117i | CS107: -0.366902408877092+7.46847010542306i | CT107: 0.915323014967784+7.42124294653585i | CU107: 2.17059701330069+7.15549940249371i | CV107: 3.36195840071496+6.6790642162731i | CW107: 4.45432788043158+6.00596588625407i | CX107: 5.41554094420293+5.15602360108052i | CY107: 6.21729494709849+4.15426366929463i | CZ107: 6.83598247082481+3.03018262680875i | DA107: 7.25338643743429+1.81687871980548i | DB107: 7.45721650599753+0.550077336304396i | DC107: 7.44147095819204-0.732920917713562i | DD107: 7.20661341718897-1.99433852402985i | DE107: 6.75955919640087-3.19703340044958i | DF107: 6.11347168004766-4.30559253883749i | DG107: 5.28737473105696-5.28737473105681i | DH107: 4.30559253883766-6.11347168004754i | DI107: 3.19703340044979-6.75955919640077i | DJ107: 1.99433852403005-7.20661341718892i | DK107: 0.73292091771377-7.44147095819203i | DL107: -0.55007733630493-7.45721650599749i | DM107: -1.81687871980599-7.25338643743417i | DN107: -3.03018262680923-6.83598247082461i | DO107: -4.15426366929508-6.21729494709819i | DP107: -5.15602360108037-5.41554094420307i | DQ107: -6.00596588625395-4.45432788043175i | DR107: -6.679064216273-3.36195840071516i | DS107: -7.15549940249365-2.1705970133009i | DT107: -7.42124294653582-0.915323014967993i | DU107: -7.46847010542307+0.366902408876883i | DV107: -7.29579028891122+1.63832449577807i | DW107: -6.90828800502207+2.86150658445964i | DX107: -6.31737314815266+4.00043242665558i | DY107: -5.54044503798401+5.02156667528334i | DZ107: -4.60038010146812+5.89484232318846i | EA107: -3.52485828295166+6.59454601760764i | EB107: -2.34554801609477+7.10007518251966i | EC107: -1.09717375586415+7.39654465562676i | ED107: 0.183506473157093+7.47522497772122i | EE107: 1.45878340633478+7.3337994291254i | EF107: 2.6911068775422+6.97643224484284i | EG107: 3.84419147310808+6.41364599984446i | EH107: 4.884084945489+5.66201177484517i | EI107: 5.78016792752938+4.74366122555126i | EJ107: 6.5060555110076+3.6856349223608i | EK107: 7.04037414274489+2.51908614846871i | EL107: 7.36739096279188+1.27836360031499i | EM107: 7.47747705400944-3.65504602339824E-13i
A108: 0.00015625 | B108: 8 | C108: 1600 | D108: 10053.09649 | E108: 10053.0964914873i | G108: -2.89868937003806-0.393574722031177i | J108: =IMPRODUCT(1/N_FFT2,W100) -> 0.0381281400245102-0.000501794618069176i | N108: 7.522592709 | O108: -7.477407291 | P108: -7.33373100673244+1.45876979627475i | Q108: -6.9082235525373+2.8614798873662i | R108: -6.21723694139455+4.15422491112256i | S108: -5.28732540126066+5.28732540126065i | T108: -4.15422491112257+6.21723694139455i | U108: -2.86147988736621+6.9082235525373i | V108: -1.45876979627479+7.33373100673244i | W108: 2.61072280199539E-14+7.47740729114259i | X108: 1.45876979627476+7.33373100673244i | Y108: 2.86147988736619+6.9082235525373i | Z108: 4.15422491112254+6.21723694139457i | AA108: 5.28732540126063+5.28732540126068i | AB108: 6.21723694139457+4.15422491112254i | AC108: 6.9082235525373+2.86147988736619i | AD108: 7.33373100673244+1.45876979627476i | AE108: 7.47740729114259+2.41601695600561E-14i | AF108: 7.33373100673244-1.45876979627479i | AG108: 6.9082235525373-2.86147988736621i | AH108: 6.21723694139455-4.15422491112257i | AI108: 5.28732540126067-5.28732540126065i | AJ108: 4.15422491112258-6.21723694139454i | AK108: 2.86147988736616-6.90822355253732i | AL108: 1.45876979627474-7.33373100673245i | AM108: 1.37357743575283E-15-7.47740729114259i | AN108: -1.45876979627474-7.33373100673245i | AO108: -2.86147988736617-6.90822355253731i | AP108: -4.15422491112259-6.21723694139454i | AQ108: -5.28732540126067-5.28732540126065i | AR108: -5.28732540126067-5.28732540126065i | AS108: -6.9082235525373-2.86147988736621i | AT108: -7.33373100673244-1.45876979627478i | AU108: -7.47740729114259+2.47336505842011E-14i | AV108: -7.33373100673244+1.45876979627477i | AW108: -6.9082235525373+2.86147988736619i | AX108: -6.21723694139456+4.15422491112254i | AY108: -5.28732540126068+5.28732540126063i | AZ108: -4.15422491112254+6.21723694139457i | BA108: -2.86147988736619+6.9082235525373i | BB108: -1.45876979627477+7.33373100673244i | BC108: -2.22131111001583E-14+7.47740729114259i | BD108: 1.45876979627472+7.33373100673245i | BE108: 2.86147988736621+6.9082235525373i | BF108: 4.15422491112257+6.21723694139455i | BG108: 5.28732540126065+5.28732540126066i | BH108: 6.21723694139454+4.15422491112258i | BI108: 6.90822355253728+2.86147988736623i | BJ108: 7.33373100673245+1.45876979627474i | BK108: 7.47740729114259+2.74715487150566E-15i | BL108: 7.33373100673245-1.45876979627474i | BM108: 6.90822355253731-2.86147988736617i | BN108: 6.21723694139441-4.15422491112278i | BO108: 5.2873254012608-5.28732540126051i | BP108: 4.1542249111225-6.2172369413946i | BQ108: 2.86147988736587-6.90822355253744i | BR108: 1.45876979627486-7.33373100673243i | BS108: -1.82750596139677E-13-7.47740729114259i | BT108: -1.45876979627447-7.3337310067325i | BU108: -2.8614798873662-6.9082235525373i | BV108: -4.15422491112279-6.2172369413944i | BW108: -5.28732540126053-5.28732540126079i | BX108: -6.21723694139461-4.15422491112248i | BY108: -6.90822355253716-2.86147988736653i | BZ108: -7.33373100673243-1.45876979627483i | CA108: -7.47740729114259+2.08857824159632E-13i | CB108: -7.33373100673249+1.4587697962745i | CC108: -6.90822355253729+2.86147988736622i | CD108: -6.21723694139439+4.15422491112281i | CE108: -5.28732540126077+5.28732540126055i | CF108: -4.15422491112245+6.21723694139463i | CG108: -2.86147988736651+6.90822355253717i | CH108: -1.4587697962748+7.33373100673243i | CI108: 2.21682508596983E-13+7.47740729114259i | CJ108: 1.45876979627452+7.33373100673249i | CK108: 2.86147988736624+6.90822355253728i | CL108: 4.15422491112283+6.21723694139437i | CM108: 5.28732540126056+5.28732540126075i | CN108: 6.21723694139463+4.15422491112244i | CO108: 6.90822355253718+2.86147988736648i | CP108: 7.33373100673244+1.45876979627478i | CQ108: 7.47740729114259-2.47789736616937E-13i | CR108: 7.33373100673249-1.45876979627455i | CS108: 6.90822355253727-2.86147988736626i | CT108: 6.21723694139436-4.15422491112285i | CU108: 5.28732540126073-5.28732540126059i | CV108: 4.15422491112241-6.21723694139466i | CW108: 2.86147988736647-6.90822355253718i | CX108: 1.45876979627477-7.33373100673244i | CY108: -2.73896964636891E-13-7.47740729114259i | CZ108: -1.45876979627457-7.33373100673248i | DA108: -2.86147988736629-6.90822355253726i | DB108: -4.15422491112224-6.21723694139476i | DC108: -5.28732540126059-5.28732540126072i | DD108: -6.21723694139466-4.15422491112239i | DE108: -6.9082235525372-2.86147988736643i | DF108: -7.33373100673245-1.45876979627473i | DG108: -7.47740729114259+3.13286736239447E-13i | DH108: -7.33373100673248+1.45876979627459i | DI108: -6.90822355253726+2.8614798873663i | DJ108: -6.21723694139474+4.15422491112228i | DK108: -5.28732540126069+5.28732540126062i | DL108: -4.15422491112236+6.21723694139469i | DM108: -2.86147988736642+6.90822355253721i | DN108: -1.45876979627471+7.33373100673245i | DO108: 3.26111420676799E-13+7.47740729114259i | DP108: 1.45876979627462+7.33373100673247i | DQ108: 2.86147988736634+6.90822355253724i | DR108: 4.15422491112229+6.21723694139474i | DS108: 5.28732540126063+5.28732540126068i | DT108: 6.21723694139469+4.15422491112236i | DU108: 6.90822355253722+2.86147988736639i | DV108: 7.33373100673246+1.45876979627468i | DW108: 7.47740729114259-3.65501192279355E-13i | DX108: 7.33373100673247-1.45876979627464i | DY108: 6.90822355253724-2.86147988736635i | DZ108: 6.21723694139472-4.15422491112232i | EA108: 5.28732540126066-5.28732540126066i | EB108: 4.15422491112232-6.21723694139472i | EC108: 2.86147988736638-6.90822355253723i | ED108: 1.45876979627466-7.33373100673246i | EE108: 3.6549656390903E-13-7.47740729114259i | EF108: -1.45876979627468-7.33373100673246i | EG108: -2.86147988736639-6.90822355253722i | EH108: -4.15422491112233-6.21723694139471i | EI108: -5.28732540126067-5.28732540126065i | EJ108: -6.21723694139472-4.15422491112231i | EK108: -6.90822355253724-2.86147988736634i | EL108: -7.33373100673247-1.45876979627462i | EM108: -7.47740729114259-3.52671879471678E-13i
A109: 0.00017578125 | B109: 9 | C109: 1800 | D109: 11309.73355 | E109: 11309.7335529233i | G109: -2.94442255879685-0.465697911239635i | J109: =IMPRODUCT(1/N_FFT2,X100) -> -0.482641737834605-0.00442934515853113i | N109: 7.522674227 | O109: -7.477325773 | P109: -7.29564268370811+1.63829134992122i | Q109: -6.759422439988+3.19696871948368i | R109: -5.89472306134492+4.60028702861232i | S109: -4.74356525389496+5.78005098572763i | T109: -3.36189038305921+6.67892908839916i | U109: -1.81684196151889+7.25323969012707i | V109: -0.183502760535429+7.47507374227481i | W109: 1.45875389287408+7.33365105493813i | X109: 3.0301213214939+6.83584416825007i | Y109: 4.45423776243944+6.00584437620797i | Z109: 5.66189722352658+4.88398613284195i | AA109: 6.59441259966873+3.52478696957713i | AB109: 7.20646761617281+1.99429817545497i | AC109: 7.46831900663825+0.366894985869594i | AD109: 7.36724190899554-1.27833773702812i | AE109: 6.90814823959385-2.86144869172361i | AF109: 6.11334799499174-4.30550542999319i | AG109: 5.02146508116658-5.54033294615i | AH109: 3.68556035622491-6.50592388336919i | AI109: 2.17055309874176-7.15535463559375i | AJ109: 0.550066207383286-7.45706563489053i | AK109: -1.09715155832959-7.39639501200587i | AL109: -2.69105243225782-6.97629110075043i | AM109: -4.15417962206913-6.21716916153614i | AN109: -5.4154313793731-5.15591928669094i | AO109: -6.41351624179452-3.84411369912603i | AP109: -7.09993153693813-2.34550056200415i | AQ109: -7.441320405642-0.73290608958195i | AR109: -7.441320405642-0.73290608958195i | AS109: -7.04023170500822+2.51903518343185i | AT109: -6.3172453378526+4.00035149167545i | AU109: -5.28726775922929+5.28726775922923i | AV109: -4.00035149167545+6.3172453378526i | AW109: -2.51903518343184+7.04023170500822i | AX109: -0.915304496557448+7.42109280323i | AY109: 0.732906089581952+7.441320405642i | AZ109: 2.34550056200415+7.09993153693813i | BA109: 3.84411369912603+6.41351624179451i | BB109: 5.15591928669093+5.4154313793731i | BC109: 6.21716916153614+4.15417962206912i | BD109: 6.97629110075041+2.69105243225789i | BE109: 7.39639501200587+1.09715155832959i | BF109: 7.45706563489053-0.550066207383295i | BG109: 7.15535463559375-2.17055309874176i | BH109: 6.50592388336919-3.68556035622491i | BI109: 5.54033294614994-5.02146508116664i | BJ109: 4.30550542999331-6.11334799499166i | BK109: 2.86144869172327-6.908148239594i | BL109: 1.27833773702805-7.36724190899555i | BM109: -0.366894985869451-7.46831900663826i | BN109: -1.99429817545462-7.20646761617291i | BO109: -3.52478696957727-6.59441259966866i | BP109: -4.88398613284189-5.66189722352663i | BQ109: -6.00584437620775-4.45423776243974i | BR109: -6.83584416825013-3.03012132149376i | BS109: -7.33365105493811-1.45875389287415i | BT109: -7.47507374227481+0.183502760535126i | BU109: -7.25323969012703+1.81684196151904i | BV109: -6.67892908839919+3.36189038305914i | BW109: -5.78005098572781+4.74356525389472i | BX109: -4.60028702861216+5.89472306134505i | BY109: -3.19696871948371+6.75942243998798i | BZ109: -1.63829134992151+7.29564268370805i | CA109: 2.21680091830631E-13+7.47732577300003i | CB109: 1.63829134992122+7.29564268370811i | CC109: 3.19696871948345+6.75942243998811i | CD109: 4.60028702861252+5.89472306134477i | CE109: 5.78005098572763+4.74356525389494i | CF109: 6.67892908839906+3.36189038305941i | CG109: 7.25323969012714+1.8168419615186i | CH109: 7.47507374227481+0.183502760535426i | CI109: 7.33365105493817-1.45875389287387i | CJ109: 6.83584416824995-3.03012132149418i | CK109: 6.00584437620793-4.4542377624395i | CL109: 4.88398613284211-5.66189722352644i | CM109: 3.52478696957687-6.59441259966887i | CN109: 1.99429817545488-7.20646761617283i | CO109: 0.366894985869737-7.46831900663824i | CP109: -1.27833773702849-7.36724190899548i | CQ109: -2.8614486917237-6.90814823959382i | CR109: -4.30550542999307-6.11334799499183i | CS109: -5.54033294614974-5.02146508116687i | CT109: -6.50592388336927-3.68556035622478i | CU109: -7.15535463559371-2.17055309874191i | CV109: -7.45706563489051-0.550066207383647i | CW109: -7.39639501200585+1.09715155832973i | CX109: -6.97629110075045+2.69105243225777i | CY109: -6.21716916153635+4.15417962206882i | CZ109: -5.15591928669084+5.4154313793732i | DA109: -3.84411369912608+6.41351624179448i | DB109: -2.34550056200444+7.09993153693803i | DC109: -0.732906089581788+7.44132040564202i | DD109: 0.91530449655738+7.42109280323001i | DE109: 2.51903518343156+7.04023170500832i | DF109: 4.00035149167564+6.31724533785248i | DG109: 5.28726775922923+5.28726775922929i | DH109: 6.31724533785245+4.00035149167569i | DI109: 7.04023170500829+2.51903518343163i | DJ109: 7.42109280323+0.915304496557455i | DK109: 7.44132040564203-0.732906089581737i | DL109: 7.09993153693806-2.34550056200436i | DM109: 6.41351624179451-3.84411369912603i | DN109: 5.41543137937325-5.15591928669078i | DO109: 4.15417962206886-6.21716916153632i | DP109: 2.69105243225782-6.97629110075044i | DQ109: 1.09715155832981-7.39639501200584i | DR109: -0.550066207383595-7.45706563489051i | DS109: -2.17055309874184-7.15535463559373i | DT109: -3.68556035622474-6.5059238833693i | DU109: -5.02146508116681-5.54033294614979i | DV109: -6.11334799499179-4.30550542999313i | DW109: -6.9081482395938-2.86144869172374i | DX109: -7.36724190899559-1.27833773702783i | DY109: -7.46831900663825+0.366894985869685i | DZ109: -7.20646761617285+1.99429817545483i | EA109: -6.59441259966854+3.52478696957747i | EB109: -5.66189722352647+4.88398613284207i | EC109: -4.45423776243956+6.00584437620788i | ED109: -3.03012132149423+6.83584416824993i | EE109: -1.45875389287393+7.33365105493816i | EF109: 0.183502760535347+7.47507374227481i | EG109: 1.81684196151854+7.25323969012716i | EH109: 3.36189038305935+6.67892908839909i | EI109: 4.74356525389491+5.78005098572767i | EJ109: 5.89472306134473+4.60028702861257i | EK109: 6.75942243998808+3.1969687194835i | EL109: 7.2956426837081+1.63829134992128i | EM109: 7.47732577300003+3.0045414786711E-13i
